Workbook

Sheet Planilha SERVIÇOS
F2: COMPANHIA DE DESENVOLVIMENTO DOS VALES DO SÃO FRANCISCO E DO PARNAÍBA 3ª Superintendência Regional | M2: Valor da Proposta | N2: =K424 -> 5519350.33
B4: EXECUÇÃO DOS SERVIÇOS RELATIVOS À 2ª ETAPA DOS SISTEMAS DE ABASTECIMENTO DE ÁGUA DE ASSENTAMENTO ALEGRE; BOA PAZ; BOM JESUS; UMBURANAS; RIACHO DA MADEIRA E ILHA DA VILA, LOCALIZADOS NO MUNICÍPIO DE OROCÓ, NO ESTADO DE PERNAMBUCO
B6: OROCÓ/PE
B7: PLANILHA ORÇAMENTÁRIA DE SERVIÇOS
M8: PREÇO BÁSICO | O8: 7053979.18
B9: TABELAS DE REFERÊNCIA (COM DESONERAÇÃO): | H9: CODEVASF | I9: FEV/2018 | J9: ORSE | K9: ABR/2018 | M9: DESCONTO | O9: =O8-K424 -> 1534628.85
H10: SEINFRA: | I10: 024.1 | J10: SINAPI: | K10: MAI/2018 | M10: PERCENTUAL TOTAL | O10: =1-((O8-O9)/O8) -> 0.2176
G11: BDI: | H11: SERVIÇOS: | I11: ='BDI''s'!G33 -> 0.299 | J11: MATERIAIS: | K11: ='BDI''s'!G70 -> 0.1689
B12: ITEM | C12: TIPO | D12: FONTE | E12: CÓDIGO | F12: DISCRIMINAÇÃO DOS SERVIÇOS | G12: UNID. | H12: QUANT. | I12: PREÇO (R$) | M12: Preço Basico | N12: Preço Desconto | O12: Desconto
I13: SEM BDI | J13: COM BDI | K13: TOTAL
B14: 1 | C14: INSTALAÇÕES PRELIMINARES E CANTEIRO DE OBRAS | K14: =SUM(K15:K26) -> 458858.21
B15: D | C15: SERVIÇO | D15: SINAPI | E15: 73822/2 | F15: LIMPEZA MECANIZADA DE TERRENO COM REMOCAO DE CAMADA VEGETAL, UTILIZANDO MOTONIVELADORA | G15: M2 | H15: 300 | I15: =SUMIF('Composições (SINAPI)'!D:D,E15,'Composições (SINAPI)'!K:K) -> 0.4 | J15: =ROUND(IF(C15 = "SERVIÇO", I15 * (1 + $I$11), IF(C15 = "INSUMO", (I15 * (1 + $K$11)))),2) -> 0.52 | K15: =ROUND(J15*H15,2) -> 156 | M15: 0.52 | N15: 0.4 | O15: =IF(I15=0," ",ROUND(1-(I15/M15),4)) -> 0.2308
B16: 1.2 | C16: SERVIÇO | D16: ORSE | E16: 11986 | F16: PLACA DE INAUGURAÇÃO EM ALUMÍNIO COM ACRILICO, 80X60CM,COM LOGOMARCA E MOLDUR A | G16: UN | H16: 6 | I16: =SUMIF('Composições (ORSE)'!D:D,E16,'Composições (ORSE)'!K:K) -> 670.13 | J16: 870.5 | K16: =ROUND(J16*H16,2) -> 5223 | M16: 855.91 | N16: 670.17 | O16: 0.2171
B17: 1.3 | C17: SERVIÇO | D17: SINAPI | E17: 74209/1 | F17: PLACA DE OBRA EM CHAPA DE ACO GALVANIZADO | G17: M2 | H17: 36 | I17: =SUMIF('Composições (SINAPI)'!D:D,E17,'Composições (SINAPI)'!K:K) -> 248.77 | J17: 323.15 | K17: =ROUND(J17*H17,2) -> 11633.4 | M17: 317.72 | N17: 248.77 | O17: 0.217
B18: 1.4 | C18: SERVIÇO | D18: CODEVASF | E18: COMP. 01 | F18: MOBILIZAÇÃO DE EQUIPAMENTOS, MATERIAIS E PESSOAL | G18: UN | H18: 1 | I18: =SUMIF('Composições (CODEVASF)'!D:D,E18,'Composições (CODEVASF)'!K:K) -> 1872.19 | J18: 2431.97 | K18: 2431.97 | M18: 2391.06 | N18: 1872.19 | O18: 0.217
B19: 1.5 | C19: SERVIÇO | D19: CODEVASF | E19: COMP. 02 | F19: DESMOBILIZAÇÃO DE EQUIPAMENTOS, MATERIAIS E PESSOAL | G19: UN | H19: 1 | I19: =SUMIF('Composições (CODEVASF)'!D:D,E19,'Composições (CODEVASF)'!K:K) -> 1872.19 | J19: 2431.97 | K19: 2431.97 | M19: 2391.06 | N19: 1872.19 | O19: 0.217
B20: 1.6 | C20: SERVIÇO | D20: CODEVASF | E20: COMP. 03 | F20: LOCAÇÃO, ADMINISTRAÇÃO E MANUTENÇÃO DE CANTEIRO DE OBRA | G20: UN | H20: 1 | I20: =SUMIF('Composições (CODEVASF)'!D:D,E20,'Composições (CODEVASF)'!K:K) -> 292666.3 | J20: 380173.52 | K20: 380173.52 | M20: 373779.1 | N20: 292669.03 | O20: 0.217
B21: 1.7 | C21: SERVIÇO | D21: CODEVASF | E21: COMP. 04 | F21: CAMINHONETE CABINE DUPLA, TRAÇÃO 4X4, ZERO QUILOMETRO, C/4 PORTAS, TRAVAS ELÉTRICAS, SOM AUTOMOTIVO,EQUIP.C/AR-COND.,QUE FICARÁ À DISP.DA FISC.,INCL.DESP.C/SEG.TOTAL, EMPLAC.,REVIS.CONS.,REP.,COMB.E LUBR.,LAV.,ETC | G21: UN | H21: 1 | I21: =SUMIF('Composições (CODEVASF)'!D:D,E21,'Composições (CODEVASF)'!K:K) -> 4550.68 | J21: 5911.33 | K21: 5911.33 | M21: 5811.86 | N21: 4550.68 | O21: 0.217
B22: 1.8 | C22: SERVIÇO | D22: CODEVASF | E22: COMP. 05 | F22: PRÉ-OPERAÇÃO DA ESTAÇÃO DE TRATAMENTO DE ÁGUA | G22: UN | H22: 2 | I22: =SUMIF('Composições (CODEVASF)'!D:D,E22,'Composições (CODEVASF)'!K:K) -> 9816.62 | J22: 12751.79 | K22: 25503.58 | M22: 12537.2 | N22: 9816.62 | O22: 0.217
B23: 1.9 | C23: SERVIÇO | D23: SINAPI | E23: 72871 | F23: MOBILIZACAO E INSTALACAO DE 01 EQUIPAMENTO DE SONDAGEM, DISTANCIA ATE 10KM | G23: UN | H23: 6 | I23: =SUMIF('Composições (SINAPI)'!D:D,E23,'Composições (SINAPI)'!K:K) -> 265.49 | J23: 344.87 | K23: 2069.22 | M23: 339.07 | N23: 265.49 | O23: 0.217
B24: 1.10 | C24: SERVIÇO | D24: SEINFRA | E24: C2290 | F24: SONDAGEM À PERCUSSÃO P/RECONHECIMENTO DO SUBSOLO | G24: M | H24: 180 | I24: =SUMIF('Composições (SEINFRA)'!D:D,E24,'Composições (SEINFRA)'!K:K) -> 42.68 | J24: 55.44 | K24: 9979.2 | M24: 54.52 | N24: 42.68 | O24: 0.2172
B25: 1.11 | C25: SERVIÇO | D25: CODEVASF | E25: COMP. 06 | F25: ELABORAÇÃO DO PROJETO ESTRUTURAL | G25: UN | H25: 1 | I25: =SUMIF('Composições (CODEVASF)'!D:D,E25,'Composições (CODEVASF)'!K:K) -> 5475 | J25: 7112.03 | K25: 7112.03 | M25: 6993 | N25: 5475.51 | O25: 0.2171
B26: 1.12 | C26: SERVIÇO | D26: CODEVASF | E26: COMP. 07 | F26: ELABORAÇÃO DO PROJETO DE INSTALAÇÕES ELÉTRICAS | G26: UN | H26: 1 | I26: =SUMIF('Composições (CODEVASF)'!D:D,E26,'Composições (CODEVASF)'!K:K) -> 4798.3 | J26: 6232.99 | K26: 6232.99 | M26: 6128.1 | N26: 4798.3 | O26: 0.217
B27: 2 | C27: CAPTAÇÃO | K27: =K28+K86 -> 353919.29
B28: 2.1 | C28: CASA DE BOMBA, CAPTAÇÃO FLUTUANTE, CASA DE COMANDOS | K28: =SUM(K29:K85) -> 278533.55
B29: 2.1.1 | C29: SERVIÇO | D29: SINAPI | E29: 73948/16 | F29: LIMPEZA MANUAL DO TERRENO (C/ RASPAGEM SUPERFICIAL) | G29: M2 | H29: 1100 | I29: =SUMIF('Composições (SINAPI)'!D:D,E29,'Composições (SINAPI)'!K:K) -> 2.77 | J29: =ROUND(IF(C29 = "SERVIÇO", I29 * (1 + $I$11), IF(C29 = "INSUMO", (I29 * (1 + $K$11)))),2) -> 3.6 | K29: =ROUND(J29*H29,2) -> 3960 | M29: 3.54 | N29: 2.77 | O29: =IF(I29=0," ",ROUND(1-(I29/M29),4)) -> 0.2175
B30: 2.1.2 | C30: SERVIÇO | D30: SINAPI | E30: 73859/2 | F30: CAPINA E LIMPEZA MANUAL DE TERRENO | G30: M2 | H30: 1100 | I30: =SUMIF('Composições (SINAPI)'!D:D,E30,'Composições (SINAPI)'!K:K) -> 0.88 | J30: 1.14 | K30: 1254 | M30: 1.13 | N30: 0.88 | O30: 0.2212
B31: 2.1.3 | C31: SERVIÇO | D31: SINAPI | E31: 73822/2 | F31: LIMPEZA MECANIZADA DE TERRENO COM REMOCAO DE CAMADA VEGETAL, UTILIZANDO MOTONIVELADORA | G31: M2 | H31: 1700 | I31: =SUMIF('Composições (SINAPI)'!D:D,E31,'Composições (SINAPI)'!K:K) -> 0.4 | J31: 0.52 | K31: 884 | M31: 0.52 | N31: 0.4 | O31: 0.2308
B32: 2.1.4 | C32: SERVIÇO | D32: SINAPI | E32: 73672 | F32: DESMATAMENTO E LIMPEZA MECANIZADA DE TERRENO COM ARVORES ATE Ø 15CM, UTILIZANDO TRATOR DE ESTEIRAS | G32: M2 | H32: 2100 | I32: =SUMIF('Composições (SINAPI)'!D:D,E32,'Composições (SINAPI)'!K:K) -> 0.28 | J32: 0.36 | K32: 756 | M32: 0.36 | N32: 0.28 | O32: 0.2222
B33: 2.1.5 | C33: SERVIÇO | D33: SINAPI | E33: 73992/1 | F33: LOCACAO CONVENCIONAL DE OBRA, ATRAVÉS DE GABARITO DE TABUAS CORRIDAS PONTALETADAS A CADA 1,50M, SEM REAPROVEITAMENTO | G33: M2 | H33: 330 | I33: =SUMIF('Composições (SINAPI)'!D:D,E33,'Composições (SINAPI)'!K:K) -> 6.49 | J33: 8.43 | K33: 2781.9 | M33: 8.3 | N33: 6.49 | O33: 0.2181
B34: 2.1.6 | C34: SERVIÇO | D34: ORSE | E34: 2497 | F34: ESCAVAÇÃO MANUAL DE VALA OU CAVA EM MATERIAL DE 1ª CATEGORIA, PROFUNDIDADE AT É 1,50M | G34: M3 | H34: 110 | I34: =SUMIF('Composições (ORSE)'!D:D,E34,'Composições (ORSE)'!K:K) -> 25 | J34: 32.48 | K34: 3572.8 | M34: 31.93 | N34: 25 | O34: 0.217
B35: 2.1.7 | C35: SERVIÇO | D35: ORSE | E35: 2503 | F35: ESCAVAÇÃO COM RETRO-ESCAVADEIRA DE PNEUS, DE VALAS, EM MATERIAL DE 1ª CATEGOR IA ATÉ 1,50M DE PROFUNDIDADE | G35: M3 | H35: 1000 | I35: =SUMIF('Composições (ORSE)'!D:D,E35,'Composições (ORSE)'!K:K) -> 5.7 | J35: 7.4 | K35: 7400 | M35: 7.28 | N35: 5.7 | O35: 0.217
B36: 2.1.8 | C36: SERVIÇO | D36: SINAPI | E36: 72915 | F36: ESCAVACAO MECANICA DE VALA EM MATERIAL DE 2A. CATEGORIA ATE 2 M DE PROFUNDIDADE COM UTILIZACAO DE ESCAVADEIRA HIDRAULICA | G36: M3 | H36: 300 | I36: =SUMIF('Composições (SINAPI)'!D:D,E36,'Composições (SINAPI)'!K:K) -> 8.32 | J36: 10.81 | K36: 3243 | M36: 10.63 | N36: 8.32 | O36: 0.2173
B37: 2.1.9 | C37: SERVIÇO | D37: ORSE | E37: 3658 | F37: ESCAVAÇÃO E CARGA COM ESCAVADEIRA HIDRÁULICA DE MATERIAL DE 1ª CATEGORIA EM M EIO ALAGADO | G37: M3 | H37: 2800 | I37: =SUMIF('Composições (ORSE)'!D:D,E37,'Composições (ORSE)'!K:K) -> 3.6 | J37: 4.68 | K37: 13104 | M37: 4.6 | N37: 3.6 | O37: 0.2174
B38: 2.1.10 | C38: SERVIÇO | D38: ORSE | E38: 4577 | F38: ESCAVAÇÃO, CARGA E TRANSPORTE DE MATERIAL DE 1ª CATEGORIA, COM ESCAVADEIRA HIDRAÚLICA, DMT 201 A 400M | G38: M3 | H38: 1100 | I38: =SUMIF('Composições (ORSE)'!D:D,E38,'Composições (ORSE)'!K:K) -> 3.72 | J38: 4.83 | K38: 5313 | M38: 4.76 | N38: 3.72 | O38: 0.2185
B39: 2.1.11 | C39: SERVIÇO | D39: SINAPI | E39: 93379 | F39: REATERRO MECANIZADO DE VALA COM RETROESCAVADEIRA (CAPACIDADE DA CAÇAMBA DA RETRO: 0,26 M³ / POTÊNCIA: 88 HP), LARGURA DE 0,8 A 1,5 M, PROFUNDIDADE ATÉ 1,5 M, COM SOLO (SEM SUBSTITUIÇÃO) DE 1ª CATEGORIA EM LOCAIS COM BAIXO NÍVEL DE INTERFERÊNCIA. AF_04/2016 | G39: M3 | H39: 1410 | I39: =SUMIF('Composições (SINAPI)'!D:D,E39,'Composições (SINAPI)'!K:K) -> 13.09 | J39: 17 | K39: 23970 | M39: 16.72 | N39: 13.09 | O39: 0.2171
B40: 2.1.12 | C40: SERVIÇO | D40: ORSE | E40: 2169 | F40: LASTRO DE CONCRETO SIMPLES REGULARIZADO, FCK=13,5 MPA,LANÇADO E ADENSADO | G40: M3 | H40: 11.5 | I40: =SUMIF('Composições (ORSE)'!D:D,E40,'Composições (ORSE)'!K:K) -> 341.43 | J40: 443.52 | K40: 5100.48 | M40: 436.37 | N40: 341.67 | O40: 0.2176
B41: 2.1.13 | C41: SERVIÇO | D41: SINAPI | E41: 95467 | F41: EMBASAMENTO C/PEDRA ARGAMASSADA UTILIZANDO ARG.CIM/AREIA 1:4 | G41: M3 | H41: 12.5 | I41: =SUMIF('Composições (SINAPI)'!D:D,E41,'Composições (SINAPI)'!K:K) -> 275.33 | J41: 357.65 | K41: 4470.63 | M41: 352.25 | N41: 275.81 | O41: 0.2184
B42: 2.1.14 | C42: SERVIÇO | D42: SINAPI | E42: 83518 | F42: ALVENARIA EMBASAMENTO E=20 CM BLOCO CONCRETO | G42: M3 | H42: 17 | I42: =SUMIF('Composições (SINAPI)'!D:D,E42,'Composições (SINAPI)'!K:K) -> 224.71 | J42: 291.9 | K42: 4962.3 | M42: 287.37 | N42: 225.01 | O42: 0.218
B43: 2.1.15 | C43: SERVIÇO | D43: ORSE | E43: 13 | F43: DEMOLIÇÃO DE CONCRETO MANUALMENTE | G43: M3 | H43: 9.5 | I43: =SUMIF('Composições (ORSE)'!D:D,E43,'Composições (ORSE)'!K:K) -> 122.68 | J43: 159.36 | K43: 1513.92 | M43: 156.82 | N43: 122.79 | O43: 0.2177
B44: 2.1.16 | C44: SERVIÇO | D44: ORSE | E44: 9182 | F44: DEMOLIÇÃO DE CONCRETO COM MARTELETE E COMPRESSOR | G44: M3 | H44: 8.5 | I44: =SUMIF('Composições (ORSE)'!D:D,E44,'Composições (ORSE)'!K:K) -> 257.37 | J44: 334.32 | K44: 2841.72 | M44: 328.71 | N44: 257.37 | O44: 0.217
B45: 2.1.17 | C45: SERVIÇO | D45: ORSE | E45: 9 | F45: REMOÇÃO DE TELHAMENTO COM TELHAS CERÂMICAS | G45: M2 | H45: 59 | I45: =SUMIF('Composições (ORSE)'!D:D,E45,'Composições (ORSE)'!K:K) -> 5.64 | J45: 7.33 | K45: 432.47 | M45: 7.21 | N45: 5.64 | O45: 0.2178
B46: 2.1.18 | C46: SERVIÇO | D46: ORSE | E46: 30 | F46: DEMOLIÇÃO DE MADEIRAMENTO EM COBERTURAS COM TELHAS CERÂMICAS | G46: M2 | H46: 59 | I46: =SUMIF('Composições (ORSE)'!D:D,E46,'Composições (ORSE)'!K:K) -> 12.28 | J46: 15.95 | K46: 941.05 | M46: 15.69 | N46: 12.28 | O46: 0.2173
B47: 2.1.19 | C47: SERVIÇO | D47: ORSE | E47: 8038 | F47: DEMOLIÇÃO DE ALVENARIA DE ELEMENTOS VAZADOS (COBOGÓ), SEM REAPROVEITAMENTO | G47: M3 | H47: 10 | I47: =SUMIF('Composições (ORSE)'!D:D,E47,'Composições (ORSE)'!K:K) -> 18.32 | J47: 23.8 | K47: 238 | M47: 23.42 | N47: 18.33 | O47: 0.2178
B48: 2.1.20 | C48: SERVIÇO | D48: SINAPI | E48: 97622 | F48: DEMOLIÇÃO DE ALVENARIA DE BLOCO FURADO, DE FORMA MANUAL, SEM REAPROVEITAMENTO. AF_12/2017 | G48: M3 | H48: 42 | I48: =SUMIF('Composições (SINAPI)'!D:D,E48,'Composições (SINAPI)'!K:K) -> 28.85 | J48: 37.48 | K48: 1574.16 | M48: 36.88 | N48: 28.87 | O48: 0.2177
B49: 2.1.21 | C49: SERVIÇO | D49: SINAPI | E49: 94438 | F49: (COMPOSIÇÃO REPRESENTATIVA) DO SERVIÇO DE CONTRAPISO EM ARGAMASSA TRAÇO 1:4 (CIM E AREIA), EM BETONEIRA 400 L, ESPESSURA 3 CM ÁREAS SECAS E 3 CM ÁREAS MOLHADAS, PARA EDIFICAÇÃO HABITACIONAL UNIFAMILIAR (CASA) E EDIFICAÇÃO PÚBLICA PADRÃO. AF_11/2014 | G49: M2 | H49: 57 | I49: =SUMIF('Composições (SINAPI)'!D:D,E49,'Composições (SINAPI)'!K:K) -> 25.54 | J49: 33.18 | K49: 1891.26 | M49: 32.62 | N49: 25.54 | O49: 0.217
B50: 2.1.22 | C50: SERVIÇO | D50: SINAPI | E50: 98680 | F50: PISO CIMENTADO, TRAÇO 1:3 (CIMENTO E AREIA), ACABAMENTO LISO, ESPESSURA 3,0 CM, PREPARO MECÂNICO DA ARGAMASSA. AF_06/2018 | G50: M2 | H50: 57 | I50: =SUMIF('Composições (SINAPI)'!D:D,E50,'Composições (SINAPI)'!K:K) -> 23.88 | J50: 31.02 | K50: 1768.14 | M50: 30.5 | N50: 23.88 | O50: 0.217
B51: 2.1.23 | C51: SERVIÇO | D51: SINAPI | E51: 94990 | F51: EXECUÇÃO DE PASSEIO (CALÇADA) OU PISO DE CONCRETO COM CONCRETO MOLDADO IN LOCO, FEITO EM OBRA, ACABAMENTO CONVENCIONAL, NÃO ARMADO. AF_07/2016 | G51: M3 | H51: 7 | I51: =SUMIF('Composições (SINAPI)'!D:D,E51,'Composições (SINAPI)'!K:K) -> 400.96 | J51: 520.85 | K51: 3645.95 | M51: 512.28 | N51: 401.11 | O51: 0.2173
B52: 2.1.24 | C52: SERVIÇO | D52: ORSE | E52: 11651 | F52: FORMA PLANA PARA ESTRUTURAS, EM COMPENSADO PLASTIFICADO DE 10MM, 04 USOS, INC LUSIVE ESCORAMENTO - REVISADA 07.2015 | G52: M2 | H52: 64 | I52: =SUMIF('Composições (ORSE)'!D:D,E52,'Composições (ORSE)'!K:K) -> 34.05 | J52: 44.23 | K52: 2830.72 | M52: 43.49 | N52: 34.05 | O52: 0.2171
B53: 2.1.25 | C53: SERVIÇO | D53: ORSE | E53: 7691 | F53: CONCRETO SIMPLES FABRICADO NA OBRA, FCK=21 MPA, LANÇADO E ADENSADO | G53: M3 | H53: 20 | I53: =SUMIF('Composições (ORSE)'!D:D,E53,'Composições (ORSE)'!K:K) -> 304.66 | J53: 395.75 | K53: 7915 | M53: 389.14 | N53: 304.69 | O53: 0.2171
B54: 2.1.26 | C54: SERVIÇO | D54: SINAPI | E54: 92762 | F54: ARMAÇÃO DE PILAR OU VIGA DE UMA ESTRUTURA CONVENCIONAL DE CONCRETO ARMADO EM UM EDIFÍCIO DE MÚLTIPLOS PAVIMENTOS UTILIZANDO AÇO CA-50 DE 10,0 MM - MONTAGEM. AF_12/2015 | G54: KG | H54: 1695 | I54: =SUMIF('Composições (SINAPI)'!D:D,E54,'Composições (SINAPI)'!K:K) -> 4.79 | J54: 6.22 | K54: 10542.9 | M54: 6.13 | N54: 4.79 | O54: 0.2186
B55: 2.1.27 | C55: SERVIÇO | D55: SINAPI | E55: 87509 | F55: ALVENARIA DE VEDAÇÃO DE BLOCOS CERÂMICOS FURADOS NA HORIZONTAL DE 14X9X19CM (ESPESSURA 14CM, BLOCO DEITADO) DE PAREDES COM ÁREA LÍQUIDA MAIOR OU IGUAL A 6M² SEM VÃOS E ARGAMASSA DE ASSENTAMENTO COM PREPARO EM BETONEIRA. AF_06/2014 | G55: M2 | H55: 125 | I55: =SUMIF('Composições (SINAPI)'!D:D,E55,'Composições (SINAPI)'!K:K) -> 64.58 | J55: 83.89 | K55: 10486.25 | M55: 82.72 | N55: 64.76 | O55: 0.2193
B56: 2.1.28 | C56: SERVIÇO | D56: SINAPI | E56: 93202 | F56: FIXAÇÃO (ENCUNHAMENTO) DE ALVENARIA DE VEDAÇÃO COM TIJOLO MACIÇO. AF_03/2016 | G56: M | H56: 66 | I56: =SUMIF('Composições (SINAPI)'!D:D,E56,'Composições (SINAPI)'!K:K) -> 12.36 | J56: 16.06 | K56: 1059.96 | M56: 15.84 | N56: 12.4 | O56: 0.2197
B57: 2.1.29 | C57: SERVIÇO | D57: ORSE | E57: 3310 | F57: CHAPISCO EM PAREDE COM ARGAMASSA TRAÇO T1 - 1:3 (CIMENTO / AREIA) - REVISADO 08/2015 | G57: M2 | H57: 340 | I57: =SUMIF('Composições (ORSE)'!D:D,E57,'Composições (ORSE)'!K:K) -> 3.35 | J57: 4.35 | K57: 1479 | M57: 4.29 | N57: 3.35 | O57: 0.2191
B58: 2.1.30 | C58: SERVIÇO | D58: SINAPI | E58: 87794 | F58: EMBOÇO OU MASSA ÚNICA EM ARGAMASSA TRAÇO 1:2:8, PREPARO MANUAL, APLICADA MANUALMENTE EM PANOS CEGOS DE FACHADA (SEM PRESENÇA DE VÃOS), ESPESSURA DE 25 MM. AF_06/2014 | G58: M2 | H58: 340 | I58: =SUMIF('Composições (SINAPI)'!D:D,E58,'Composições (SINAPI)'!K:K) -> 21.47 | J58: 27.89 | K58: 9482.6 | M58: 27.46 | N58: 21.5 | O58: 0.2181
B59: 2.1.31 | C59: SERVIÇO | D59: SINAPI | E59: 95465 | F59: COBOGO CERAMICO (ELEMENTO VAZADO), 9X20X20CM, ASSENTADO COM ARGAMASSA TRACO 1:4 DE CIMENTO E AREIA | G59: M2 | H59: 22 | I59: =SUMIF('Composições (SINAPI)'!D:D,E59,'Composições (SINAPI)'!K:K) -> 86.98 | J59: 112.99 | K59: 2485.78 | M59: 111.2 | N59: 87.06 | O59: 0.2178
B60: 2.1.32 | C60: SERVIÇO | D60: ORSE | E60: 8970 | F60: TELA DE NYLON TIPO MOSQUITEIRO COM MOLDURA EM ALUMINIO ANODIZADO NATURAL | G60: M2 | H60: 22 | I60: =SUMIF('Composições (ORSE)'!D:D,E60,'Composições (ORSE)'!K:K) -> 39.45 | J60: 51.25 | K60: 1127.5 | M60: 50.39 | N60: 39.45 | O60: 0.2171
B61: 2.1.33 | C61: SERVIÇO | D61: SINAPI | E61: 74202/1 | F61: LAJE PRE-MOLDADA P/FORRO, SOBRECARGA 100KG/M2, VAOS ATE 3,50M/E=8CM, C/LAJOTAS E CAP.C/CONC FCK=20MPA, 3CM, INTER-EIXO 38CM, C/ESCORAMENTO (REAPR.3X) E FERRAGEM NEGATIVA | G61: M2 | H61: 90 | I61: =SUMIF('Composições (SINAPI)'!D:D,E61,'Composições (SINAPI)'!K:K) -> 48.5 | J61: =ROUND(IF(C61 = "SERVIÇO", I61 * (1 + $I$11), IF(C61 = "INSUMO", (I61 * (1 + $K$11)))),2) -> 63 | K61: 5670 | M61: 61.98 | N61: 48.53 | O61: =IF(I61=0," ",ROUND(1-(I61/M61),4)) -> 0.2175
B62: 2.1.34 | C62: SERVIÇO | D62: SINAPI | E62: 55960 | F62: IMUNIZACAO DE MADEIRAMENTO PARA COBERTURA UTILIZANDO CUPINICIDA INCOLOR | G62: M2 | H62: 90 | I62: =SUMIF('Composições (SINAPI)'!D:D,E62,'Composições (SINAPI)'!K:K) -> 3.95 | J62: 5.13 | K62: 461.7 | M62: 5.05 | N62: 3.95 | O62: 0.2178
B63: 2.1.35 | C63: SERVIÇO | D63: ORSE | E63: 9642 | F63: MADEIRAMENTO EM MASSARANDUBA/MADEIRA DE LEI, ACABAMENTO APARELHADO, C/ RIPÃO 3 X 5 CM E RIPA 5 X 1,5CM, EXCLUSIVE PEÇAS PRINCIPAIS | G63: M2 | H63: 90 | I63: =SUMIF('Composições (ORSE)'!D:D,E63,'Composições (ORSE)'!K:K) -> 52.35 | J63: 68 | K63: 6120 | M63: 66.87 | N63: 52.35 | O63: 0.2171
B64: 2.1.36 | C64: SERVIÇO | D64: SINAPI | E64: 94201 | F64: TELHAMENTO COM TELHA CERÂMICA CAPA-CANAL, TIPO COLONIAL, COM ATÉ 2 ÁGUAS, INCLUSO TRANSPORTE VERTICAL. AF_06/2016 | G64: M2 | H64: 90 | I64: =SUMIF('Composições (SINAPI)'!D:D,E64,'Composições (SINAPI)'!K:K) -> 33.36 | J64: 43.33 | K64: 3899.7 | M64: 42.62 | N64: 33.37 | O64: 0.2173
B65: 2.1.37 | C65: SERVIÇO | D65: SINAPI | E65: 85120 | F65: MANOMETRO 0 A 200 PSI (0 A 14 KGF/CM2), D = 50MM - FORNECIMENTO E COLOCACAO | G65: UN | H65: 7 | I65: =SUMIF('Composições (SINAPI)'!D:D,E65,'Composições (SINAPI)'!K:K) -> 87.19 | J65: 113.26 | K65: 792.82 | M65: 111.37 | N65: 87.2 | O65: 0.2171
B66: 2.1.38 | C66: SERVIÇO | D66: SINAPI | E66: 83724 | F66: ASSENTAMENTO DE PECAS, CONEXOES, APARELHOS E ACESSORIOS DE FERRO FUNDIDO DUCTIL, JUNTA ELASTICA, MECANICA OU FLANGEADA, COM DIAMETROS DE 50 A 300 MM. | G66: KG | H66: 2250 | I66: =SUMIF('Composições (SINAPI)'!D:D,E66,'Composições (SINAPI)'!K:K) -> 1.71 | J66: 2.22 | K66: 4995 | M66: 2.19 | N66: 1.71 | O66: 0.2192
B67: 2.1.39 | C67: SERVIÇO | D67: SEINFRA | E67: C3496 | F67: MONTAGEM DE TUBOS, CONEXÕES E PÇS, ELEVATÓRIA CAP ATÉ 5 l/s | G67: UN | H67: 6 | I67: =SUMIF('Composições (SEINFRA)'!D:D,E67,'Composições (SEINFRA)'!K:K) -> 926.51 | J67: 1203.54 | K67: 7221.24 | M67: 1183.29 | N67: 926.51 | O67: 0.217
B68: 2.1.40 | C68: SERVIÇO | D68: ORSE | E68: 4652 | F68: PINTURA DE PROTEÇÃO COM 01 DEMÃO DE PRIMER À BASE DE EPÓXI - REZINC WBS - REN NER OU SIMILAR | G68: M2 | H68: 132 | I68: =SUMIF('Composições (ORSE)'!D:D,E68,'Composições (ORSE)'!K:K) -> 18.47 | J68: 23.99 | K68: 3166.68 | M68: 23.61 | N68: 18.48 | O68: 0.2177
B69: 2.1.41 | C69: SERVIÇO | D69: SINAPI | E69: 73794/1 | F69: PINTURA COM TINTA PROTETORA ACABAMENTO GRAFITE ESMALTE SOBRE SUPERFICIE METALICA, 2 DEMAOS | G69: M2 | H69: 120 | I69: =SUMIF('Composições (SINAPI)'!D:D,E69,'Composições (SINAPI)'!K:K) -> 23.19 | J69: 30.12 | K69: 3614.4 | M69: 29.66 | N69: 23.22 | O69: 0.2181
B70: 2.1.42 | C70: SERVIÇO | D70: ORSE | E70: 10384 | F70: PORTÃO EM FERRO PADRÃO ESCOLA DIM:4,0 X 2,0M, C/MONTANTES (COLUNA) H=2,00M EM PERFIL "U" DE CHAPA UDC 75X38X2,65MM (DUPLO), BARRAS CHATAS HORIZ 1 1/2"X3/16 " X 3,60M, E BARRAS CHATAS VERT 1 1/2"X3/16" X 2,00M | G70: UN | H70: 4 | I70: =SUMIF('Composições (ORSE)'!D:D,E70,'Composições (ORSE)'!K:K) -> 1696.62 | J70: 2203.91 | K70: 8815.64 | M70: 2167.1 | N70: 1696.83 | O70: 0.2171
B71: 2.1.43 | C71: SERVIÇO | D71: ORSE | E71: 8753 | F71: PORTÃO EM FERRO, PADRÃO ESCOLAR, COM MONTANTES EM PERFIL "U" DE CHAPA UDC 75 X 38 X 2,65 MM (DUPLO), BARRAS VERTICAIS DE SEÇÃO QUADRADA DE 1/2" E BARRAS C HATA DE 1 1/2" X 3/16" (DUPLA) HORIZONTAIS, INCLUSIVE FERROLHO E DOBRADIÇAS | G71: M2 | H71: 31 | I71: =SUMIF('Composições (ORSE)'!D:D,E71,'Composições (ORSE)'!K:K) -> 209.68 | J71: 272.37 | K71: 8443.47 | M71: 267.85 | N71: 209.72 | O71: 0.2172
B72: 2.1.44 | C72: SERVIÇO | D72: SINAPI | E72: 84132 | F72: SOLDA DE TOPO DESCENDENTE, EM CHAPA ACO CHANFR 5/16" ESP (P/ ASSENT TUBULACAO OU PECA DE ACO) UTILIZANDO CONVERSOR DIESEL. | G72: M | H72: 73 | I72: =SUMIF('Composições (SINAPI)'!D:D,E72,'Composições (SINAPI)'!K:K) -> 167.78 | J72: 217.95 | K72: 15910.35 | M72: 214.29 | N72: 167.78 | O72: 0.217
B73: 2.1.45 | C73: SERVIÇO | D73: SINAPI | E73: 73933/1 | F73: PORTA DE FERRO, DE ABRIR, TIPO GRADE COM CHAPA, 87X210CM, COM GUARNICOES | G73: M2 | H73: 10.98 | I73: =SUMIF('Composições (SINAPI)'!D:D,E73,'Composições (SINAPI)'!K:K) -> 453.09 | J73: 588.56 | K73: 6462.39 | M73: 578.76 | N73: 453.16 | O73: 0.2171
B74: 2.1.46 | C74: SERVIÇO | D74: SINAPI | E74: 90830 | F74: FECHADURA DE EMBUTIR COM CILINDRO, EXTERNA, COMPLETA, ACABAMENTO PADRÃO MÉDIO, INCLUSO EXECUÇÃO DE FURO - FORNECIMENTO E INSTALAÇÃO. AF_08/2015 | G74: UN | H74: 18 | I74: =SUMIF('Composições (SINAPI)'!D:D,E74,'Composições (SINAPI)'!K:K) -> 64.61 | J74: 83.93 | K74: 1510.74 | M74: 82.52 | N74: 64.61 | O74: 0.217
B75: 2.1.47 | C75: SERVIÇO | D75: SINAPI | E75: 73932/1 | F75: GRADE DE FERRO EM BARRA CHATA 3/16" | G75: M2 | H75: 11.88 | I75: =SUMIF('Composições (SINAPI)'!D:D,E75,'Composições (SINAPI)'!K:K) -> 217.34 | J75: 282.32 | K75: 3353.96 | M75: 277.58 | N75: 217.34 | O75: 0.217
B76: 2.1.48 | C76: SERVIÇO | D76: SINAPI | E76: 88489 | F76: APLICAÇÃO MANUAL DE PINTURA COM TINTA LÁTEX ACRÍLICA EM PAREDES, DUAS DEMÃOS. AF_06/2014 | G76: M2 | H76: 518 | I76: =SUMIF('Composições (SINAPI)'!D:D,E76,'Composições (SINAPI)'!K:K) -> 7.61 | J76: 9.89 | K76: 5123.02 | M76: 9.74 | N76: 7.62 | O76: 0.2187
B77: 2.1.49 | C77: SERVIÇO | D77: ORSE | E77: 6029 | F77: LOGOTIPO DA CODEVASF EM ESTRUTURAS TÉRREAS | G77: UN | H77: 6 | I77: =SUMIF('Composições (ORSE)'!D:D,E77,'Composições (ORSE)'!K:K) -> 528.35 | J77: 686.33 | K77: 4117.98 | M77: 675.27 | N77: 528.73 | O77: 0.2176
B78: 2.1.50 | C78: SERVIÇO | D78: SINAPI | E78: 74142/4 | F78: CERCA COM MOUROES DE CONCRETO, SECAO "T" PONTA INCLINADA, 10X10CM, ESPACAMENTO DE 3M, CRAVADOS 0,5M, COM 11 FIOS DE ARAME FARPADO Nº 16 | G78: M | H78: 360 | I78: =SUMIF('Composições (SINAPI)'!D:D,E78,'Composições (SINAPI)'!K:K) -> 36.3 | J78: 47.15 | K78: 16974 | M78: 46.39 | N78: 36.32 | O78: 0.2175
B79: 2.1.51 | C79: SERVIÇO | D79: ORSE | E79: 2372 | F79: MURO EM ALVENARIA BLOCO CIMENTO, E= 0,09M, C/ ALV DE PEDRA 0,35 X 0,60M, COLU NAS CONCRETO ARMADO FCK = 15,0 MPA CADA 3,00M, C/ CHAPISCO, REBOCO E PINTURA HIDRACOR OU SIMILAR | G79: M2 | H79: 5 | I79: =SUMIF('Composições (ORSE)'!D:D,E79,'Composições (ORSE)'!K:K) -> 117.56 | J79: 152.71 | K79: 763.55 | M79: 150.33 | N79: 117.7 | O79: 0.218
B80: 2.1.52 | C80: SERVIÇO | D80: SINAPI | E80: 94275 | F80: ASSENTAMENTO DE GUIA (MEIO-FIO) EM TRECHO RETO, CONFECCIONADA EM CONCRETO PRÉ-FABRICADO, DIMENSÕES 100X15X13X20 CM (COMPRIMENTO X BASE INFERIOR X BASE SUPERIOR X ALTURA), PARA URBANIZAÇÃO INTERNA DE EMPREENDIMENTOS. AF_06/2016_P | G80: M | H80: 80 | I80: =SUMIF('Composições (SINAPI)'!D:D,E80,'Composições (SINAPI)'!K:K) -> 24.28 | J80: 31.54 | K80: 2523.2 | M80: 31.05 | N80: 24.31 | O80: 0.218
B81: 2.1.53 | C81: SERVIÇO | D81: SINAPI | E81: 94274 | F81: ASSENTAMENTO DE GUIA (MEIO-FIO) EM TRECHO CURVO, CONFECCIONADA EM CONCRETO PRÉ-FABRICADO, DIMENSÕES 100X15X13X30 CM (COMPRIMENTO X BASE INFERIOR X BASE SUPERIOR X ALTURA), PARA VIAS URBANAS (USO VIÁRIO). AF_06/2016 | G81: M | H81: 24 | I81: =SUMIF('Composições (SINAPI)'!D:D,E81,'Composições (SINAPI)'!K:K) -> 27.6 | J81: 35.85 | K81: 860.4 | M81: 35.31 | N81: 27.64 | O81: 0.2184
B82: 2.1.54 | C82: SERVIÇO | D82: ORSE | E82: 3209 | F82: PINTURA DE MEIO FIO (CAIAÇÃO) | G82: M | H82: 104 | I82: =SUMIF('Composições (ORSE)'!D:D,E82,'Composições (ORSE)'!K:K) -> 2.52 | J82: 3.27 | K82: 340.08 | M82: 3.23 | N82: 2.52 | O82: 0.2198
B83: 2.1.55 | C83: SERVIÇO | D83: SINAPI | E83: 73836/1 | F83: INSTALACAO DE CONJ.MOTO BOMBA HORIZONTAL ATE 10 CV | G83: UN | H83: 12 | I83: =SUMIF('Composições (SINAPI)'!D:D,E83,'Composições (SINAPI)'!K:K) -> 528.73 | J83: 686.82 | K83: 8241.84 | M83: 675.65 | N83: 529.03 | O83: 0.2174
B84: 2.1.56 | C84: SERVIÇO | D84: ORSE | E84: 3848 | F84: CABO DE AÇO GALVANIZADO 15MM (TENSOR) | G84: M | H84: 450 | I84: =SUMIF('Composições (ORSE)'!D:D,E84,'Composições (ORSE)'!K:K) -> 17.57 | J84: 22.82 | K84: 10269 | M84: 22.44 | N84: 17.57 | O84: 0.217
B85: 2.1.57 | C85: SERVIÇO | D85: SINAPI | E85: 73843/1 | F85: MURO DE ARRIMO DE CONCRETO CICLOPICO COM 30% DE PEDRA DE MAO | G85: M3 | H85: 19 | I85: =SUMIF('Composições (SINAPI)'!D:D,E85,'Composições (SINAPI)'!K:K) -> 237.18 | J85: 308.1 | K85: 5853.9 | M85: 303.12 | N85: 237.34 | O85: 0.2175
B86: 2.2 | C86: INSTALAÇÕES ELÉTRICAS PARA A CAPTAÇÃO | K86: =SUM(K87:K97) -> 75385.74
B87: 2.2.1 | C87: SERVIÇO | D87: CODEVASF | E87: ELE01 | F87: SERVIÇO PARA INSTALAÇÃO DOS MATERIAIS ELÉTRICOS DA CAPTAÇÃO (ALEGRE, BOA PAZ, BOM JESUS E UMBURANAS) | G87: UN | H87: 4 | I87: =SUMIF('Composições (CODEVASF)'!D:D,E87,'Composições (CODEVASF)'!K:K) -> 2106.9 | J87: =ROUND(IF(C87 = "SERVIÇO", I87 * (1 + $I$11), IF(C87 = "INSUMO", (I87 * (1 + $K$11)))),2) -> 2736.86 | K87: =ROUND(J87*H87,2) -> 10947.44 | M87: 2699.52 | N87: 2113.72 | O87: =IF(I87=0," ",ROUND(1-(I87/M87),4)) -> 0.2195
B88: 2.2.2 | C88: SERVIÇO | D88: CODEVASF | E88: ELE02 | F88: SERVIÇO PARA INSTALAÇÃO DOS MATERIAIS ELÉTRICOS DA CAPTAÇÃO (ILHA DA VILA E RIACHO DA MADEIRA) | G88: UN | H88: 2 | I88: =SUMIF('Composições (CODEVASF)'!D:D,E88,'Composições (CODEVASF)'!K:K) -> 1585.29 | J88: 2059.29 | K88: 4118.58 | M88: 2024.64 | N88: 1585.29 | O88: 0.217
B89: 2.2.3 | C89: SERVIÇO | D89: CODEVASF | E89: ELE03 | F89: SERVIÇO PARA PROJETO EXECUTIVO DA EXTENSÃO DE REDE | G89: KM | H89: 1.27 | I89: =SUMIF('Composições (CODEVASF)'!D:D,E89,'Composições (CODEVASF)'!K:K) -> 2176.61 | J89: 2827.42 | K89: 3590.82 | M89: 2779.84 | N89: 2176.61 | O89: 0.217
B90: 2.2.4 | C90: SERVIÇO | D90: CODEVASF | E90: ELE04 | F90: SERVIÇO PARA CONSTRUÇÃO DA EXTENSÃO DA REDE | G90: KM | H90: 1.27 | I90: =SUMIF('Composições (CODEVASF)'!D:D,E90,'Composições (CODEVASF)'!K:K) -> 6054.03 | J90: 7864.18 | K90: 9987.51 | M90: 7731.84 | N90: 6054.03 | O90: 0.217
B91: 2.2.5 | C91: SERVIÇO | D91: CODEVASF | E91: ELE05 | F91: SERVIÇO PARA PROJETO EXECUTIVO DA SUBESTAÇÃO | G91: UN | H91: 5 | I91: =SUMIF('Composições (CODEVASF)'!D:D,E91,'Composições (CODEVASF)'!K:K) -> 1632.46 | J91: 2120.57 | K91: 10602.85 | M91: 2084.88 | N91: 1632.46 | O91: 0.217
B92: 2.2.6 | C92: SERVIÇO | D92: CODEVASF | E92: ELE06 | F92: SERVIÇO PARA CONSTRUÇÃO DA SUBESTAÇÃO | G92: UN | H92: 5 | I92: =SUMIF('Composições (CODEVASF)'!D:D,E92,'Composições (CODEVASF)'!K:K) -> 1455.71 | J92: 1890.97 | K92: 9454.85 | M92: 1863.48 | N92: 1459.1 | O92: 0.2188
B93: 2.2.7 | C93: SERVIÇO | D93: CODEVASF | E93: ELE07 | F93: COMISSIONAMENTO E STARTUP DO SISTEMA COMPLETO (CAPTAÇÃO E ETA - ALEGRE, BOA PAZ, BOM JESUS E UMBURANAS) | G93: UN | H93: 4 | I93: =SUMIF('Composições (CODEVASF)'!D:D,E93,'Composições (CODEVASF)'!K:K) -> 1795.26 | J93: 2332.04 | K93: 9328.16 | M93: 2299.36 | N93: 1800.39 | O93: 0.2192
B94: 2.2.8 | C94: SERVIÇO | D94: CODEVASF | E94: ELE08 | F94: SERVIÇO PARA PROJETO ELÉTRICO EXECUTIVO DO SAA (CAPTAÇÃO E ETA - ALEGRE, BOA PAZ, BOM JESUS E UMBURANAS) | G94: UN | H94: 4 | I94: =SUMIF('Composições (CODEVASF)'!D:D,E94,'Composições (CODEVASF)'!K:K) -> 1632.46 | J94: 2120.57 | K94: 8482.28 | M94: 2084.88 | N94: 1632.46 | O94: 0.217
B95: 2.2.9 | C95: SERVIÇO | D95: CODEVASF | E95: ELE09 | F95: COMISSIONAMENTO E STARTUP DO SISTEMA COMPLETO (ILHA DA VILA E RIACHO DA MADEIRA) | G95: UN | H95: 2 | I95: =SUMIF('Composições (CODEVASF)'!D:D,E95,'Composições (CODEVASF)'!K:K) -> 1424.37 | J95: 1850.26 | K95: 3700.52 | M95: 1824.56 | N95: 1428.63 | O95: 0.2193
B96: 2.2.10 | C96: SERVIÇO | D96: CODEVASF | E96: ELE010 | F96: SERVIÇO PARA PROJETO ELÉTRICO EXECUTIVO DO SAA(ILHA DA VILA E RIACHO DA MADEIRA) | G96: UN | H96: 2 | I96: =SUMIF('Composições (CODEVASF)'!D:D,E96,'Composições (CODEVASF)'!K:K) -> 1360.38 | J96: 1767.13 | K96: 3534.26 | M96: 1737.4 | N96: 1360.38 | O96: 0.217
B97: 2.2.11 | C97: SERVIÇO | D97: ORSE | E97: 11386 | F97: ENTRADA DE ENERGIA ELÉTRICA TRIFÁSICA DEMANDA ENTRE 0 E 15,2 KW | G97: UN | H97: 1 | I97: =SUMIF('Composições (ORSE)'!D:D,E97,'Composições (ORSE)'!K:K) -> 1261.33 | J97: 1638.47 | K97: 1638.47 | M97: 1613.81 | N97: 1263.61 | O97: 0.2184
B98: 3 | C98: ADUTORA DE ÁGUA BRUTA | K98: =K99+K116+K122+K126+K133 -> 443550.26
B99: 3.1 | C99: SERVIÇOS PRELIMINARES PARA ASSENTAMENTO DE TUBOS | K99: =SUM(K100:K115) -> 231297.94
B100: 3.1.1 | C100: SERVIÇO | D100: SINAPI | E100: 73679 | F100: LOCAÇÃO DE ADUTORAS, COLETORES TRONCO E INTERCEPTORES - ATÉ DN 500 MM | G100: M | H100: 5723 | I100: =SUMIF('Composições (SINAPI)'!D:D,E100,'Composições (SINAPI)'!K:K) -> 1.62 | J100: =ROUND(IF(C100 = "SERVIÇO", I100 * (1 + $I$11), IF(C100 = "INSUMO", (I100 * (1 + $K$11)))),2) -> 2.1 | K100: =ROUND(J100*H100,2) -> 12018.3 | M100: 2.07 | N100: 1.62 | O100: =IF(I100=0," ",ROUND(1-(I100/M100),4)) -> 0.2174
B101: 3.1.2 | C101: SERVIÇO | D101: SINAPI | E101: 73948/16 | F101: LIMPEZA MANUAL DO TERRENO (C/ RASPAGEM SUPERFICIAL) | G101: M2 | H101: 1100 | I101: =SUMIF('Composições (SINAPI)'!D:D,E101,'Composições (SINAPI)'!K:K) -> 2.77 | J101: 3.6 | K101: 3960 | M101: 3.54 | N101: 2.77 | O101: 0.2175
B102: 3.1.3 | C102: SERVIÇO | D102: SINAPI | E102: 73672 | F102: DESMATAMENTO E LIMPEZA MECANIZADA DE TERRENO COM ARVORES ATE Ø 15CM, UTILIZANDO TRATOR DE ESTEIRAS | G102: M2 | H102: 600 | I102: =SUMIF('Composições (SINAPI)'!D:D,E102,'Composições (SINAPI)'!K:K) -> 0.28 | J102: 0.36 | K102: 216 | M102: 0.36 | N102: 0.28 | O102: 0.2222
B103: 3.1.4 | C103: SERVIÇO | D103: SINAPI | E103: 73859/2 | F103: CAPINA E LIMPEZA MANUAL DE TERRENO | G103: M2 | H103: 600 | I103: =SUMIF('Composições (SINAPI)'!D:D,E103,'Composições (SINAPI)'!K:K) -> 0.88 | J103: 1.14 | K103: 684 | M103: 1.13 | N103: 0.88 | O103: 0.2212
B104: 3.1.5 | C104: SERVIÇO | D104: ORSE | E104: 6098 | F104: CADASTRO DE REDES DE ÁGUA / ADUTORAS | G104: M | H104: 11720 | I104: =SUMIF('Composições (ORSE)'!D:D,E104,'Composições (ORSE)'!K:K) -> 0.96 | J104: 1.25 | K104: 14650 | M104: 1.23 | N104: 0.96 | O104: 0.2195
B105: 3.1.6 | C105: SERVIÇO | D105: ORSE | E105: 6465 | F105: TESTE HIDROSTÁTICO EM REDE DE ÁGUA / ADUTORA | G105: M | H105: 17810 | I105: =SUMIF('Composições (ORSE)'!D:D,E105,'Composições (ORSE)'!K:K) -> 0.27 | J105: 0.35 | K105: 6233.5 | M105: 0.35 | N105: 0.27 | O105: 0.2286
B106: 3.1.7 | C106: SERVIÇO | D106: ORSE | E106: 2497 | F106: ESCAVAÇÃO MANUAL DE VALA OU CAVA EM MATERIAL DE 1ª CATEGORIA, PROFUNDIDADE AT É 1,50M | G106: M3 | H106: 152 | I106: =SUMIF('Composições (ORSE)'!D:D,E106,'Composições (ORSE)'!K:K) -> 25 | J106: 32.48 | K106: 4936.96 | M106: 31.93 | N106: 25 | O106: 0.217
B107: 3.1.8 | C107: SERVIÇO | D107: ORSE | E107: 2503 | F107: ESCAVAÇÃO COM RETRO-ESCAVADEIRA DE PNEUS, DE VALAS, EM MATERIAL DE 1ª CATEGOR IA ATÉ 1,50M DE PROFUNDIDADE | G107: M3 | H107: 1785.87 | I107: =SUMIF('Composições (ORSE)'!D:D,E107,'Composições (ORSE)'!K:K) -> 5.7 | J107: 7.4 | K107: 13215.44 | M107: 7.28 | N107: 5.7 | O107: 0.217
B108: 3.1.9 | C108: SERVIÇO | D108: SINAPI | E108: 72915 | F108: ESCAVACAO MECANICA DE VALA EM MATERIAL DE 2A. CATEGORIA ATE 2 M DE PROFUNDIDADE COM UTILIZACAO DE ESCAVADEIRA HIDRAULICA | G108: M3 | H108: 983.34 | I108: =SUMIF('Composições (SINAPI)'!D:D,E108,'Composições (SINAPI)'!K:K) -> 8.32 | J108: 10.81 | K108: 10629.91 | M108: 10.63 | N108: 8.32 | O108: 0.2173
B109: 3.1.10 | C109: SERVIÇO | D109: ORSE | E109: 7084 | F109: ESCAVAÇÃO DE VALA A FRIO, EM MATERIAL DE 3ª CATEGORIA, COM PERFURATRIZ MANUAL E COMPRESSOR | G109: M3 | H109: 339.72 | I109: =SUMIF('Composições (ORSE)'!D:D,E109,'Composições (ORSE)'!K:K) -> 161.42 | J109: 209.68 | K109: 71232.49 | M109: 206.16 | N109: 161.42 | O109: 0.217
B110: 3.1.11 | C110: SERVIÇO | D110: ORSE | E110: 4502 | F110: ESCAVAÇÃO MANUAL DE VALA OU CAVA EM MATERIAL DE 3ª CATEGORIA, PROFUNDIDADE AT É 2,00 M, COM USO DE EXPLOSIVOS E PERFURAÇÃO MECÂNICA | G110: M3 | H110: 172.87 | I110: =SUMIF('Composições (ORSE)'!D:D,E110,'Composições (ORSE)'!K:K) -> 157.33 | J110: 204.37 | K110: 35329.44 | M110: 200.94 | N110: 157.33 | O110: 0.217
B111: 3.1.12 | C111: SERVIÇO | D111: ORSE | E111: 5103 | F111: REGULARIZAÇÃO MANUAL | G111: M2 | H111: 3433.8 | I111: =SUMIF('Composições (ORSE)'!D:D,E111,'Composições (ORSE)'!K:K) -> 2.48 | J111: 3.22 | K111: 11056.84 | M111: 3.18 | N111: 2.48 | O111: 0.2201
B112: 3.1.13 | C112: SERVIÇO | D112: SINAPI | E112: 72895 | F112: CARGA, MANOBRAS E DESCARGA DE MATERIAIS DIVERSOS, COM CAMINHAO BASCULANTE 6M3 (CARGA E DESCARGA MANUAIS) | G112: M3 | H112: 1812.59 | I112: =SUMIF('Composições (SINAPI)'!D:D,E112,'Composições (SINAPI)'!K:K) -> 16.77 | J112: 21.78 | K112: 39478.21 | M112: 21.42 | N112: 16.77 | O112: 0.2171
B113: 3.1.14 | C113: SERVIÇO | D113: SINAPI | E113: 83344 | F113: ESPALHAMENTO DE MATERIAL EM BOTA FORA, COM UTILIZACAO DE TRATOR DE ESTEIRAS DE 165 HP | G113: M3 | H113: 1812.59 | I113: =SUMIF('Composições (SINAPI)'!D:D,E113,'Composições (SINAPI)'!K:K) -> 0.69 | J113: 0.9 | K113: 1631.33 | M113: 0.89 | N113: 0.69 | O113: 0.2247
B114: 3.1.15 | C114: SERVIÇO | D114: ORSE | E114: 5149 | F114: REMOÇÃO DE ADUTORA / REDE EM PVC DIAM. = 50 MM | G114: M | H114: 80 | I114: =SUMIF('Composições (ORSE)'!D:D,E114,'Composições (ORSE)'!K:K) -> 0.56 | J114: 0.73 | K114: 58.4 | M114: 0.72 | N114: 0.56 | O114: 0.2222
B115: 3.1.16 | C115: SERVIÇO | D115: ORSE | E115: 5129 | F115: REMOÇÃO DE ADUTORA / REDE EM Fº Fº, JUNTA ELÁSTICA , DIAM. = 150 MM | G115: M | H115: 1128 | I115: =SUMIF('Composições (ORSE)'!D:D,E115,'Composições (ORSE)'!K:K) -> 4.07 | J115: 5.29 | K115: 5967.12 | M115: 5.21 | N115: 4.07 | O115: 0.2188
B116: 3.2 | C116: ASSENTAMENTO DE TUBOS E CONEXÕES | K116: =SUM(K117:K121) -> 14044.86
B117: 3.2.1 | C117: SERVIÇO | D117: SINAPI | E117: 97134 | F117: ASSENTAMENTO DE TUBO DE PVC DEFOFO OU PRFV OU RPVC PARA REDE DE ÁGUA, DN 150 MM, JUNTA ELÁSTICA INTEGRADA, INSTALADO EM LOCAL COM NÍVEL BAIXO DE INTERFERÊNCIAS (NÃO INCLUI FORNECIMENTO). AF_11/2017 | G117: M | H117: 4415 | I117: =SUMIF('Composições (SINAPI)'!D:D,E117,'Composições (SINAPI)'!K:K) -> 1.57 | J117: =ROUND(IF(C117 = "SERVIÇO", I117 * (1 + $I$11), IF(C117 = "INSUMO", (I117 * (1 + $K$11)))),2) -> 2.04 | K117: =ROUND(J117*H117,2) -> 9006.6 | M117: 2.01 | N117: 1.57 | O117: =IF(I117=0," ",ROUND(1-(I117/M117),4)) -> 0.2189
B118: 3.2.2 | C118: SERVIÇO | D118: SINAPI | E118: 97124 | F118: ASSENTAMENTO DE TUBO DE PVC PBA PARA REDE DE ÁGUA, DN 50 MM, JUNTA ELÁSTICA INTEGRADA, INSTALADO EM LOCAL COM NÍVEL BAIXO DE INTERFERÊNCIAS (NÃO INCLUI FORNECIMENTO). AF_11/2017 | G118: M | H118: 124 | I118: =SUMIF('Composições (SINAPI)'!D:D,E118,'Composições (SINAPI)'!K:K) -> 0.61 | J118: =ROUND(IF(C118 = "SERVIÇO", I118 * (1 + $I$11), IF(C118 = "INSUMO", (I118 * (1 + $K$11)))),2) -> 0.79 | K118: =ROUND(J118*H118,2) -> 97.96 | M118: 0.78 | N118: 0.61 | O118: =IF(I118=0," ",ROUND(1-(I118/M118),4)) -> 0.2179
B119: 3.2.3 | C119: SERVIÇO | D119: SINAPI | E119: 97159 | F119: ASSENTAMENTO DE TUBO DE FERRO FUNDIDO PARA REDE DE ÁGUA, DN 150 MM, JUNTA ELÁSTICA, INSTALADO EM LOCAL COM NÍVEL BAIXO DE INTERFERÊNCIAS (NÃO INCLUI FORNECIMENTO). AF_11/2017 | G119: M | H119: 8 | I119: =SUMIF('Composições (SINAPI)'!D:D,E119,'Composições (SINAPI)'!K:K) -> 4.83 | J119: =ROUND(IF(C119 = "SERVIÇO", I119 * (1 + $I$11), IF(C119 = "INSUMO", (I119 * (1 + $K$11)))),2) -> 6.27 | K119: =ROUND(J119*H119,2) -> 50.16 | M119: 6.17 | N119: 4.83 | O119: =IF(I119=0," ",ROUND(1-(I119/M119),4)) -> 0.2172
B120: 3.2.4 | C120: SERVIÇO | D120: ORSE | E120: 5276 | F120: ASSENTAMENTO DE CONEXÕES DE PVC DEFOFO, JUNTA ELÁSTICA, DIAM.= 150 MM | G120: UN | H120: 106 | I120: =SUMIF('Composições (ORSE)'!D:D,E120,'Composições (ORSE)'!K:K) -> 2.3 | J120: =ROUND(IF(C120 = "SERVIÇO", I120 * (1 + $I$11), IF(C120 = "INSUMO", (I120 * (1 + $K$11)))),2) -> 2.99 | K120: =ROUND(J120*H120,2) -> 316.94 | M120: 2.94 | N120: 2.3 | O120: =IF(I120=0," ",ROUND(1-(I120/M120),4)) -> 0.2177
B121: 3.2.5 | C121: SERVIÇO | D121: SINAPI | E121: 83724 | F121: ASSENTAMENTO DE PECAS, CONEXOES, APARELHOS E ACESSORIOS DE FERRO FUNDIDO DUCTIL, JUNTA ELASTICA, MECANICA OU FLANGEADA, COM DIAMETROS DE 50 A 300 MM. | G121: KG | H121: 2060 | I121: =SUMIF('Composições (SINAPI)'!D:D,E121,'Composições (SINAPI)'!K:K) -> 1.71 | J121: =ROUND(IF(C121 = "SERVIÇO", I121 * (1 + $I$11), IF(C121 = "INSUMO", (I121 * (1 + $K$11)))),2) -> 2.22 | K121: =ROUND(J121*H121,2) -> 4573.2 | M121: 2.19 | N121: 1.71 | O121: =IF(I121=0," ",ROUND(1-(I121/M121),4)) -> 0.2192
B122: 3.3 | C122: PREENCHIMENTO DE VALA | K122: =SUM(K123:K125) -> 113420.64
B123: 3.3.1 | C123: SERVIÇO | D123: SINAPI | E123: 93379 | F123: REATERRO MECANIZADO DE VALA COM RETROESCAVADEIRA (CAPACIDADE DA CAÇAMBA DA RETRO: 0,26 M³ / POTÊNCIA: 88 HP), LARGURA DE 0,8 A 1,5 M, PROFUNDIDADE ATÉ 1,5 M, COM SOLO (SEM SUBSTITUIÇÃO) DE 1ª CATEGORIA EM LOCAIS COM BAIXO NÍVEL DE INTERFERÊNCIA. AF_04/2016 | G123: M3 | H123: 2049.48 | I123: =SUMIF('Composições (SINAPI)'!D:D,E123,'Composições (SINAPI)'!K:K) -> 13.09 | J123: =ROUND(IF(C123 = "SERVIÇO", I123 * (1 + $I$11), IF(C123 = "INSUMO", (I123 * (1 + $K$11)))),2) -> 17 | K123: =ROUND(J123*H123,2) -> 34841.16 | M123: 16.72 | N123: 13.09 | O123: =IF(I123=0," ",ROUND(1-(I123/M123),4)) -> 0.2171
B124: 3.3.2 | C124: SERVIÇO | D124: SINAPI | E124: 94102 | F124: LASTRO DE VALA COM PREPARO DE FUNDO, LARGURA MENOR QUE 1,5 M, COM CAMADA DE AREIA, LANÇAMENTO MANUAL, EM LOCAL COM NÍVEL BAIXO DE INTERFERÊNCIA. AF_06/2016 | G124: M3 | H124: 205 | I124: =SUMIF('Composições (SINAPI)'!D:D,E124,'Composições (SINAPI)'!K:K) -> 108.68 | J124: =ROUND(IF(C124 = "SERVIÇO", I124 * (1 + $I$11), IF(C124 = "INSUMO", (I124 * (1 + $K$11)))),2) -> 141.18 | K124: =ROUND(J124*H124,2) -> 28941.9 | M124: 139.02 | N124: 108.85 | O124: =IF(I124=0," ",ROUND(1-(I124/M124),4)) -> 0.2182
B125: 3.3.3 | C125: SERVIÇO | D125: SINAPI | E125: 94315 | F125: ATERRO MECANIZADO DE VALA COM RETROESCAVADEIRA (CAPACIDADE DA CAÇAMBA DA RETRO: 0,26 M³ / POTÊNCIA: 88 HP), LARGURA ATÉ 0,8 M, PROFUNDIDADE ATÉ 1,5 M, COM SOLO ARGILO-ARENOSO. AF_05/2016 | G125: M3 | H125: 1179.32 | I125: =SUMIF('Composições (SINAPI)'!D:D,E125,'Composições (SINAPI)'!K:K) -> 32.4 | J125: =ROUND(IF(C125 = "SERVIÇO", I125 * (1 + $I$11), IF(C125 = "INSUMO", (I125 * (1 + $K$11)))),2) -> 42.09 | K125: =ROUND(J125*H125,2) -> 49637.58 | M125: 41.39 | N125: 32.4 | O125: =IF(I125=0," ",ROUND(1-(I125/M125),4)) -> 0.2172
B126: 3.4 | C126: SINALIZAÇÃO E ISOLAMENTOS | K126: =SUM(K127:K132) -> 17483.16
B127: 3.4.1 | C127: SERVIÇO | D127: SINAPI | E127: 74219/1 | F127: PASSADICOS COM TABUAS DE MADEIRA PARA PEDESTRES | G127: M2 | H127: 40 | I127: =SUMIF('Composições (SINAPI)'!D:D,E127,'Composições (SINAPI)'!K:K) -> 43.7 | J127: =ROUND(IF(C127 = "SERVIÇO", I127 * (1 + $I$11), IF(C127 = "INSUMO", (I127 * (1 + $K$11)))),2) -> 56.77 | K127: =ROUND(J127*H127,2) -> 2270.8 | M127: 55.82 | N127: 43.7 | O127: =IF(I127=0," ",ROUND(1-(I127/M127),4)) -> 0.2171
B128: 3.4.2 | C128: SERVIÇO | D128: SINAPI | E128: 74219/2 | F128: PASSADICOS COM TABUAS DE MADEIRA PARA VEICULOS | G128: M2 | H128: 24 | I128: =SUMIF('Composições (SINAPI)'!D:D,E128,'Composições (SINAPI)'!K:K) -> 34.4 | J128: 44.69 | K128: 1072.56 | M128: 43.94 | N128: 34.4 | O128: 0.2171
B129: 3.4.3 | C129: SERVIÇO | D129: ORSE | E129: 5157 | F129: SINALIZAÇÃO DE VALAS COM PLACAS INDICATIVAS | G129: M | H129: 90 | I129: =SUMIF('Composições (ORSE)'!D:D,E129,'Composições (ORSE)'!K:K) -> 1.65 | J129: 2.14 | K129: 192.6 | M129: 2.11 | N129: 1.65 | O129: 0.218
B130: 3.4.4 | C130: SERVIÇO | D130: ORSE | E130: 5152 | F130: SINALIZAÇÃO COM CAVALETE PLÁSTICO DESMONTÁVEL | G130: UN | H130: 180 | I130: =SUMIF('Composições (ORSE)'!D:D,E130,'Composições (ORSE)'!K:K) -> 10.35 | J130: 13.44 | K130: 2419.2 | M130: 13.22 | N130: 10.35 | O130: 0.2171
B131: 3.4.5 | C131: SERVIÇO | D131: SINAPI | E131: 85424 | F131: ISOLAMENTO DE OBRA COM TELA PLASTICA COM MALHA DE 5MM E ESTRUTURA DE MADEIRA PONTALETEADA | G131: M2 | H131: 360 | I131: =SUMIF('Composições (SINAPI)'!D:D,E131,'Composições (SINAPI)'!K:K) -> 15.72 | J131: 20.42 | K131: 7351.2 | M131: 20.08 | N131: 15.72 | O131: 0.2171
B132: 3.4.6 | C132: SERVIÇO | D132: SINAPI | E132: 74220/1 | F132: TAPUME DE CHAPA DE MADEIRA COMPENSADA, E= 6MM, COM PINTURA A CAL E REAPROVEITAMENTO DE 2X | G132: M2 | H132: 80 | I132: =SUMIF('Composições (SINAPI)'!D:D,E132,'Composições (SINAPI)'!K:K) -> 40.19 | J132: 52.21 | K132: 4176.8 | M132: 51.35 | N132: 40.2 | O132: 0.2173
B133: 3.5 | C133: CAIXAS DE PASSAGEM/BLOCOS DE ANCORAGEM | K133: =SUM(K134:K142) -> 67303.66
B134: 3.5.1 | C134: SERVIÇO | D134: ORSE | E134: 5957 | F134: CAIXA PARA REGISTRO, TIPO I, PARA DIÂMETROS DE 50 A 100MM | G134: UN | H134: 26 | I134: =SUMIF('Composições (ORSE)'!D:D,E134,'Composições (ORSE)'!K:K) -> 581.69 | J134: =ROUND(IF(C134 = "SERVIÇO", I134 * (1 + $I$11), IF(C134 = "INSUMO", (I134 * (1 + $K$11)))),2) -> 755.62 | K134: =ROUND(J134*H134,2) -> 19646.12 | M134: 743.39 | N134: 582.07 | O134: =IF(I134=0," ",ROUND(1-(I134/M134),4)) -> 0.2175
B135: 3.5.2 | C135: SERVIÇO | D135: ORSE | E135: 5958 | F135: CAIXA PARA REGISTRO, TIPO II, PARA DIÂMETROS DE 150 A 200MM | G135: UN | H135: 4 | I135: =SUMIF('Composições (ORSE)'!D:D,E135,'Composições (ORSE)'!K:K) -> 860.88 | J135: 1118.28 | K135: 4473.12 | M135: 1100.21 | N135: 861.46 | O135: 0.2175
B136: 3.5.3 | C136: SERVIÇO | D136: ORSE | E136: 5962 | F136: CAIXA PARA VENTOSA PARA DIÂMETRO DE 50 A 150MM (MV-04-326) | G136: UN | H136: 26 | I136: =SUMIF('Composições (ORSE)'!D:D,E136,'Composições (ORSE)'!K:K) -> 581.69 | J136: 755.62 | K136: 19646.12 | M136: 743.39 | N136: 582.07 | O136: 0.2175
B137: 3.5.4 | C137: SERVIÇO | D137: ORSE | E137: 5965 | F137: CAIXA PRÉ MOLDADA EM CONCRETO PARA PROTEÇÃO DE MACRO MEDIDORES, DIM. INT. = 0 ,70 X 1,00 X 0,50 | G137: UN | H137: 5 | I137: =SUMIF('Composições (ORSE)'!D:D,E137,'Composições (ORSE)'!K:K) -> 366.09 | J137: 475.55 | K137: 2377.75 | M137: 467.56 | N137: 366.09 | O137: 0.217
B138: 3.5.5 | C138: SERVIÇO | D138: ORSE | E138: 2169 | F138: LASTRO DE CONCRETO SIMPLES REGULARIZADO, FCK=13,5 MPA,LANÇADO E ADENSADO | G138: M3 | H138: 11 | I138: =SUMIF('Composições (ORSE)'!D:D,E138,'Composições (ORSE)'!K:K) -> 341.43 | J138: 443.52 | K138: 4878.72 | M138: 436.37 | N138: 341.67 | O138: 0.2176
B139: 3.5.6 | C139: SERVIÇO | D139: ORSE | E139: 11651 | F139: FORMA PLANA PARA ESTRUTURAS, EM COMPENSADO PLASTIFICADO DE 10MM, 04 USOS, INC LUSIVE ESCORAMENTO - REVISADA 07.2015 | G139: M2 | H139: 68 | I139: =SUMIF('Composições (ORSE)'!D:D,E139,'Composições (ORSE)'!K:K) -> 34.05 | J139: 44.23 | K139: 3007.64 | M139: 43.49 | N139: 34.05 | O139: 0.2171
B140: 3.5.7 | C140: SERVIÇO | D140: ORSE | E140: 7691 | F140: CONCRETO SIMPLES FABRICADO NA OBRA, FCK=21 MPA, LANÇADO E ADENSADO | G140: M3 | H140: 11.5 | I140: =SUMIF('Composições (ORSE)'!D:D,E140,'Composições (ORSE)'!K:K) -> 304.66 | J140: 395.75 | K140: 4551.13 | M140: 389.14 | N140: 304.69 | O140: 0.2171
B141: 3.5.8 | C141: SERVIÇO | D141: SEINFRA | E141: C4151 | F141: ARMADURA DE AÇO CA 50/60 | G141: KG | H141: 675 | I141: =SUMIF('Composições (SEINFRA)'!D:D,E141,'Composições (SEINFRA)'!K:K) -> 5.64 | J141: 7.33 | K141: 4947.75 | M141: 7.21 | N141: 5.64 | O141: 0.2178
B142: 3.5.9 | C142: SERVIÇO | D142: SINAPI | E142: 73361 | F142: CONCRETO CICLOPICO FCK=10MPA 30% PEDRA DE MAO INCLUSIVE LANCAMENTO | G142: M3 | H142: 11 | I142: =SUMIF('Composições (SINAPI)'!D:D,E142,'Composições (SINAPI)'!K:K) -> 264.21 | J142: 343.21 | K142: 3775.31 | M142: 337.49 | N142: 264.25 | O142: 0.2171
B143: 4 | C143: ESTAÇÃO DE TRATAMENTO DE ÁGUA | K143: =K144+K235 -> 754794.58
B144: 4.1 | C144: FILTROS RUSSOS - CASA DE QUÍMICA - BANHEIRO- URBANIZAÇÃO | K144: =SUM(K145:K234) -> 686727.24
B145: 4.1.1 | C145: SERVIÇO | D145: SINAPI | E145: 73992/1 | F145: LOCACAO CONVENCIONAL DE OBRA, ATRAVÉS DE GABARITO DE TABUAS CORRIDAS PONTALETADAS A CADA 1,50M, SEM REAPROVEITAMENTO | G145: M2 | H145: 1420 | I145: =SUMIF('Composições (SINAPI)'!D:D,E145,'Composições (SINAPI)'!K:K) -> 6.49 | J145: =ROUND(IF(C145 = "SERVIÇO", I145 * (1 + $I$11), IF(C145 = "INSUMO", (I145 * (1 + $K$11)))),2) -> 8.43 | K145: =ROUND(J145*H145,2) -> 11970.6 | M145: 8.3 | N145: 6.49 | O145: =IF(I145=0," ",ROUND(1-(I145/M145),4)) -> 0.2181
B146: 4.1.2 | C146: SERVIÇO | D146: SINAPI | E146: 73822/2 | F146: LIMPEZA MECANIZADA DE TERRENO COM REMOCAO DE CAMADA VEGETAL, UTILIZANDO MOTONIVELADORA | G146: M2 | H146: 3600 | I146: =SUMIF('Composições (SINAPI)'!D:D,E146,'Composições (SINAPI)'!K:K) -> 0.4 | J146: 0.52 | K146: 1872 | M146: 0.52 | N146: 0.4 | O146: 0.2308
B147: 4.1.3 | C147: SERVIÇO | D147: SINAPI | E147: 73859/2 | F147: CAPINA E LIMPEZA MANUAL DE TERRENO | G147: M2 | H147: 4100 | I147: =SUMIF('Composições (SINAPI)'!D:D,E147,'Composições (SINAPI)'!K:K) -> 0.88 | J147: 1.14 | K147: 4674 | M147: 1.13 | N147: 0.88 | O147: 0.2212
B148: 4.1.4 | C148: SERVIÇO | D148: ORSE | E148: 2497 | F148: ESCAVAÇÃO MANUAL DE VALA OU CAVA EM MATERIAL DE 1ª CATEGORIA, PROFUNDIDADE AT É 1,50M | G148: M3 | H148: 70 | I148: =SUMIF('Composições (ORSE)'!D:D,E148,'Composições (ORSE)'!K:K) -> 25 | J148: 32.48 | K148: 2273.6 | M148: 31.93 | N148: 25 | O148: 0.217
B149: 4.1.5 | C149: SERVIÇO | D149: ORSE | E149: 2503 | F149: ESCAVAÇÃO COM RETRO-ESCAVADEIRA DE PNEUS, DE VALAS, EM MATERIAL DE 1ª CATEGOR IA ATÉ 1,50M DE PROFUNDIDADE | G149: M3 | H149: 306 | I149: =SUMIF('Composições (ORSE)'!D:D,E149,'Composições (ORSE)'!K:K) -> 5.7 | J149: 7.4 | K149: 2264.4 | M149: 7.28 | N149: 5.7 | O149: 0.217
B150: 4.1.6 | C150: SERVIÇO | D150: SINAPI | E150: 72915 | F150: ESCAVACAO MECANICA DE VALA EM MATERIAL DE 2A. CATEGORIA ATE 2 M DE PROFUNDIDADE COM UTILIZACAO DE ESCAVADEIRA HIDRAULICA | G150: M3 | H150: 753 | I150: =SUMIF('Composições (SINAPI)'!D:D,E150,'Composições (SINAPI)'!K:K) -> 8.32 | J150: 10.81 | K150: 8139.93 | M150: 10.63 | N150: 8.32 | O150: 0.2173
B151: 4.1.7 | C151: SERVIÇO | D151: ORSE | E151: 2519 | F151: REATERRO MANUAL DE VALAS OU ÁREAS, COM ESPALHAMENTO E COMPACTAÇÃO, UTILIZANDO COMPACTADOR À PERCUSSÃO SAPINHO, SEM CONTROLE DO GRAU DE COMPACTAÇÃO | G151: M3 | H151: 74 | I151: =SUMIF('Composições (ORSE)'!D:D,E151,'Composições (ORSE)'!K:K) -> 7.86 | J151: 10.21 | K151: 755.54 | M151: 10.05 | N151: 7.86 | O151: 0.2179
B152: 4.1.8 | C152: SERVIÇO | D152: SINAPI | E152: 93374 | F152: REATERRO MECANIZADO DE VALA COM RETROESCAVADEIRA (CAPACIDADE DA CAÇAMBA DA RETRO: 0,26 M³ / POTÊNCIA: 88 HP), LARGURA ATÉ 0,8 M, PROFUNDIDADE ATÉ 1,5 M, COM SOLO (SEM SUBSTITUIÇÃO) DE 1ª CATEGORIA EM LOCAIS COM ALTO NÍVEL DE INTERFERÊNCIA. AF_04/2016 | G152: M3 | H152: 803 | I152: =SUMIF('Composições (SINAPI)'!D:D,E152,'Composições (SINAPI)'!K:K) -> 18.09 | J152: 23.5 | K152: 18870.5 | M152: 23.11 | N152: 18.09 | O152: 0.2172
B153: 4.1.9 | C153: SERVIÇO | D153: ORSE | E153: 71 | F153: ATERRO MANUAL DE ÁREAS, SEM AQUISIÇÃO DE MATERIAL, COM ESPALHAMENTO E COMPACT AÇÃO | G153: M3 | H153: 252 | I153: =SUMIF('Composições (ORSE)'!D:D,E153,'Composições (ORSE)'!K:K) -> 25 | J153: 32.48 | K153: 8184.96 | M153: 31.93 | N153: 25 | O153: 0.217
B154: 4.1.10 | C154: SERVIÇO | D154: ORSE | E154: 2169 | F154: LASTRO DE CONCRETO SIMPLES REGULARIZADO, FCK=13,5 MPA,LANÇADO E ADENSADO | G154: M3 | H154: 35 | I154: =SUMIF('Composições (ORSE)'!D:D,E154,'Composições (ORSE)'!K:K) -> 341.43 | J154: 443.52 | K154: 15523.2 | M154: 436.37 | N154: 341.67 | O154: 0.2176
B155: 4.1.11 | C155: SERVIÇO | D155: SINAPI | E155: 95467 | F155: EMBASAMENTO C/PEDRA ARGAMASSADA UTILIZANDO ARG.CIM/AREIA 1:4 | G155: M3 | H155: 12.5 | I155: =SUMIF('Composições (SINAPI)'!D:D,E155,'Composições (SINAPI)'!K:K) -> 275.33 | J155: 357.65 | K155: 4470.63 | M155: 352.25 | N155: 275.81 | O155: 0.2184
B156: 4.1.12 | C156: SERVIÇO | D156: SINAPI | E156: 83518 | F156: ALVENARIA EMBASAMENTO E=20 CM BLOCO CONCRETO | G156: M3 | H156: 36.5 | I156: =SUMIF('Composições (SINAPI)'!D:D,E156,'Composições (SINAPI)'!K:K) -> 224.71 | J156: 291.9 | K156: 10654.35 | M156: 287.37 | N156: 225.01 | O156: 0.218
B157: 4.1.13 | C157: SERVIÇO | D157: ORSE | E157: 9182 | F157: DEMOLIÇÃO DE CONCRETO COM MARTELETE E COMPRESSOR | G157: M3 | H157: 22 | I157: =SUMIF('Composições (ORSE)'!D:D,E157,'Composições (ORSE)'!K:K) -> 257.37 | J157: 334.32 | K157: 7355.04 | M157: 328.71 | N157: 257.37 | O157: 0.217
B158: 4.1.14 | C158: SERVIÇO | D158: ORSE | E158: 13 | F158: DEMOLIÇÃO DE CONCRETO MANUALMENTE | G158: M3 | H158: 29 | I158: =SUMIF('Composições (ORSE)'!D:D,E158,'Composições (ORSE)'!K:K) -> 122.68 | J158: 159.36 | K158: 4621.44 | M158: 156.82 | N158: 122.79 | O158: 0.2177
B159: 4.1.15 | C159: SERVIÇO | D159: ORSE | E159: 30 | F159: DEMOLIÇÃO DE MADEIRAMENTO EM COBERTURAS COM TELHAS CERÂMICAS | G159: M2 | H159: 154 | I159: =SUMIF('Composições (ORSE)'!D:D,E159,'Composições (ORSE)'!K:K) -> 12.28 | J159: 15.95 | K159: 2456.3 | M159: 15.69 | N159: 12.28 | O159: 0.2173
B160: 4.1.16 | C160: SERVIÇO | D160: ORSE | E160: 9 | F160: REMOÇÃO DE TELHAMENTO COM TELHAS CERÂMICAS | G160: M2 | H160: 154 | I160: =SUMIF('Composições (ORSE)'!D:D,E160,'Composições (ORSE)'!K:K) -> 5.64 | J160: 7.33 | K160: 1128.82 | M160: 7.21 | N160: 5.64 | O160: 0.2178
B161: 4.1.17 | C161: SERVIÇO | D161: ORSE | E161: 17 | F161: DEMOLIÇÃO DE REBOCO | G161: M2 | H161: 100 | I161: =SUMIF('Composições (ORSE)'!D:D,E161,'Composições (ORSE)'!K:K) -> 4.16 | J161: 5.4 | K161: 540 | M161: 5.32 | N161: 4.16 | O161: 0.218
B162: 4.1.18 | C162: SERVIÇO | D162: ORSE | E162: 16 | F162: DEMOLIÇÃO MANUAL DE PISO EM CONCRETO SIMPLES E/OU CIMENTADO | G162: M2 | H162: 145 | I162: =SUMIF('Composições (ORSE)'!D:D,E162,'Composições (ORSE)'!K:K) -> 12.28 | J162: 15.95 | K162: 2312.75 | M162: 15.69 | N162: 12.28 | O162: 0.2173
B163: 4.1.19 | C163: SERVIÇO | D163: ORSE | E163: 4942 | F163: REMOÇÃO DE ESQUADRIA METÁLICA, COM OU SEM REAPROVEITAMENTO | G163: M2 | H163: 24 | I163: =SUMIF('Composições (ORSE)'!D:D,E163,'Composições (ORSE)'!K:K) -> 8.83 | J163: 11.47 | K163: 275.28 | M163: 11.31 | N163: 8.85 | O163: 0.2193
B164: 4.1.20 | C164: SERVIÇO | D164: SINAPI | E164: 97644 | F164: REMOÇÃO DE PORTAS, DE FORMA MANUAL, SEM REAPROVEITAMENTO. AF_12/2017 | G164: M2 | H164: 15.12 | I164: =SUMIF('Composições (SINAPI)'!D:D,E164,'Composições (SINAPI)'!K:K) -> 4.64 | J164: 6.03 | K164: 91.17 | M164: 5.94 | N164: 4.65 | O164: 0.2189
B165: 4.1.21 | C165: SERVIÇO | D165: SINAPI | E165: 87504 | F165: ALVENARIA DE VEDAÇÃO DE BLOCOS CERÂMICOS FURADOS NA HORIZONTAL DE 9X19X19CM (ESPESSURA 9CM) DE PAREDES COM ÁREA LÍQUIDA MAIOR OU IGUAL A 6M² SEM VÃOS E ARGAMASSA DE ASSENTAMENTO COM PREPARO MANUAL. AF_06/2014 | G165: M2 | H165: 220 | I165: =SUMIF('Composições (SINAPI)'!D:D,E165,'Composições (SINAPI)'!K:K) -> 40 | J165: 51.96 | K165: 11431.2 | M165: 51.23 | N165: 40.11 | O165: 0.2192
B166: 4.1.22 | C166: SERVIÇO | D166: SINAPI | E166: 87509 | F166: ALVENARIA DE VEDAÇÃO DE BLOCOS CERÂMICOS FURADOS NA HORIZONTAL DE 14X9X19CM (ESPESSURA 14CM, BLOCO DEITADO) DE PAREDES COM ÁREA LÍQUIDA MAIOR OU IGUAL A 6M² SEM VÃOS E ARGAMASSA DE ASSENTAMENTO COM PREPARO EM BETONEIRA. AF_06/2014 | G166: M2 | H166: 240 | I166: =SUMIF('Composições (SINAPI)'!D:D,E166,'Composições (SINAPI)'!K:K) -> 64.58 | J166: 83.89 | K166: 20133.6 | M166: 82.72 | N166: 64.76 | O166: 0.2193
B167: 4.1.23 | C167: SERVIÇO | D167: SINAPI | E167: 93202 | F167: FIXAÇÃO (ENCUNHAMENTO) DE ALVENARIA DE VEDAÇÃO COM TIJOLO MACIÇO. AF_03/2016 | G167: M | H167: 300 | I167: =SUMIF('Composições (SINAPI)'!D:D,E167,'Composições (SINAPI)'!K:K) -> 12.36 | J167: 16.06 | K167: 4818 | M167: 15.84 | N167: 12.4 | O167: 0.2197
B168: 4.1.24 | C168: SERVIÇO | D168: ORSE | E168: 3310 | F168: CHAPISCO EM PAREDE COM ARGAMASSA TRAÇO T1 - 1:3 (CIMENTO / AREIA) - REVISADO 08/2015 | G168: M2 | H168: 1265 | I168: =SUMIF('Composições (ORSE)'!D:D,E168,'Composições (ORSE)'!K:K) -> 3.35 | J168: 4.35 | K168: 5502.75 | M168: 4.29 | N168: 3.35 | O168: 0.2191
B169: 4.1.25 | C169: SERVIÇO | D169: SINAPI | E169: 87794 | F169: EMBOÇO OU MASSA ÚNICA EM ARGAMASSA TRAÇO 1:2:8, PREPARO MANUAL, APLICADA MANUALMENTE EM PANOS CEGOS DE FACHADA (SEM PRESENÇA DE VÃOS), ESPESSURA DE 25 MM. AF_06/2014 | G169: M2 | H169: 1265 | I169: =SUMIF('Composições (SINAPI)'!D:D,E169,'Composições (SINAPI)'!K:K) -> 21.47 | J169: 27.89 | K169: 35280.85 | M169: 27.46 | N169: 21.5 | O169: 0.2181
B170: 4.1.26 | C170: SERVIÇO | D170: ORSE | E170: 2265 | F170: SOLEIRA CIMENTADO TRAÇO T1, L = 18 CM, E = 2 CM | G170: M | H170: 24 | I170: =SUMIF('Composições (ORSE)'!D:D,E170,'Composições (ORSE)'!K:K) -> 9.41 | J170: 12.22 | K170: 293.28 | M170: 12.08 | N170: 9.45 | O170: 0.221
B171: 4.1.27 | C171: SERVIÇO | D171: ORSE | E171: 1987 | F171: PEITORIL CIMENTO TRAÇO T1, C/ LARGURA = 22 CM, ESP = 4 CM | G171: M | H171: 54 | I171: =SUMIF('Composições (ORSE)'!D:D,E171,'Composições (ORSE)'!K:K) -> 18.87 | J171: 24.51 | K171: 1323.54 | M171: 24.13 | N171: 18.89 | O171: 0.218
B172: 4.1.28 | C172: SERVIÇO | D172: SINAPI | E172: 74202/1 | F172: LAJE PRE-MOLDADA P/FORRO, SOBRECARGA 100KG/M2, VAOS ATE 3,50M/E=8CM, C/LAJOTAS E CAP.C/CONC FCK=20MPA, 3CM, INTER-EIXO 38CM, C/ESCORAMENTO (REAPR.3X) E FERRAGEM NEGATIVA | G172: M2 | H172: 245 | I172: =SUMIF('Composições (SINAPI)'!D:D,E172,'Composições (SINAPI)'!K:K) -> 48.5 | J172: 63 | K172: 15435 | M172: 61.98 | N172: 48.53 | O172: 0.2175
B173: 4.1.29 | C173: SERVIÇO | D173: SINAPI | E173: 94438 | F173: (COMPOSIÇÃO REPRESENTATIVA) DO SERVIÇO DE CONTRAPISO EM ARGAMASSA TRAÇO 1:4 (CIM E AREIA), EM BETONEIRA 400 L, ESPESSURA 3 CM ÁREAS SECAS E 3 CM ÁREAS MOLHADAS, PARA EDIFICAÇÃO HABITACIONAL UNIFAMILIAR (CASA) E EDIFICAÇÃO PÚBLICA PADRÃO. AF_11/2014 | G173: M2 | H173: 245 | I173: =SUMIF('Composições (SINAPI)'!D:D,E173,'Composições (SINAPI)'!K:K) -> 25.54 | J173: 33.18 | K173: 8129.1 | M173: 32.62 | N173: 25.54 | O173: 0.217
B174: 4.1.30 | C174: SERVIÇO | D174: SINAPI | E174: 98680 | F174: PISO CIMENTADO, TRAÇO 1:3 (CIMENTO E AREIA), ACABAMENTO LISO, ESPESSURA 3,0 CM, PREPARO MECÂNICO DA ARGAMASSA. AF_06/2018 | G174: M2 | H174: 195 | I174: =SUMIF('Composições (SINAPI)'!D:D,E174,'Composições (SINAPI)'!K:K) -> 23.88 | J174: 31.02 | K174: 6048.9 | M174: 30.5 | N174: 23.88 | O174: 0.217
B175: 4.1.31 | C175: SERVIÇO | D175: ORSE | E175: 7691 | F175: CONCRETO SIMPLES FABRICADO NA OBRA, FCK=21 MPA, LANÇADO E ADENSADO | G175: M3 | H175: 56 | I175: =SUMIF('Composições (ORSE)'!D:D,E175,'Composições (ORSE)'!K:K) -> 304.66 | J175: 395.75 | K175: 22162 | M175: 389.14 | N175: 304.69 | O175: 0.2171
B176: 4.1.32 | C176: SERVIÇO | D176: SINAPI | E176: 92762 | F176: ARMAÇÃO DE PILAR OU VIGA DE UMA ESTRUTURA CONVENCIONAL DE CONCRETO ARMADO EM UM EDIFÍCIO DE MÚLTIPLOS PAVIMENTOS UTILIZANDO AÇO CA-50 DE 10,0 MM - MONTAGEM. AF_12/2015 | G176: KG | H176: 4840 | I176: =SUMIF('Composições (SINAPI)'!D:D,E176,'Composições (SINAPI)'!K:K) -> 4.79 | J176: 6.22 | K176: 30104.8 | M176: 6.13 | N176: 4.79 | O176: 0.2186
B177: 4.1.33 | C177: SERVIÇO | D177: SINAPI | E177: 92919 | F177: ARMAÇÃO DE ESTRUTURAS DE CONCRETO ARMADO, EXCETO VIGAS, PILARES, LAJES E FUNDAÇÕES, UTILIZANDO AÇO CA-50 DE 10,0 MM - MONTAGEM. AF_12/2015 | G177: KG | H177: 1100 | I177: =SUMIF('Composições (SINAPI)'!D:D,E177,'Composições (SINAPI)'!K:K) -> 5.12 | J177: =ROUND(IF(C177 = "SERVIÇO", I177 * (1 + $I$11), IF(C177 = "INSUMO", (I177 * (1 + $K$11)))),2) -> 6.65 | K177: 7315 | M177: 6.55 | N177: 5.12 | O177: =IF(I177=0," ",ROUND(1-(I177/M177),4)) -> 0.2183
B178: 4.1.34 | C178: SERVIÇO | D178: SINAPI | E178: 94559 | F178: JANELA DE AÇO BASCULANTE, FIXAÇÃO COM ARGAMASSA, SEM VIDROS, PADRONIZADA. AF_07/2016 | G178: M2 | H178: 20 | I178: =SUMIF('Composições (SINAPI)'!D:D,E178,'Composições (SINAPI)'!K:K) -> 352.08 | J178: 457.35 | K178: 9147 | M178: 450.13 | N178: 352.45 | O178: 0.2178
B179: 4.1.35 | C179: SERVIÇO | D179: SINAPI | E179: 72117 | F179: VIDRO LISO COMUM TRANSPARENTE, ESPESSURA 4MM | G179: M2 | H179: 20 | I179: =SUMIF('Composições (SINAPI)'!D:D,E179,'Composições (SINAPI)'!K:K) -> 76.71 | J179: 99.65 | K179: 1993 | M179: 97.97 | N179: 76.71 | O179: 0.217
B180: 4.1.36 | C180: SERVIÇO | D180: SINAPI | E180: 94990 | F180: EXECUÇÃO DE PASSEIO (CALÇADA) OU PISO DE CONCRETO COM CONCRETO MOLDADO IN LOCO, FEITO EM OBRA, ACABAMENTO CONVENCIONAL, NÃO ARMADO. AF_07/2016 | G180: M3 | H180: 19 | I180: =SUMIF('Composições (SINAPI)'!D:D,E180,'Composições (SINAPI)'!K:K) -> 400.96 | J180: 520.85 | K180: 9896.15 | M180: 512.28 | N180: 401.11 | O180: 0.2173
B181: 4.1.37 | C181: SERVIÇO | D181: SINAPI | E181: 95465 | F181: COBOGO CERAMICO (ELEMENTO VAZADO), 9X20X20CM, ASSENTADO COM ARGAMASSA TRACO 1:4 DE CIMENTO E AREIA | G181: M2 | H181: 36 | I181: =SUMIF('Composições (SINAPI)'!D:D,E181,'Composições (SINAPI)'!K:K) -> 86.98 | J181: 112.99 | K181: 4067.64 | M181: 111.2 | N181: 87.06 | O181: 0.2178
B182: 4.1.38 | C182: SERVIÇO | D182: ORSE | E182: 8970 | F182: TELA DE NYLON TIPO MOSQUITEIRO COM MOLDURA EM ALUMINIO ANODIZADO NATURAL | G182: M2 | H182: 36 | I182: =SUMIF('Composições (ORSE)'!D:D,E182,'Composições (ORSE)'!K:K) -> 39.45 | J182: 51.25 | K182: 1845 | M182: 50.39 | N182: 39.45 | O182: 0.2171
B183: 4.1.39 | C183: SERVIÇO | D183: SINAPI | E183: 73933/1 | F183: PORTA DE FERRO, DE ABRIR, TIPO GRADE COM CHAPA, 87X210CM, COM GUARNICOES | G183: M2 | H183: 20.08 | I183: =SUMIF('Composições (SINAPI)'!D:D,E183,'Composições (SINAPI)'!K:K) -> 453.09 | J183: 588.56 | K183: 11818.28 | M183: 578.76 | N183: 453.16 | O183: 0.2171
B184: 4.1.40 | C184: SERVIÇO | D184: SINAPI | E184: 91341 | F184: PORTA EM ALUMÍNIO DE ABRIR TIPO VENEZIANA COM GUARNIÇÃO, FIXAÇÃO COM PARAFUSOS - FORNECIMENTO E INSTALAÇÃO. AF_08/2015 | G184: M2 | H184: 10.98 | I184: =SUMIF('Composições (SINAPI)'!D:D,E184,'Composições (SINAPI)'!K:K) -> 509.82 | J184: 662.26 | K184: 7271.61 | M184: 651.15 | N184: 509.85 | O184: 0.217
B185: 4.1.41 | C185: SERVIÇO | D185: SINAPI | E185: 90830 | F185: FECHADURA DE EMBUTIR COM CILINDRO, EXTERNA, COMPLETA, ACABAMENTO PADRÃO MÉDIO, INCLUSO EXECUÇÃO DE FURO - FORNECIMENTO E INSTALAÇÃO. AF_08/2015 | G185: UN | H185: 18 | I185: =SUMIF('Composições (SINAPI)'!D:D,E185,'Composições (SINAPI)'!K:K) -> 64.61 | J185: 83.93 | K185: 1510.74 | M185: 82.52 | N185: 64.61 | O185: 0.217
B186: 4.1.42 | C186: SERVIÇO | D186: SINAPI | E186: 73932/1 | F186: GRADE DE FERRO EM BARRA CHATA 3/16" | G186: M2 | H186: 48.08 | I186: =SUMIF('Composições (SINAPI)'!D:D,E186,'Composições (SINAPI)'!K:K) -> 217.34 | J186: 282.32 | K186: 13573.95 | M186: 277.58 | N186: 217.34 | O186: 0.217
B187: 4.1.43 | C187: SERVIÇO | D187: SINAPI | E187: 73656 | F187: JATEAMENTO COM AREIA EM ESTRUTURA METALICA | G187: M2 | H187: 240 | I187: =SUMIF('Composições (SINAPI)'!D:D,E187,'Composições (SINAPI)'!K:K) -> 14.59 | J187: 18.95 | K187: 4548 | M187: 18.64 | N187: 14.59 | O187: 0.2173
B188: 4.1.44 | C188: SERVIÇO | D188: ORSE | E188: 4537 | F188: PINTURA DE PROTEÇÃO COM 01 DEMÃO DE PRIMER À BASE DE ÓXIDO DE FERRO - NORMA 1 349 | G188: M2 | H188: 460 | I188: =SUMIF('Composições (ORSE)'!D:D,E188,'Composições (ORSE)'!K:K) -> 19.39 | J188: 25.19 | K188: 11587.4 | M188: 24.78 | N188: 19.4 | O188: 0.2175
B189: 4.1.45 | C189: SERVIÇO | D189: SINAPI | E189: 73794/1 | F189: PINTURA COM TINTA PROTETORA ACABAMENTO GRAFITE ESMALTE SOBRE SUPERFICIE METALICA, 2 DEMAOS | G189: M2 | H189: 100 | I189: =SUMIF('Composições (SINAPI)'!D:D,E189,'Composições (SINAPI)'!K:K) -> 23.19 | J189: 30.12 | K189: 3012 | M189: 29.66 | N189: 23.22 | O189: 0.2181
B190: 4.1.46 | C190: SERVIÇO | D190: ORSE | E190: 11512 | F190: PINTURA DE PROTEÇÃO COM APLICAÇÃO DE 01 DEMÃO DE TINTA EPOXI CURADA COM POLIA MIDA, DE ALTA ESPESSURA, BICOMPONENTE, MACROPOXY 646 FAST CURE EPOXY, DA SHER WIN WILLIAMS - SUMARÉ OU SIMILAR, SOBRE SUPERFÍCIES METÁLICAS | G190: M2 | H190: 540 | I190: =SUMIF('Composições (ORSE)'!D:D,E190,'Composições (ORSE)'!K:K) -> 26.39 | J190: 34.28 | K190: 18511.2 | M190: 33.72 | N190: 26.4 | O190: 0.2174
B191: 4.1.47 | C191: SERVIÇO | D191: SINAPI | E191: 88489 | F191: APLICAÇÃO MANUAL DE PINTURA COM TINTA LÁTEX ACRÍLICA EM PAREDES, DUAS DEMÃOS. AF_06/2014 | G191: M2 | H191: 1410 | I191: =SUMIF('Composições (SINAPI)'!D:D,E191,'Composições (SINAPI)'!K:K) -> 7.61 | J191: 9.89 | K191: 13944.9 | M191: 9.74 | N191: 7.62 | O191: 0.2187
B192: 4.1.48 | C192: SERVIÇO | D192: SINAPI | E192: 55960 | F192: IMUNIZACAO DE MADEIRAMENTO PARA COBERTURA UTILIZANDO CUPINICIDA INCOLOR | G192: M2 | H192: 218 | I192: =SUMIF('Composições (SINAPI)'!D:D,E192,'Composições (SINAPI)'!K:K) -> 3.95 | J192: 5.13 | K192: 1118.34 | M192: 5.05 | N192: 3.95 | O192: 0.2178
B193: 4.1.49 | C193: SERVIÇO | D193: SINAPI | E193: 94201 | F193: TELHAMENTO COM TELHA CERÂMICA CAPA-CANAL, TIPO COLONIAL, COM ATÉ 2 ÁGUAS, INCLUSO TRANSPORTE VERTICAL. AF_06/2016 | G193: M2 | H193: 218 | I193: =SUMIF('Composições (SINAPI)'!D:D,E193,'Composições (SINAPI)'!K:K) -> 33.36 | J193: 43.33 | K193: 9445.94 | M193: 42.62 | N193: 33.37 | O193: 0.2173
B194: 4.1.50 | C194: SERVIÇO | D194: SINAPI | E194: 92565 | F194: FABRICAÇÃO E INSTALAÇÃO DE ESTRUTURA PONTALETADA DE MADEIRA NÃO APARELHADA PARA TELHADOS COM ATÉ 2 ÁGUAS E PARA TELHA CERÂMICA OU DE CONCRETO, INCLUSO TRANSPORTE VERTICAL. AF_12/2015 | G194: M2 | H194: 218 | I194: =SUMIF('Composições (SINAPI)'!D:D,E194,'Composições (SINAPI)'!K:K) -> 21.08 | J194: 27.38 | K194: 5968.84 | M194: 26.93 | N194: 21.08 | O194: 0.2172
B195: 4.1.51 | C195: SERVIÇO | D195: ORSE | E195: 2055 | F195: TANQUE EM AÇO INOX, INCLUSO TORNEIRA CROMADA E SIFÃO PVC | G195: UN | H195: 12 | I195: =SUMIF('Composições (ORSE)'!D:D,E195,'Composições (ORSE)'!K:K) -> 339.47 | J195: 440.97 | K195: 5291.64 | M195: 433.69 | N195: 339.57 | O195: 0.2173
B196: 4.1.52 | C196: SERVIÇO | D196: SINAPI | E196: 89957 | F196: PONTO DE CONSUMO TERMINAL DE ÁGUA FRIA (SUBRAMAL) COM TUBULAÇÃO DE PVC, DN 25 MM, INSTALADO EM RAMAL DE ÁGUA, INCLUSOS RASGO E CHUMBAMENTO EM ALVENARIA. AF_12/2014 | G196: UN | H196: 60 | I196: =SUMIF('Composições (SINAPI)'!D:D,E196,'Composições (SINAPI)'!K:K) -> 73.01 | J196: 94.84 | K196: 5690.4 | M196: 93.25 | N196: 73.01 | O196: 0.2171
B197: 4.1.53 | C197: SERVIÇO | D197: ORSE | E197: 1683 | F197: PONTO DE ESGOTO COM TUBO DE PVC RÍGIDO SOLDÁVEL DE Ø 100 MM (VASO SANITÁRIO) | G197: PT | H197: 6 | I197: =SUMIF('Composições (ORSE)'!D:D,E197,'Composições (ORSE)'!K:K) -> 54.15 | J197: 70.34 | K197: 422.04 | M197: 69.16 | N197: 54.15 | O197: 0.217
B198: 4.1.54 | C198: SERVIÇO | D198: ORSE | E198: 8342 | F198: PONTO DE ESGOTO COM TUBO DE PVC RÍGIDO SOLDÁVEL DE Ø 75 MM | G198: UN | H198: 12 | I198: =SUMIF('Composições (ORSE)'!D:D,E198,'Composições (ORSE)'!K:K) -> 76.29 | J198: 99.1 | K198: 1189.2 | M198: 97.45 | N198: 76.3 | O198: 0.2171
B199: 4.1.55 | C199: SERVIÇO | D199: ORSE | E199: 1678 | F199: PONTO DE ESGOTO COM TUBO DE PVC RÍGIDO SOLDÁVEL DE Ø 50 MM (PIAS DE COZINHA, MÁQUINAS DE LAVAR, ETC...) | G199: UN | H199: 24 | I199: =SUMIF('Composições (ORSE)'!D:D,E199,'Composições (ORSE)'!K:K) -> 52.73 | J199: 68.5 | K199: 1644 | M199: 67.36 | N199: 52.74 | O199: 0.2172
B200: 4.1.56 | C200: SERVIÇO | D200: ORSE | E200: 1679 | F200: PONTO DE ESGOTO COM TUBO DE PVC RÍGIDO SOLDÁVEL DE Ø 40 MM (LAVATÓRIOS, MICT ÓRIOS, RALOS SIFONADOS, ETC...) | G200: UN | H200: 36 | I200: =SUMIF('Composições (ORSE)'!D:D,E200,'Composições (ORSE)'!K:K) -> 34.81 | J200: 45.22 | K200: 1627.92 | M200: 44.49 | N200: 34.83 | O200: 0.2176
B201: 4.1.57 | C201: SERVIÇO | D201: ORSE | E201: 6029 | F201: LOGOTIPO DA CODEVASF EM ESTRUTURAS TÉRREAS | G201: UN | H201: 10 | I201: =SUMIF('Composições (ORSE)'!D:D,E201,'Composições (ORSE)'!K:K) -> 528.35 | J201: 686.33 | K201: 6863.3 | M201: 675.27 | N201: 528.73 | O201: 0.2176
B202: 4.1.58 | C202: SERVIÇO | D202: ORSE | E202: 10992 | F202: REVESTIMENTO CERÂMICO PARA PISO OU PAREDE, 46 X 46 CM, PEI 4, INCENOR, BIANCO , REF.62230 OU SIMILAR, APLICADA C/ ARGAMASSA IND. AC-II, REJUNTE ACRÍLICO, E XCETO REGULARIZAÇÃO DE BASE/EMBOÇO | G202: M2 | H202: 122.5 | I202: =SUMIF('Composições (ORSE)'!D:D,E202,'Composições (ORSE)'!K:K) -> 28.82 | J202: 37.44 | K202: 4586.4 | M202: 36.85 | N202: 28.85 | O202: 0.2179
B203: 4.1.59 | C203: SERVIÇO | D203: ORSE | E203: 1912 | F203: REVESTIMENTO CERAMICO PARA PAREDE, 15 X 15 CM, AZULEJO BRANCO, TIPO "A", APLI CADO COM ARGAMASSA INDUSTRIALIZADA AC-I, REJUNTADO, EXCLUSIVE EMBOÇO | G203: M2 | H203: 260 | I203: =SUMIF('Composições (ORSE)'!D:D,E203,'Composições (ORSE)'!K:K) -> 23.09 | J203: 29.99 | K203: 7797.4 | M203: 29.51 | N203: 23.1 | O203: 0.2176
... 221 more rows

Sheet Planilha MATERIAIS
F2: ='Planilha SERVIÇOS'!$F$2 -> COMPANHIA DE DESENVOLVIMENTO DOS VALES DO SÃO FRANCISCO E DO PARNAÍBA 3ª Superintendência Regional | M2: Valor da Proposta | N2: =K410 -> 1512197.97
B4: ='Planilha SERVIÇOS'!$B$4 -> EXECUÇÃO DOS SERVIÇOS RELATIVOS À 2ª ETAPA DOS SISTEMAS DE ABASTECIMENTO DE ÁGUA DE ASSENTAMENTO ALEGRE; BOA PAZ; BOM JESUS; UMBURANAS; RIACHO DA MADEIRA E ILHA DA VILA, LOCALIZADOS NO MUNICÍPIO DE OROCÓ, NO ESTADO DE PERNAMBUCO
B6: ='Planilha SERVIÇOS'!$B$6 -> OROCÓ/PE
B7: PLANILHA ORÇAMENTÁRIA DE MATERIAIS
M8: PREÇO BÁSICO | O8: 1931596.05
B9: ='Planilha SERVIÇOS'!$B$9 -> TABELAS DE REFERÊNCIA (COM DESONERAÇÃO): | H9: CODEVASF | I9: ='Planilha SERVIÇOS'!I9 -> FEV/2018 | J9: ORSE | K9: ='Planilha SERVIÇOS'!K9 -> ABR/2018 | M9: DESCONTO | O9: =O8-K410 -> 419398.08
H10: SEINFRA: | I10: ='Planilha SERVIÇOS'!I10 -> 024.1 | J10: SINAPI: | K10: ='Planilha SERVIÇOS'!K10 -> MAI/2018 | M10: PERCENTUAL TOTAL | O10: =1-((O8-O9)/O8) -> 0.2171
G11: BDI: | H11: SERVIÇOS: | I11: ='BDI''s'!G33 -> 0.299 | J11: MATERIAIS: | K11: ='BDI''s'!G70 -> 0.1689
B12: ITEM | C12: TIPO | D12: FONTE | E12: CÓDIGO | F12: DISCRIMINAÇÃO DOS MATERIAIS | G12: UNID. | H12: QUANT. | I12: PREÇO (R$) | M12: Preço Basico | N12: Preço Desconto | O12: Desconto
I13: SEM BDI | J13: COM BDI | K13: TOTAL
B14: 1 | C14: CAPTAÇÃO | K14: =K15+K83+K120 -> 320564.86
B15: 1.1 | C15: PEÇAS E CONEXÕES PARA FLUTUANTE E MANGOTES | K15: =SUM(K16:K82) -> 167128.3
B16: 1.1.1 | C16: INSUMO | D16: SEINFRA | E16: I7333 | F16: FLUTUADOR PARA TUBO PEAD EM FIBRA DN 250 mm | G16: UN | H16: 9 | I16: =SUMIF('Composições (SEINFRA)'!D:D,E16,'Composições (SEINFRA)'!K:K) -> 712.91 | J16: =ROUND(IF(C16 = "SERVIÇO", I16 * (1 + $I$11), IF(C16 = "INSUMO", (I16 * (1 + $K$11)))),2) -> 833.32 | K16: =ROUND(J16*H16,2) -> 7499.88 | M16: 910.49 | N16: 712.91 | O16: =IF(I16=0," ",ROUND(1-(I16/M16),4)) -> 0.217
B17: 1.1.2 | C17: INSUMO | D17: SEINFRA | E17: I7470 | F17: FLUTUANTE EM PRFV COM CAP. ATÉ 1.000Kg | G17: UN | H17: 4 | I17: =SUMIF('Composições (SEINFRA)'!D:D,E17,'Composições (SEINFRA)'!K:K) -> 5173.63 | J17: =ROUND(IF(C17 = "SERVIÇO", I17 * (1 + $I$11), IF(C17 = "INSUMO", (I17 * (1 + $K$11)))),2) -> 6047.46 | K17: =ROUND(J17*H17,2) -> 24189.84 | M17: 6607.45 | N17: 5173.63 | O17: 0.217
B18: 1.1.3 | C18: INSUMO | D18: SEINFRA | E18: I4884 | F18: CRIVO COM FLANGE DN 200 PN10 | G18: UN | H18: 8 | I18: =SUMIF('Composições (SEINFRA)'!D:D,E18,'Composições (SEINFRA)'!K:K) -> 400.15 | J18: 467.74 | K18: 3741.92 | M18: 511.06 | N18: 400.15 | O18: 0.217
B19: 1.1.4 | C19: INSUMO | D19: SEINFRA | E19: I5639 | F19: VALVULA DE PE C/CRIVO PORT. DUPLA FLANGE DN 100 PN16 | G19: UN | H19: 1 | I19: =SUMIF('Composições (SEINFRA)'!D:D,E19,'Composições (SEINFRA)'!K:K) -> 672.76 | J19: 786.39 | K19: 786.39 | M19: 859.22 | N19: 672.76 | O19: 0.217
B20: 1.1.5 | C20: INSUMO | D20: SEINFRA | E20: I6850 | F20: COLARINHO PEAD PN 10 DN 110 mm | G20: UN | H20: 2 | I20: =SUMIF('Composições (SEINFRA)'!D:D,E20,'Composições (SEINFRA)'!K:K) -> 111.52 | J20: 130.36 | K20: 260.72 | M20: 142.43 | N20: 111.52 | O20: 0.217
B21: 1.1.6 | C21: INSUMO | D21: SINAPI | E21: 738 | F21: BOMBA CENTRIFUGA MOTOR ELETRICO TRIFASICO 5HP, DIAMETRO DE SUCCAO X ELEVACAO 2" X 1 1/2", DIAMETRO DO ROTOR 155 MM, HM/Q: 40 M / 20,40 M3/H A 46 M / 9,20 M3/H | G21: UN | H21: 4 | I21: =SUMIF('Composições (SINAPI)'!D:D,E21,'Composições (SINAPI)'!K:K) -> 1687.26 | J21: 1972.24 | K21: 7888.96 | M21: 2154.87 | N21: 1687.26 | O21: 0.217
B22: 1.1.7 | C22: INSUMO | D22: SEINFRA | E22: I0256 | F22: BOMBA CENTRIFUGA P=5CV | G22: UN | H22: 2 | I22: =SUMIF('Composições (SEINFRA)'!D:D,E22,'Composições (SEINFRA)'!K:K) -> 1269.67 | J22: 1484.12 | K22: 2968.24 | M22: 1621.55 | N22: 1269.67 | O22: 0.217
B23: 1.1.8 | C23: INSUMO | D23: SINAPI | E23: 740 | F23: BOMBA CENTRIFUGA MOTOR ELETRICO TRIFASICO 9,86 DIAMETRO DE SUCCAO X ELEVACAO 1" X 1", 4 ESTAGIOS, DIAMETRO DOS ROTORES 4 X 146 MM, HM/Q: 85 M / 14,9 M3/H A 140 M / 4,2 M3/H | G23: UN | H23: 2 | I23: =SUMIF('Composições (SINAPI)'!D:D,E23,'Composições (SINAPI)'!K:K) -> 3423.11 | J23: 4001.27 | K23: 8002.54 | M23: 4371.79 | N23: 3423.11 | O23: 0.217
B24: 1.1.9 | C24: INSUMO | D24: SINAPI | E24: 736 | F24: BOMBA CENTRIFUGA MOTOR ELETRICO TRIFASICO 2,96HP, DIAMETRO DE SUCCAO X ELEVACAO 1 1/2" X 1 1/4", DIAMETRO DO ROTOR 148 MM, HM/Q: 34 M / 14,80 M3/H A 40 M / 8,60 M3/H | G24: UN | H24: 2 | I24: =SUMIF('Composições (SINAPI)'!D:D,E24,'Composições (SINAPI)'!K:K) -> 970.58 | J24: 1134.51 | K24: 2269.02 | M24: 1239.57 | N24: 970.58 | O24: 0.217
B25: 1.1.10 | C25: INSUMO | D25: ORSE | E25: 5460 | F25: FLANGE AVULSO, EM FOFO, PN 25, D= 100MM | G25: UN | H25: 4 | I25: =SUMIF('Composições (ORSE)'!D:D,E25,'Composições (ORSE)'!K:K) -> 72.82 | J25: 85.12 | K25: 340.48 | M25: 93.01 | N25: 72.82 | O25: 0.2171
B26: 1.1.11 | C26: INSUMO | D26: ORSE | E26: 5461 | F26: FLANGE AVULSO, EM FOFO, PN 25, D= 150MM | G26: UN | H26: 24 | I26: =SUMIF('Composições (ORSE)'!D:D,E26,'Composições (ORSE)'!K:K) -> 129.46 | J26: 151.33 | K26: =ROUND(J26*H26,2) -> 3631.92 | M26: 165.35 | N26: 129.46 | O26: 0.2171
B27: 1.1.12 | C27: INSUMO | D27: ORSE | E27: 5454 | F27: FLANGE AVULSO, EM FOFO, PN 10, D= 200MM | G27: UN | H27: 16 | I27: =SUMIF('Composições (ORSE)'!D:D,E27,'Composições (ORSE)'!K:K) -> 147.12 | J27: 171.97 | K27: 2751.52 | M27: 187.9 | N27: 147.12 | O27: 0.217
B28: 1.1.13 | C28: INSUMO | D28: ORSE | E28: 1098 | F28: HASTE ZINCADA D = 125MM (AQUAPLUV OU SIMILAR) | G28: UN | H28: 30 | I28: =SUMIF('Composições (ORSE)'!D:D,E28,'Composições (ORSE)'!K:K) -> 7.61 | J28: 8.9 | K28: 267 | M28: 9.72 | N28: 7.61 | O28: 0.2171
B29: 1.1.14 | C29: INSUMO | D29: Comprasnet | E29: 5388 | F29: CURVA 90º, EM FOFO, C/ FLANGES PN 10, D= 200MM | G29: UN | H29: 8 | I29: =SUMIF('Composições (CODEVASF)'!D:D,E29,'Composições (CODEVASF)'!K:K) -> 265.55 | J29: 310.4 | K29: 2483.2 | M29: 339.15 | N29: 265.55 | O29: 0.217
B30: 1.1.15 | C30: INSUMO | D30: ORSE | E30: 5387 | F30: CURVA 90º, EM FOFO, C/ FLANGES PN 10 / 16, D= 150MM | G30: UN | H30: 16 | I30: =SUMIF('Composições (ORSE)'!D:D,E30,'Composições (ORSE)'!K:K) -> 199.71 | J30: 233.44 | K30: 3735.04 | M30: 255.06 | N30: 199.71 | O30: 0.217
B31: 1.1.16 | C31: INSUMO | D31: ORSE | E31: 5346 | F31: CURVA 45º, EM FOFO, C/ FLANGES PN 10 / 16, D= 150MM | G31: UN | H31: 16 | I31: =SUMIF('Composições (ORSE)'!D:D,E31,'Composições (ORSE)'!K:K) -> 193.59 | J31: 226.29 | K31: 3620.64 | M31: 247.25 | N31: 193.59 | O31: 0.217
B32: 1.1.17 | C32: INSUMO | D32: ORSE | E32: 5559 | F32: REDUÇÃO EM FOFO, C/ FLANGES PN 10 / 16, D= 150 X 80MM | G32: UN | H32: 8 | I32: =SUMIF('Composições (ORSE)'!D:D,E32,'Composições (ORSE)'!K:K) -> 187.63 | J32: 219.32 | K32: 1754.56 | M32: 239.64 | N32: 187.63 | O32: 0.217
B33: 1.1.18 | C33: INSUMO | D33: ORSE | E33: 5586 | F33: REDUÇÃO EXCENTRICA EM FOFO, C/ FLANGES PN 10, D= 200 X 100MM | G33: UN | H33: 8 | I33: =SUMIF('Composições (ORSE)'!D:D,E33,'Composições (ORSE)'!K:K) -> 312.48 | J33: 365.26 | K33: 2922.08 | M33: 399.09 | N33: 312.48 | O33: 0.217
B34: 1.1.19 | C34: INSUMO | D34: ORSE | E34: 5583 | F34: REDUÇÃO EXCENTRICA EM FOFO, C/ FLANGES PN 10 / 16, D= 100 X 80MM | G34: UN | H34: 8 | I34: =SUMIF('Composições (ORSE)'!D:D,E34,'Composições (ORSE)'!K:K) -> 122.69 | J34: 143.41 | K34: 1147.28 | M34: 156.7 | N34: 122.69 | O34: 0.217
B35: 1.1.20 | C35: INSUMO | D35: SEINFRA | E35: I6774 | F35: REDUÇÃO AÇO ASTM A-120 ROSCÁVEL DE (4"x 2") | G35: UN | H35: 2 | I35: =SUMIF('Composições (SEINFRA)'!D:D,E35,'Composições (SEINFRA)'!K:K) -> 22.99 | J35: 26.87 | K35: 53.74 | M35: 29.37 | N35: 22.99 | O35: 0.2172
B36: 1.1.21 | C36: INSUMO | D36: SEINFRA | E36: I6773 | F36: REDUÇÃO AÇO ASTM A-120 ROSCÁVEL DE (4"x 3") | G36: UN | H36: 2 | I36: =SUMIF('Composições (SEINFRA)'!D:D,E36,'Composições (SEINFRA)'!K:K) -> 20.22 | J36: 23.64 | K36: 47.28 | M36: 25.83 | N36: 20.22 | O36: 0.2172
B37: 1.1.22 | C37: INSUMO | D37: Comprasnet | E37: 5647 | F37: REGISTRO GAVETA FOFO, C/ FLANGES, CUNHA BORRACHA, CORPO CURTO E CABEÇOTE, PN 10, TIPO EURO 23, D= 200MM | G37: UN | H37: 8 | I37: =SUMIF('Composições (CODEVASF)'!D:D,E37,'Composições (CODEVASF)'!K:K) -> 702.35 | J37: 820.98 | K37: 6567.84 | M37: 897 | N37: 702.35 | O37: 0.217
B38: 1.1.23 | C38: INSUMO | D38: ORSE | E38: 6343 | F38: REGISTRO GAVETA FOFO, C/ FLANGES, CUNHA BORRACHA, CORPO CURTO E CABEÇOTE, TIP O EURO 23, PN16, DIAM = 150MM | G38: UN | H38: 12 | I38: =SUMIF('Composições (ORSE)'!D:D,E38,'Composições (ORSE)'!K:K) -> 461.35 | J38: 539.27 | K38: 6471.24 | M38: 589.22 | N38: 461.35 | O38: 0.217
B39: 1.1.24 | C39: INSUMO | D39: SINAPI | E39: 6027 | F39: REGISTRO GAVETA BRUTO EM LATAO FORJADO, BITOLA 4 " (REF 1509) | G39: UN | H39: 2 | I39: =SUMIF('Composições (SINAPI)'!D:D,E39,'Composições (SINAPI)'!K:K) -> 373.68 | J39: 436.79 | K39: 873.58 | M39: 477.25 | N39: 373.68 | O39: 0.217
B40: 1.1.25 | C40: INSUMO | D40: SINAPI | E40: 6012 | F40: REGISTRO GAVETA BRUTO EM LATAO FORJADO, BITOLA 3 " (REF 1509) | G40: UN | H40: 3 | I40: =SUMIF('Composições (SINAPI)'!D:D,E40,'Composições (SINAPI)'!K:K) -> 179.33 | J40: 209.62 | K40: 628.86 | M40: 229.04 | N40: 179.33 | O40: 0.217
B41: 1.1.26 | C41: INSUMO | D41: SINAPI | E41: 6019 | F41: REGISTRO GAVETA BRUTO EM LATAO FORJADO, BITOLA 1 " (REF 1509) | G41: UN | H41: 1 | I41: =SUMIF('Composições (SINAPI)'!D:D,E41,'Composições (SINAPI)'!K:K) -> 29.8 | J41: 34.83 | K41: 34.83 | M41: 38.06 | N41: 29.8 | O41: 0.217
B42: 1.1.27 | C42: INSUMO | D42: SEINFRA | E42: I7471 | F42: VOLANTE EM FERRO DÚCTIL COM CUNHA METÁLICA 18 | G42: UN | H42: 8 | I42: =SUMIF('Composições (SEINFRA)'!D:D,E42,'Composições (SEINFRA)'!K:K) -> 161.86 | J42: 189.2 | K42: 1513.6 | M42: 206.73 | N42: 161.86 | O42: 0.217
B43: 1.1.28 | C43: INSUMO | D43: Comprasnet | E43: 5524 | F43: JUNTA GIBAULT EM FOFO, D= 150MM | G43: UN | H43: 4 | I43: =SUMIF('Composições (CODEVASF)'!D:D,E43,'Composições (CODEVASF)'!K:K) -> 151.31 | J43: 176.87 | K43: 707.48 | M43: 193.25 | N43: 151.31 | O43: 0.217
B44: 1.1.29 | C44: INSUMO | D44: ORSE | E44: 5762 | F44: TOCO EM FOFO C/ FLANGES PN 10 / 16, COMP. = 0,25M, D= 150MM | G44: UN | H44: 20 | I44: =SUMIF('Composições (ORSE)'!D:D,E44,'Composições (ORSE)'!K:K) -> 198.36 | J44: 231.86 | K44: 4637.2 | M44: 253.34 | N44: 198.36 | O44: 0.217
B45: 1.1.30 | C45: INSUMO | D45: ORSE | E45: 5764 | F45: TOCO EM FOFO C/ FLANGES PN 10 / 16, COMP. = 0,50M, D= 150MM | G45: UN | H45: 4 | I45: =SUMIF('Composições (ORSE)'!D:D,E45,'Composições (ORSE)'!K:K) -> 257.29 | J45: 300.75 | K45: 1203 | M45: 328.6 | N45: 257.29 | O45: 0.217
B46: 1.1.31 | C46: INSUMO | D46: ORSE | E46: 5765 | F46: TOCO EM FOFO C/ FLANGES PN 10, COMP. = 0,25M, D= 200MM | G46: UN | H46: 8 | I46: =SUMIF('Composições (ORSE)'!D:D,E46,'Composições (ORSE)'!K:K) -> 266.91 | J46: 311.99 | K46: 2495.92 | M46: 340.89 | N46: 266.91 | O46: 0.217
B47: 1.1.32 | C47: INSUMO | D47: ORSE | E47: 5768 | F47: TOCO EM FOFO C/ FLANGES PN 10, COMP. = 0,50M, D= 200MM | G47: UN | H47: 8 | I47: =SUMIF('Composições (ORSE)'!D:D,E47,'Composições (ORSE)'!K:K) -> 323.8 | J47: 378.49 | K47: 3027.92 | M47: 413.55 | N47: 323.8 | O47: 0.217
B48: 1.1.33 | C48: INSUMO | D48: ORSE | E48: 5875 | F48: TUBO EM FOFO, PONTA E FLANGE PN 10 / 16, D= 150MM, L=1,00M | G48: UN | H48: 8 | I48: =SUMIF('Composições (ORSE)'!D:D,E48,'Composições (ORSE)'!K:K) -> 411.96 | J48: 481.54 | K48: 3852.32 | M48: 526.14 | N48: 411.96 | O48: =IF(I48=0," ",ROUND(1-(I48/M48),4)) -> 0.217
B49: 1.1.34 | C49: INSUMO | D49: ORSE | E49: 12349 | F49: TUBO EM FERRO FUNDIDO, C/ FLANGES PN 10, DIAM. = 200MM, L=1,20M | G49: UN | H49: 8 | I49: =SUMIF('Composições (ORSE)'!D:D,E49,'Composições (ORSE)'!K:K) -> 676.48 | J49: 790.74 | K49: 6325.92 | M49: 863.97 | N49: 676.48 | O49: 0.217
B50: 1.1.35 | C50: INSUMO | D50: ORSE | E50: 5861 | F50: TUBO EM FOFO, JE, PONTA / BOLSA, CLASSE K 7, D= 150MM | G50: M | H50: 12 | I50: =SUMIF('Composições (ORSE)'!D:D,E50,'Composições (ORSE)'!K:K) -> 163.21 | J50: 190.78 | K50: 2289.36 | M50: 208.45 | N50: 163.21 | O50: 0.217
B51: 1.1.36 | C51: INSUMO | D51: SEINFRA | E51: I5750 | F51: VALVULA RETENÇÃO DN 150 PN16 FECH. RÁPIDO (CLASAR) | G51: UN | H51: 4 | I51: =SUMIF('Composições (SEINFRA)'!D:D,E51,'Composições (SEINFRA)'!K:K) -> 747.33 | J51: 873.55 | K51: 3494.2 | M51: 954.45 | N51: 747.33 | O51: 0.217
B52: 1.1.37 | C52: INSUMO | D52: SEINFRA | E52: I5751 | F52: VALVULA RETENÇÃO DN 200 PN16 FECH. RÁPIDO (CLASAR) | G52: UN | H52: 8 | I52: =SUMIF('Composições (SEINFRA)'!D:D,E52,'Composições (SEINFRA)'!K:K) -> 1079.48 | J52: 1261.8 | K52: 10094.4 | M52: 1378.65 | N52: 1079.48 | O52: 0.217
B53: 1.1.38 | C53: INSUMO | D53: ORSE | E53: 5725 | F53: TÊ EM FOFO C/ FLANGES PN 10 / 16, D= 150 X 150MM | G53: UN | H53: 4 | I53: =SUMIF('Composições (ORSE)'!D:D,E53,'Composições (ORSE)'!K:K) -> 269.15 | J53: 314.61 | K53: 1258.44 | M53: 343.75 | N53: 269.15 | O53: 0.217
B54: 1.1.39 | C54: INSUMO | D54: ORSE | E54: 6428 | F54: VENTOSA SIMPLES COM ROSCA DIAM 1" | G54: UN | H54: 9 | I54: =SUMIF('Composições (ORSE)'!D:D,E54,'Composições (ORSE)'!K:K) -> 234.57 | J54: 274.19 | K54: 2467.71 | M54: 299.58 | N54: 234.57 | O54: 0.217
B55: 1.1.40 | C55: INSUMO | D55: SEINFRA | E55: I2929 | F55: COLAR DE TOMADA FoFo P/TUBOS PVC / DEFoFo DN 150 x 1" | G55: UN | H55: 8 | I55: =SUMIF('Composições (SEINFRA)'!D:D,E55,'Composições (SEINFRA)'!K:K) -> 37.81 | J55: 44.2 | K55: 353.6 | M55: 48.29 | N55: 37.81 | O55: 0.217
B56: 1.1.41 | C56: INSUMO | D56: SEINFRA | E56: I1954 | F56: TE AÇO GALVANIZADO DE 4' | G56: UN | H56: 1 | I56: =SUMIF('Composições (SEINFRA)'!D:D,E56,'Composições (SEINFRA)'!K:K) -> 101.55 | J56: 118.7 | K56: 118.7 | M56: 129.7 | N56: 101.55 | O56: 0.217
B57: 1.1.42 | C57: INSUMO | D57: SEINFRA | E57: I2916 | F57: COLAR DE TOMADA FoFo P/ TUBOS DE PVC DN 75 x 1" | G57: UN | H57: 3 | I57: =SUMIF('Composições (SEINFRA)'!D:D,E57,'Composições (SEINFRA)'!K:K) -> 23.89 | J57: 27.93 | K57: 83.79 | M57: 30.52 | N57: 23.89 | O57: 0.2172
B58: 1.1.43 | C58: INSUMO | D58: SEINFRA | E58: I2163 | F58: TUBO AÇO GALVANIZADO DE 100MM (4') | G58: M | H58: 36 | I58: =SUMIF('Composições (SEINFRA)'!D:D,E58,'Composições (SEINFRA)'!K:K) -> 60.6 | J58: 70.84 | K58: 2550.24 | M58: 77.4 | N58: 60.6 | O58: 0.2171
B59: 1.1.44 | C59: INSUMO | D59: SEINFRA | E59: I2173 | F59: TUBO AÇO GALVANIZADO DE 80MM (3') | G59: M | H59: 6 | I59: =SUMIF('Composições (SEINFRA)'!D:D,E59,'Composições (SEINFRA)'!K:K) -> 37.47 | J59: 43.8 | K59: 262.8 | M59: 47.86 | N59: 37.47 | O59: 0.2171
B60: 1.1.45 | C60: INSUMO | D60: SEINFRA | E60: I1951 | F60: TE AÇO GALVANIZADO DE 3' | G60: UN | H60: 1 | I60: =SUMIF('Composições (SEINFRA)'!D:D,E60,'Composições (SEINFRA)'!K:K) -> 51.95 | J60: 60.72 | K60: 60.72 | M60: 66.35 | N60: 51.95 | O60: 0.217
B61: 1.1.46 | C61: INSUMO | D61: SINAPI | E61: 1780 | F61: CURVA 45 GRAUS DE FERRO GALVANIZADO, COM ROSCA BSP FEMEA, DE 4" | G61: UN | H61: 2 | I61: =SUMIF('Composições (SINAPI)'!D:D,E61,'Composições (SINAPI)'!K:K) -> 259.68 | J61: 303.54 | K61: 607.08 | M61: 331.65 | N61: 259.68 | O61: 0.217
B62: 1.1.47 | C62: INSUMO | D62: SINAPI | E62: 1792 | F62: CURVA 90 GRAUS DE FERRO GALVANIZADO, COM ROSCA BSP FEMEA, DE 3" | G62: UN | H62: 4 | I62: =SUMIF('Composições (SINAPI)'!D:D,E62,'Composições (SINAPI)'!K:K) -> 133.97 | J62: 156.6 | K62: 626.4 | M62: 171.11 | N62: 133.97 | O62: 0.2171
B63: 1.1.48 | C63: INSUMO | D63: SINAPI | E63: 1793 | F63: CURVA 90 GRAUS DE FERRO GALVANIZADO, COM ROSCA BSP FEMEA, DE 4" | G63: UN | H63: 2 | I63: =SUMIF('Composições (SINAPI)'!D:D,E63,'Composições (SINAPI)'!K:K) -> 270.72 | J63: 316.44 | K63: 632.88 | M63: 345.75 | N63: 270.72 | O63: 0.217
B64: 1.1.49 | C64: INSUMO | D64: ORSE | E64: 5158 | F64: ADAPTADOR DE PVC JE, BOLSA E ROSCA, PBA, D= 100MM | G64: UN | H64: 8 | I64: =SUMIF('Composições (ORSE)'!D:D,E64,'Composições (ORSE)'!K:K) -> 56.39 | J64: 65.91 | K64: 527.28 | M64: 72.03 | N64: 56.39 | O64: 0.2171
B65: 1.1.50 | C65: INSUMO | D65: ORSE | E65: 5157* | F65: ADAPTADOR DE PVC JE, BOLSA E ROSCA, PBA, D= 75MM | G65: UN | H65: 10 | I65: =SUMIF('Composições (ORSE)'!D:D,E65,'Composições (ORSE)'!K:K) -> 39.43 | J65: 46.09 | K65: 460.9 | M65: 50.37 | N65: 39.43 | O65: 0.2172
B66: 1.1.51 | C66: INSUMO | D66: SINAPI | E66: 9890 | F66: UNIAO DE FERRO GALVANIZADO, COM ROSCA BSP, COM ASSENTO PLANO, DE 3" | G66: UN | H66: 2 | I66: =SUMIF('Composições (SINAPI)'!D:D,E66,'Composições (SINAPI)'!K:K) -> 112.97 | J66: 132.05 | K66: 264.1 | M66: 144.29 | N66: 112.97 | O66: 0.2171
B67: 1.1.52 | C67: INSUMO | D67: SINAPI | E67: 10406 | F67: VALVULA DE RETENCAO HORIZONTAL, DE BRONZE (PN-25), 3", 400 PSI, TAMPA DE PORCA DE UNIAO, EXTREMIDADES COM ROSCA | G67: UN | H67: 1 | I67: =SUMIF('Composições (SINAPI)'!D:D,E67,'Composições (SINAPI)'!K:K) -> 260.26 | J67: 304.22 | K67: 304.22 | M67: 332.39 | N67: 260.26 | O67: 0.217
B68: 1.1.53 | C68: INSUMO | D68: SINAPI | E68: 3148 | F68: FITA VEDA ROSCA EM ROLOS DE 18 MM X 50 M (L X C) | G68: UN | H68: 10 | I68: =SUMIF('Composições (SINAPI)'!D:D,E68,'Composições (SINAPI)'!K:K) -> 6.84 | J68: 8 | K68: 80 | M68: 8.74 | N68: 6.84 | O68: 0.2174
B69: 1.1.54 | C69: INSUMO | D69: SINAPI | E69: 4182 | F69: NIPLE DE FERRO GALVANIZADO, COM ROSCA BSP, DE 3" | G69: UN | H69: 4 | I69: =SUMIF('Composições (SINAPI)'!D:D,E69,'Composições (SINAPI)'!K:K) -> 37.87 | J69: 44.27 | K69: 177.08 | M69: 48.37 | N69: 37.87 | O69: 0.2171
B70: 1.1.55 | C70: INSUMO | D70: SINAPI | E70: 4183 | F70: NIPLE DE FERRO GALVANIZADO, COM ROSCA BSP, DE 4" | G70: UN | H70: 2 | I70: =SUMIF('Composições (SINAPI)'!D:D,E70,'Composições (SINAPI)'!K:K) -> 60.97 | J70: 71.27 | K70: 142.54 | M70: 77.87 | N70: 60.97 | O70: 0.217
B71: 1.1.56 | C71: INSUMO | D71: Comprasnet | E71: 20055 | F71: REGISTRO DE ESFERA, PVC, COM VOLANTE, VS, ROSCAVEL, DN 1", COM CORPO DIVIDIDO | G71: UN | H71: 8 | I71: =SUMIF('Composições (CODEVASF)'!D:D,E71,'Composições (CODEVASF)'!K:K) -> 8.11 | J71: 9.48 | K71: 75.84 | M71: 10.36 | N71: 8.11 | O71: 0.2172
B72: 1.1.57 | C72: INSUMO | D72: Comprasnet | E72: 5524 | F72: JUNTA GIBAULT EM FOFO, D= 150MM | G72: UN | H72: 8 | I72: =SUMIF('Composições (CODEVASF)'!D:D,E72,'Composições (CODEVASF)'!K:K) -> 151.31 | J72: 176.87 | K72: =ROUND(J72*H72,2) -> 1414.96 | M72: 193.25 | N72: 151.31 | O72: 0.217
B73: 1.1.58 | C73: INSUMO | D73: ORSE | E73: 11429 | F73: CADEADO 60MM, PADO OU SIMILAR | G73: UN | H73: 8 | I73: =SUMIF('Composições (ORSE)'!D:D,E73,'Composições (ORSE)'!K:K) -> 42.64 | J73: 49.84 | K73: 398.72 | M73: 54.46 | N73: 42.64 | O73: 0.217
B74: 1.1.59 | C74: INSUMO | D74: SINAPI | E74: 5086 | F74: CORRENTE DE ELO CURTO COMUM, SOLDADA, GALVANIZADA, ESPESSURA DO ELO = 1/2" (12,5 MM) | G74: KG | H74: 32 | I74: =SUMIF('Composições (SINAPI)'!D:D,E74,'Composições (SINAPI)'!K:K) -> 16.52 | J74: 19.31 | K74: 617.92 | M74: 21.1 | N74: 16.52 | O74: 0.2171
B75: 1.1.60 | C75: INSUMO | D75: Comprasnet | E75: 5196 | F75: ARRUELA DE BORRACHA PARA JUNTA C/ FLANGE PN 10, D= 80MM | G75: UN | H75: 10 | I75: =SUMIF('Composições (CODEVASF)'!D:D,E75,'Composições (CODEVASF)'!K:K) -> 1.52 | J75: 1.78 | K75: 17.8 | M75: 1.95 | N75: 1.52 | O75: 0.2205
B76: 1.1.61 | C76: INSUMO | D76: Comprasnet | E76: 5197 | F76: ARRUELA DE BORRACHA PARA JUNTA C/ FLANGE PN 10, D= 100MM | G76: UN | H76: 10 | I76: =SUMIF('Composições (CODEVASF)'!D:D,E76,'Composições (CODEVASF)'!K:K) -> 1.55 | J76: 1.81 | K76: 18.1 | M76: 1.98 | N76: 1.55 | O76: 0.2172
B77: 1.1.62 | C77: INSUMO | D77: Comprasnet | E77: 5198 | F77: ARRUELA DE BORRACHA PARA JUNTA C/ FLANGE PN 10, D= 150MM | G77: UN | H77: 136 | I77: =SUMIF('Composições (CODEVASF)'!D:D,E77,'Composições (CODEVASF)'!K:K) -> 2.34 | J77: 2.74 | K77: 372.64 | M77: 3 | N77: 2.34 | O77: 0.22
B78: 1.1.63 | C78: INSUMO | D78: ORSE | E78: 5199 | F78: ARRUELA DE BORRACHA PARA JUNTA C/ FLANGE PN 10, D= 200MM | G78: UN | H78: 104 | I78: =SUMIF('Composições (ORSE)'!D:D,E78,'Composições (ORSE)'!K:K) -> 3.28 | J78: 3.83 | K78: 398.32 | M78: 4.2 | N78: 3.28 | O78: 0.219
B79: 1.1.64 | C79: INSUMO | D79: ORSE | E79: 5174 | F79: ANEL DE BORRACHA P/ TUBO OU CONEXÃO EM FOFO JE, D= 150MM | G79: UN | H79: 24 | I79: =SUMIF('Composições (ORSE)'!D:D,E79,'Composições (ORSE)'!K:K) -> 10.24 | J79: 11.97 | K79: 287.28 | M79: 13.09 | N79: 10.24 | O79: 0.2177
B80: 1.1.65 | C80: INSUMO | D80: ORSE | E80: 5175 | F80: ANEL DE BORRACHA P/ TUBO OU CONEXÃO EM FOFO JE, D= 200MM | G80: UN | H80: 24 | I80: =SUMIF('Composições (ORSE)'!D:D,E80,'Composições (ORSE)'!K:K) -> 12.86 | J80: 15.03 | K80: 360.72 | M80: 16.43 | N80: 12.86 | O80: 0.2173
B81: 1.1.66 | C81: INSUMO | D81: Comprasnet | E81: 5245 | F81: PARAFUSO E PORCA PARA JUNTA C/ FLANGE D X L = 20 X 90MM | G81: UN | H81: 2040 | I81: =SUMIF('Composições (CODEVASF)'!D:D,E81,'Composições (CODEVASF)'!K:K) -> 6.97 | J81: =ROUND(IF(C81 = "SERVIÇO", I81 * (1 + $I$11), IF(C81 = "INSUMO", (I81 * (1 + $K$11)))),2) -> 8.15 | K81: 16626 | M81: 8.91 | N81: 6.97 | O81: 0.2177
B82: 1.1.67 | C82: INSUMO | D82: ORSE | E82: 3529 | F82: DOBRADIÇA EM CHAPA DE AÇO CARBONO, ESP 1/8", FABRICADA ARTESANALMENTE, 4" X 2 " | G82: UN | H82: 30 | I82: =SUMIF('Composições (ORSE)'!D:D,E82,'Composições (ORSE)'!K:K) -> 27.99 | J82: =ROUND(IF(C82 = "SERVIÇO", I82 * (1 + $I$11), IF(C82 = "INSUMO", (I82 * (1 + $K$11)))),2) -> 32.72 | K82: 981.6 | M82: 35.75 | N82: 27.99 | O82: 0.2171
B83: 1.2 | C83: FORNECIMENTO DOS MATERIAIS PARA O SISTEMA ELÉTRICO DA CAPTAÇÃO | K83: =SUM(K84:K119) -> 102178.82
B84: 1.2.1 | C84: INSUMO | D84: ORSE | E84: 451 | F84: CAIXA DE PVC 4" X 2" , EMBUTIR, P/ELETRODUTO (PRETA) | G84: UN | H84: 22 | I84: =SUMIF('Composições (ORSE)'!D:D,E84,'Composições (ORSE)'!K:K) -> 0.98 | J84: =ROUND(IF(C84 = "SERVIÇO", I84 * (1 + $I$11), IF(C84 = "INSUMO", (I84 * (1 + $K$11)))),2) -> 1.15 | K84: 25.3 | M84: 1.26 | N84: 0.98 | O84: =IF(I84=0," ",ROUND(1-(I84/M84),4)) -> 0.2222
B85: 1.2.2 | C85: INSUMO | D85: ORSE | E85: 9723 | F85: TAMPA REFORÇADA EM FERRO FUNDIDO D=300MM, C/ESCOTILHA QUADRADA E ARTICULADA, P/CX.ATERRAMENTO, REF:TEL-536 OU SIMILAR (SPDA) | G85: UN | H85: 24 | I85: =SUMIF('Composições (ORSE)'!D:D,E85,'Composições (ORSE)'!K:K) -> 77.35 | J85: 90.41 | K85: 2169.84 | M85: 98.79 | N85: 77.35 | O85: 0.217
B86: 1.2.3 | C86: INSUMO | D86: ORSE | E86: 9722 | F86: CORPO DA CAIXA DE INSPEÇÃO EM PVC P/ATERRAMENTO D=300MM, REDONDA, H=300MM, RE F: TEL-552 OU SIMILAR (SPDA) | G86: UN | H86: 24 | I86: =SUMIF('Composições (ORSE)'!D:D,E86,'Composições (ORSE)'!K:K) -> 16.38 | J86: 19.15 | K86: 459.6 | M86: 20.93 | N86: 16.38 | O86: 0.2174
B87: 1.2.4 | C87: INSUMO | D87: ORSE | E87: 485 | F87: CAIXA DE PASSAGEM 30X30CM, EM CHAPA DE AÇO GALVANIZADO P/ELETRICA | G87: UN | H87: 38 | I87: =SUMIF('Composições (ORSE)'!D:D,E87,'Composições (ORSE)'!K:K) -> 28.18 | J87: 32.94 | K87: 1251.72 | M87: 36 | N87: 28.18 | O87: 0.2172
B88: 1.2.5 | C88: INSUMO | D88: SINAPI | E88: 12001 | F88: CAIXA OCTOGONAL DE FUNDO MOVEL, EM PVC, DE 4" X 4", PARA ELETRODUTO FLEXIVEL CORRUGADO | G88: UN | H88: 6 | I88: =SUMIF('Composições (SINAPI)'!D:D,E88,'Composições (SINAPI)'!K:K) -> 3.97 | J88: 4.64 | K88: 27.84 | M88: 5.08 | N88: 3.97 | O88: 0.2185
B89: 1.2.6 | C89: INSUMO | D89: SINAPI | E89: 39246 | F89: ELETRODUTODUTO PEAD FLEXIVEL PAREDE SIMPLES, CORRUGACAO HELICOIDAL, COR PRETA, SEM ROSCA, DE 1 1/2", PARA CABEAMENTO SUBTERRANEO (NBR 15715) | G89: M | H89: 303.34 | I89: =SUMIF('Composições (SINAPI)'!D:D,E89,'Composições (SINAPI)'!K:K) -> 2.09 | J89: 2.44 | K89: 740.15 | M89: 2.67 | N89: 2.09 | O89: 0.2172
B90: 1.2.7 | C90: INSUMO | D90: SINAPI | E90: 39247 | F90: ELETRODUTODUTO PEAD FLEXIVEL PAREDE SIMPLES, CORRUGACAO HELICOIDAL, COR PRETA, SEM ROSCA, DE 1 1/4", PARA CABEAMENTO SUBTERRANEO (NBR 15715) | G90: M | H90: 1.52 | I90: =SUMIF('Composições (SINAPI)'!D:D,E90,'Composições (SINAPI)'!K:K) -> 1.82 | J90: 2.13 | K90: 3.24 | M90: 2.33 | N90: 1.82 | O90: 0.2189
B91: 1.2.8 | C91: INSUMO | D91: SINAPI | E91: 39244 | F91: ELETRODUTO PVC FLEXIVEL CORRUGADO, REFORCADO, COR LARANJA, DE 25 MM, PARA LAJES E PISOS | G91: M | H91: 285.06 | I91: =SUMIF('Composições (SINAPI)'!D:D,E91,'Composições (SINAPI)'!K:K) -> 1.81 | J91: 2.12 | K91: 604.33 | M91: 2.32 | N91: 1.81 | O91: 0.2198
B92: 1.2.9 | C92: INSUMO | D92: SINAPI | E92: 2504 | F92: ELETRODUTO FLEXIVEL, EM ACO GALVANIZADO, REVESTIDO EXTERNAMENTE COM PVC PRETO, DIAMETRO EXTERNO DE 25 MM (3/4"), TIPO SEALTUBO | G92: M | H92: 12.84 | I92: =SUMIF('Composições (SINAPI)'!D:D,E92,'Composições (SINAPI)'!K:K) -> 9.6 | J92: 11.22 | K92: 144.06 | M92: 12.27 | N92: 9.6 | O92: 0.2176
B93: 1.2.10 | C93: INSUMO | D93: SINAPI | E93: 2502 | F93: ELETRODUTO FLEXIVEL, EM ACO GALVANIZADO, REVESTIDO EXTERNAMENTE COM PVC PRETO, DIAMETRO EXTERNO DE 40 MM (1 1/4"), TIPO SEALTUBO | G93: M | H93: 37.22 | I93: =SUMIF('Composições (SINAPI)'!D:D,E93,'Composições (SINAPI)'!K:K) -> 19.01 | J93: 22.22 | K93: 827.03 | M93: 24.28 | N93: 19.01 | O93: 0.2171
B94: 1.2.11 | C94: INSUMO | D94: Comprasnet | E94: 9422 | F94: LUMINÁRIA EXTERNA EM CORPO DE AÇO C/ PINTURA ELETROSTÁTICA, REFLETOR EM ALUMÍ NIO MARTELADO, DIFUSOR EM VIDRO TEMPERADO, INCLUISIVE POSTE DE 4M, REF. EX08- S1E40T4 DA LUMICENTER OU SIMILAR | G94: UN | H94: 16 | I94: =SUMIF('Composições (CODEVASF)'!D:D,E94,'Composições (CODEVASF)'!K:K) -> 398.46 | J94: 465.76 | K94: 7452.16 | M94: 508.9 | N94: 398.46 | O94: 0.217
B95: 1.2.12 | C95: INSUMO | D95: SEINFRA | E95: I7926 | F95: ARANDELA PARA FLUORESCENTE COMPACTA 18W EM ALUMÍNIO ANODIZADO E PINTADO POR PROCESSO ELETROSTÁTICO COM UM VISOR EM VIDRO FOSCO | G95: UN | H95: 8 | I95: =SUMIF('Composições (SEINFRA)'!D:D,E95,'Composições (SEINFRA)'!K:K) -> 107.8 | J95: 126.01 | K95: 1008.08 | M95: 137.68 | N95: 107.8 | O95: 0.217
B96: 1.2.13 | C96: INSUMO | D96: SEINFRA | E96: I1363 | F96: LUMINARIA FLUORESCENTE 2X20W COMPLETA COM LAMPADA | G96: UN | H96: 6 | I96: =SUMIF('Composições (SEINFRA)'!D:D,E96,'Composições (SEINFRA)'!K:K) -> 36.01 | J96: 42.09 | K96: 252.54 | M96: 46 | N96: 36.01 | O96: 0.2172
B97: 1.2.14 | C97: INSUMO | D97: ORSE | E97: 1094 | F97: HASTE COBREADA COPPERWELD P/ ATERRAMENTO 254 MICR D= 3/4" X 3,00 M C/CONECTOR | G97: UN | H97: 24 | I97: =SUMIF('Composições (ORSE)'!D:D,E97,'Composições (ORSE)'!K:K) -> 38.75 | J97: 45.29 | K97: 1086.96 | M97: 49.5 | N97: 38.75 | O97: 0.2172
B98: 1.2.15 | C98: INSUMO | D98: ORSE | E98: 1117 | F98: INTERRUPTOR EMBUTIR 01 SEÇÃO SIMPLES COM PLACA | G98: UN | H98: 4 | I98: =SUMIF('Composições (ORSE)'!D:D,E98,'Composições (ORSE)'!K:K) -> 2.66 | J98: 3.11 | K98: 12.44 | M98: 3.4 | N98: 2.66 | O98: 0.2176
B99: 1.2.16 | C99: INSUMO | D99: ORSE | E99: 9103 | F99: INTERRUPTOR 02 SEÇÕES SIMPLES, DE EMBUTIR, COM PLACA, CONJUGADO COM TOMADA 2P +T, ABNT, 10A | G99: UN | H99: 2 | I99: =SUMIF('Composições (ORSE)'!D:D,E99,'Composições (ORSE)'!K:K) -> 12.05 | J99: 14.09 | K99: 28.18 | M99: 15.4 | N99: 12.05 | O99: 0.2175
B100: 1.2.17 | C100: INSUMO | D100: SINAPI | E100: 39756 | F100: QUADRO DE DISTRIBUICAO COM BARRAMENTO TRIFASICO, DE SOBREPOR, EM CHAPA DE ACO GALVANIZADO, PARA 12 DISJUNTORES DIN, 100 A | G100: UN | H100: 6 | I100: =SUMIF('Composições (SINAPI)'!D:D,E100,'Composições (SINAPI)'!K:K) -> 195.59 | J100: 228.63 | K100: 1371.78 | M100: 249.8 | N100: 195.59 | O100: 0.217
B101: 1.2.18 | C101: INSUMO | D101: SEINFRA | E101: I5995 | F101: PAINEL ELETRICO C/2 SOFT START 7,5CV,380V/60Hz | G101: UN | H101: 4 | I101: =SUMIF('Composições (SEINFRA)'!D:D,E101,'Composições (SEINFRA)'!K:K) -> 10492.2 | J101: 12264.33 | K101: 49057.32 | M101: 13400 | N101: 10492.2 | O101: 0.217
B102: 1.2.19 | C102: INSUMO | D102: SEINFRA | E102: I5996 | F102: PAINEL ELETRICO C/2 SOFT START 10CV,380V,60Hz | G102: UN | H102: 2 | I102: =SUMIF('Composições (SEINFRA)'!D:D,E102,'Composições (SEINFRA)'!K:K) -> 10680.12 | J102: 12483.99 | K102: 24967.98 | M102: 13640 | N102: 10680.12 | O102: 0.217
B103: 1.2.21 | C103: INSUMO | D103: ORSE | E103: 9096 | F103: TOMADA 2P + T, ABNT, DE EMBUTIR, 10 A, COM PLACA EM PVC | G103: UN | H103: 8 | I103: =SUMIF('Composições (ORSE)'!D:D,E103,'Composições (ORSE)'!K:K) -> 5.32 | J103: 6.22 | K103: 49.76 | M103: 6.8 | N103: 5.32 | O103: 0.2176
B104: 1.2.22 | C104: INSUMO | D104: SINAPI | E104: 2510 | F104: RELE FOTOELETRICO INTERNO E EXTERNO BIVOLT 1000 W, DE CONECTOR, SEM BASE | G104: UN | H104: 16 | I104: =SUMIF('Composições (SINAPI)'!D:D,E104,'Composições (SINAPI)'!K:K) -> 12.91 | J104: 15.09 | K104: 241.44 | M104: 16.5 | N104: 12.91 | O104: 0.2176
B105: 1.2.23 | C105: INSUMO | D105: ORSE | E105: 2622 | F105: BASE FIXA PARA RELÉ FOTO ELÉTRICO | G105: UN | H105: 16 | I105: =SUMIF('Composições (ORSE)'!D:D,E105,'Composições (ORSE)'!K:K) -> 4.46 | J105: 5.21 | K105: 83.36 | M105: 5.7 | N105: 4.46 | O105: 0.2175
B106: 1.2.25 | C106: INSUMO | D106: ORSE | E106: 3925 | F106: CONDULETE TIPO "T" DE 1 1/2" EM ALUMÍNIO FUNDIDO A PROVA DE TEMPO, GASES, VAP ORES E PÓS. | G106: UN | H106: 6 | I106: =SUMIF('Composições (ORSE)'!D:D,E106,'Composições (ORSE)'!K:K) -> 18 | J106: 21.04 | K106: 126.24 | M106: 23 | N106: 18 | O106: 0.2174
B107: 1.2.27 | C107: INSUMO | D107: Comprasnet | E107: I8500 | F107: CABO BLINDADO FLEXÍVEL TETRAPOLAR 3 x 10,0 mm² + 10,0 mm² 0,6/1 KV | G107: M | H107: 268.46 | I107: =SUMIF('Composições (CODEVASF)'!D:D,E107,'Composições (CODEVASF)'!K:K) -> 12.33 | J107: 14.41 | K107: 3868.51 | M107: 15.75 | N107: 12.33 | O107: 0.2171
B108: 1.2.28 | C108: INSUMO | D108: SINAPI | E108: 1574 | F108: TERMINAL A COMPRESSAO EM COBRE ESTANHADO PARA CABO 10 MM2, 1 FURO E 1 COMPRESSAO, PARA PARAFUSO DE FIXACAO M6 | G108: UN | H108: 100 | I108: =SUMIF('Composições (SINAPI)'!D:D,E108,'Composições (SINAPI)'!K:K) -> 0.88 | J108: 1.03 | K108: 103 | M108: 1.13 | N108: 0.88 | O108: 0.2212
B109: 1.2.29 | C109: INSUMO | D109: Comprasnet | E109: 39259 | F109: CABO MULTIPOLAR DE COBRE, FLEXIVEL, CLASSE 4 OU 5, ISOLACAO EM HEPR, COBERTURA EM PVC-ST2, ANTICHAMA BWF-B, 0,6/1 KV, 3 CONDUTORES DE 4 MM2 | G109: M | H109: 256.88 | I109: =SUMIF('Composições (CODEVASF)'!D:D,E109,'Composições (CODEVASF)'!K:K) -> 4.28 | J109: 5 | K109: 1284.4 | M109: 5.47 | N109: 4.28 | O109: 0.2176
B110: 1.2.30 | C110: INSUMO | D110: Comprasnet | E110: I8498 | F110: CABO BLINDADO FLEXÍVEL TETRAPOLAR 3 x 4,0 mm² + 4,0 mm² 0,6/1 KV | G110: M | H110: 289.7 | I110: =SUMIF('Composições (CODEVASF)'!D:D,E110,'Composições (CODEVASF)'!K:K) -> 5.23 | J110: 6.11 | K110: =ROUND(J110*H110,2) -> 1770.07 | M110: 6.68 | N110: 5.23 | O110: 0.2171
B111: 1.2.31 | C111: INSUMO | D111: SINAPI | E111: 1571 | F111: TERMINAL A COMPRESSAO EM COBRE ESTANHADO PARA CABO 4 MM2, 1 FURO E 1 COMPRESSAO, PARA PARAFUSO DE FIXACAO M5 | G111: UN | H111: 96 | I111: =SUMIF('Composições (SINAPI)'!D:D,E111,'Composições (SINAPI)'!K:K) -> 0.68 | J111: 0.79 | K111: 75.84 | M111: 0.87 | N111: 0.68 | O111: 0.2184
B112: 1.2.32 | C112: INSUMO | D112: SEINFRA | E112: I0336 | F112: CABO COBRE NU 10MM2 | G112: M | H112: 146.84 | I112: =SUMIF('Composições (SEINFRA)'!D:D,E112,'Composições (SEINFRA)'!K:K) -> 2.95 | J112: 3.45 | K112: 506.6 | M112: 3.77 | N112: 2.95 | O112: 0.2175
B113: 1.2.33 | C113: INSUMO | D113: SINAPI | E113: 34653 | F113: DISJUNTOR TIPO DIN/IEC, MONOPOLAR DE 6 ATE 32A | G113: UN | H113: 16 | I113: =SUMIF('Composições (SINAPI)'!D:D,E113,'Composições (SINAPI)'!K:K) -> 7.65 | J113: 8.94 | K113: 143.04 | M113: 9.78 | N113: 7.65 | O113: 0.2178
B114: 1.2.34 | C114: INSUMO | D114: SINAPI | E114: 34709 | F114: DISJUNTOR TIPO DIN/IEC, TRIPOLAR DE 10 ATE 50A | G114: UN | H114: 36 | I114: =SUMIF('Composições (SINAPI)'!D:D,E114,'Composições (SINAPI)'!K:K) -> 53.79 | J114: 62.88 | K114: 2263.68 | M114: 68.7 | N114: 53.79 | O114: 0.217
B115: 1.2.35 | C115: INSUMO | D115: Comprasnet | E115: 1014 | F115: CABO DE COBRE, FLEXIVEL, CLASSE 4 OU 5, ISOLACAO EM PVC/A, ANTICHAMA BWF-B, 1 CONDUTOR, 450/750 V, SECAO NOMINAL 2,5 MM2 (FASE - VERMELHO) | G115: M | H115: 42.28 | I115: =SUMIF('Composições (CODEVASF)'!D:D,E115,'Composições (CODEVASF)'!K:K) -> 0.45 | J115: 0.53 | K115: 22.41 | M115: 0.58 | N115: 0.45 | O115: 0.2241
B116: 1.2.36 | C116: INSUMO | D116: Comprasnet | E116: 1014 | F116: CABO DE COBRE, FLEXIVEL, CLASSE 4 OU 5, ISOLACAO EM PVC/A, ANTICHAMA BWF-B, 1 CONDUTOR, 450/750 V, SECAO NOMINAL 2,5 MM2 (FASE - PRETO) | G116: M | H116: 54.14 | I116: =SUMIF('Composições (CODEVASF)'!D:D,E116,'Composições (CODEVASF)'!K:K) -> 0.45 | J116: 0.53 | K116: 28.69 | M116: 0.58 | N116: 0.45 | O116: 0.2241
B117: 1.2.37 | C117: INSUMO | D117: Comprasnet | E117: 1014 | F117: CABO DE COBRE, FLEXIVEL, CLASSE 4 OU 5, ISOLACAO EM PVC/A, ANTICHAMA BWF-B, 1 CONDUTOR, 450/750 V, SECAO NOMINAL 2,5 MM2 (NEUTRO - AZUL) | G117: M | H117: 95.42 | I117: =SUMIF('Composições (CODEVASF)'!D:D,E117,'Composições (CODEVASF)'!K:K) -> 0.45 | J117: 0.53 | K117: 50.57 | M117: 0.58 | N117: 0.45 | O117: 0.2241
B118: 1.2.38 | C118: INSUMO | D118: Comprasnet | E118: 1014 | F118: CABO DE COBRE, FLEXIVEL, CLASSE 4 OU 5, ISOLACAO EM PVC/A, ANTICHAMA BWF-B, 1 CONDUTOR, 450/750 V, SECAO NOMINAL 2,5 MM2 (RETORNO - BRANCO) | G118: M | H118: 37.9 | I118: =SUMIF('Composições (CODEVASF)'!D:D,E118,'Composições (CODEVASF)'!K:K) -> 0.45 | J118: 0.53 | K118: 20.09 | M118: 0.58 | N118: 0.45 | O118: 0.2241
B119: 1.2.39 | C119: INSUMO | D119: Comprasnet | E119: 1014 | F119: CABO DE COBRE, FLEXIVEL, CLASSE 4 OU 5, ISOLACAO EM PVC/A, ANTICHAMA BWF-B, 1 CONDUTOR, 450/750 V, SECAO NOMINAL 2,5 MM2 (TERRA - VERDE) | G119: M | H119: 95.42 | I119: =SUMIF('Composições (CODEVASF)'!D:D,E119,'Composições (CODEVASF)'!K:K) -> 0.45 | J119: 0.53 | K119: 50.57 | M119: 0.58 | N119: 0.45 | O119: 0.2241
B120: 1.3 | C120: FORNECIMENTO DOS MATERIAIS PARA EXTENSÃO DE REDE PARA O SISTEMA ELÉTRICO DA CAPTAÇÃO | K120: =SUM(K121:K123) -> 51257.74
B121: 1.3.1 | C121: INSUMO | D121: SEINFRA | E121: I8150 | F121: MATERIAIS E ACESSÓRIOS PARA REDE DE DISTRIBUIÇÃO RURAL PRIMÁRIA, TENSÃO DE 13,80 KV, PARA CABO DE ALUMÍNIO, COM ESTRUTURA DE ALINHAMENTO EM POSTE DE CONCRETO ARMADO DUPLO T 150/10 (CONDUTOR NÃO INCLUSO) | G121: KM | H121: 1.27 | I121: =SUMIF('Composições (SEINFRA)'!D:D,E121,'Composições (SEINFRA)'!K:K) -> 11534.85 | J121: =ROUND(IF(C121 = "SERVIÇO", I121 * (1 + $I$11), IF(C121 = "INSUMO", (I121 * (1 + $K$11)))),2) -> 13483.09 | K121: 17123.52 | M121: 14731.61 | N121: 11534.85 | O121: =IF(I121=0," ",ROUND(1-(I121/M121),4)) -> 0.217
B122: 1.3.2 | C122: INSUMO | D122: SEINFRA | E122: I8156 | F122: CABO DE ALUMÍNIO COM ALMA DE AÇO, BITOLA 4 AWG, FORMAÇÃO 6/1 FIOS - SWAN | G122: KM | H122: 3.81 | I122: =SUMIF('Composições (SEINFRA)'!D:D,E122,'Composições (SEINFRA)'!K:K) -> 1162.68 | J122: =ROUND(IF(C122 = "SERVIÇO", I122 * (1 + $I$11), IF(C122 = "INSUMO", (I122 * (1 + $K$11)))),2) -> 1359.06 | K122: =ROUND(J122*H122,2) -> 5178.02 | M122: 1484.91 | N122: 1162.68 | O122: =IF(I122=0," ",ROUND(1-(I122/M122),4)) -> 0.217
B123: 1.3.3 | C123: INSUMO | D123: SEINFRA | E123: I8115 | F123: MATERIAIS E ACESSÓRIOS PARA SUBESTAÇÃO AÉREA DE 15 KVA / 13.800-380/220V COM QUADRO DE MEDIÇÃO E PROTEÇÃO GERAL | G123: UN | H123: 5 | I123: =SUMIF('Composições (SEINFRA)'!D:D,E123,'Composições (SEINFRA)'!K:K) -> 4954.44 | J123: =ROUND(IF(C123 = "SERVIÇO", I123 * (1 + $I$11), IF(C123 = "INSUMO", (I123 * (1 + $K$11)))),2) -> 5791.24 | K123: 28956.2 | M123: 6327.52 | N123: 4954.44 | O123: =IF(I123=0," ",ROUND(1-(I123/M123),4)) -> 0.217
B124: 2 | C124: ADUTORAS E DRENOS | K124: =K125 -> 574430.8
B125: 2.1 | C125: ADUTORA DE ÁGUA BRUTA E DRENOS PARA ÁGUA DE LAVAGEM DOS FILTROS | K125: =SUM(K126:K175) -> 574430.8
B126: 2.1.1 | C126: INSUMO | D126: Comprasnet | E126: 9828 | F126: TUBO PVC DEFOFO, JEI, 1 MPA, DN 150 MM, PARA REDE DE AGUA (NBR 7665) | G126: M | H126: 4405 | I126: =SUMIF('Composições (CODEVASF)'!D:D,E126,'Composições (CODEVASF)'!K:K) -> 30.46 | J126: =ROUND(IF(C126 = "SERVIÇO", I126 * (1 + $I$11), IF(C126 = "INSUMO", (I126 * (1 + $K$11)))),2) -> 35.6 | K126: =ROUND(J126*H126,2) -> 156818 | M126: 38.91 | N126: 30.46 | O126: =IF(I126=0," ",ROUND(1-(I126/M126),4)) -> 0.2172
B127: 2.1.2 | C127: INSUMO | D127: Comprasnet | E127: 9825 | F127: TUBO PVC DEFOFO, JEI, 1 MPA, DN 100 MM, PARA REDE DE AGUA (NBR 7665) | G127: M | H127: 15150 | I127: =SUMIF('Composições (CODEVASF)'!D:D,E127,'Composições (CODEVASF)'!K:K) -> 14.03 | J127: 16.4 | K127: 248460 | M127: 17.92 | N127: 14.03 | O127: 0.2171
B128: 2.1.3 | C128: INSUMO | D128: Atas 8 e 24/2017 Codevasf | E128: 36374 | F128: TUBO PVC PBA JEI, CLASSE 12, DN 100 MM, PARA REDE DE AGUA (NBR 5647) | G128: M | H128: 10 | I128: =SUMIF('Composições (CODEVASF)'!D:D,E128,'Composições (CODEVASF)'!K:K) -> 10.12 | J128: 11.83 | K128: 118.3 | M128: 12.93 | N128: 10.12 | O128: 0.2173
B129: 2.1.4 | C129: INSUMO | D129: SINAPI | E129: 36378 | F129: TUBO PVC PBA JEI, CLASSE 20, DN 50 MM, PARA REDE DE AGUA (NBR 5647) | G129: M | H129: 100 | I129: =SUMIF('Composições (SINAPI)'!D:D,E129,'Composições (SINAPI)'!K:K) -> 13.07 | J129: 15.28 | K129: 1528 | M129: 16.7 | N129: 13.07 | O129: 0.2174
B130: 2.1.5 | C130: INSUMO | D130: SINAPI | E130: 38033 | F130: TUBO PVC CORRUGADO, PAREDE DUPLA, JE, DN 200 MM, REDE COLETORA ESGOTO | G130: M | H130: 48 | I130: =SUMIF('Composições (SINAPI)'!D:D,E130,'Composições (SINAPI)'!K:K) -> 37.7 | J130: 44.07 | K130: 2115.36 | M130: 48.16 | N130: 37.7 | O130: 0.2172
B131: 2.1.6 | C131: INSUMO | D131: ORSE | E131: 5875 | F131: TUBO EM FOFO, PONTA E FLANGE PN 10 / 16, D= 150MM, L=1,00M | G131: UN | H131: 12 | I131: =SUMIF('Composições (ORSE)'!D:D,E131,'Composições (ORSE)'!K:K) -> 411.96 | J131: 481.54 | K131: 5778.48 | M131: 526.14 | N131: 411.96 | O131: 0.217
B132: 2.1.7 | C132: INSUMO | D132: ORSE | E132: 12349 | F132: TUBO EM FERRO FUNDIDO, C/ FLANGES PN 10, DIAM. = 200MM, L=1,20M | G132: UN | H132: 10 | I132: =SUMIF('Composições (ORSE)'!D:D,E132,'Composições (ORSE)'!K:K) -> 676.48 | J132: 790.74 | K132: 7907.4 | M132: 863.97 | N132: 676.48 | O132: 0.217
B133: 2.1.8 | C133: INSUMO | D133: ORSE | E133: 9528 | F133: TUBO DE FERRO FUNDIDO, PONTA E FLANGE, PN 10/16, DN=100MM, L=1,20M | G133: PÇ | H133: 10 | I133: =SUMIF('Composições (ORSE)'!D:D,E133,'Composições (ORSE)'!K:K) -> 405.32 | J133: 473.78 | K133: 4737.8 | M133: 517.66 | N133: 405.32 | O133: 0.217
B134: 2.1.9 | C134: INSUMO | D134: ORSE | E134: 5844 | F134: TUBO EM FOFO, C/ FLANGES PN 10 / 16, D= 100MM, L=1,00M | G134: UN | H134: 10 | I134: =SUMIF('Composições (ORSE)'!D:D,E134,'Composições (ORSE)'!K:K) -> 456.82 | J134: 533.98 | K134: 5339.8 | M134: 583.43 | N134: 456.82 | O134: 0.217
B135: 2.1.10 | C135: INSUMO | D135: ORSE | E135: 5777 | F135: TOCO EM FOFO C/ FLANGES PN 25, COMP. = 0,25M, D= 100MM | G135: UN | H135: 10 | I135: =SUMIF('Composições (ORSE)'!D:D,E135,'Composições (ORSE)'!K:K) -> 164.65 | J135: 192.46 | K135: 1924.6 | M135: 210.29 | N135: 164.65 | O135: 0.217
B136: 2.1.11 | C136: INSUMO | D136: ORSE | E136: 5386 | F136: CURVA 90º, EM FOFO, C/ FLANGES PN 10 / 16, D= 100MM | G136: UN | H136: 17 | I136: =SUMIF('Composições (ORSE)'!D:D,E136,'Composições (ORSE)'!K:K) -> 122.64 | J136: 143.35 | K136: 2436.95 | M136: 156.64 | N136: 122.64 | O136: 0.2171
B137: 2.1.12 | C137: INSUMO | D137: ORSE | E137: 6439 | F137: VENTOSA TRÍPLICE FUNÇÃO, PN 25, DIAM = 50MM | G137: UN | H137: 12 | I137: =SUMIF('Composições (ORSE)'!D:D,E137,'Composições (ORSE)'!K:K) -> 842.24 | J137: 984.49 | K137: 11813.88 | M137: 1075.67 | N137: 842.24 | O137: 0.217
B138: 2.1.13 | C138: INSUMO | D138: ORSE | E138: 6428 | F138: VENTOSA SIMPLES COM ROSCA DIAM 1" | G138: UN | H138: 28 | I138: =SUMIF('Composições (ORSE)'!D:D,E138,'Composições (ORSE)'!K:K) -> 234.57 | J138: 274.19 | K138: 7677.32 | M138: 299.58 | N138: 234.57 | O138: 0.217
B139: 2.1.14 | C139: INSUMO | D139: ORSE | E139: 12533 | F139: REGISTRO GAVETA FOFO, C/ FLANGES, CUNHA BORRACHA, CORPO CURTO E VOLANTE, TIPO EURO 23, PN16, DIAM = 50MM | G139: UN | H139: 12 | I139: =SUMIF('Composições (ORSE)'!D:D,E139,'Composições (ORSE)'!K:K) -> 260.31 | J139: 304.28 | K139: 3651.36 | M139: 332.46 | N139: 260.31 | O139: 0.217
B140: 2.1.15 | C140: INSUMO | D140: Comprasnet | E140: 20055 | F140: REGISTRO DE ESFERA, PVC, COM VOLANTE, VS, ROSCAVEL, DN 1", COM CORPO DIVIDIDO | G140: UN | H140: 28 | I140: =SUMIF('Composições (CODEVASF)'!D:D,E140,'Composições (CODEVASF)'!K:K) -> 8.11 | J140: 9.48 | K140: 265.44 | M140: 10.36 | N140: 8.11 | O140: 0.2172
B141: 2.1.16 | C141: INSUMO | D141: ORSE | E141: 5631 | F141: REGISTRO GAVETA FOFO, C/ BOLSAS P/ TUBO DE PVC, CUNHA BORRACHA, CABEÇOTE, PN 10, TIPO EURO 24, D= 100MM | G141: UN | H141: 14 | I141: =SUMIF('Composições (ORSE)'!D:D,E141,'Composições (ORSE)'!K:K) -> 296.76 | J141: 346.88 | K141: 4856.32 | M141: 379.01 | N141: 296.76 | O141: 0.217
B142: 2.1.17 | C142: INSUMO | D142: ORSE | E142: 5629 | F142: REGISTRO GAVETA FOFO, C/ BOLSAS P/ TUBO DE PVC, CUNHA BORRACHA, CABEÇOTE, PN 10, TIPO EURO 24, D= 50MM | G142: UN | H142: 11 | I142: =SUMIF('Composições (ORSE)'!D:D,E142,'Composições (ORSE)'!K:K) -> 194.75 | J142: 227.64 | K142: 2504.04 | M142: 248.73 | N142: 194.75 | O142: 0.217
B143: 2.1.18 | C143: INSUMO | D143: ORSE | E143: 5637 | F143: REGISTRO GAVETA FOFO, C/ BOLSAS P/ TUBO FERRO DÚCTIL, CUNHA BORRACHA, CABEÇOT E, PN 16, TIPO EURO 25, D= 150MM | G143: UN | H143: 9 | I143: =SUMIF('Composições (ORSE)'!D:D,E143,'Composições (ORSE)'!K:K) -> 454.91 | J143: 531.74 | K143: 4785.66 | M143: 580.99 | N143: 454.91 | O143: 0.217
B144: 2.1.19 | C144: INSUMO | D144: ORSE | E144: 6343 | F144: REGISTRO GAVETA FOFO, C/ FLANGES, CUNHA BORRACHA, CORPO CURTO E CABEÇOTE, TIP O EURO 23, PN16, DIAM = 150MM | G144: UN | H144: 4 | I144: =SUMIF('Composições (ORSE)'!D:D,E144,'Composições (ORSE)'!K:K) -> 461.35 | J144: 539.27 | K144: 2157.08 | M144: 589.22 | N144: 461.35 | O144: 0.217
B145: 2.1.20 | C145: INSUMO | D145: ORSE | E145: 6358 | F145: REGISTRO GAVETA FOFO, C/ FLANGES, CUNHA BORRACHA, CORPO LONGO E CABEÇOTE, TIP O EURO 21, PN16, DIAM = 100MM | G145: UN | H145: 11 | I145: =SUMIF('Composições (ORSE)'!D:D,E145,'Composições (ORSE)'!K:K) -> 327.05 | J145: 382.29 | K145: 4205.19 | M145: 417.69 | N145: 327.05 | O145: 0.217
B146: 2.1.21 | C146: INSUMO | D146: ORSE | E146: 5387 | F146: CURVA 90º, EM FOFO, C/ FLANGES PN 10 / 16, D= 150MM | G146: UN | H146: 8 | I146: =SUMIF('Composições (ORSE)'!D:D,E146,'Composições (ORSE)'!K:K) -> 199.71 | J146: 233.44 | K146: 1867.52 | M146: 255.06 | N146: 199.71 | O146: 0.217
B147: 2.1.22 | C147: INSUMO | D147: ORSE | E147: 12171 | F147: CURVA 22º 30' C/ BOLSAS, EM FOFO, JE, D= 150MM | G147: UN | H147: 16 | I147: =SUMIF('Composições (ORSE)'!D:D,E147,'Composições (ORSE)'!K:K) -> 131.49 | J147: 153.7 | K147: 2459.2 | M147: 167.94 | N147: 131.49 | O147: 0.217
B148: 2.1.23 | C148: INSUMO | D148: SEINFRA | E148: I3348 | F148: CURVA 45 FoFo BB JUNTA ELÁSTICA DN 150 | G148: UN | H148: 39 | I148: =SUMIF('Composições (SEINFRA)'!D:D,E148,'Composições (SEINFRA)'!K:K) -> 229.26 | J148: 267.98 | K148: 10451.22 | M148: 292.8 | N148: 229.26 | O148: 0.217
B149: 2.1.24 | C149: INSUMO | D149: Comprasnet | E149: I3364 | F149: CURVA 90 FoFo BB JUNTA ELÁSTICA DN 150 | G149: UN | H149: 24 | I149: =SUMIF('Composições (CODEVASF)'!D:D,E149,'Composições (CODEVASF)'!K:K) -> 164.11 | J149: 191.83 | K149: 4603.92 | M149: 209.6 | N149: 164.11 | O149: 0.217
B150: 2.1.25 | C150: INSUMO | D150: Comprasnet | E150: 5359 | F150: CURVA 90º C/ BOLSAS, EM FOFO, JE, D= 100MM | G150: UN | H150: 31 | I150: =SUMIF('Composições (CODEVASF)'!D:D,E150,'Composições (CODEVASF)'!K:K) -> 81.69 | J150: 95.49 | K150: 2960.19 | M150: 104.34 | N150: 81.69 | O150: 0.2171
B151: 2.1.26 | C151: INSUMO | D151: ORSE | E151: 5307 | F151: CURVA 22º 30' C/ BOLSAS, EM FOFO, JE, D= 100MM | G151: UN | H151: 17 | I151: =SUMIF('Composições (ORSE)'!D:D,E151,'Composições (ORSE)'!K:K) -> 97.2 | J151: 113.62 | K151: 1931.54 | M151: 124.15 | N151: 97.2 | O151: 0.2171
B152: 2.1.27 | C152: INSUMO | D152: Comprasnet | E152: 5333 | F152: CURVA 45º C/ BOLSAS, EM FOFO, JE, D= 100MM | G152: UN | H152: 28 | I152: =SUMIF('Composições (CODEVASF)'!D:D,E152,'Composições (CODEVASF)'!K:K) -> 75.95 | J152: 88.78 | K152: 2485.84 | M152: 97 | N152: 75.95 | O152: 0.217
B153: 2.1.28 | C153: INSUMO | D153: ORSE | E153: 12174 | F153: REDUÇÃO EXCENTRICA EM FOFO, C/ FLANGES PN 10 / 16, D= 100 X 50MM | G153: UN | H153: 20 | I153: =SUMIF('Composições (ORSE)'!D:D,E153,'Composições (ORSE)'!K:K) -> 264.91 | J153: 309.65 | K153: 6193 | M153: 338.33 | N153: 264.91 | O153: 0.217
B154: 2.1.29 | C154: INSUMO | D154: SEINFRA | E154: I2927 | F154: COLAR DE TOMADA FoFo P/TUBOS PVC / DEFoFo DN 100 x 1" | G154: UN | H154: 10 | I154: =SUMIF('Composições (SEINFRA)'!D:D,E154,'Composições (SEINFRA)'!K:K) -> 30.35 | J154: =ROUND(IF(C154 = "SERVIÇO", I154 * (1 + $I$11), IF(C154 = "INSUMO", (I154 * (1 + $K$11)))),2) -> 35.48 | K154: =ROUND(J154*H154,2) -> 354.8 | M154: 38.77 | N154: 30.35 | O154: 0.2172
B155: 2.1.30 | C155: INSUMO | D155: SEINFRA | E155: I2904 | F155: COLAR DE TOMADA PVC C/TRAVAS SAIDA ROSC. DN 50 x 3/4" | G155: UN | H155: 18 | I155: =SUMIF('Composições (SEINFRA)'!D:D,E155,'Composições (SEINFRA)'!K:K) -> 3.6 | J155: 4.21 | K155: 75.78 | M155: 4.6 | N155: 3.6 | O155: 0.2174
B156: 2.1.31 | C156: INSUMO | D156: ORSE | E156: 5722 | F156: TÊ EM FOFO C/ FLANGES PN 10 / 16, D= 100 X 100MM | G156: UN | H156: 10 | I156: =SUMIF('Composições (ORSE)'!D:D,E156,'Composições (ORSE)'!K:K) -> 175.5 | J156: 205.14 | K156: 2051.4 | M156: 224.15 | N156: 175.5 | O156: 0.217
B157: 2.1.32 | C157: INSUMO | D157: SINAPI | E157: 7048 | F157: TE, PVC PBA, BBB, 90 GRAUS, DN 50 / DE 60 MM, PARA REDE AGUA (NBR 10351) | G157: UN | H157: 11 | I157: =SUMIF('Composições (SINAPI)'!D:D,E157,'Composições (SINAPI)'!K:K) -> 14.68 | J157: 17.16 | K157: 188.76 | M157: 18.75 | N157: 14.68 | O157: 0.2171
B158: 2.1.33 | C158: INSUMO | D158: SEINFRA | E158: I3083 | F158: ADAPTADOR PBA / BOLSA DEFoFo JE DN 50 | G158: UN | H158: 11 | I158: =SUMIF('Composições (SEINFRA)'!D:D,E158,'Composições (SEINFRA)'!K:K) -> 11.43 | J158: 13.36 | K158: 146.96 | M158: 14.6 | N158: 11.43 | O158: =IF(I158=0," ",ROUND(1-(I158/M158),4)) -> 0.2171
B159: 2.1.34 | C159: INSUMO | D159: SINAPI | E159: 3919 | F159: LUVA DE REDUCAO DE FERRO GALVANIZADO, COM ROSCA BSP, DE 1" X 3/4" | G159: UN | H159: 11 | I159: =SUMIF('Composições (SINAPI)'!D:D,E159,'Composições (SINAPI)'!K:K) -> 5.84 | J159: 6.83 | K159: 75.13 | M159: 7.46 | N159: 5.84 | O159: 0.2172
B160: 2.1.35 | C160: INSUMO | D160: ORSE | E160: 5704 | F160: TÊ EM FOFO C/ BOLSAS, JE, D= 150 X 100MM | G160: UN | H160: 13 | I160: =SUMIF('Composições (ORSE)'!D:D,E160,'Composições (ORSE)'!K:K) -> 189.01 | J160: 220.93 | K160: 2872.09 | M160: 241.4 | N160: 189.01 | O160: 0.217
B161: 2.1.36 | C161: INSUMO | D161: SEINFRA | E161: I3577 | F161: TE FoFo BBF DN 150 x 50 PN10 | G161: UN | H161: 12 | I161: =SUMIF('Composições (SEINFRA)'!D:D,E161,'Composições (SEINFRA)'!K:K) -> 268.56 | J161: 313.92 | K161: 3767.04 | M161: 343 | N161: 268.56 | O161: 0.217
B162: 2.1.37 | C162: INSUMO | D162: SEINFRA | E162: I3540 | F162: TE FoFo BBB JUNTA ELÁSTICA DN 100 x 100 | G162: UN | H162: 1 | I162: =SUMIF('Composições (SEINFRA)'!D:D,E162,'Composições (SEINFRA)'!K:K) -> 260.15 | J162: 304.09 | K162: 304.09 | M162: 332.25 | N162: 260.15 | O162: 0.217
B163: 2.1.38 | C163: INSUMO | D163: SEINFRA | E163: I4059 | F163: REDUÇÃO PB JE FoFo/PVC DN 100 x 50 | G163: UN | H163: 1 | I163: =SUMIF('Composições (SEINFRA)'!D:D,E163,'Composições (SEINFRA)'!K:K) -> 157.22 | J163: 183.77 | K163: 183.77 | M163: 200.8 | N163: 157.22 | O163: 0.217
B164: 2.1.39 | C164: INSUMO | D164: SINAPI | E164: 3838 | F164: LUVA DE CORRER DEFOFO, PVC, JE, DN 150 MM | G164: UN | H164: 26 | I164: =SUMIF('Composições (SINAPI)'!D:D,E164,'Composições (SINAPI)'!K:K) -> 39.61 | J164: 46.3 | K164: 1203.8 | M164: 50.59 | N164: 39.61 | O164: 0.217
B165: 2.1.40 | C165: INSUMO | D165: SEINFRA | E165: I6650 | F165: TUBO FoFo C/FLANGE E BOLSA DN 100 PN10 L=500 | G165: UN | H165: 4 | I165: =SUMIF('Composições (SEINFRA)'!D:D,E165,'Composições (SEINFRA)'!K:K) -> 377.07 | J165: 440.76 | K165: 1763.04 | M165: 481.58 | N165: 377.07 | O165: 0.217
B166: 2.1.41 | C166: INSUMO | D166: SEINFRA | E166: I8668 | F166: HIDRÔMETRO TIPO WOLTMANN HORIZONTAL Qn=150m³/h, Dn 150mm - COMPLETO | G166: UN | H166: 4 | I166: =SUMIF('Composições (SEINFRA)'!D:D,E166,'Composições (SEINFRA)'!K:K) -> 4455.27 | J166: 5207.77 | K166: 20831.08 | M166: 5690 | N166: 4455.27 | O166: 0.217
B167: 2.1.42 | C167: INSUMO | D167: ORSE | E167: 11957 | F167: STOP-LOG TIPO ALTO EM FIBRA DE VIDRO, LARGURA ÚTIL 200MM E ALTURA DE 400MM CO M GAVETA MOVEDIÇA EM FIBRA DE VIDRO ESP=10MM, COM ACIONAMENTO MANUAL POR MANE TE NA PRÓPRIA GAVETA | G167: UN | H167: 8 | I167: =SUMIF('Composições (ORSE)'!D:D,E167,'Composições (ORSE)'!K:K) -> 254.08 | J167: 296.99 | K167: 2375.92 | M167: 324.5 | N167: 254.08 | O167: 0.217
B168: 2.1.43 | C168: INSUMO | D168: SEINFRA | E168: I5749 | F168: VALVULA RETENÇÃO DN 100 PN16 FECH. RÁPIDO (CLASAR) | G168: UN | H168: 10 | I168: =SUMIF('Composições (SEINFRA)'!D:D,E168,'Composições (SEINFRA)'!K:K) -> 519.59 | J168: 607.35 | K168: 6073.5 | M168: 663.6 | N168: 519.59 | O168: 0.217
B169: 2.1.44 | C169: INSUMO | D169: ORSE | E169: 5195 | F169: ARRUELA DE BORRACHA PARA JUNTA C/ FLANGE PN 10, D= 75MM | G169: UN | H169: 28 | I169: =SUMIF('Composições (ORSE)'!D:D,E169,'Composições (ORSE)'!K:K) -> 1.55 | J169: 1.81 | K169: 50.68 | M169: 1.99 | N169: 1.55 | O169: 0.2211
B170: 2.1.45 | C170: INSUMO | D170: Comprasnet | E170: 5197 | F170: ARRUELA DE BORRACHA PARA JUNTA C/ FLANGE PN 10, D= 100MM | G170: UN | H170: 111 | I170: =SUMIF('Composições (CODEVASF)'!D:D,E170,'Composições (CODEVASF)'!K:K) -> 1.55 | J170: 1.81 | K170: 200.91 | M170: 1.98 | N170: 1.55 | O170: 0.2172
B171: 2.1.46 | C171: INSUMO | D171: Comprasnet | E171: 5198 | F171: ARRUELA DE BORRACHA PARA JUNTA C/ FLANGE PN 10, D= 150MM | G171: UN | H171: 124 | I171: =SUMIF('Composições (CODEVASF)'!D:D,E171,'Composições (CODEVASF)'!K:K) -> 2.34 | J171: 2.74 | K171: 339.76 | M171: 3 | N171: 2.34 | O171: 0.22
B172: 2.1.47 | C172: INSUMO | D172: ORSE | E172: 5460 | F172: FLANGE AVULSO, EM FOFO, PN 25, D= 100MM | G172: UN | H172: 20 | I172: =SUMIF('Composições (ORSE)'!D:D,E172,'Composições (ORSE)'!K:K) -> 72.82 | J172: 85.12 | K172: 1702.4 | M172: 93.01 | N172: 72.82 | O172: 0.2171
B173: 2.1.48 | C173: INSUMO | D173: Comprasnet | E173: 5245 | F173: PARAFUSO E PORCA PARA JUNTA C/ FLANGE D X L = 20 X 90MM | G173: UN | H173: 2104 | I173: =SUMIF('Composições (CODEVASF)'!D:D,E173,'Composições (CODEVASF)'!K:K) -> 6.97 | J173: 8.15 | K173: 17147.6 | M173: 8.91 | N173: 6.97 | O173: 0.2177
B174: 2.1.49 | C174: INSUMO | D174: ORSE | E174: 4846 | F174: ABRAÇADEIRA EM AÇO INOX DN 150MM | G174: UN | H174: 8 | I174: =SUMIF('Composições (ORSE)'!D:D,E174,'Composições (ORSE)'!K:K) -> 50.29 | J174: 58.78 | K174: 470.24 | M174: 64.23 | N174: 50.29 | O174: 0.217
B175: 2.1.50 | C175: INSUMO | D175: ORSE | E175: 4840 | F175: ABRAÇADEIRA EM FERRO GALVANIZADO DN 150MM | G175: UN | H175: 8 | I175: =SUMIF('Composições (ORSE)'!D:D,E175,'Composições (ORSE)'!K:K) -> 23.38 | J175: 27.33 | K175: 218.64 | M175: 29.87 | N175: 23.38 | O175: 0.2173
B176: 3 | C176: ESTAÇÃO DE TRATAMENTO | K176: =K177+K241+K277+K288 -> 339145.99
B177: 3.1 | C177: FILTROS RUSSOS - CASA DE QUÍMICA | K177: =SUM(K178:K240) -> 179300.3
B178: 3.1.1 | C178: INSUMO | D178: COTAÇÃO | E178: COTAÇÃO1 | F178: HIPOCLORITO DE SÓDIO ( 10KG) | G178: UN | H178: 56 | I178: =SUMIF('Composições (CODEVASF)'!D:D,E178,'Composições (CODEVASF)'!K:K) -> 160.31 | J178: =ROUND(IF(C178 = "SERVIÇO", I178 * (1 + $I$11), IF(C178 = "INSUMO", (I178 * (1 + $K$11)))),2) -> 187.39 | K178: =ROUND(J178*H178,2) -> 10493.84 | M178: 204.75 | N178: 160.31 | O178: =IF(I178=0," ",ROUND(1-(I178/M178),4)) -> 0.217
B179: 3.1.2 | C179: INSUMO | D179: Comprasnet | E179: Comprasnet | F179: SULFATO DE ALUMÍNIO (2KG) | G179: UN | H179: 792 | I179: =SUMIF('Composições (CODEVASF)'!D:D,E179,'Composições (CODEVASF)'!K:K) -> 8.2 | J179: 9.58 | K179: 7587.36 | M179: 10.48 | N179: 8.2 | O179: 0.2176
B180: 3.1.3 | C180: INSUMO | D180: ORSE | E180: 8979 | F180: HIPOCLORADOR / BOMBA DOSADORA ANALÓGICA DE SOLUÇÕES, VAZÃO DE 0,5 À 15 L/H E PRESSÃO DE 0 À 15 BAR | G180: UN | H180: 8 | I180: =SUMIF('Composições (ORSE)'!D:D,E180,'Composições (ORSE)'!K:K) -> 452.74 | J180: 529.21 | K180: 4233.68 | M180: 578.22 | N180: 452.74 | O180: 0.217
B181: 3.1.4 | C181: INSUMO | D181: SEINFRA | E181: I6302 | F181: KIT DE DOSAGEM DE SULFATO DE ALUMÍNIO OU CAL COM TANQUE DE 500L, BOMBA DOSADORA E AGITADOR, COMPLETO | G181: UN | H181: 4 | I181: =SUMIF('Composições (SEINFRA)'!D:D,E181,'Composições (SEINFRA)'!K:K) -> 12639.49 | J181: 14774.3 | K181: 59097.2 | M181: 16142.4 | N181: 12639.49 | O181: 0.217
B182: 3.1.5 | C182: INSUMO | D182: SEINFRA | E182: I6301 | F182: KIT DE DOSAGEM DE SULFATO DE ALUMÍNIO OU CAL COM TANQUE DE 250L, BOMBA DOSADORA E AGITADOR, COMPLETO | G182: UN | H182: 4 | I182: =SUMIF('Composições (SEINFRA)'!D:D,E182,'Composições (SEINFRA)'!K:K) -> 7915.19 | J182: 9252.07 | K182: 37008.28 | M182: 10108.8 | N182: 7915.19 | O182: 0.217
B183: 3.1.6 | C183: INSUMO | D183: SEINFRA | E183: I8959 | F183: KIT MEDIÇÃO COMPARADOR DE CLORO E PH | G183: UN | H183: 4 | I183: =SUMIF('Composições (SEINFRA)'!D:D,E183,'Composições (SEINFRA)'!K:K) -> 38.94 | J183: 45.52 | K183: 182.08 | M183: 49.74 | N183: 38.94 | O183: 0.2171
B184: 3.1.7 | C184: INSUMO | D184: ORSE | E184: 2442 | F184: PERFIL AÇO LAMINADO, U 152,4 X 48,80 MM (12,20 KG/M) ASTM A36 | G184: KG | H184: 912 | I184: =SUMIF('Composições (ORSE)'!D:D,E184,'Composições (ORSE)'!K:K) -> 3.5 | J184: 4.09 | K184: 3730.08 | M184: 4.48 | N184: 3.5 | O184: 0.2188
B185: 3.1.8 | C185: INSUMO | D185: Comprasnet | E185: 9867 | F185: TUBO PVC, SOLDAVEL, DN 20 MM, AGUA FRIA (NBR-5648) | G185: M | H185: 72 | I185: =SUMIF('Composições (CODEVASF)'!D:D,E185,'Composições (CODEVASF)'!K:K) -> 1.21 | J185: 1.41 | K185: 101.52 | M185: 1.55 | N185: 1.21 | O185: 0.2194
B186: 3.1.9 | C186: INSUMO | D186: Atas 8 e 24/2017 Codevasf | E186: 9868 | F186: TUBO PVC, SOLDAVEL, DN 25 MM, AGUA FRIA (NBR-5648) | G186: M | H186: 144 | I186: =SUMIF('Composições (CODEVASF)'!D:D,E186,'Composições (CODEVASF)'!K:K) -> 0.79 | J186: 0.92 | K186: 132.48 | M186: 1.02 | N186: 0.79 | O186: 0.2255
B187: 3.1.10 | C187: INSUMO | D187: Atas 8 e 24/2017 Codevasf | E187: 9869 | F187: TUBO PVC, SOLDAVEL, DN 32 MM, AGUA FRIA (NBR-5648) | G187: M | H187: 96 | I187: =SUMIF('Composições (CODEVASF)'!D:D,E187,'Composições (CODEVASF)'!K:K) -> 1.29 | J187: 1.51 | K187: 144.96 | M187: 1.66 | N187: 1.29 | O187: 0.2229
B188: 3.1.11 | C188: INSUMO | D188: Comprasnet | E188: 9875 | F188: TUBO PVC, SOLDAVEL, DN 50 MM, PARA AGUA FRIA (NBR-5648) | G188: M | H188: 120 | I188: =SUMIF('Composições (CODEVASF)'!D:D,E188,'Composições (CODEVASF)'!K:K) -> 5.22 | J188: 6.1 | K188: 732 | M188: 6.67 | N188: 5.22 | O188: 0.2174
B189: 3.1.12 | C189: INSUMO | D189: Comprasnet | E189: 9871 | F189: TUBO PVC, SOLDAVEL, DN 75 MM, AGUA FRIA (NBR-5648) | G189: M | H189: 24 | I189: =SUMIF('Composições (CODEVASF)'!D:D,E189,'Composições (CODEVASF)'!K:K) -> 7.04 | J189: 8.23 | K189: 197.52 | M189: 9 | N189: 7.04 | O189: 0.2178
B190: 3.1.13 | C190: INSUMO | D190: SINAPI | E190: 7696 | F190: TUBO ACO GALVANIZADO COM COSTURA, CLASSE MEDIA, DN 2", E = *3,65* MM, PESO *5,10* KG/M (NBR 5580) | G190: M | H190: 48 | I190: =SUMIF('Composições (SINAPI)'!D:D,E190,'Composições (SINAPI)'!K:K) -> 32.97 | J190: 38.54 | K190: 1849.92 | M190: 42.12 | N190: 32.97 | O190: 0.2172
B191: 3.1.14 | C191: INSUMO | D191: SINAPI | E191: 3540 | F191: JOELHO PVC, SOLDAVEL, 90 GRAUS, 50 MM, PARA AGUA FRIA PREDIAL | G191: UN | H191: 80 | I191: =SUMIF('Composições (SINAPI)'!D:D,E191,'Composições (SINAPI)'!K:K) -> 3.18 | J191: 3.72 | K191: 297.6 | M191: 4.07 | N191: 3.18 | O191: 0.2187
B192: 3.1.15 | C192: INSUMO | D192: SINAPI | E192: 3542 | F192: JOELHO PVC, SOLDAVEL, 90 GRAUS, 20 MM, PARA AGUA FRIA PREDIAL | G192: UN | H192: 24 | I192: =SUMIF('Composições (SINAPI)'!D:D,E192,'Composições (SINAPI)'!K:K) -> 0.3 | J192: 0.35 | K192: 8.4 | M192: 0.39 | N192: 0.3 | O192: 0.2308
B193: 3.1.16 | C193: INSUMO | D193: SINAPI | E193: 3529 | F193: JOELHO PVC, SOLDAVEL, 90 GRAUS, 25 MM, PARA AGUA FRIA PREDIAL | G193: UN | H193: 24 | I193: =SUMIF('Composições (SINAPI)'!D:D,E193,'Composições (SINAPI)'!K:K) -> 0.45 | J193: 0.53 | K193: 12.72 | M193: 0.58 | N193: 0.45 | O193: 0.2241
B194: 3.1.17 | C194: INSUMO | D194: ORSE | E194: 1194 | F194: JOELHO 90° FERRO GALVANIZADO D=2 " | G194: UN | H194: 40 | I194: =SUMIF('Composições (ORSE)'!D:D,E194,'Composições (ORSE)'!K:K) -> 21.58 | J194: 25.22 | K194: =ROUND(J194*H194,2) -> 1008.8 | M194: 27.57 | N194: 21.58 | O194: 0.2173
B195: 3.1.18 | C195: INSUMO | D195: SINAPI | E195: 1956 | F195: CURVA DE PVC 90 GRAUS, SOLDAVEL, 25 MM, PARA AGUA FRIA PREDIAL (NBR 5648) | G195: UN | H195: 40 | I195: =SUMIF('Composições (SINAPI)'!D:D,E195,'Composições (SINAPI)'!K:K) -> 1.86 | J195: 2.17 | K195: 86.8 | M195: 2.38 | N195: 1.86 | O195: 0.2185
B196: 3.1.19 | C196: INSUMO | D196: Comprasnet | E196: 20055 | F196: REGISTRO DE ESFERA, PVC, COM VOLANTE, VS, ROSCAVEL, DN 1", COM CORPO DIVIDIDO | G196: UN | H196: 24 | I196: =SUMIF('Composições (CODEVASF)'!D:D,E196,'Composições (CODEVASF)'!K:K) -> 8.11 | J196: 9.48 | K196: 227.52 | M196: 10.36 | N196: 8.11 | O196: 0.2172
B197: 3.1.20 | C197: INSUMO | D197: Comprasnet | E197: 11677 | F197: REGISTRO DE ESFERA, PVC, COM VOLANTE, VS, SOLDAVEL, DN 50 MM, COM CORPO DIVIDIDO | G197: UN | H197: 24 | I197: =SUMIF('Composições (CODEVASF)'!D:D,E197,'Composições (CODEVASF)'!K:K) -> 38.44 | J197: 44.93 | K197: 1078.32 | M197: 49.1 | N197: 38.44 | O197: 0.2171
B198: 3.1.21 | C198: INSUMO | D198: Comprasnet | E198: 11670 | F198: REGISTRO DE ESFERA, PVC, COM VOLANTE, VS, ROSCAVEL, DN 1/2", COM CORPO DIVIDIDO | G198: UN | H198: 60 | I198: =SUMIF('Composições (CODEVASF)'!D:D,E198,'Composições (CODEVASF)'!K:K) -> 2.68 | J198: 3.13 | K198: 187.8 | M198: 3.43 | N198: 2.68 | O198: 0.2187
B199: 3.1.22 | C199: INSUMO | D199: ORSE | E199: 1954 | F199: REGISTRO GAVETA BRUTO, C/ VOLANTE, D = 50MM (2") | G199: UN | H199: 32 | I199: =SUMIF('Composições (ORSE)'!D:D,E199,'Composições (ORSE)'!K:K) -> 71.62 | J199: 83.72 | K199: 2679.04 | M199: 91.48 | N199: 71.62 | O199: 0.2171
B200: 3.1.23 | C200: INSUMO | D200: ORSE | E200: 1951 | F200: REGISTRO GAVETA BRUTO, C/ VOLANTE, D = 25MM (1") | G200: UN | H200: 24 | I200: =SUMIF('Composições (ORSE)'!D:D,E200,'Composições (ORSE)'!K:K) -> 36.64 | J200: 42.83 | K200: 1027.92 | M200: 46.8 | N200: 36.64 | O200: 0.2171
B201: 3.1.24 | C201: INSUMO | D201: ORSE | E201: 1582 | F201: MANGUEIRA TRANÇADA DE ALTA PRESSÃO SPT 250P Ø = 3/4" | G201: M | H201: 240 | I201: =SUMIF('Composições (ORSE)'!D:D,E201,'Composições (ORSE)'!K:K) -> 3.59 | J201: 4.2 | K201: 1008 | M201: 4.59 | N201: 3.59 | O201: 0.2179
B202: 3.1.25 | C202: INSUMO | D202: SINAPI | E202: 20973 | F202: UNIAO TIPO STORZ, COM EMPATACAO INTERNA TIPO ANEL DE EXPANSAO, ENGATE RAPIDO 1 1/2", PARA MANGUEIRA DE COMBATE A INCENDIO PREDIAL | G202: UN | H202: 60 | I202: =SUMIF('Composições (SINAPI)'!D:D,E202,'Composições (SINAPI)'!K:K) -> 76.21 | J202: 89.08 | K202: 5344.8 | M202: 97.34 | N202: 76.21 | O202: 0.2171
B203: 3.1.26 | C203: INSUMO | D203: Comprasnet | E203: I8899 | F203: SENSOR DIGITAL DE PH, FAIXA 0 - 14 PH | G203: UN | H203: 4 | I203: =SUMIF('Composições (CODEVASF)'!D:D,E203,'Composições (CODEVASF)'!K:K) -> 432.26 | J203: 505.27 | K203: 2021.08 | M203: 552.06 | N203: 432.26 | O203: 0.217
... 209 more rows

Sheet Cronograma
D2: MINISTÉRIO DA INTEGRAÇÃO NACIONAL
D3: COMPANHIA DE DESENVOLVIMENTO DOS VALES DO SÃO FRANCISCO E DO PARNAÍBA
D4: 3ª GRR GERÊNCIA REGIONAL DE REVITALIZAÇÃO DAS BACIAS HIDROGRÁFICAS
B6: ='Planilha SERVIÇOS'!$B$4 -> EXECUÇÃO DOS SERVIÇOS RELATIVOS À 2ª ETAPA DOS SISTEMAS DE ABASTECIMENTO DE ÁGUA DE ASSENTAMENTO ALEGRE; BOA PAZ; BOM JESUS; UMBURANAS; RIACHO DA MADEIRA E ILHA DA VILA, LOCALIZADOS NO MUNICÍPIO DE OROCÓ, NO ESTADO DE PERNAMBUCO
B8: CRONOGRAMA FÍSICO-FINANCEIRO
B10: ITEM | C10: DESCRIÇÃO | D10: Valor (R$) | E10: M E S E S | O10: TOTAL
E11: 1º | F11: 2º | G11: 3º | H11: 4º | I11: 5º | J11: 6º | K11: 7º | L11: 8º | M11: 9º | N11: 10º
B13: 1 | C13: INSTALAÇÕES PRELIMINARES E CANTEIRO DE OBRAS | D13: ='Planilha SERVIÇOS'!K14 -> 458858.21 | E13: =$D13*E15 -> 20006.22 | F13: =$D13*F15 -> 37029.86 | G13: 63827.18 | H13: 70159.42 | I13: 76078.69 | J13: 70251.19 | K13: 38727.63 | L13: 22851.14 | M13: 18170.79 | N13: =$D13-SUM($E13:M13) -> 41756.09 | O13: =SUM(E13:N13) -> 458858.21
E15: 0.0436 | F15: 0.0807 | G15: 0.1391 | H15: 0.1529 | I15: 0.1658 | J15: 0.1531 | K15: 0.0844 | L15: 0.0498 | M15: 0.0396 | N15: =100%-SUM($E15:M15) -> 0.091 | O15: =SUM(E15:N15) -> 1
B17: 2 | C17: CAPTAÇÃO | D17: ='Planilha SERVIÇOS'!K27+'Planilha MATERIAIS'!K14 -> 674484.15 | E17: =$D17*E19 -> 33724.21 | F17: =$D17*F19 -> 33724.21 | G17: 67448.42 | H17: 134896.83 | I17: 202345.25 | J17: 134896.83 | K17: =$D17-SUM($E17:J17) -> 67448.4 | L17: 0 | M17: 0 | N17: 0 | O17: =SUM(E17:N17) -> 674484.15
E19: 0.05 | F19: 0.05 | G19: 0.1 | H19: 0.2 | I19: 0.3 | J19: 0.2 | K19: =100%-SUM($E19:J19) -> 0.1 | O19: =SUM(E19:N19) -> 1
B21: 3 | C21: ADUTORA DE ÁGUA BRUTA E DRENAGEM | D21: ='Planilha SERVIÇOS'!K269+'Planilha SERVIÇOS'!K98+'Planilha MATERIAIS'!K124 -> 1665718.01 | E21: =$D21*E23 -> 0 | F21: 83285.9 | G21: 249857.7 | H21: 333143.6 | I21: 333143.6 | J21: 333143.6 | K21: 166571.8 | L21: 83285.9 | M21: 49971.54 | N21: =$D21-SUM($E21:M21) -> 33314.37 | O21: =SUM(E21:N21) -> 1665718.01
F23: 0.05 | G23: 0.15 | H23: 0.2 | I23: 0.2 | J23: 0.2 | K23: 0.1 | L23: 0.05 | M23: 0.03 | N23: =100%-SUM($E23:M23) -> 0.02 | O23: =SUM(E23:N23) -> 1
B25: 4 | C25: ESTAÇÃO DE TRATAMENTO DE ÁGUA | D25: ='Planilha SERVIÇOS'!K143+'Planilha MATERIAIS'!K176 -> 1093940.57 | E25: =$D25*E27 -> 21878.81 | F25: 109394.06 | G25: 109394.06 | H25: 164091.09 | I25: 164091.09 | J25: 164091.09 | K25: 109394.06 | L25: 109394.06 | M25: 109394.06 | N25: =$D25-SUM($E25:M25) -> 32818.19 | O25: =SUM(E25:N25) -> 1093940.57
E27: 0.02 | F27: 0.1 | G27: 0.1 | H27: 0.15 | I27: 0.15 | J27: 0.15 | K27: 0.1 | L27: 0.1 | M27: 0.1 | N27: =100%-SUM($E27:M27) -> 0.03 | O27: =SUM(E27:N27) -> 1
B29: 5 | C29: LEITO DE SECAGEM | D29: ='Planilha SERVIÇOS'!K244 -> 255298.9 | E29: =$D29*E31 -> 0 | F29: 12764.95 | G29: 25529.89 | H29: 51059.78 | I29: 63824.73 | J29: 63824.73 | K29: 25529.89 | L29: =$D29-SUM($E29:K29) -> 12764.93 | M29: 0 | N29: 0 | O29: =SUM(E29:N29) -> 255298.9
F31: 0.05 | G31: 0.1 | H31: 0.2 | I31: 0.25 | J31: 0.25 | K31: 0.1 | L31: =100%-SUM($E31:K31) -> 0.05 | O31: =SUM(E31:N31) -> 1
B33: 6 | C33: RESERVATÓRIO | D33: ='Planilha SERVIÇOS'!$K$301+'Planilha SERVIÇOS'!$K$338+'Planilha MATERIAIS'!$K$292+'Planilha MATERIAIS'!$K$353 -> 411955.64 | E33: =$D33*E35 -> 0 | F33: 20597.78 | G33: 82391.13 | H33: 82391.13 | I33: 82391.13 | J33: 61793.35 | K33: 41195.56 | L33: 20597.78 | M33: =$D33-SUM($E33:L33) -> 20597.78 | N33: 0 | O33: =SUM(E33:N33) -> 411955.64
F35: 0.05 | G35: 0.2 | H35: 0.2 | I35: 0.2 | J35: 0.15 | K35: 0.1 | L35: 0.05 | M35: =100%-SUM($E35:L35) -> 0.05 | O35: =SUM(E35:N35) -> 1
B37: 7 | C37: REDE DE DISTRIBUIÇÃO | D37: ='Planilha SERVIÇOS'!$K$371+'Planilha MATERIAIS'!$K$377 -> 782078.78 | E37: =$D37*E39 -> 0 | F37: 39103.94 | G37: 117311.82 | H37: 156415.76 | I37: 156415.76 | J37: 156415.76 | K37: 78207.88 | L37: 39103.94 | M37: =$D37-SUM($E37:L37) -> 39103.92 | N37: 0 | O37: =SUM(E37:N37) -> 782078.78
F39: 0.05 | G39: 0.15 | H39: 0.2 | I39: 0.2 | J39: 0.2 | K39: 0.1 | L39: 0.05 | M39: =100%-SUM($E39:L39) -> 0.05 | O39: =SUM(E39:N39) -> 1
B41: 8 | C41: LIGAÇÕES DOMICILIARES | D41: ='Planilha SERVIÇOS'!$K$415 -> 177016.07 | E41: =$D41*E43 -> 0 | F41: 8850.8 | G41: 17701.61 | H41: 17701.61 | I41: 17701.61 | J41: 26552.41 | K41: 26552.41 | L41: 35403.21 | M41: 17701.61 | N41: =$D41-SUM($E41:M41) -> 8850.8 | O41: =SUM(E41:N41) -> 177016.07
F43: 0.05 | G43: 0.1 | H43: 0.1 | I43: 0.1 | J43: 0.15 | K43: 0.15 | L43: 0.2 | M43: 0.1 | N43: =100%-SUM($E43:M43) -> 0.05 | O43: =SUM(E43:N43) -> 1
D44: =D13+D17+D21+D25+D29+#REF!+D41+D33 ->  | E44: =E17+E21+E25+E29+#REF!+E33+E41 ->  | F44: =F17+F21+F25+F29+#REF!+F33+F41 ->  | G44: =G17+G21+G25+G29+#REF!+G33+G41 ->  | H44: =H17+H21+H25+H29+#REF!+H33+H41 ->  | I44: =I17+I21+I25+I29+#REF!+I33+I41 ->  | J44: =J17+J21+J25+J29+#REF!+J33+J41 ->  | K44: =K17+K21+K25+K29+#REF!+K33+K41 ->  | L44: =L17+L21+L25+L29+#REF!+L33+L41 ->  | M44: =M17+M21+M25+M29+#REF!+M33+M41 ->  | N44: =N17+N21+N25+N29+#REF!+N33+N41 ->  | O44: =SUM(E44:N44) -> 
C45: TOTAL MENSAL | E45: =E13+E17+E21+E25+E29+E33+E37+E41 -> 75609.24 | F45: =F13+F17+F21+F25+F29+F33+F37+F41 -> 344751.5 | G45: 733461.81 | H45: 1009859.22 | I45: 1095991.86 | J45: 1010968.96 | K45: 553627.63 | L45: 323400.96 | M45: 254939.7 | N45: 116739.45 | O45: =SUM(E45:N45) -> 5519350.33
C46: TOTAL ACUMULADO | E46: =E45 -> 75609.24 | F46: =E46+F45 -> 420360.74 | G46: =F46+G45 -> 1153822.55 | H46: 2163681.77 | I46: 3259673.63 | J46: 4270642.59 | K46: 4824270.22 | L46: 5147671.18 | M46: 5402610.88 | N46: 5519350.33 | O46: =O45 -> 5519350.33
C47: PERCENTUAL MENSAL | E47: =E45/$O$46 -> 0.0137 | F47: =F45/$O$46 -> 0.0625 | G47: 0.1329 | H47: 0.183 | I47: 0.1986 | J47: 0.1832 | K47: 0.1003 | L47: 0.0586 | M47: 0.0462 | N47: =100%-SUM(E47:M47) -> 0.021 | O47: =SUM(E47:N47) -> 1
C48: PERCENTUAL MENSAL ACUMULADO | E48: =E47 -> 0.0137 | F48: =E48+F47 -> 0.0762 | G48: 0.2091 | H48: 0.3921 | I48: 0.5907 | J48: 0.7739 | K48: 0.8742 | L48: 0.9328 | M48: 0.979 | N48: 1 | O48: =O47 -> 1

Sheet BDI's
B2: ='Planilha SERVIÇOS'!$F$2 -> COMPANHIA DE DESENVOLVIMENTO DOS VALES DO SÃO FRANCISCO E DO PARNAÍBA 3ª Superintendência Regional
B6: DETALHAMENTO DO BDI - SERVIÇOS (ACÓRDÃO Nº 2622/2013 - TCU - PLENÁRIO)
B7: ='Planilha SERVIÇOS'!$B$4 -> EXECUÇÃO DOS SERVIÇOS RELATIVOS À 2ª ETAPA DOS SISTEMAS DE ABASTECIMENTO DE ÁGUA DE ASSENTAMENTO ALEGRE; BOA PAZ; BOM JESUS; UMBURANAS; RIACHO DA MADEIRA E ILHA DA VILA, LOCALIZADOS NO MUNICÍPIO DE OROCÓ, NO ESTADO DE PERNAMBUCO
B11: Item | C11: Descrição dos Serviços | D11: % | E11: % | F11: % | G11: %
D12: LIMITE INFERIOR | E12: VALOR MÉDIO | F12: LIMITE SUPERIOR | G12: VALOR ADOTADO
B14: 1 | C14: ADMINISTRAÇÃO CENTRAL (AC) | D14: 0.0343 | E14: 0.0493 | F14: 0.0671 | G14: 0.0343
B16: 2 | C16: TRIBUTOS (T) | D16: =SUM(D17:D20) -> 0.0865 | E16: =SUM(E17:E20) -> 0.0865 | F16: =SUM(F17:F20) -> 0.0865 | G16: =SUM(G17:G20) -> 0.1315
B17: 2.1 | C17: ISS | D17: 0.05 | E17: 0.05 | F17: 0.05 | G17: 0.05
B18: 2.2 | C18: PIS | D18: 0.0065 | E18: 0.0065 | F18: 0.0065 | G18: 0.0065
B19: 2.3 | C19: Cofins | D19: 0.03 | E19: 0.03 | F19: 0.03 | G19: 0.03
B20: 2.4 | C20: CPRB | D20: 0 | E20: 0 | F20: 0 | G20: 0.045
B22: 3 | C22: SEGUROS, RISCOS E GARANTIAS | D22: =SUM(D23:D24) -> 0.0128 | E22: =SUM(E23:E24) -> 0.0188 | F22: =SUM(F23:F24) -> 0.0249 | G22: =SUM(G23:G24) -> 0.0128
B23: 3.1 | C23: Seguros + Garantias | D23: 0.0028 | E23: 0.0049 | F23: 0.0075 | G23: 0.0028
B24: 3.2 | C24: Riscos | D24: 0.01 | E24: 0.0139 | F24: 0.0174 | G24: 0.01
B26: 4 | C26: DESPESAS FINANCEIRAS (DF) | D26: 0.0094 | E26: 0.0099 | F26: 0.0117 | G26: 0.0094
B28: 5 | C28: LUCRO (L) | D28: 0.0674 | E28: 0.0804 | F28: 0.094 | G28: 0.0674
C30: BDI RECOMENDADO | D30: 0.2076 | E30: 0.2418 | F30: 0.2644
C32: BDI CALCULADO | G32: =((1+G14+G22)*(1+G26)*(1+G28)/(1-G16))-1 -> 0.299
C33: BDI ADOTADO | G33: =G32 -> 0.299
B34: ACÓRDÃO Nº 2622/2013 - TCU - PLENÁRIO:
B39: ='Planilha SERVIÇOS'!$F$2 -> COMPANHIA DE DESENVOLVIMENTO DOS VALES DO SÃO FRANCISCO E DO PARNAÍBA 3ª Superintendência Regional
B43: DETALHAMENTO DO BDI - MATERIAIS (ACÓRDÃO Nº 2622/2013 - TCU - PLENÁRIO)
B44: ='Planilha SERVIÇOS'!$B$4 -> EXECUÇÃO DOS SERVIÇOS RELATIVOS À 2ª ETAPA DOS SISTEMAS DE ABASTECIMENTO DE ÁGUA DE ASSENTAMENTO ALEGRE; BOA PAZ; BOM JESUS; UMBURANAS; RIACHO DA MADEIRA E ILHA DA VILA, LOCALIZADOS NO MUNICÍPIO DE OROCÓ, NO ESTADO DE PERNAMBUCO
B48: Item | C48: Descrição dos Serviços | D48: % | E48: % | F48: % | G48: %
D49: LIMITE INFERIOR | E49: VALOR MÉDIO | F49: LIMITE SUPERIOR | G49: VALOR ADOTADO
B51: 1 | C51: ADMINISTRAÇÃO CENTRAL (AC) | D51: 0.015 | E51: 0.0345 | F51: 0.0449 | G51: 0.02
B53: 2 | C53: TRIBUTOS (T) | D53: =SUM(D54:D57) -> 0.0365 | E53: =SUM(E54:E57) -> 0.0365 | F53: =SUM(F54:F57) -> 0.0365 | G53: =SUM(G54:G57) -> 0.0815
B54: 2.1 | C54: ISS | D54: 0 | E54: 0 | F54: 0 | G54: 0
B55: 2.2 | C55: PIS | D55: 0.0065 | E55: 0.0065 | F55: 0.0065 | G55: 0.0065
B56: 2.3 | C56: Cofins | D56: 0.03 | E56: 0.03 | F56: 0.03 | G56: 0.03
B57: 2.4 | C57: CPRB | D57: 0 | E57: 0 | F57: 0 | G57: 0.045
B59: 3 | C59: SEGUROS, RISCOS E GARANTIAS | D59: =SUM(D60:D61) -> 0.0086 | E59: =SUM(E60:E61) -> 0.0133 | F59: =SUM(F60:F61) -> 0.0171 | G59: =SUM(G60:G61) -> 0.0086
B60: 3.1 | C60: Seguros + Garantias | D60: 0.003 | E60: 0.0048 | F60: 0.0082 | G60: 0.003
B61: 3.2 | C61: Riscos | D61: 0.0056 | E61: 0.0085 | F61: 0.0089 | G61: 0.0056
B63: 4 | C63: DESPESAS FINANCEIRAS (DF) | D63: 0.0085 | E63: 0.0085 | F63: 0.0111 | G63: 0.0085
B65: 5 | C65: LUCRO (L) | D65: 0.035 | E65: 0.0511 | F65: 0.0622 | G65: 0.035
C67: BDI RECOMENDADO | D67: 0.111 | E67: 0.1402 | F67: 0.168
C69: BDI CALCULADO | G69: =((1+G51+G59)*(1+G63)*(1+G65)/(1-G53))-1 -> 0.1689
C70: BDI ADOTADO | G70: =G69 -> 0.1689
B71: ACÓRDÃO Nº 2622/2013 - TCU - PLENÁRIO:

Sheet Leis Sociais
B2: ='Planilha SERVIÇOS'!$B$4 -> EXECUÇÃO DOS SERVIÇOS RELATIVOS À 2ª ETAPA DOS SISTEMAS DE ABASTECIMENTO DE ÁGUA DE ASSENTAMENTO ALEGRE; BOA PAZ; BOM JESUS; UMBURANAS; RIACHO DA MADEIRA E ILHA DA VILA, LOCALIZADOS NO MUNICÍPIO DE OROCÓ, NO ESTADO DE PERNAMBUCO
B6: ENCARGOS SOCIAIS (%)
B8: Taxas de leis sociais e riscos do trabalho (%) | D8: COM DESONERAÇÃO | F8: SEM DESONERAÇÃO
D9: HORISTA | E9: MENSALISTA | F9: HORISTA | G9: MENSALISTA
B10: GRUPO A
B11: A1 | C11: INSS | D11: 0 | E11: 0 | F11: 20 | G11: 20
B12: A2 | C12: SESI | D12: 1.5 | E12: 1.5 | F12: 1.5 | G12: 1.5
B13: A3 | C13: SENAI | D13: 1 | E13: 1 | F13: 1 | G13: 1
B14: A4 | C14: INCRA | D14: 0.2 | E14: 0.2 | F14: 0.2 | G14: 0.2
B15: A5 | C15: SEBRAE | D15: 0.6 | E15: 0.6 | F15: 0.6 | G15: 0.6
B16: A6 | C16: Salário Educação | D16: 2.5 | E16: 2.5 | F16: 2.5 | G16: 2.5
B17: A7 | C17: Seguro Contra Acidentes de Trabalho | D17: 3 | E17: 3 | F17: 3 | G17: 3
B18: A8 | C18: FGTS | D18: 8 | E18: 8 | F18: 8 | G18: 8
B19: A9 | C19: SECONCI | D19: 0 | E19: 0 | F19: 0 | G19: 0
B20: A | C20: Total | D20: 16.8 | E20: 16.8 | F20: 36.8 | G20: 36.8
B22: GRUPO B
B23: B1 | C23: Repouso Semanal Remunerado | D23: 18.08 | E23: - | F23: 18.08 | G23: -
B24: B2 | C24: Feriados | D24: 4.34 | E24: - | F24: 4.34 | G24: -
B25: B3 | C25: Auxílio-enfermidade | D25: 0.92 | E25: 0.7 | F25: 0.92 | G25: 0.7
B26: B4 | C26: 13° salário | D26: 10.94 | E26: 8.33 | F26: 10.94 | G26: 8.33
B27: B5 | C27: Licença-paternidade | D27: 0.07 | E27: 0.05 | F27: 0.07 | G27: 0.05
B28: B6 | C28: Faltas Justificadas | D28: 0.73 | E28: 0.56 | F28: 0.73 | G28: 0.56
B29: B7 | C29: Dias de chuva | D29: 2.28 | E29: - | F29: 2.28 | G29: -
B30: B8 | C30: Auxílio Acidente de Trabalho | D30: 0.11 | E30: 0.08 | F30: 0.11 | G30: 0.08
B31: B9 | C31: Férias Gozadas | D31: 8.9 | E31: 6.78 | F31: 8.9 | G31: 6.78
B32: B10 | C32: Salário Maternidade | D32: 0.03 | E32: 0.02 | F32: 0.03 | G32: 0.02
B33: B | C33: Total | D33: 46.4 | E33: 16.52 | F33: 46.4 | G33: 16.52
B35: GRUPO C
B36: C1 | C36: Aviso Prévio Indenizado | D36: 5.65 | E36: 4.31 | F36: 5.65 | G36: 4.31
B37: C2 | C37: Aviso Prévio Trabalhado | D37: 0.13 | E37: 0.1 | F37: 0.13 | G37: 0.1
B38: C3 | C38: Férias Indenizadas | D38: 5.08 | E38: 3.87 | F38: 5.08 | G38: 3.87
B39: C4 | C39: Depósito Rescisão Sem Justa Causa | D39: 5.06 | E39: 3.85 | F39: 5.06 | G39: 3.85
B40: C5 | C40: Indenização Adicional | D40: 0.48 | E40: 0.36 | F40: 0.48 | G40: 0.36
B41: C | C41: Total | D41: 16.4 | E41: 12.49 | F41: 16.4 | G41: 12.49
B43: GRUPO D
B44: D1 | C44: Reincidência de A sobre B | D44: 7.8 | E44: 2.78 | F44: 17.08 | G44: 6.08
B45: D2 | C45: Reincidência de Grupo A sobre Aviso Prévio Trabalhado e Reincidência do FGTS sobre Aviso Prévio Indenizado | D45: 0.47 | E45: 0.36 | F45: 0.5 | G45: 0.38
B46: D | C46: Total | D46: 8.27 | E46: 3.14 | F46: 17.58 | G46: 6.46
B48: T O T A L (%) | D48: 87.87 | E48: 48.95 | F48: 117.18 | G48: 72.27
F50: =F48/D48 -> 1.33

Sheet Composições (SINAPI)
D3: COMPOSIÇÕES DE CUSTO UNITÁRIO (SINAPI)
D4: =CONCATENATE("Tabela de Custos: ",'Planilha SERVIÇOS'!$K$10) -> Tabela de Custos: MAI/2018
B6: SERVIÇO | C6: SINAPI | D6: 73822/2 | E6: =VLOOKUP(D6,SINAPI!$D:$G,2) -> LIMPEZA MECANIZADA DE TERRENO COM REMOCAO DE CAMADA VEGETAL, UTILIZANDO MOTONIVELADORA | I6: =VLOOKUP(D6,SINAPI!$D:$G,3) -> M2 | K6: =I20 -> 0.4 | L6: ='Planilha SERVIÇOS'!$M$15 -> 0.52
D8: COD. | E8: DESCRIÇÃO | F8: UN. | G8: COEF. | H8: PREÇO | I8: TOTAL
D9: MÃO-DE-OBRA
D10: 88316 | E10: SERVENTE (COM ENCARGOS INCLUSOS) | F10: H | G10: 0,0030000 | H10: =SUMIF(Insumos!B:B,D10,Insumos!G:G) -> 11.11 | I10: =TRUNC(G10*H10,2) -> 0.03
H11: =SUMIF(Insumos!B:B,D11,Insumos!G:G) -> 0 | I11: =TRUNC(G11*H11,2) -> 0
D12: PARCIAL: | I12: =SUM(I9:I11) -> 0.03
D13: MATERIAL/SERVIÇOS/ EQUIPAMENTOS
D14: 5932 | E14: MOTONIVELADORA POTÊNCIA BÁSICA LÍQUIDA (PRIMEIRA MARCHA) 125 HP, PESO BRUTO 13032 KG, LARGURA DA LÂMINA DE 3,7 M - CHP DIURNO. AF_06/2014 | F14: CHP | G14: 0,0030000 | H14: =SUMIF(Insumos!B:B,D14,Insumos!G:G) -> 127.42 | I14: =TRUNC(G14*H14,2)-0.01 -> 0.37
H15: =SUMIF(Insumos!B:B,D15,Insumos!G:G) -> 0 | I15: =TRUNC(G15*H15,2) -> 0
H16: =SUMIF(Insumos!B:B,D16,Insumos!G:G) -> 0 | I16: =TRUNC(G16*H16,2) -> 0
H17: =SUMIF(Insumos!B:B,D17,Insumos!G:G) -> 0 | I17: =TRUNC(G17*H17,2) -> 0
H18: =SUMIF(Insumos!B:B,D18,Insumos!G:G) -> 0 | I18: =TRUNC(G18*H18,2) -> 0
H19: PARCIAL: | I19: =SUM(I14:I18) -> 0.37
H20: VALOR UNITÁRIO TOTAL - R$ | I20: =I12+I19 -> 0.4
B24: SERVIÇO | C24: SINAPI | D24: 74209/1 | E24: =VLOOKUP(D24,SINAPI!$D:$G,2) -> PLACA DE OBRA EM CHAPA DE ACO GALVANIZADO | I24: =VLOOKUP(D24,SINAPI!$D:$G,3) -> M2 | K24: =I38 -> 248.77 | L24: 317.72
D26: COD. | E26: DESCRIÇÃO | F26: UN. | G26: COEF. | H26: PREÇO | I26: TOTAL
D27: MÃO-DE-OBRA
D28: 88262 | E28: CARPINTEIRO DE FORMAS (COM ENCARGOS INCLUSOS) | F28: H | G28: 1,0000000 | H28: =SUMIF(Insumos!B:B,D28,Insumos!G:G) -> 13.51 | I28: =TRUNC(G28*H28,2) -> 13.51
D29: 88316 | E29: SERVENTE (COM ENCARGOS INCLUSOS) | F29: H | G29: 2,0000000 | H29: =SUMIF(Insumos!B:B,D29,Insumos!G:G) -> 11.11 | I29: =TRUNC(G29*H29,2) -> 22.22
D30: PARCIAL: | I30: =SUM(I27:I29) -> 35.73
D31: MATERIAL/SERVIÇOS/ EQUIPAMENTOS
D32: 4417 | E32: SARRAFO DE MADEIRA NAO APARELHADA *2,5 X 7* CM, MACARANDUBA, ANGELIM OU EQUIVALENTE DA REGIAO | F32: M | G32: 1,0000000 | H32: =SUMIF(Insumos!B:B,D32,Insumos!G:G) -> 4.25 | I32: =TRUNC(G32*H32,2)+0.01 -> 4.26
D33: 4491 | E33: PECA DE MADEIRA NATIVA / REGIONAL 7,5 X 7,5CM (3X3) NAO APARELHADA (P/FORMA) | F33: M | G33: 4,0000000 | H33: =SUMIF(Insumos!B:B,D33,Insumos!G:G) -> 5.01 | I33: =TRUNC(G33*H33,2) -> 20.04
D34: 4813 | E34: PLACA DE OBRA (PARA CONSTRUCAO CIVIL) EM CHAPA GALVANIZADA *N. 22*, DE *2,0 X 1,125* M | F34: M2 | G34: 1,0000000 | H34: =SUMIF(Insumos!B:B,D34,Insumos!G:G) -> 185.96 | I34: =TRUNC(G34*H34,2) -> 185.96
D35: 5075 | E35: PREGO DE ACO POLIDO COM CABECA 18 X 30 (2 3/4 X 10) | F35: KG | G35: 0,1100000 | H35: =SUMIF(Insumos!B:B,D35,Insumos!G:G) -> 8.04 | I35: =TRUNC(G35*H35,2) -> 0.88
D36: 94962 | E36: CONCRETO MAGRO PARA LASTRO, TRAÇO 1:4,5:4,5 (CIMENTO/ AREIA MÉDIA/ BRITA 1) - PREPARO MECÂNICO COM BETONEIRA 400 L. AF_07/2016 | F36: M3 | G36: 0,0100000 | H36: =SUMIF(Insumos!B:B,D36,Insumos!G:G) -> 190.39 | I36: =TRUNC(G36*H36,2) -> 1.9
H37: PARCIAL: | I37: =SUM(I32:I36) -> 213.04
H38: VALOR UNITÁRIO TOTAL - R$ | I38: =I30+I37 -> 248.77
B42: SERVIÇO | C42: SINAPI | D42: 72871 | E42: =VLOOKUP(D42,SINAPI!$D:$G,2) -> MOBILIZACAO E INSTALACAO DE 01 EQUIPAMENTO DE SONDAGEM, DISTANCIA ATE 10KM | I42: =VLOOKUP(D42,SINAPI!$D:$G,3) -> UN | K42: =I53 -> 265.49 | L42: 339.07
D44: COD. | E44: DESCRIÇÃO | F44: UN. | G44: COEF. | H44: PREÇO | I44: TOTAL
D45: MÃO-DE-OBRA
D46: 88316 | E46: SERVENTE (COM ENCARGOS INCLUSOS) | F46: H | G46: 6,0000000 | H46: =SUMIF(Insumos!B:B,D46,Insumos!G:G) -> 11.11 | I46: =TRUNC(G46*H46,2) -> 66.66
D47: 88322 | E47: TÉCNICO DE SONDAGEM (COM ENCARGOS INCLUSOS) | F47: H | G47: 3,0000000 | H47: =SUMIF(Insumos!B:B,D47,Insumos!G:G) -> 30.06 | I47: =TRUNC(G47*H47,2) -> 90.18
D48: PARCIAL: | I48: =SUM(I45:I47) -> 156.84
D49: MATERIAL/SERVIÇOS/ EQUIPAMENTOS
D50: 5824 | E50: CAMINHÃO TOCO, PBT 16.000 KG, CARGA ÚTIL MÁX. 10.685 KG, DIST. ENTRE EIXOS 4,8 M, POTÊNCIA 189 CV, INCLUSIVE CARROCERIA FIXA ABERTA DE MADEIRA P/ TRANSPORTE GERAL DE CARGA SECA, DIMEN. APROX. 2,5 X 7,00 X 0,50 M - CHP DIURNO. AF_06/2014 | F50: CHP | G50: 1,0000000 | H50: =SUMIF(Insumos!B:B,D50,Insumos!G:G) -> 108.65 | I50: =TRUNC(G50*H50,2) -> 108.65
H51: =SUMIF(Insumos!B:B,D51,Insumos!G:G) -> 0 | I51: =TRUNC(G51*H51,2) -> 0
H52: PARCIAL: | I52: =SUM(I50:I51) -> 108.65
H53: VALOR UNITÁRIO TOTAL - R$ | I53: =I48+I52 -> 265.49
B57: SERVIÇO | C57: SINAPI | D57: 73948/16 | E57: =VLOOKUP(D57,SINAPI!$D:$G,2) -> LIMPEZA MANUAL DO TERRENO (C/ RASPAGEM SUPERFICIAL) | I57: =VLOOKUP(D57,SINAPI!$D:$G,3) -> M2 | K57: =I68 -> 2.77 | L57: 3.54
D59: COD. | E59: DESCRIÇÃO | F59: UN. | G59: COEF. | H59: PREÇO | I59: TOTAL
D60: MÃO-DE-OBRA
D61: 88316 | E61: SERVENTE (COM ENCARGOS INCLUSOS) | F61: H | G61: 0,2500000 | H61: =SUMIF(Insumos!B:B,D61,Insumos!G:G) -> 11.11 | I61: =TRUNC(G61*H61,2) -> 2.77
H62: =SUMIF(Insumos!B:B,D62,Insumos!G:G) -> 0 | I62: =TRUNC(G62*H62,2) -> 0
D63: PARCIAL: | I63: =SUM(I60:I62) -> 2.77
D64: MATERIAL/SERVIÇOS/ EQUIPAMENTOS
H65: =SUMIF(Insumos!B:B,D65,Insumos!G:G) -> 0 | I65: =TRUNC(G65*H65,2) -> 0
H66: =SUMIF(Insumos!B:B,D66,Insumos!G:G) -> 0 | I66: =TRUNC(G66*H66,2) -> 0
H67: PARCIAL: | I67: =SUM(I65:I66) -> 0
H68: VALOR UNITÁRIO TOTAL - R$ | I68: =I63+I67 -> 2.77
B72: SERVIÇO | C72: SINAPI | D72: 73859/2 | E72: =VLOOKUP(D72,SINAPI!$D:$G,2) -> CAPINA E LIMPEZA MANUAL DE TERRENO | I72: =VLOOKUP(D72,SINAPI!$D:$G,3) -> M2 | K72: =I86 -> 0.88 | L72: 1.13
D74: COD. | E74: DESCRIÇÃO | F74: UN. | G74: COEF. | H74: PREÇO | I74: TOTAL
D75: MÃO-DE-OBRA
D76: 88316 | E76: SERVENTE (COM ENCARGOS INCLUSOS) | F76: H | G76: 0,0800000 | H76: =SUMIF(Insumos!B:B,D76,Insumos!G:G) -> 11.11 | I76: =TRUNC(G76*H76,2) -> 0.88
H77: =SUMIF(Insumos!B:B,D77,Insumos!G:G) -> 0 | I77: =TRUNC(G77*H77,2) -> 0
D78: PARCIAL: | I78: =SUM(I75:I77) -> 0.88
D79: MATERIAL/SERVIÇOS/ EQUIPAMENTOS
H80: =SUMIF(Insumos!B:B,D80,Insumos!G:G) -> 0 | I80: =TRUNC(G80*H80,2) -> 0
H81: =SUMIF(Insumos!B:B,D81,Insumos!G:G) -> 0 | I81: =TRUNC(G81*H81,2) -> 0
H82: =SUMIF(Insumos!B:B,D82,Insumos!G:G) -> 0 | I82: =TRUNC(G82*H82,2) -> 0
H83: =SUMIF(Insumos!B:B,D83,Insumos!G:G) -> 0 | I83: =TRUNC(G83*H83,2) -> 0
H84: =SUMIF(Insumos!B:B,D84,Insumos!G:G) -> 0 | I84: =TRUNC(G84*H84,2) -> 0
H85: PARCIAL: | I85: =SUM(I80:I84) -> 0
H86: VALOR UNITÁRIO TOTAL - R$ | I86: =I78+I85 -> 0.88
B90: SERVIÇO | C90: SINAPI | D90: 73672 | E90: =VLOOKUP(D90,SINAPI!$D:$G,2) -> DESMATAMENTO E LIMPEZA MECANIZADA DE TERRENO COM ARVORES ATE Ø 15CM, UTILIZANDO TRATOR DE ESTEIRAS | I90: =VLOOKUP(D90,SINAPI!$D:$G,3) -> M2 | K90: =I104 -> 0.28 | L90: 0.36
D92: COD. | E92: DESCRIÇÃO | F92: UN. | G92: COEF. | H92: PREÇO | I92: TOTAL
D93: MÃO-DE-OBRA
D94: 88316 | E94: SERVENTE (COM ENCARGOS INCLUSOS) | F94: H | G94: 0.0026001 | H94: =SUMIF(Insumos!B:B,D94,Insumos!G:G) -> 11.11 | I94: =TRUNC(G94*H94,2) -> 0.02
H95: =SUMIF(Insumos!B:B,D95,Insumos!G:G) -> 0 | I95: =TRUNC(G95*H95,2) -> 0
D96: PARCIAL: | I96: =SUM(I93:I95) -> 0.02
D97: MATERIAL/SERVIÇOS/ EQUIPAMENTOS
D98: 5851 | E98: TRATOR DE ESTEIRAS, POTÊNCIA 150 HP, PESO OPERACIONAL 16,7 T, COM RODA MOTRIZ ELEVADA E LÂMINA 3,18 M3 - CHP DIURNO. AF_06/2014 | F98: CHP | G98: 0,0020000 | H98: =SUMIF(Insumos!B:B,D98,Insumos!G:G) -> 133.91 | I98: =TRUNC(G98*H98,2) -> 0.26
H99: =SUMIF(Insumos!B:B,D99,Insumos!G:G) -> 0 | I99: =TRUNC(G99*H99,2) -> 0
H100: =SUMIF(Insumos!B:B,D100,Insumos!G:G) -> 0 | I100: =TRUNC(G100*H100,2) -> 0
H101: =SUMIF(Insumos!B:B,D101,Insumos!G:G) -> 0 | I101: =TRUNC(G101*H101,2) -> 0
H102: =SUMIF(Insumos!B:B,D102,Insumos!G:G) -> 0 | I102: =TRUNC(G102*H102,2) -> 0
H103: PARCIAL: | I103: =SUM(I98:I102) -> 0.26
H104: VALOR UNITÁRIO TOTAL - R$ | I104: =I96+I103 -> 0.28
B108: SERVIÇO | C108: SINAPI | D108: 73992/1 | E108: =VLOOKUP(D108,SINAPI!$D:$G,2) -> LOCACAO CONVENCIONAL DE OBRA, ATRAVÉS DE GABARITO DE TABUAS CORRIDAS PONTALETADAS A CADA 1,50M, SEM REAPROVEITAMENTO | I108: =VLOOKUP(D108,SINAPI!$D:$G,3) -> M2 | K108: =I122 -> 6.49 | L108: 8.3
D110: COD. | E110: DESCRIÇÃO | F110: UN. | G110: COEF. | H110: PREÇO | I110: TOTAL
D111: MÃO-DE-OBRA
D112: 88262 | E112: CARPINTEIRO DE FORMAS (COM ENCARGOS INCLUSOS) | F112: H | G112: 0.1 | H112: =SUMIF(Insumos!B:B,D112,Insumos!G:G) -> 13.51 | I112: =TRUNC(G112*H112,2) -> 1.35
D113: 88316 | E113: SERVENTE (COM ENCARGOS INCLUSOS) | F113: H | G113: 0.1 | H113: =SUMIF(Insumos!B:B,D113,Insumos!G:G) -> 11.11 | I113: =TRUNC(G113*H113,2) -> 1.11
D114: PARCIAL: | I114: =SUM(I111:I113) -> 2.46
D115: MATERIAL/SERVIÇOS/ EQUIPAMENTOS
D116: 337 | E116: ARAME RECOZIDO 18 BWG, 1,25 MM (0,01 KG/M) | F116: KG | G116: 0.02 | H116: =SUMIF(Insumos!B:B,D116,Insumos!G:G) -> 7.37 | I116: =TRUNC(G116*H116,2)-0.01 -> 0.13
D117: 4491 | E117: PECA DE MADEIRA NATIVA / REGIONAL 7,5 X 7,5CM (3X3) NAO APARELHADA (P/FORMA) | F117: M | G117: 0.17 | H117: =SUMIF(Insumos!B:B,D117,Insumos!G:G) -> 5.01 | I117: =TRUNC(G117*H117,2) -> 0.85
D118: 5061 | E118: PREGO DE ACO POLIDO COM CABECA 18 X 27 (2 1/2 X 10) | F118: KG | G118: 0.01 | H118: =SUMIF(Insumos!B:B,D118,Insumos!G:G) -> 7.91 | I118: =TRUNC(G118*H118,2) -> 0.07
D119: 6189 | E119: TABUA MADEIRA 2A QUALIDADE 2,5 X 30,0CM (1 X 12") NAO APARELHADA | F119: M | G119: 0.238 | H119: =SUMIF(Insumos!B:B,D119,Insumos!G:G) -> 12.54 | I119: =TRUNC(G119*H119,2) -> 2.98
H120: =SUMIF(Insumos!B:B,D120,Insumos!G:G) -> 0 | I120: =TRUNC(G120*H120,2) -> 0
H121: PARCIAL: | I121: =SUM(I116:I120) -> 4.03
H122: VALOR UNITÁRIO TOTAL - R$ | I122: =I114+I121 -> 6.49
B126: SERVIÇO | C126: SINAPI | D126: 72915 | E126: =VLOOKUP(D126,SINAPI!$D:$G,2) -> ESCAVACAO MECANICA DE VALA EM MATERIAL DE 2A. CATEGORIA ATE 2 M DE PROFUNDIDADE COM UTILIZACAO DE ESCAVADEIRA HIDRAULICA | I126: =VLOOKUP(D126,SINAPI!$D:$G,3) -> M3 | K126: =I140 -> 8.32 | L126: 10.63
D128: COD. | E128: DESCRIÇÃO | F128: UN. | G128: COEF. | H128: PREÇO | I128: TOTAL
D129: MÃO-DE-OBRA
D130: 88316 | E130: SERVENTE (COM ENCARGOS INCLUSOS) | F130: H | G130: 0.125 | H130: =SUMIF(Insumos!B:B,D130,Insumos!G:G) -> 11.11 | I130: =TRUNC(G130*H130,2) -> 1.38
H131: =SUMIF(Insumos!B:B,D131,Insumos!G:G) -> 0 | I131: =TRUNC(G131*H131,2) -> 0
D132: PARCIAL: | I132: =SUM(I129:I131) -> 1.38
D133: MATERIAL/SERVIÇOS/ EQUIPAMENTOS
D134: 90991 | E134: ESCAVADEIRA HIDRÁULICA SOBRE ESTEIRAS, CAÇAMBA 0,80 M3, PESO OPERACIONAL 17,8 T, POTÊNCIA LÍQUIDA 110 HP - CHP DIURNO. AF_10/2014 | F134: CHP | G134: 0,0625000 | H134: =SUMIF(Insumos!B:B,D134,Insumos!G:G) -> 111.02 | I134: =TRUNC(G134*H134,2)+0.01 -> 6.94
H135: =SUMIF(Insumos!B:B,D135,Insumos!G:G) -> 0 | I135: =TRUNC(G135*H135,2) -> 0
H136: =SUMIF(Insumos!B:B,D136,Insumos!G:G) -> 0 | I136: =TRUNC(G136*H136,2) -> 0
H137: =SUMIF(Insumos!B:B,D137,Insumos!G:G) -> 0 | I137: =TRUNC(G137*H137,2) -> 0
H138: =SUMIF(Insumos!B:B,D138,Insumos!G:G) -> 0 | I138: =TRUNC(G138*H138,2) -> 0
H139: PARCIAL: | I139: =SUM(I134:I138) -> 6.94
H140: VALOR UNITÁRIO TOTAL - R$ | I140: =I132+I139 -> 8.32
B144: SERVIÇO | C144: SINAPI | D144: 93379 | E144: =VLOOKUP(D144,SINAPI!$D:$G,2) -> REATERRO MECANIZADO DE VALA COM RETROESCAVADEIRA (CAPACIDADE DA CAÇAMBA DA RETRO: 0,26 M³ / POTÊNCIA: 88 HP), LARGURA DE 0,8 A 1,5 M, PROFUNDIDADE ATÉ 1,5 M, COM SOLO (SEM SUBSTITUIÇÃO) DE 1ª CATEGORIA EM LOCAIS COM BAIXO NÍVEL DE INTERFERÊNCIA. AF_04/2016 | I144: =VLOOKUP(D144,SINAPI!$D:$G,3) -> M3 | K144: =I158 -> 13.09 | L144: 16.72
D146: COD. | E146: DESCRIÇÃO | F146: UN. | G146: COEF. | H146: PREÇO | I146: TOTAL
D147: MÃO-DE-OBRA
D148: 88316 | E148: SERVENTE (COM ENCARGOS INCLUSOS) | F148: H | G148: 0,0280000 | H148: =SUMIF(Insumos!B:B,D148,Insumos!G:G) -> 11.11 | I148: =TRUNC(G148*H148,2) -> 0.31
H149: =SUMIF(Insumos!B:B,D149,Insumos!G:G) -> 0 | I149: =TRUNC(G149*H149,2) -> 0
D150: PARCIAL: | I150: =SUM(I147:I149) -> 0.31
D151: MATERIAL/SERVIÇOS/ EQUIPAMENTOS
D152: 5678 | E152: RETROESCAVADEIRA SOBRE RODAS COM CARREGADEIRA, TRAÇÃO 4X4, POTÊNCIA LÍQ. 88 HP, CAÇAMBA CARREG. CAP. MÍN. 1 M3, CAÇAMBA RETRO CAP. 0,26 M3, PESO OPERACIONAL MÍN. 6.674 KG, PROFUNDIDADE ESCAVAÇÃO MÁX. 4,37 M - CHP DIURNO. AF_06/2014 | F152: CHP | G152: 0,0300000 | H152: =SUMIF(Insumos!B:B,D152,Insumos!G:G) -> 87.88 | I152: =TRUNC(G152*H152,2) -> 2.63
D153: 5679 | E153: RETROESCAVADEIRA SOBRE RODAS COM CARREGADEIRA, TRAÇÃO 4X4, POTÊNCIA LÍQ. 88 HP, CAÇAMBA CARREG. CAP. MÍN. 1 M3, CAÇAMBA RETRO CAP. 0,26 M3, PESO OPERACIONAL MÍN. 6.674 KG, PROFUNDIDADE ESCAVAÇÃO MÁX. 4,37 M - CHI DIURNO. AF_06/2014 | F153: CHI | G153: 0,0390000 | H153: =SUMIF(Insumos!B:B,D153,Insumos!G:G) -> 39.72 | I153: =TRUNC(G153*H153,2) -> 1.54
D154: 91533 | E154: COMPACTADOR DE SOLOS DE PERCUSSÃO (SOQUETE) COM MOTOR A GASOLINA 4 TEMPOS, POTÊNCIA 4 CV - CHP DIURNO. AF_08/2015 | F154: CHP | G154: 0,1580000 | H154: =SUMIF(Insumos!B:B,D154,Insumos!G:G) -> 26.31 | I154: =TRUNC(G154*H154,2) -> 4.15
D155: 91534 | E155: COMPACTADOR DE SOLOS DE PERCUSSÃO (SOQUETE) COM MOTOR A GASOLINA 4 TEMPOS, POTÊNCIA 4 CV - CHI DIURNO. AF_08/2015 | F155: CHI | G155: 0,1470000 | H155: =SUMIF(Insumos!B:B,D155,Insumos!G:G) -> 23.7 | I155: =TRUNC(G155*H155,2) -> 3.48
D156: 95606 | E156: UMIDIFICAÇÃO DE MATERIAL PARA VALAS COM CAMINHÃO PIPA 10000L. AF_11/2016 | F156: M3 | G156: 1,0000000 | H156: =SUMIF(Insumos!B:B,D156,Insumos!G:G) -> 0.99 | I156: =TRUNC(G156*H156,2)-0.01 -> 0.98
H157: PARCIAL: | I157: =SUM(I152:I156) -> 12.78
H158: VALOR UNITÁRIO TOTAL - R$ | I158: =I150+I157 -> 13.09
B162: SERVIÇO | C162: SINAPI | D162: 95467 | E162: EMBASAMENTO C/PEDRA ARGAMASSADA UTILIZANDO ARG.CIM/AREIA 1:4 | I162: ='Planilha SERVIÇOS'!$G$41 -> M3 | K162: =I176 -> 275.33 | L162: 352.25
D164: COD. | E164: DESCRIÇÃO | F164: UN. | G164: COEF. | H164: PREÇO | I164: TOTAL
D165: MÃO-DE-OBRA
D166: 88309 | E166: PEDREIRO (COM ENCARGOS INCLUSOS) | F166: H | G166: 6,0000000 | H166: =SUMIF(Insumos!B:B,D166,Insumos!G:G) -> 13.51 | I166: =TRUNC(G166*H166,2) -> 81.06
D167: 88316 | E167: SERVENTE (COM ENCARGOS INCLUSOS) | F167: H | G167: 6,0000000 | H167: =SUMIF(Insumos!B:B,D167,Insumos!G:G) -> 11.11 | I167: =TRUNC(G167*H167,2) -> 66.66
D168: PARCIAL: | I168: =SUM(I165:I167) -> 147.72
D169: MATERIAL/SERVIÇOS/ EQUIPAMENTOS
D170: 4730 | E170: PEDRA DE MAO OU PEDRA RACHAO PARA ARRIMO/FUNDACAO (POSTO PEDREIRA/FORNECEDOR, SEM FRETE) | F170: M3 | G170: 1,1000000 | H170: =SUMIF(Insumos!B:B,D170,Insumos!G:G) -> 45.34 | I170: =TRUNC(G170*H170,2)+0.01 -> 49.88
D171: 87316 | E171: ARGAMASSA TRAÇO 1:4 (CIMENTO E AREIA GROSSA) PARA CHAPISCO CONVENCIONAL, PREPARO MECÂNICO COM BETONEIRA 400 L. AF_06/2014 | F171: M3 | G171: 0,3000000 | H171: =SUMIF(Insumos!B:B,D171,Insumos!G:G) -> 259.07 | I171: =TRUNC(G171*H171,2)+0.01 -> 77.73
H172: =SUMIF(Insumos!B:B,D172,Insumos!G:G) -> 0 | I172: =TRUNC(G172*H172,2) -> 0
H173: =SUMIF(Insumos!B:B,D173,Insumos!G:G) -> 0 | I173: =TRUNC(G173*H173,2) -> 0
H174: =SUMIF(Insumos!B:B,D174,Insumos!G:G) -> 0 | I174: =TRUNC(G174*H174,2) -> 0
H175: PARCIAL: | I175: =SUM(I170:I174) -> 127.61
H176: VALOR UNITÁRIO TOTAL - R$ | I176: =I168+I175 -> 275.33
B180: SERVIÇO | C180: SINAPI | D180: 83518 | E180: ='Planilha SERVIÇOS'!F42 -> ALVENARIA EMBASAMENTO E=20 CM BLOCO CONCRETO | I180: ='Planilha SERVIÇOS'!$G$42 -> M3 | K180: =I194 -> 224.71 | L180: 287.37
D182: COD. | E182: DESCRIÇÃO | F182: UN. | G182: COEF. | H182: PREÇO | I182: TOTAL
D183: MÃO-DE-OBRA
D184: 88309 | E184: PEDREIRO (COM ENCARGOS INCLUSOS) | F184: H | G184: 3,7000000 | H184: =SUMIF(Insumos!B:B,D184,Insumos!G:G) -> 13.51 | I184: =TRUNC(G184*H184,2) -> 49.98
D185: 88316 | E185: SERVENTE (COM ENCARGOS INCLUSOS) | F185: H | G185: 3,7000000 | H185: =SUMIF(Insumos!B:B,D185,Insumos!G:G) -> 11.11 | I185: =TRUNC(G185*H185,2) -> 41.1
D186: PARCIAL: | I186: =SUM(I183:I185) -> 91.08
D187: MATERIAL/SERVIÇOS/ EQUIPAMENTOS
D188: 654 | E188: BLOCO VEDACAO CONCRETO 19 X 19 X 39 CM (CLASSE C - NBR 6136) | F188: UN | G188: 62,5000000 | H188: =SUMIF(Insumos!B:B,D188,Insumos!G:G) -> 1.84 | I188: =TRUNC(G188*H188,2)+0.01 -> 115.01
D189: 88631 | E189: ARGAMASSA TRAÇO 1:4 (CIMENTO E AREIA MÉDIA), PREPARO MANUAL. AF_08/2014 | F189: M3 | G189: 0,0700000 | H189: =SUMIF(Insumos!B:B,D189,Insumos!G:G) -> 265.91 | I189: =TRUNC(G189*H189,2)+0.01 -> 18.62
H190: =SUMIF(Insumos!B:B,D190,Insumos!G:G) -> 0 | I190: =TRUNC(G190*H190,2) -> 0
H191: =SUMIF(Insumos!B:B,D191,Insumos!G:G) -> 0 | I191: =TRUNC(G191*H191,2) -> 0
H192: =SUMIF(Insumos!B:B,D192,Insumos!G:G) -> 0 | I192: =TRUNC(G192*H192,2) -> 0
H193: PARCIAL: | I193: =SUM(I188:I192) -> 133.63
H194: VALOR UNITÁRIO TOTAL - R$ | I194: =I186+I193 -> 224.71
B198: SERVIÇO | C198: SINAPI | D198: 97622 | E198: ='Planilha SERVIÇOS'!$F$48 -> DEMOLIÇÃO DE ALVENARIA DE BLOCO FURADO, DE FORMA MANUAL, SEM REAPROVEITAMENTO. AF_12/2017 | I198: ='Planilha SERVIÇOS'!$G$48 -> M3 | K198: =I212 -> 28.85 | L198: 36.88
D200: COD. | E200: DESCRIÇÃO | F200: UN. | G200: COEF. | H200: PREÇO | I200: TOTAL
D201: MÃO-DE-OBRA
D202: 88309 | E202: PEDREIRO (COM ENCARGOS INCLUSOS) | F202: H | G202: 0,2250000 | H202: =SUMIF(Insumos!B:B,D202,Insumos!G:G) -> 13.51 | I202: =TRUNC(G202*H202,2) -> 3.03
D203: 88316 | E203: SERVENTE (COM ENCARGOS INCLUSOS) | F203: H | G203: 2,3248000 | H203: =SUMIF(Insumos!B:B,D203,Insumos!G:G) -> 11.11 | I203: =TRUNC(G203*H203,2) -> 25.82
D204: PARCIAL: | I204: =SUM(I201:I203) -> 28.85
D205: MATERIAL/SERVIÇOS/ EQUIPAMENTOS
H206: =SUMIF(Insumos!B:B,D206,Insumos!G:G) -> 0 | I206: =TRUNC(G206*H206,2) -> 0
H207: =SUMIF(Insumos!B:B,D207,Insumos!G:G) -> 0 | I207: =TRUNC(G207*H207,2) -> 0
H208: =SUMIF(Insumos!B:B,D208,Insumos!G:G) -> 0 | I208: =TRUNC(G208*H208,2) -> 0
H209: =SUMIF(Insumos!B:B,D209,Insumos!G:G) -> 0 | I209: =TRUNC(G209*H209,2) -> 0
H210: =SUMIF(Insumos!B:B,D210,Insumos!G:G) -> 0 | I210: =TRUNC(G210*H210,2) -> 0
H211: PARCIAL: | I211: =SUM(I206:I210) -> 0
H212: VALOR UNITÁRIO TOTAL - R$ | I212: =I204+I211 -> 28.85
B216: SERVIÇO | C216: SINAPI | D216: 94438 | E216: ='Planilha SERVIÇOS'!$F$49 -> (COMPOSIÇÃO REPRESENTATIVA) DO SERVIÇO DE CONTRAPISO EM ARGAMASSA TRAÇO 1:4 (CIM E AREIA), EM BETONEIRA 400 L, ESPESSURA 3 CM ÁREAS SECAS E 3 CM ÁREAS MOLHADAS, PARA EDIFICAÇÃO HABITACIONAL UNIFAMILIAR (CASA) E EDIFICAÇÃO PÚBLICA PADRÃO. AF_11/2014 | I216: ='Planilha SERVIÇOS'!$G$49 -> M2 | K216: =I229 -> 25.54 | L216: 32.62
D219: COD. | E219: DESCRIÇÃO | F219: UN. | G219: COEF. | H219: PREÇO | I219: TOTAL
D220: MÃO-DE-OBRA
H221: =SUMIF(Insumos!B:B,D221,Insumos!G:G) -> 0 | I221: =TRUNC(G221*H221,2) -> 0
H222: =SUMIF(Insumos!B:B,D222,Insumos!G:G) -> 0 | I222: =TRUNC(G222*H222,2) -> 0
D223: PARCIAL: | I223: =SUM(I220:I222) -> 0
D224: MATERIAL/SERVIÇOS/ EQUIPAMENTOS
D225: 87630 | E225: CONTRAPISO EM ARGAMASSA TRAÇO 1:4 (CIMENTO E AREIA), PREPARO MECÂNICO COM BETONEIRA 400 L, APLICADO EM ÁREAS SECAS SOBRE LAJE, ADERIDO, ESPESSURA 3CM. AF_06/2014 | F225: M2 | G225: 0,6381000 | H225: =SUMIF(Insumos!B:B,D225,Insumos!G:G) -> 24.04 | I225: =TRUNC(G225*H225,2)+0.01 -> 15.34
D226: 87745 | E226: CONTRAPISO EM ARGAMASSA TRAÇO 1:4 (CIMENTO E AREIA), PREPARO MECÂNICO COM BETONEIRA 400 L, APLICADO EM ÁREAS MOLHADAS SOBRE LAJE, ADERIDO, ESPESSURA 3CM. AF_06/2014 | F226: M2 | G226: 0,1996000 | H226: =SUMIF(Insumos!B:B,D226,Insumos!G:G) -> 29.78 | I226: =TRUNC(G226*H226,2) -> 5.94
D227: 87755 | E227: CONTRAPISO EM ARGAMASSA TRAÇO 1:4 (CIMENTO E AREIA), PREPARO MECÂNICO COM BETONEIRA 400 L, APLICADO EM ÁREAS MOLHADAS SOBRE IMPERMEABILIZAÇÃO, ESPESSURA 3CM. AF_06/2014 | F227: M2 | G227: 0,1623000 | H227: =SUMIF(Insumos!B:B,D227,Insumos!G:G) -> 26.3 | I227: =TRUNC(G227*H227,2) -> 4.26
H228: PARCIAL: | I228: =SUM(I225:I227) -> 25.54
H229: VALOR UNITÁRIO TOTAL - R$ | I229: =I223+I228 -> 25.54
B233: SERVIÇO | C233: SINAPI | D233: 98680 | E233: ='Planilha SERVIÇOS'!$F$50 -> PISO CIMENTADO, TRAÇO 1:3 (CIMENTO E AREIA), ACABAMENTO LISO, ESPESSURA 3,0 CM, PREPARO MECÂNICO DA ARGAMASSA. AF_06/2018 | I233: ='Planilha SERVIÇOS'!$G$50 -> M2 | K233: =I245 -> 23.88 | L233: 30.5
D235: COD. | E235: DESCRIÇÃO | F235: UN. | G235: COEF. | H235: PREÇO | I235: TOTAL
D236: MÃO-DE-OBRA
D237: 88309 | E237: PEDREIRO (COM ENCARGOS INCLUSOS) | F237: H | G237: 0.3861568 | H237: =SUMIF(Insumos!B:B,D237,Insumos!G:G) -> 13.51 | I237: =TRUNC(G237*H237,2) -> 5.21
D238: 88316 | E238: SERVENTE (COM ENCARGOS INCLUSOS) | F238: H | G238: 0.2101586 | H238: =SUMIF(Insumos!B:B,D238,Insumos!G:G) -> 11.11 | I238: =TRUNC(G238*H238,2) -> 2.33
D239: PARCIAL: | I239: =SUM(I236:I238) -> 7.54
D240: MATERIAL/SERVIÇOS/ EQUIPAMENTOS
D241: 1379 | E241: CIMENTO PORTLAND COMPOSTO CP II-32 | F241: KG | G241: 0,5000000 | H241: =SUMIF(Insumos!B:B,D241,Insumos!G:G) -> 0.34 | I241: =TRUNC(G241*H241,2) -> 0.17
D242: 3671 | E242: JUNTA PLASTICA DE DILATACAO PARA PISOS, COR CINZA, 17 X 3 MM (ALTURA X ESPESSURA) | F242: M | G242: 1,6700000 | H242: =SUMIF(Insumos!B:B,D242,Insumos!G:G) -> 0.68 | I242: =TRUNC(G242*H242,2) -> 1.13
D243: 87298 | E243: ARGAMASSA TRAÇO 1:3 (CIMENTO E AREIA MÉDIA) PARA CONTRAPISO, PREPARO MECÂNICO COM BETONEIRA 400 L. AF_06/2014 | F243: M3 | G243: 0,0431000 | H243: =SUMIF(Insumos!B:B,D243,Insumos!G:G)-8.81670533642691 -> 349.1 | I243: =TRUNC(G243*H243,2) -> 15.04
H244: PARCIAL: | I244: =SUM(I241:I243) -> 16.34
H245: VALOR UNITÁRIO TOTAL - R$ | I245: =I239+I244 -> 23.88
B249: SERVIÇO | C249: SINAPI | D249: 94990 | E249: ='Planilha SERVIÇOS'!$F$51 -> EXECUÇÃO DE PASSEIO (CALÇADA) OU PISO DE CONCRETO COM CONCRETO MOLDADO IN LOCO, FEITO EM OBRA, ACABAMENTO CONVENCIONAL, NÃO ARMADO. AF_07/2016 | I249: ='Planilha SERVIÇOS'!$G$51 -> M3 | K249: =I262 -> 400.96 | L249: 512.28
D251: COD. | E251: DESCRIÇÃO | F251: UN. | G251: COEF. | H251: PREÇO | I251: TOTAL
D252: MÃO-DE-OBRA
D253: 88262 | E253: CARPINTEIRO DE FORMAS (COM ENCARGOS INCLUSOS) | F253: H | G253: 2,2560000 | H253: =SUMIF(Insumos!B:B,D253,Insumos!G:G) -> 13.51 | I253: =TRUNC(G253*H253,2) -> 30.47
D254: 88309 | E254: PEDREIRO (COM ENCARGOS INCLUSOS) | F254: H | G254: 1,9830000 | H254: =SUMIF(Insumos!B:B,D254,Insumos!G:G) -> 13.51 | I254: =TRUNC(G254*H254,2) -> 26.79
D255: 88316 | E255: SERVENTE (COM ENCARGOS INCLUSOS) | F255: H | G255: 4,2390000 | H255: =SUMIF(Insumos!B:B,D255,Insumos!G:G) -> 11.11 | I255: =TRUNC(G255*H255,2) -> 47.09
D256: PARCIAL: | I256: =SUM(I252:I255) -> 104.35
D257: MATERIAL/SERVIÇOS/ EQUIPAMENTOS
D258: 4460 | E258: SARRAFO DE MADEIRA NAO APARELHADA *2,5 X 10 CM, MACARANDUBA, ANGELIM OU EQUIVALENTE DA REGIAO | F258: M | G258: 2,5000000 | H258: =SUMIF(Insumos!B:B,D258,Insumos!G:G) -> 7.4 | I258: =TRUNC(G258*H258,2)+0.01 -> 18.51
D259: 4517 | E259: PECA DE MADEIRA NATIVA/REGIONAL 2,5 X 7,0 CM (SARRAFO-P/FORMA) | F259: M | G259: 2,0000000 | H259: =SUMIF(Insumos!B:B,D259,Insumos!G:G) -> 0.81 | I259: =TRUNC(G259*H259,2)+0.01 -> 1.63
D260: 94964 | E260: CONCRETO FCK = 20MPA, TRAÇO 1:2,7:3 (CIMENTO/ AREIA MÉDIA/ BRITA 1) - PREPARO MECÂNICO COM BETONEIRA 400 L. AF_07/2016 | F260: M3 | G260: 1,2130000 | H260: =SUMIF(Insumos!B:B,D260,Insumos!G:G) -> 227.92 | I260: =TRUNC(G260*H260,2)+0.01 -> 276.47
H261: PARCIAL: | I261: =SUM(I258:I260) -> 296.61
... 1612 more rows

Sheet Composições (CODEVASF)
D3: COMPOSIÇÕES DE CUSTO UNITÁRIO (CODEVASF)
D4: =CONCATENATE("Tabela de Custos: ",'Planilha SERVIÇOS'!$I$9) -> Tabela de Custos: FEV/2018
B6: SERVIÇO | C6: CODEVASF | D6: COMP. 01 | E6: MOBILIZAÇÃO DE EQUIPAMENTOS, MATERIAIS E PESSOAL | I6: UN | K6: =I17 -> 1872.19 | L6: 2391.06
D8: COD. | E8: DESCRIÇÃO | F8: UN. | G8: COEF. | H8: PREÇO | I8: TOTAL
D9: MATERIAIS / MÃO DE OBRA
D10: M0001 | E10: PASSAGEM | F10: UNID. | G10: 4 | H10: =SUMIF(Insumos!B:B,D10,Insumos!G:G) -> 15.58 | I10: =G10*H10 -> 62.32
D11: PARCIAL: | I11: =SUM(I9:I10) -> 62.32
D12: SERVIÇOS/ EQUIPAMENTOS
D13: 3465 | E13: TRANSPORTE DE MÁQUINAS E EQUIPAMENTOS POR PRANCHA REBAIXADA (MIN.=100KM) | F13: KM | G13: 350 | H13: =SUMIF(Insumos!B:B,D13,Insumos!G:G) -> 2.35 | I13: =G13*H13 -> 822.5
D14: 4994 | E14: CAMINHÃO BASCULANTE : MERCEDES BENZ : ATEGO 1518/36 - 5 M³ - 8,8 T | F14: H | G14: 7 | H14: =SUMIF(Insumos!B:B,D14,Insumos!G:G) -> 36.08 | I14: =G14*H14 -> 252.56
D15: 10434 | E15: CAMINHÃO CARROCERIA DE MADEIRA 9 T - FONTE:DNIT | F15: H | G15: 10 | H15: =SUMIF(Insumos!B:B,D15,Insumos!G:G) -> 73.48 | I15: =G15*H15+0.01 -> 734.81
H16: PARCIAL: | I16: =SUM(I13:I15) -> 1809.87
H17: VALOR UNITÁRIO TOTAL - R$ | I17: =TRUNC(I11+I16,2) -> 1872.19
B21: SERVIÇO | C21: CODEVASF | D21: COMP. 02 | E21: DESMOBILIZAÇÃO DE EQUIPAMENTOS, MATERIAIS E PESSOAL | I21: UN | K21: =I32 -> 1872.19 | L21: 2391.06
D23: COD. | E23: DESCRIÇÃO | F23: UN. | G23: COEF. | H23: PREÇO | I23: TOTAL
D24: MATERIAIS / MÃO DE OBRA
D25: M0001 | E25: PASSAGEM | F25: UNID. | G25: 4 | H25: =SUMIF(Insumos!B:B,D25,Insumos!G:G) -> 15.58 | I25: =G25*H25 -> 62.32
D26: PARCIAL: | I26: =SUM(I24:I25) -> 62.32
D27: SERVIÇOS/ EQUIPAMENTOS
D28: 3465 | E28: TRANSPORTE DE MÁQUINAS E EQUIPAMENTOS POR PRANCHA REBAIXADA (MIN.=100KM) | F28: KM | G28: 350 | H28: =SUMIF(Insumos!B:B,D28,Insumos!G:G) -> 2.35 | I28: =G28*H28 -> 822.5
D29: 4994 | E29: CAMINHÃO BASCULANTE : MERCEDES BENZ : ATEGO 1518/36 - 5 M³ - 8,8 T | F29: H | G29: 7 | H29: =SUMIF(Insumos!B:B,D29,Insumos!G:G) -> 36.08 | I29: =G29*H29 -> 252.56
D30: 10434 | E30: CAMINHÃO CARROCERIA DE MADEIRA 9 T - FONTE:DNIT | F30: H | G30: 10 | H30: =SUMIF(Insumos!B:B,D30,Insumos!G:G) -> 73.48 | I30: =G30*H30+0.01 -> 734.81
H31: PARCIAL: | I31: =SUM(I28:I30) -> 1809.87
H32: VALOR UNITÁRIO TOTAL - R$ | I32: =TRUNC(I26+I31,2) -> 1872.19
B36: SERVIÇO | C36: CODEVASF | D36: COMP. 03 | E36: LOCAÇÃO, ADMINISTRAÇÃO E MANUTENÇÃO DE CANTEIRO DE OBRA | I36: UN | K36: =I63 -> 292666.3 | L36: 373779.1
D38: COD. | E38: DESCRIÇÃO | F38: UN. | G38: COEF. | H38: PREÇO | I38: TOTAL
D39: MATERIAIS / MÃO DE OBRA
D40: M0002 | E40: LOCAÇÃO DE IMÓVEL | F40: MÊS | G40: 1 | H40: =SUMIF(Insumos!B:B,D40,Insumos!G:G) -> 391.5 | I40: =G40*H40 -> 391.5
D41: I8613 | E41: TELEFONE FIXO | F41: UNxMÊS | G41: 1 | H41: =SUMIF(Insumos!B:B,D41,Insumos!G:G) -> 199.67 | I41: 199.67
D42: I2321 | E42: ENERGIA ELETRICA | F42: KWH | G42: 500 | H42: =SUMIF(Insumos!B:B,D42,Insumos!G:G) -> 0.45 | I42: 225
D43: I2294 | E43: ÁGUA E ESGOTO | F43: M3 | G43: 8 | H43: =SUMIF(Insumos!B:B,D43,Insumos!G:G) -> 4.93 | I43: 39.44
D44: 10562 | E44: MATERIAL DE ESCRITÓRIO | F44: MÊS | G44: 1 | H44: =SUMIF(Insumos!B:B,D44,Insumos!G:G) -> 23.49 | I44: 23.49
D45: 10563 | E45: MATERIAL DE LIMPEZA | F45: MÊS | G45: 1 | H45: =SUMIF(Insumos!B:B,D45,Insumos!G:G) -> 58.23 | I45: 58.23
D46: 10558 | E46: INTERNET - DISPÊNDIO MENSAL | F46: MÊS | G46: 1 | H46: =SUMIF(Insumos!B:B,D46,Insumos!G:G) -> 69.69 | I46: 69.69
D47: 93557 | E47: EPI PESSOAL DA ADMINISTRAÇÃO (ENCARGOS COMPLEMENTARES) | F47: MES | G47: 1 | H47: =SUMIF(Insumos!B:B,D47,Insumos!G:G) -> 149.3 | I47: 149.3
D48: 40813 | E48: ENGENHEIRO CIVIL DE OBRA PLENO (MENSALISTA) | F48: MES | G48: 1 | H48: =SUMIF(Insumos!B:B,D48,Insumos!G:G) -> 10690.96 | I48: 10690.96
D49: 40936 | E49: ENGENHEIRO CIVIL JUNIOR (MENSALISTA) | F49: MES | G49: 0.7 | H49: =SUMIF(Insumos!B:B,D49,Insumos!G:G) -> 9595.56 | I49: 6716.89
D50: I8598 | E50: AUXILIAR ADMINISTRATIVO | F50: HxMÊS | G50: 0.8 | H50: =SUMIF(Insumos!B:B,D50,Insumos!G:G) -> 1495.58 | I50: 1196.46
D51: 40818 | E51: ENCARREGADO GERAL DE OBRAS (MENSALISTA) | F51: MES | G51: 1 | H51: =SUMIF(Insumos!B:B,D51,Insumos!G:G) -> 3987.27 | I51: 3987.27
D52: I8588 | E52: TÉCNICO DE SEGURANÇA DO TRABALHO (COM ENCARGOS INCLUSOS) | F52: HxMÊS | G52: 0.8 | H52: =SUMIF(Insumos!B:B,D52,Insumos!G:G) -> 2370.12 | I52: 1896.1
D53: 40809 | E53: ALMOXARIFE (MENSALISTA) | F53: MES | G53: 0.6 | H53: =SUMIF(Insumos!B:B,D53,Insumos!G:G) -> 1716.52 | I53: 1029.91
D54: 40862 | E54: ALIMENTAÇÃO PESSOAL ADMINISTRAÇÃO | F54: MES | G54: 1 | H54: =SUMIF(Insumos!B:B,D54,Insumos!G:G) -> 324.04 | I54: 324.04
D55: 40861 | E55: TRANSPORTE PESSOAL ADMINISTRAÇÃO | F55: MES | G55: 1 | H55: =SUMIF(Insumos!B:B,D55,Insumos!G:G) -> 71.42 | I55: 71.42
D56: I8617 | E56: VIGIA (COM ENCARGOS INCLUSOS) | F56: HxMÊS | G56: 1 | H56: =SUMIF(Insumos!B:B,D56,Insumos!G:G) -> 1495.58 | I56: 1495.58
D57: PARCIAL: | I57: =SUM(I39:I56) -> 28564.95
D58: SERVIÇOS/ EQUIPAMENTOS
D59: M0003 | E59: TIPO SEDAN 1.6 FLEX (115CV) | F59: MÊS | G59: 0.5 | H59: =SUMIF(Insumos!B:B,D59,Insumos!G:G) -> 1403.35 | I59: =G59*H59 -> 701.68
H60: PARCIAL: | I60: =SUM(I59:I59) -> 701.68
H61: VALOR UNITÁRIO - R$ | I61: =I57+I60 -> 29266.63
H62: TOTAL DO SERVIÇO | I62: 10
H63: VALOR UNITÁRIO TOTAL - R$ | I63: =TRUNC(I61*I62,2) -> 292666.3
B67: SERVIÇO | C67: CODEVASF | D67: COMP. 04 | E67: CAMINHONETE CABINE DUPLA, TRAÇÃO 4X4, ZERO QUILOMETRO, C/4 PORTAS, TRAVAS ELÉTRICAS, SOM AUTOMOTIVO,EQUIP.C/AR-COND.,QUE FICARÁ À DISP.DA FISC.,INCL.DESP.C/SEG.TOTAL, EMPLAC.,REVIS.CONS.,REP.,COMB.E LUBR.,LAV.,ETC | I67: UN | K67: =I81 -> 4550.68 | L67: 5811.86
D69: COD. | E69: DESCRIÇÃO | F69: UN. | G69: COEF. | H69: PREÇO | I69: TOTAL
D70: MATERIAIS / MÃO DE OBRA
D71: M0004 | E71: CAMINHONETE CABINE DUPLA, TRAÇÃO 4X4, ZERO QUILOMETRO, C/4 PORTAS, TRAVAS ELÉTRICAS, SOM AUTOMOTIVO,EQUIP.C/AR-COND.,QUE FICARÁ À DISP.DA FISC.,INCL.DESP.C/SEG.TOTAL, EMPLAC.,REVIS.CONS.,REP.,COMB.E LUBR.,LAV.,ETC | F71: UNID. | G71: 1 | H71: =SUMIF(Insumos!B:B,D71,Insumos!G:G) -> 4550.68 | I71: =G71*H71 -> 4550.68
H72: =SUMIF(Insumos!B:B,D72,Insumos!G:G) -> 0 | I72: =G72*H72 -> 0
D73: PARCIAL: | I73: =SUM(I70:I72) -> 4550.68
D74: SERVIÇOS/ EQUIPAMENTOS
H75: =SUMIF(Insumos!B:B,D75,Insumos!G:G) -> 0 | I75: =G75*H75 -> 0
H76: =SUMIF(Insumos!B:B,D76,Insumos!G:G) -> 0 | I76: =G76*H76 -> 0
H77: =SUMIF(Insumos!B:B,D77,Insumos!G:G) -> 0 | I77: =G77*H77 -> 0
H78: =SUMIF(Insumos!B:B,D78,Insumos!G:G) -> 0 | I78: =G78*H78 -> 0
H79: =SUMIF(Insumos!B:B,D79,Insumos!G:G) -> 0 | I79: =G79*H79 -> 0
H80: PARCIAL: | I80: =SUM(I75:I79) -> 0
H81: VALOR UNITÁRIO TOTAL - R$ | I81: =TRUNC(I73+I80,2) -> 4550.68
B85: SERVIÇO | C85: CODEVASF | D85: COMP. 05 | E85: PRÉ-OPERAÇÃO DA ESTAÇÃO DE TRATAMENTO DE ÁGUA | I85: UN | K85: =I99 -> 9816.62 | L85: 12537.2
D87: COD. | E87: DESCRIÇÃO | F87: UN. | G87: COEF. | H87: PREÇO | I87: TOTAL
D88: MATERIAIS / MÃO DE OBRA
D89: 90778 | E89: ENGENHEIRO | F89: H | G89: 126.8573 | H89: =SUMIF(Insumos!B:B,D89,Insumos!G:G) -> 62.77 | I89: =G89*H89 -> 7962.83
D90: 88252 | E90: AUXILIAR DE SERVICOS GERAIS (COM ENCARGOS INCLUSOS) | F90: H | G90: 166.8573 | H90: =SUMIF(Insumos!B:B,D90,Insumos!G:G) -> 11.11 | I90: =G90*H90+0.01 -> 1853.79
D91: PARCIAL: | I91: =SUM(I88:I90) -> 9816.62
D92: SERVIÇOS/ EQUIPAMENTOS
H93: =SUMIF(Insumos!B:B,D93,Insumos!G:G) -> 0 | I93: =G93*H93 -> 0
H94: =SUMIF(Insumos!B:B,D94,Insumos!G:G) -> 0 | I94: =G94*H94 -> 0
H95: =SUMIF(Insumos!B:B,D95,Insumos!G:G) -> 0 | I95: =G95*H95 -> 0
H96: =SUMIF(Insumos!B:B,D96,Insumos!G:G) -> 0 | I96: =G96*H96 -> 0
H97: =SUMIF(Insumos!B:B,D97,Insumos!G:G) -> 0 | I97: =G97*H97 -> 0
H98: PARCIAL: | I98: =SUM(I93:I97) -> 0
H99: VALOR UNITÁRIO TOTAL - R$ | I99: =TRUNC(I91+I98,2) -> 9816.62
B103: SERVIÇO | C103: CODEVASF | D103: COMP. 06 | E103: ELABORAÇÃO DO PROJETO ESTRUTURAL | I103: UN | K103: =I117 -> 5475 | L103: 6993
D105: COD. | E105: DESCRIÇÃO | F105: UN. | G105: COEF. | H105: PREÇO | I105: TOTAL
D106: MATERIAIS / MÃO DE OBRA
D107: 90778 | E107: ENGENHEIRO CIVIL PLENO | F107: H | G107: 60 | H107: =SUMIF(Insumos!B:B,D107,Insumos!G:G) -> 62.77 | I107: =G107*H107 -> 3766.2
D108: 90775 | E108: DESENHISTA PROJETISTA | F108: H | G108: 120 | H108: =SUMIF(Insumos!B:B,D108,Insumos!G:G) -> 14.24 | I108: =G108*H108 -> 1708.8
D109: PARCIAL: | I109: =SUM(I106:I108) -> 5475
D110: SERVIÇOS/ EQUIPAMENTOS
H111: =SUMIF(Insumos!B:B,D111,Insumos!G:G) -> 0 | I111: =G111*H111 -> 0
H112: =SUMIF(Insumos!B:B,D112,Insumos!G:G) -> 0 | I112: =G112*H112 -> 0
H113: =SUMIF(Insumos!B:B,D113,Insumos!G:G) -> 0 | I113: =G113*H113 -> 0
H114: =SUMIF(Insumos!B:B,D114,Insumos!G:G) -> 0 | I114: =G114*H114 -> 0
H115: =SUMIF(Insumos!B:B,D115,Insumos!G:G) -> 0 | I115: =G115*H115 -> 0
H116: PARCIAL: | I116: =SUM(I111:I115) -> 0
H117: VALOR UNITÁRIO TOTAL - R$ | I117: =TRUNC(I109+I116,2) -> 5475
B121: SERVIÇO | C121: CODEVASF | D121: COMP. 07 | E121: ELABORAÇÃO DO PROJETO DE INSTALAÇÕES ELÉTRICAS | I121: UN | K121: =I136 -> 4798.3 | L121: 6128.1
D123: COD. | E123: DESCRIÇÃO | F123: UN. | G123: COEF. | H123: PREÇO | I123: TOTAL
D124: MATERIAIS / MÃO DE OBRA
D125: 91677 | E125: ENGENHEIRO ELETRICISTA | F125: H | G125: 60.2439 | H125: =SUMIF(Insumos!B:B,D125,Insumos!G:G) -> 53.78 | I125: =G125*H125 -> 3239.92
D126: 88266 | E126: ELETROTECNICO | F126: H | G126: 10.2439 | H126: =SUMIF(Insumos!B:B,D126,Insumos!G:G) -> 12.78 | I126: =G126*H126 -> 130.92
D127: 90775 | E127: DESENHISTA PROJETISTA | F127: H | G127: 100.2439 | H127: =SUMIF(Insumos!B:B,D127,Insumos!G:G) -> 14.24 | I127: =G127*H127-0.01 -> 1427.46
D128: PARCIAL: | I128: =SUM(I124:I127) -> 4798.3
D129: SERVIÇOS/ EQUIPAMENTOS
H130: =SUMIF(Insumos!B:B,D130,Insumos!G:G) -> 0 | I130: =G130*H130 -> 0
H131: =SUMIF(Insumos!B:B,D131,Insumos!G:G) -> 0 | I131: =G131*H131 -> 0
H132: =SUMIF(Insumos!B:B,D132,Insumos!G:G) -> 0 | I132: =G132*H132 -> 0
H133: =SUMIF(Insumos!B:B,D133,Insumos!G:G) -> 0 | I133: =G133*H133 -> 0
H134: =SUMIF(Insumos!B:B,D134,Insumos!G:G) -> 0 | I134: =G134*H134 -> 0
H135: PARCIAL: | I135: =SUM(I130:I134) -> 0
H136: VALOR UNITÁRIO TOTAL - R$ | I136: =TRUNC(I128+I135,2) -> 4798.3
B140: SERVIÇO | C140: CODEVASF | D140: ELE01 | E140: SERVIÇO PARA INSTALAÇÃO DOS MATERIAIS ELÉTRICOS DA CAPTAÇÃO (ALEGRE, BOA PAZ, BOM JESUS E UMBURANAS) | I140: UN | K140: =I156 -> 2106.9 | L140: 2699.52
D142: COD. | E142: DESCRIÇÃO | F142: UN. | G142: COEF. | H142: PREÇO | I142: TOTAL
D143: MATERIAIS / MÃO DE OBRA
D144: 91677 | E144: ENGENHEIRO ELETRICISTA | F144: H | G144: 16.5443 | H144: =SUMIF(Insumos!B:B,D144,Insumos!G:G) -> 53.78 | I144: =G144*H144 -> 889.75
D145: 88266 | E145: ELETROTECNICO | F145: H | G145: 32.5443 | H145: =SUMIF(Insumos!B:B,D145,Insumos!G:G) -> 12.78 | I145: =G145*H145 -> 415.92
D146: 88265 | E146: ELETRICISTA INDUSTRIAL | F146: H | G146: 32.5443 | H146: =SUMIF(Insumos!B:B,D146,Insumos!G:G) -> 13.51 | I146: =G146*H146 -> 439.67
D147: 88247 | E147: AJUDANTE DE ELETRICISTA (COM ENCARGOS INCLUSOS) | F147: H | G147: 32.5443 | H147: =SUMIF(Insumos!B:B,D147,Insumos!G:G) -> 11.11 | I147: =G147*H147-0.01 -> 361.56
D148: PARCIAL: | I148: =SUM(I143:I147) -> 2106.9
D149: SERVIÇOS/ EQUIPAMENTOS
H150: =SUMIF(Insumos!B:B,D150,Insumos!G:G) -> 0 | I150: =G150*H150 -> 0
H151: =SUMIF(Insumos!B:B,D151,Insumos!G:G) -> 0 | I151: =G151*H151 -> 0
H152: =SUMIF(Insumos!B:B,D152,Insumos!G:G) -> 0 | I152: =G152*H152 -> 0
H153: =SUMIF(Insumos!B:B,D153,Insumos!G:G) -> 0 | I153: =G153*H153 -> 0
H154: =SUMIF(Insumos!B:B,D154,Insumos!G:G) -> 0 | I154: =G154*H154 -> 0
H155: PARCIAL: | I155: =SUM(I150:I154) -> 0
H156: VALOR UNITÁRIO TOTAL - R$ | I156: =TRUNC(I148+I155,2) -> 2106.9
B160: SERVIÇO | C160: CODEVASF | D160: ELE02 | E160: SERVIÇO PARA INSTALAÇÃO DOS MATERIAIS ELÉTRICOS DA CAPTAÇÃO (ILHA DA VILA E RIACHO DA MADEIRA) | I160: UN | K160: =I176 -> 1585.29 | L160: 2024.64
D162: COD. | E162: DESCRIÇÃO | F162: UN. | G162: COEF. | H162: PREÇO | I162: TOTAL
D163: MATERIAIS / MÃO DE OBRA
D164: 91677 | E164: ENGENHEIRO ELETRICISTA | F164: H | G164: 12.4643 | H164: =SUMIF(Insumos!B:B,D164,Insumos!G:G) -> 53.78 | I164: =G164*H164 -> 670.33
D165: 88266 | E165: ELETROTECNICO | F165: H | G165: 24.4643 | H165: =SUMIF(Insumos!B:B,D165,Insumos!G:G) -> 12.78 | I165: =G165*H165 -> 312.65
D166: 88265 | E166: ELETRICISTA INDUSTRIAL | F166: H | G166: 24.4643 | H166: =SUMIF(Insumos!B:B,D166,Insumos!G:G) -> 13.51 | I166: =G166*H166 -> 330.51
D167: 88247 | E167: AJUDANTE DE ELETRICISTA (COM ENCARGOS INCLUSOS) | F167: H | G167: 24.4643 | H167: =SUMIF(Insumos!B:B,D167,Insumos!G:G) -> 11.11 | I167: =G167*H167 -> 271.8
D168: PARCIAL: | I168: =SUM(I163:I167) -> 1585.29
D169: SERVIÇOS/ EQUIPAMENTOS
H170: =SUMIF(Insumos!B:B,D170,Insumos!G:G) -> 0 | I170: =G170*H170 -> 0
H171: =SUMIF(Insumos!B:B,D171,Insumos!G:G) -> 0 | I171: =G171*H171 -> 0
H172: =SUMIF(Insumos!B:B,D172,Insumos!G:G) -> 0 | I172: =G172*H172 -> 0
H173: =SUMIF(Insumos!B:B,D173,Insumos!G:G) -> 0 | I173: =G173*H173 -> 0
H174: =SUMIF(Insumos!B:B,D174,Insumos!G:G) -> 0 | I174: =G174*H174 -> 0
H175: PARCIAL: | I175: =SUM(I170:I174) -> 0
H176: VALOR UNITÁRIO TOTAL - R$ | I176: =TRUNC(I168+I175,2) -> 1585.29
B180: SERVIÇO | C180: CODEVASF | D180: ELE03 | E180: SERVIÇO PARA PROJETO EXECUTIVO DA EXTENSÃO DE REDE | I180: KM | K180: =I196 -> 2176.61 | L180: 2779.84
D182: COD. | E182: DESCRIÇÃO | F182: UN. | G182: COEF. | H182: PREÇO | I182: TOTAL
D183: MATERIAIS / MÃO DE OBRA
D184: 91677 | E184: ENGENHEIRO ELETRICISTA | F184: H | G184: 31.9996 | H184: =SUMIF(Insumos!B:B,D184,Insumos!G:G) -> 53.78 | I184: =G184*H184 -> 1720.94
D185: 90775 | E185: DESENHISTA PROJETISTA | F185: H | G185: 31.9996 | H185: =SUMIF(Insumos!B:B,D185,Insumos!G:G) -> 14.24 | I185: =G185*H185 -> 455.67
H186: =SUMIF(Insumos!B:B,D186,Insumos!G:G) -> 0 | I186: =G186*H186 -> 0
H187: =SUMIF(Insumos!B:B,D187,Insumos!G:G) -> 0 | I187: =G187*H187 -> 0
D188: PARCIAL: | I188: =SUM(I183:I187) -> 2176.61
D189: SERVIÇOS/ EQUIPAMENTOS
H190: =SUMIF(Insumos!B:B,D190,Insumos!G:G) -> 0 | I190: =G190*H190 -> 0
H191: =SUMIF(Insumos!B:B,D191,Insumos!G:G) -> 0 | I191: =G191*H191 -> 0
H192: =SUMIF(Insumos!B:B,D192,Insumos!G:G) -> 0 | I192: =G192*H192 -> 0
H193: =SUMIF(Insumos!B:B,D193,Insumos!G:G) -> 0 | I193: =G193*H193 -> 0
H194: =SUMIF(Insumos!B:B,D194,Insumos!G:G) -> 0 | I194: =G194*H194 -> 0
H195: PARCIAL: | I195: =SUM(I190:I194) -> 0
H196: VALOR UNITÁRIO TOTAL - R$ | I196: =TRUNC(I188+I195,2) -> 2176.61
B200: SERVIÇO | C200: CODEVASF | D200: ELE04 | E200: SERVIÇO PARA CONSTRUÇÃO DA EXTENSÃO DA REDE | I200: KM | K200: =I216 -> 6054.03 | L200: 7731.84
D202: COD. | E202: DESCRIÇÃO | F202: UN. | G202: COEF. | H202: PREÇO | I202: TOTAL
D203: MATERIAIS / MÃO DE OBRA
D204: 91677 | E204: ENGENHEIRO ELETRICISTA | F204: H | G204: 24.9269 | H204: =SUMIF(Insumos!B:B,D204,Insumos!G:G) -> 53.78 | I204: =G204*H204 -> 1340.57
D205: 88266 | E205: ELETROTECNICO | F205: H | G205: 60.9269 | H205: =SUMIF(Insumos!B:B,D205,Insumos!G:G) -> 12.78 | I205: 778.65
D206: 88265 | E206: ELETRICISTA INDUSTRIAL | F206: H | G206: 60.9269 | H206: =SUMIF(Insumos!B:B,D206,Insumos!G:G) -> 13.51 | I206: 823.12
D207: 88247 | E207: AJUDANTE DE ELETRICISTA (COM ENCARGOS INCLUSOS) | F207: H | G207: 60.9269 | H207: =SUMIF(Insumos!B:B,D207,Insumos!G:G) -> 11.11 | I207: 676.9
D208: 88286 | E208: MOTORISTA OPERADOR DE MUNCK | F208: H | G208: 24.9269 | H208: =SUMIF(Insumos!B:B,D208,Insumos!G:G) -> 23.04 | I208: =G208*H208-0.01 -> 574.31
H209: =SUMIF(Insumos!B:B,D209,Insumos!G:G) -> 0 | I209: 0
D210: PARCIAL: | I210: =SUM(I203:I209) -> 4193.55
D211: SERVIÇOS/ EQUIPAMENTOS
D212: I0705 | E212: CAMINHÃO COMERC. EQUIP. C/GUINDASTE (CHP) | F212: H | G212: 24 | H212: =SUMIF(Insumos!B:B,D212,Insumos!G:G) -> 77.52 | I212: =G212*H212 -> 1860.48
H213: =SUMIF(Insumos!B:B,D213,Insumos!G:G) -> 0 | I213: =G213*H213 -> 0
H214: =SUMIF(Insumos!B:B,D214,Insumos!G:G) -> 0 | I214: =G214*H214 -> 0
H215: PARCIAL: | I215: =SUM(I212:I214) -> 1860.48
H216: VALOR UNITÁRIO TOTAL - R$ | I216: =TRUNC(I210+I215,2) -> 6054.03
B220: SERVIÇO | C220: CODEVASF | D220: ELE05 | E220: SERVIÇO PARA PROJETO EXECUTIVO DA SUBESTAÇÃO | I220: UN | K220: =I236 -> 1632.46 | L220: 2084.88
D222: COD. | E222: DESCRIÇÃO | F222: UN. | G222: COEF. | H222: PREÇO | I222: TOTAL
D223: MATERIAIS / MÃO DE OBRA
D224: 91677 | E224: ENGENHEIRO ELETRICISTA | F224: H | G224: 24 | H224: =SUMIF(Insumos!B:B,D224,Insumos!G:G) -> 53.78 | I224: =G224*H224-0.01 -> 1290.71
D225: 90775 | E225: DESENHISTA PROJETISTA | F225: H | G225: 24 | H225: =SUMIF(Insumos!B:B,D225,Insumos!G:G) -> 14.24 | I225: =G225*H225-0.01 -> 341.75
H226: =SUMIF(Insumos!B:B,D226,Insumos!G:G) -> 0 | I226: =G226*H226 -> 0
H227: =SUMIF(Insumos!B:B,D227,Insumos!G:G) -> 0 | I227: =G227*H227 -> 0
D228: PARCIAL: | I228: =SUM(I223:I227) -> 1632.46
D229: SERVIÇOS/ EQUIPAMENTOS
H230: =SUMIF(Insumos!B:B,D230,Insumos!G:G) -> 0 | I230: =G230*H230 -> 0
H231: =SUMIF(Insumos!B:B,D231,Insumos!G:G) -> 0 | I231: =G231*H231 -> 0
H232: =SUMIF(Insumos!B:B,D232,Insumos!G:G) -> 0 | I232: =G232*H232 -> 0
H233: =SUMIF(Insumos!B:B,D233,Insumos!G:G) -> 0 | I233: =G233*H233 -> 0
H234: =SUMIF(Insumos!B:B,D234,Insumos!G:G) -> 0 | I234: =G234*H234 -> 0
H235: PARCIAL: | I235: =SUM(I230:I234) -> 0
H236: VALOR UNITÁRIO TOTAL - R$ | I236: =TRUNC(I228+I235,2) -> 1632.46
B240: SERVIÇO | C240: CODEVASF | D240: ELE06 | E240: SERVIÇO PARA CONSTRUÇÃO DA SUBESTAÇÃO | I240: UN | K240: =I256 -> 1455.71 | L240: 1863.48
D242: COD. | E242: DESCRIÇÃO | F242: UN. | G242: COEF. | H242: PREÇO | I242: TOTAL
D243: MATERIAIS / MÃO DE OBRA
D244: 91677 | E244: ENGENHEIRO ELETRICISTA | F244: H | G244: 8.2173 | H244: =SUMIF(Insumos!B:B,D244,Insumos!G:G) -> 53.78 | I244: =G244*H244 -> 441.93
D245: 88266 | E245: ELETROTECNICO | F245: H | G245: 16.2173 | H245: =SUMIF(Insumos!B:B,D245,Insumos!G:G) -> 12.78 | I245: =G245*H245 -> 207.26
D246: 88265 | E246: ELETRICISTA INDUSTRIAL | F246: H | G246: 16.2173 | H246: =SUMIF(Insumos!B:B,D246,Insumos!G:G) -> 13.51 | I246: =G246*H246 -> 219.1
D247: 88247 | E247: AJUDANTE DE ELETRICISTA (COM ENCARGOS INCLUSOS) | F247: H | G247: 16.2173 | H247: =SUMIF(Insumos!B:B,D247,Insumos!G:G) -> 11.11 | I247: =G247*H247 -> 180.17
D248: 88286 | E248: MOTORISTA OPERADOR DE MUNCK | F248: H | G248: 4.2173 | H248: =SUMIF(Insumos!B:B,D248,Insumos!G:G) -> 23.04 | I248: =G248*H248 -> 97.17
D249: PARCIAL: | I249: =SUM(I243:I248) -> 1145.63
D250: SERVIÇOS/ EQUIPAMENTOS
D251: I0705 | E251: CAMINHÃO COMERC. EQUIP. C/GUINDASTE (CHP) | F251: H | G251: 4 | H251: =SUMIF(Insumos!B:B,D251,Insumos!G:G) -> 77.52 | I251: =G251*H251 -> 310.08
H252: =SUMIF(Insumos!B:B,D252,Insumos!G:G) -> 0 | I252: =G252*H252 -> 0
... 428 more rows

Sheet Composições (ORSE)
D3: COMPOSIÇÕES DE CUSTO UNITÁRIO (ORSE)
D4: =CONCATENATE("Tabela de Custos: ",'Planilha SERVIÇOS'!$K$9) -> Tabela de Custos: ABR/2018
B6: SERVIÇO | C6: ORSE | D6: 11986 | E6: =VLOOKUP(D6,ORSE!$C:$F,2) -> PLACA DE INAUGURAÇÃO EM ALUMÍNIO COM ACRILICO, 80X60CM,COM LOGOMARCA E MOLDUR A | I6: =VLOOKUP(D6,ORSE!$C:$F,3) -> UN | K6: =I41 -> 670.13 | L6: =VLOOKUP(D6,ORSE!$C:$F,4) -> 855.91
D8: COD. | E8: DESCRIÇÃO | F8: UN. | G8: COEF. | H8: PREÇO | I8: TOTAL
D9: MÃO DE OBRA
D10: 88309 | E10: PEDREIRO COM ENCARGOS COMPLEMENTARES | F10: h | G10: 0.6121 | H10: =SUMIF(Insumos!B:B,D10,Insumos!G:G) -> 13.51 | I10: =(G10*H10) -> 8.27
D11: 10517 | E11: Exames admissionais/demissionais (checkup) | F11: cj | G11: 0.0002 | H11: =SUMIF(Insumos!B:B,D11,Insumos!G:G) -> 255.26 | I11: =(G11*H11) -> 0.05
D12: 10761 | E12: Refeição - café da manhã ( café com leite e dois pães com manteiga) | F12: un | G12: 0.0611 | H12: =SUMIF(Insumos!B:B,D12,Insumos!G:G) -> 1.96 | I12: =(G12*H12) -> 0.12
D13: 10362 | E13: Seguro de vida e acidente em grupo | F13: un | G13: 0.0027 | H13: =SUMIF(Insumos!B:B,D13,Insumos!G:G) -> 4.42 | I13: =(G13*H13) -> 0.01
H14: PARCIAL: | I14: =SUM(I9:I13) -> 8.45
D15: MATERIAIS/ SERVIÇOS/ EQUIPAMENTOS
D16: 158 | E16: Almoço (Participação do empregador) | F16: un | G16: 0.0611 | H16: =SUMIF(Insumos!B:B,D16,Insumos!G:G) -> 7.83 | I16: =(G16*H16) -> 0.48
D17: 12893 | E17: Bota de seguranca com biqueira de aco e colarinho acolchoado | F17: par | G17: 0.0005 | H17: =SUMIF(Insumos!B:B,D17,Insumos!G:G) -> 30.36 | I17: 0.02
D18: 12894 | E18: Capa para chuva em pvc com forro de poliester, com capuz (amarela ou azul) | F18: un | G18: 0.0001 | H18: =SUMIF(Insumos!B:B,D18,Insumos!G:G) -> 8.22 | I18: 0
D19: 12895 | E19: Capacete de seguranca aba frontal com suspensao de polietileno, sem jugular (classe b) | F19: un | G19: 0.0004 | H19: =SUMIF(Insumos!B:B,D19,Insumos!G:G) -> 6.33 | I19: 0
D20: 10492 | E20: Cesta Básica | F20: un | G20: 0.0027 | H20: =SUMIF(Insumos!B:B,D20,Insumos!G:G) -> 86.13 | I20: 0.23
D21: 4719 | E21: Colher de pedreiro | F21: un | G21: 0.0002 | H21: =SUMIF(Insumos!B:B,D21,Insumos!G:G) -> 8.97 | I21: 0
D22: 4174 | E22: Desempenadeira de aço lisa, cabo madeira, ref:143, Atlas ou similar | F22: un | G22: 0.0003 | H22: =SUMIF(Insumos!B:B,D22,Insumos!G:G) -> 6.4 | I22: 0
D23: 11245 | E23: Desempoladeira de madeira 12x22 | F23: un | G23: 0.0004 | H23: =SUMIF(Insumos!B:B,D23,Insumos!G:G) -> 9.2 | I23: 0
D24: 11246 | E24: Escala métrica de bambú | F24: Un | G24: 0.0004 | H24: =SUMIF(Insumos!B:B,D24,Insumos!G:G) -> 13.31 | I24: 0.01
D25: 941 | E25: Fardamento | F25: un | G25: 0.0009 | H25: =SUMIF(Insumos!B:B,D25,Insumos!G:G) -> 53.6 | I25: 0.05
D26: 12892 | E26: Luva raspa de couro, cano curto (punho *7* cm) | F26: par | G26: 0.0014 | H26: =SUMIF(Insumos!B:B,D26,Insumos!G:G) -> 5.69 | I26: 0.01
D27: 11264 | E27: Marreta de 1/2 kg com cabo | F27: un | G27: 0.0001 | H27: =SUMIF(Insumos!B:B,D27,Insumos!G:G) -> 8.57 | I27: 0
D28: 11265 | E28: Martelo de borracha com cabo | F28: un | G28: 0.0002 | H28: =SUMIF(Insumos!B:B,D28,Insumos!G:G) -> 11.67 | I28: 0
D29: 11243 | E29: Martelo sem unha | F29: un | G29: 0.0001 | H29: =SUMIF(Insumos!B:B,D29,Insumos!G:G) -> 12.76 | I29: 0
D30: 10789 | E30: Nível de bolha de madeira | F30: un | G30: 0.0001 | H30: =SUMIF(Insumos!B:B,D30,Insumos!G:G) -> 7.05 | I30: 0
D31: 1651 | E31: Óculos branco proteção | F31: pr | G31: 0.0005 | H31: =SUMIF(Insumos!B:B,D31,Insumos!G:G) -> 4.31 | I31: 0
D32: 12736 | E32: Placa de inauguração em alumínio com Acrilico, 80x60cm,com logomarca e moldura | F32: un | G32: 1 | H32: =SUMIF(Insumos!B:B,D32,Insumos!G:G) -> 660.72 | I32: 660.72
D33: 10596 | E33: Protetor auricular | F33: un | G33: 0.0027 | H33: =SUMIF(Insumos!B:B,D33,Insumos!G:G) -> 2.51 | I33: 0.01
D34: 10599 | E34: Protetor solar fps 30 com 120ml | F34: un | G34: 0.0011 | H34: =SUMIF(Insumos!B:B,D34,Insumos!G:G) -> 13.86 | I34: 0.02
D35: 10790 | E35: Prumo de face | F35: un | G35: 0.0001 | H35: =SUMIF(Insumos!B:B,D35,Insumos!G:G) -> 13.35 | I35: 0
D36: 10282 | E36: Regua de alumínio c/ 2,00m (para pedreiro) | F36: un | G36: 0.0001 | H36: =SUMIF(Insumos!B:B,D36,Insumos!G:G) -> 13.08 | I36: 0
D37: 11247 | E37: Serra mármore | F37: un | G37: 0.0001 | H37: =SUMIF(Insumos!B:B,D37,Insumos!G:G) -> 213.74 | I37: 0.02
D38: 2378 | E38: Vale transporte | F38: un | G38: 0.0392 | H38: =SUMIF(Insumos!B:B,D38,Insumos!G:G) -> 2.74 | I38: 0.11
H39: PARCIAL: | I39: =SUM(I15:I38) -> 661.68
H41: VALOR UNITÁRIO TOTAL - R$ | I41: =TRUNC(I14+I39+I40,2) -> 670.13
B45: SERVIÇO | C45: ORSE | D45: 2497 | E45: =VLOOKUP(D45,ORSE!$C:$F,2) -> ESCAVAÇÃO MANUAL DE VALA OU CAVA EM MATERIAL DE 1ª CATEGORIA, PROFUNDIDADE AT É 1,50M | I45: =VLOOKUP(D45,ORSE!$C:$F,3) -> M3 | K45: =I72 -> 25 | L45: =VLOOKUP(D45,ORSE!$C:$F,4) -> 31.93
D47: COD. | E47: DESCRIÇÃO | F47: UN. | G47: COEF. | H47: PREÇO | I47: TOTAL
D48: MÃO DE OBRA
D49: 6111 | E49: SERVENTE DE OBRAS | F49: h | G49: 1.9359 | H49: =SUMIF(Insumos!B:B,D49,Insumos!G:G) -> 11.11 | I49: =(G49*H49) -> 21.51
D50: 10517 | E50: Exames admissionais/demissionais (checkup) | F50: cj | G50: 0.0012 | H50: =SUMIF(Insumos!B:B,D50,Insumos!G:G) -> 255.26 | I50: =(G50*H50) -> 0.31
D51: 10761 | E51: Refeição - café da manhã ( café com leite e dois pães com manteiga) | F51: un | G51: 0.3054 | H51: =SUMIF(Insumos!B:B,D51,Insumos!G:G) -> 1.96 | I51: =(G51*H51) -> 0.6
D52: 10362 | E52: Seguro de vida e acidente em grupo | F52: un | G52: 0.0135 | H52: =SUMIF(Insumos!B:B,D52,Insumos!G:G) -> 4.42 | I52: =(G52*H52) -> 0.06
H53: PARCIAL: | I53: =SUM(I48:I52) -> 22.48
D54: MATERIAIS/ SERVIÇOS/ EQUIPAMENTOS
D55: 158 | E55: Almoço (Participação do empregador) | F55: un | G55: 0.1527 | H55: =SUMIF(Insumos!B:B,D55,Insumos!G:G) -> 7.83 | I55: =(G55*H55) -> 1.2
D56: 12893 | E56: Bota de seguranca com biqueira de aco e colarinho acolchoado | F56: par | G56: 0.0024 | H56: =SUMIF(Insumos!B:B,D56,Insumos!G:G) -> 30.36 | I56: 0.07
D57: 12894 | E57: Capa para chuva em pvc com forro de poliester, com capuz (amarela ou azul) | F57: un | G57: 0.0006 | H57: =SUMIF(Insumos!B:B,D57,Insumos!G:G) -> 8.22 | I57: 0
D58: 12895 | E58: Capacete de seguranca aba frontal com suspensao de polietileno, sem jugular (classe b) | F58: un | G58: 0.0018 | H58: =SUMIF(Insumos!B:B,D58,Insumos!G:G) -> 6.33 | I58: 0.01
D59: 2711 | E59: Carrinho de mao de aco capacidade 50 a 60 l, pneu com camara | F59: un | G59: 0.0006 | H59: =SUMIF(Insumos!B:B,D59,Insumos!G:G) -> 86.13 | I59: 0.05
D60: 10492 | E60: Cesta Básica | F60: un | G60: 0 | H60: =SUMIF(Insumos!B:B,D60,Insumos!G:G) -> 86.13 | I60: 0
D61: 941 | E61: Fardamento | F61: un | G61: 0.0045 | H61: =SUMIF(Insumos!B:B,D61,Insumos!G:G) -> 53.6 | I61: 0.24
D62: 12892 | E62: Luva raspa de couro, cano curto (punho *7* cm) | F62: par | G62: 0.0069 | H62: =SUMIF(Insumos!B:B,D62,Insumos!G:G) -> 5.69 | I62: 0.04
D63: 4729 | E63: Marreta 1 kg com cabo | F63: un | G63: 0.0003 | H63: =SUMIF(Insumos!B:B,D63,Insumos!G:G) -> 12.37 | I63: 0
D64: 1651 | E64: Óculos branco proteção | F64: pr | G64: 0.0024 | H64: =SUMIF(Insumos!B:B,D64,Insumos!G:G) -> 4.31 | I64: 0.01
D65: 10788 | E65: Pá quadrada | F65: un | G65: 0.0006 | H65: =SUMIF(Insumos!B:B,D65,Insumos!G:G) -> 13.54 | I65: 0.01
D66: 10596 | E66: Protetor auricular | F66: un | G66: 0.0135 | H66: =SUMIF(Insumos!B:B,D66,Insumos!G:G) -> 2.51 | I66: 0.03
D67: 10599 | E67: Protetor solar fps 30 com 120ml | F67: un | G67: 0.0054 | H67: =SUMIF(Insumos!B:B,D67,Insumos!G:G) -> 13.86 | I67: 0.07
D68: 4728 | E68: Talhadeira chata 10" | F68: un | G68: 0.0009 | H68: =SUMIF(Insumos!B:B,D68,Insumos!G:G) -> 7.4 | I68: 0.01
D69: 2378 | E69: Vale transporte | F69: un | G69: 0.2823 | H69: =SUMIF(Insumos!B:B,D69,Insumos!G:G) -> 2.74 | I69: =(G69*H69)+0.01 -> 0.78
H70: PARCIAL: | I70: =SUM(I54:I69) -> 2.52
H72: VALOR UNITÁRIO TOTAL - R$ | I72: =TRUNC(I53+I70+I71,2) -> 25
B76: SERVIÇO | C76: ORSE | D76: 2503 | E76: =VLOOKUP(D76,ORSE!$C:$F,2) -> ESCAVAÇÃO COM RETRO-ESCAVADEIRA DE PNEUS, DE VALAS, EM MATERIAL DE 1ª CATEGOR IA ATÉ 1,50M DE PROFUNDIDADE | I76: =VLOOKUP(D76,ORSE!$C:$F,3) -> M3 | K76: =I104 -> 5.7 | L76: =VLOOKUP(D76,ORSE!$C:$F,4) -> 7.28
D78: COD. | E78: DESCRIÇÃO | F78: UN. | G78: COEF. | H78: PREÇO | I78: TOTAL
D79: MÃO DE OBRA
D80: 6111 | E80: SERVENTE DE OBRAS | F80: h | G80: 0.0741 | H80: =SUMIF(Insumos!B:B,D80,Insumos!G:G) -> 11.11 | I80: =(G80*H80) -> 0.82
D81: 10517 | E81: Exames admissionais/demissionais (checkup) | F81: cj | G81: 0 | H81: =SUMIF(Insumos!B:B,D81,Insumos!G:G) -> 255.26 | I81: =(G81*H81) -> 0
D82: 10761 | E82: Refeição - café da manhã ( café com leite e dois pães com manteiga) | F82: un | G82: 0.0075 | H82: =SUMIF(Insumos!B:B,D82,Insumos!G:G) -> 1.96 | I82: =(G82*H82) -> 0.01
D83: 10362 | E83: Seguro de vida e acidente em grupo | F83: un | G83: 0.0003 | H83: =SUMIF(Insumos!B:B,D83,Insumos!G:G) -> 4.42 | I83: =(G83*H83) -> 0
H84: PARCIAL: | I84: =SUM(I79:I83) -> 0.83
D85: MATERIAIS/ SERVIÇOS/ EQUIPAMENTOS
D86: 2482 | E86: Retroescavadeira pneus (Massey Ferguson MF - 86 HF ou equivalente) | F86: h | G86: 0.0811 | H86: =SUMIF(Insumos!B:B,D86,Insumos!G:G) -> 58.59 | I86: =(G86*H86) -> 4.75
D87: 158 | E87: Almoço (Participação do empregador) | F87: un | G87: 0.0075 | H87: =SUMIF(Insumos!B:B,D87,Insumos!G:G) -> 7.83 | I87: 0.06
D88: 12893 | E88: Bota de seguranca com biqueira de aco e colarinho acolchoado | F88: par | G88: 0.0001 | H88: =SUMIF(Insumos!B:B,D88,Insumos!G:G) -> 30.36 | I88: 0
D89: 12894 | E89: Capa para chuva em pvc com forro de poliester, com capuz (amarela ou azul) | F89: un | G89: 0 | H89: =SUMIF(Insumos!B:B,D89,Insumos!G:G) -> 8.22 | I89: 0
D90: 12895 | E90: Capacete de seguranca aba frontal com suspensao de polietileno, sem jugular (classe b) | F90: un | G90: 0 | H90: =SUMIF(Insumos!B:B,D90,Insumos!G:G) -> 6.33 | I90: 0
D91: 2711 | E91: Carrinho de mao de aco capacidade 50 a 60 l, pneu com camara | F91: un | G91: 0 | H91: =SUMIF(Insumos!B:B,D91,Insumos!G:G) -> 86.13 | I91: 0
D92: 10492 | E92: Cesta Básica | F92: un | G92: 0.0003 | H92: =SUMIF(Insumos!B:B,D92,Insumos!G:G) -> 86.13 | I92: 0.03
D93: 941 | E93: Fardamento | F93: un | G93: 0.0001 | H93: =SUMIF(Insumos!B:B,D93,Insumos!G:G) -> 53.6 | I93: 0.01
D94: 12892 | E94: Luva raspa de couro, cano curto (punho *7* cm) | F94: par | G94: 0.0002 | H94: =SUMIF(Insumos!B:B,D94,Insumos!G:G) -> 5.69 | I94: 0
D95: 4729 | E95: Marreta 1 kg com cabo | F95: un | G95: 0 | H95: =SUMIF(Insumos!B:B,D95,Insumos!G:G) -> 12.37 | I95: 0
D96: 1651 | E96: Óculos branco proteção | F96: pr | G96: 0.0001 | H96: =SUMIF(Insumos!B:B,D96,Insumos!G:G) -> 4.31 | I96: 0
D97: 10788 | E97: Pá quadrada | F97: un | G97: 0 | H97: =SUMIF(Insumos!B:B,D97,Insumos!G:G) -> 13.54 | I97: 0
D98: 10596 | E98: Protetor auricular | F98: un | G98: 0.0003 | H98: =SUMIF(Insumos!B:B,D98,Insumos!G:G) -> 2.51 | I98: 0
D99: 10599 | E99: Protetor solar fps 30 com 120ml | F99: un | G99: 0.0001 | H99: =SUMIF(Insumos!B:B,D99,Insumos!G:G) -> 13.86 | I99: 0
D100: 4728 | E100: Talhadeira chata 10" | F100: un | G100: 0 | H100: =SUMIF(Insumos!B:B,D100,Insumos!G:G) -> 7.4 | I100: 0
D101: 2378 | E101: Vale transporte | F101: un | G101: 0.007 | H101: =SUMIF(Insumos!B:B,D101,Insumos!G:G) -> 2.74 | I101: 0.02
H102: PARCIAL: | I102: =SUM(I85:I101) -> 4.87
H104: VALOR UNITÁRIO TOTAL - R$ | I104: =TRUNC(I84+I102+I103,2) -> 5.7
B108: SERVIÇO | C108: ORSE | D108: 3658 | E108: =VLOOKUP(D108,ORSE!$C:$F,2) -> ESCAVAÇÃO E CARGA COM ESCAVADEIRA HIDRÁULICA DE MATERIAL DE 1ª CATEGORIA EM M EIO ALAGADO | I108: =VLOOKUP(D108,ORSE!$C:$F,3) -> M3 | K108: =I137 -> 3.6 | L108: =VLOOKUP(D108,ORSE!$C:$F,4) -> 4.6
D110: COD. | E110: DESCRIÇÃO | F110: UN. | G110: COEF. | H110: PREÇO | I110: TOTAL
D111: MÃO DE OBRA
D112: 54 | E112: ENCARREGADO DE TURMA - Fonte DNIT - Mês de ref.: 05/18 | F112: h | G112: 0.0233 | H112: =SUMIF(Insumos!B:B,D112,Insumos!G:G) -> 20.81 | I112: =(G112*H112) -> 0.48
D113: 6111 | E113: SERVENTE DE OBRAS | F113: h | G113: 0.0233 | H113: =SUMIF(Insumos!B:B,D113,Insumos!G:G) -> 11.11 | I113: =(G113*H113) -> 0.26
D114: 10517 | E114: Exames admissionais/demissionais (checkup) | F114: cj | G114: 0 | H114: =SUMIF(Insumos!B:B,D114,Insumos!G:G) -> 255.26 | I114: =(G114*H114) -> 0
D115: 10761 | E115: Refeição - café da manhã ( café com leite e dois pães com manteiga) | F115: un | G115: 0.0024 | H115: =SUMIF(Insumos!B:B,D115,Insumos!G:G) -> 1.96 | I115: =(G115*H115) -> 0
D116: 10362 | E116: Seguro de vida e acidente em grupo | F116: un | G116: 0.0001 | H116: =SUMIF(Insumos!B:B,D116,Insumos!G:G) -> 4.42 | I116: =(G116*H116) -> 0
H117: PARCIAL: | I117: =SUM(I111:I116) -> 0.74
D118: MATERIAIS/ SERVIÇOS/ EQUIPAMENTOS
D119: 4680 | E119: Escavadeira hidraúlica sobre esteira, Caterpillar: 320DL - cap 600l p/ longo alcance | F119: h | G119: 0.0333 | H119: =SUMIF(Insumos!B:B,D119,Insumos!G:G) -> 84.67 | I119: =(G119*H119) -> 2.82
D120: 158 | E120: Almoço (Participação do empregador) | F120: un | G120: 0.0024 | H120: =SUMIF(Insumos!B:B,D120,Insumos!G:G) -> 7.83 | I120: 0.02
D121: 12893 | E121: Bota de seguranca com biqueira de aco e colarinho acolchoado | F121: par | G121: 0 | H121: =SUMIF(Insumos!B:B,D121,Insumos!G:G) -> 30.36 | I121: 0
D122: 12894 | E122: Capa para chuva em pvc com forro de poliester, com capuz (amarela ou azul) | F122: un | G122: 0 | H122: =SUMIF(Insumos!B:B,D122,Insumos!G:G) -> 8.22 | I122: 0
D123: 12895 | E123: Capacete de seguranca aba frontal com suspensao de polietileno, sem jugular (classe b) | F123: un | G123: 0 | H123: =SUMIF(Insumos!B:B,D123,Insumos!G:G) -> 6.33 | I123: 0
D124: 2711 | E124: Carrinho de mao de aco capacidade 50 a 60 l, pneu com camara | F124: un | G124: 0 | H124: =SUMIF(Insumos!B:B,D124,Insumos!G:G) -> 86.13 | I124: 0
D125: 10492 | E125: Cesta Básica | F125: un | G125: 0.0001 | H125: =SUMIF(Insumos!B:B,D125,Insumos!G:G) -> 86.13 | I125: 0.01
D126: 941 | E126: Fardamento | F126: un | G126: 0 | H126: =SUMIF(Insumos!B:B,D126,Insumos!G:G) -> 53.6 | I126: 0
D127: 12892 | E127: Luva raspa de couro, cano curto (punho *7* cm) | F127: par | G127: 0.0001 | H127: =SUMIF(Insumos!B:B,D127,Insumos!G:G) -> 5.69 | I127: 0
D128: 4729 | E128: Marreta 1 kg com cabo | F128: un | G128: 0 | H128: =SUMIF(Insumos!B:B,D128,Insumos!G:G) -> 12.37 | I128: 0
D129: 1651 | E129: Óculos branco proteção | F129: pr | G129: 0 | H129: =SUMIF(Insumos!B:B,D129,Insumos!G:G) -> 4.31 | I129: 0
D130: 10788 | E130: Pá quadrada | F130: un | G130: 0 | H130: =SUMIF(Insumos!B:B,D130,Insumos!G:G) -> 13.54 | I130: 0
D131: 10596 | E131: Protetor auricular | F131: un | G131: 0.0001 | H131: =SUMIF(Insumos!B:B,D131,Insumos!G:G) -> 2.51 | I131: 0
D132: 10599 | E132: Protetor solar fps 30 com 120ml | F132: un | G132: 0 | H132: =SUMIF(Insumos!B:B,D132,Insumos!G:G) -> 13.86 | I132: 0
D133: 4728 | E133: Talhadeira chata 10" | F133: un | G133: 0 | H133: =SUMIF(Insumos!B:B,D133,Insumos!G:G) -> 7.4 | I133: 0
D134: 2378 | E134: Vale transporte | F134: un | G134: 0.0022 | H134: =SUMIF(Insumos!B:B,D134,Insumos!G:G) -> 2.74 | I134: 0.01
H135: PARCIAL: | I135: =SUM(I118:I134) -> 2.86
H137: VALOR UNITÁRIO TOTAL - R$ | I137: =TRUNC(I117+I135+I136,2) -> 3.6
B141: SERVIÇO | C141: ORSE | D141: 4577 | E141: =VLOOKUP(D141,ORSE!$C:$F,2) -> ESCAVAÇÃO, CARGA E TRANSPORTE DE MATERIAL DE 1ª CATEGORIA, COM ESCAVADEIRA HIDRAÚLICA, DMT 201 A 400M | I141: =VLOOKUP(D141,ORSE!$C:$F,3) -> M3 | K141: =I172 -> 3.72 | L141: =VLOOKUP(D141,ORSE!$C:$F,4) -> 4.76
D143: COD. | E143: DESCRIÇÃO | F143: UN. | G143: COEF. | H143: PREÇO | I143: TOTAL
D144: MÃO DE OBRA
D145: 54 | E145: ENCARREGADO DE TURMA - Fonte DNIT - Mês de ref.: 05/18 | F145: h | G145: 0.0052 | H145: =SUMIF(Insumos!B:B,D145,Insumos!G:G) -> 20.81 | I145: =(G145*H145) -> 0.11
D146: 6111 | E146: SERVENTE DE OBRAS | F146: h | G146: 0.0156 | H146: =SUMIF(Insumos!B:B,D146,Insumos!G:G) -> 11.11 | I146: =(G146*H146) -> 0.17
D147: 10517 | E147: Exames admissionais/demissionais (checkup) | F147: cj | G147: 0 | H147: =SUMIF(Insumos!B:B,D147,Insumos!G:G) -> 255.26 | I147: =(G147*H147) -> 0
D148: 10761 | E148: Refeição - café da manhã ( café com leite e dois pães com manteiga) | F148: un | G148: 0.0016 | H148: =SUMIF(Insumos!B:B,D148,Insumos!G:G) -> 1.96 | I148: =(G148*H148) -> 0
D149: 10362 | E149: Seguro de vida e acidente em grupo | F149: un | G149: 0.0001 | H149: =SUMIF(Insumos!B:B,D149,Insumos!G:G) -> 4.42 | I149: =(G149*H149) -> 0
H150: PARCIAL: | I150: =SUM(I144:I149) -> 0.28
D151: MATERIAIS/ SERVIÇOS/ EQUIPAMENTOS
D152: 2450 | E152: Caminhão basc. 15,0t/10,0m3 ( m. benz lk 1418 -170,0kw ou equivalente) | F152: h | G152: 0.0219 | H152: =SUMIF(Insumos!B:B,D152,Insumos!G:G)-0.888888888888889 -> 108.9711 | I152: =(G152*H152) -> 2.39
D153: 4680 | E153: Escavadeira hidraúlica sobre esteira, Caterpillar: 320DL - cap 600l p/ longo alcance | F153: h | G153: 0.0101 | H153: =SUMIF(Insumos!B:B,D153,Insumos!G:G) -> 84.67 | I153: 0.86
D154: 2475 | E154: Motoniveladora 15000 kg com escarificador (cat - 140M - 185,0 hp ou equivalente) | F154: h | G154: 0.0015 | H154: =SUMIF(Insumos!B:B,D154,Insumos!G:G) -> 115.45 | I154: 0.17
D155: 158 | E155: Almoço (Participação do empregador) | F155: un | G155: 0.0016 | H155: =SUMIF(Insumos!B:B,D155,Insumos!G:G) -> 7.83 | I155: 0.01
D156: 12893 | E156: Bota de seguranca com biqueira de aco e colarinho acolchoado | F156: par | G156: 0 | H156: =SUMIF(Insumos!B:B,D156,Insumos!G:G) -> 30.36 | I156: 0
D157: 12894 | E157: Capa para chuva em pvc com forro de poliester, com capuz (amarela ou azul) | F157: un | G157: 0 | H157: =SUMIF(Insumos!B:B,D157,Insumos!G:G) -> 8.22 | I157: 0
D158: 12895 | E158: Capacete de seguranca aba frontal com suspensao de polietileno, sem jugular (classe b) | F158: un | G158: 0 | H158: =SUMIF(Insumos!B:B,D158,Insumos!G:G) -> 6.33 | I158: 0
D159: 2711 | E159: Carrinho de mao de aco capacidade 50 a 60 l, pneu com camara | F159: un | G159: 0 | H159: =SUMIF(Insumos!B:B,D159,Insumos!G:G) -> 86.13 | I159: 0
D160: 10492 | E160: Cesta Básica | F160: un | G160: 0.0001 | H160: =SUMIF(Insumos!B:B,D160,Insumos!G:G) -> 86.13 | I160: 0.01
D161: 941 | E161: Fardamento | F161: un | G161: 0 | H161: =SUMIF(Insumos!B:B,D161,Insumos!G:G) -> 53.6 | I161: 0
D162: 12892 | E162: Luva raspa de couro, cano curto (punho *7* cm) | F162: par | G162: 0 | H162: =SUMIF(Insumos!B:B,D162,Insumos!G:G) -> 5.69 | I162: 0
D163: 4729 | E163: Marreta 1 kg com cabo | F163: un | G163: 0 | H163: =SUMIF(Insumos!B:B,D163,Insumos!G:G) -> 12.37 | I163: 0
D164: 1651 | E164: Óculos branco proteção | F164: pr | G164: 0 | H164: =SUMIF(Insumos!B:B,D164,Insumos!G:G) -> 4.31 | I164: 0
D165: 10788 | E165: Pá quadrada | F165: un | G165: 0 | H165: =SUMIF(Insumos!B:B,D165,Insumos!G:G) -> 13.54 | I165: 0
D166: 10596 | E166: Protetor auricular | F166: un | G166: 0.0001 | H166: =SUMIF(Insumos!B:B,D166,Insumos!G:G) -> 2.51 | I166: 0
D167: 10599 | E167: Protetor solar fps 30 com 120ml | F167: un | G167: 0 | H167: =SUMIF(Insumos!B:B,D167,Insumos!G:G) -> 13.86 | I167: 0
D168: 4728 | E168: Talhadeira chata 10" | F168: un | G168: 0 | H168: =SUMIF(Insumos!B:B,D168,Insumos!G:G) -> 7.4 | I168: 0
D169: 2378 | E169: Vale transporte | F169: un | G169: 0.0015 | H169: =SUMIF(Insumos!B:B,D169,Insumos!G:G) -> 2.74 | I169: 0
H170: PARCIAL: | I170: =SUM(I151:I169) -> 3.44
H172: VALOR UNITÁRIO TOTAL - R$ | I172: =TRUNC(I150+I170+I171,2) -> 3.72
B176: SERVIÇO | C176: ORSE | D176: 2169 | E176: =VLOOKUP(D176,ORSE!$C:$F,2) -> LASTRO DE CONCRETO SIMPLES REGULARIZADO, FCK=13,5 MPA,LANÇADO E ADENSADO | I176: =VLOOKUP(D176,ORSE!$C:$F,3) -> M3 | K176: =I229 -> 341.43 | L176: =VLOOKUP(D176,ORSE!$C:$F,4) -> 436.37
D178: COD. | E178: DESCRIÇÃO | F178: UN. | G178: COEF. | H178: PREÇO | I178: TOTAL
D179: MÃO DE OBRA
D180: 88245 | E180: ARMADOR COM ENCARGOS COMPLEMENTARES | F180: h | G180: 0.18 | H180: =SUMIF(Insumos!B:B,D180,Insumos!G:G) -> 13.51 | I180: =(G180*H180) -> 2.43
D181: 88262 | E181: CARPINTEIRO DE FORMAS COM ENCARGOS COMPLEMENTARES | F181: h | G181: 0.36 | H181: =SUMIF(Insumos!B:B,D181,Insumos!G:G) -> 13.51 | I181: =(G181*H181) -> 4.86
D182: 88309 | E182: PEDREIRO COM ENCARGOS COMPLEMENTARES | F182: h | G182: 2.9578 | H182: =SUMIF(Insumos!B:B,D182,Insumos!G:G) -> 13.51 | I182: 39.96
D183: 6111 | E183: SERVENTE DE OBRAS | F183: h | G183: 10.3258 | H183: =SUMIF(Insumos!B:B,D183,Insumos!G:G) -> 11.11 | I183: 114.72
D184: 10517 | E184: Exames admissionais/demissionais (checkup) | F184: cj | G184: 0.0057 | H184: =SUMIF(Insumos!B:B,D184,Insumos!G:G) -> 255.26 | I184: 1.45
D185: 10761 | E185: Refeição - café da manhã ( café com leite e dois pães com manteiga) | F185: un | G185: 1.48 | H185: =SUMIF(Insumos!B:B,D185,Insumos!G:G) -> 1.96 | I185: 2.9
D186: 10362 | E186: Seguro de vida e acidente em grupo | F186: un | G186: 0.0653 | H186: =SUMIF(Insumos!B:B,D186,Insumos!G:G) -> 4.42 | I186: 0.29
H187: PARCIAL: | I187: =SUM(I179:I186) -> 166.61
D188: MATERIAIS/ SERVIÇOS/ EQUIPAMENTOS
D189: 11248 | E189: Furadeira e Parafusadeira eletrica Bosch ou Similar profissional | F189: un | G189: 0 | H189: =SUMIF(Insumos!B:B,D189,Insumos!G:G) -> 235.13 | I189: =(G189*H189) -> 0
D190: 11249 | E190: Serra circular eletrica portatil | F190: un | G190: 0 | H190: =SUMIF(Insumos!B:B,D190,Insumos!G:G) -> 532.35 | I190: 0
D191: 158 | E191: Almoço (Participação do empregador) | F191: un | G191: 1.478 | H191: =SUMIF(Insumos!B:B,D191,Insumos!G:G) -> 7.83 | I191: =(G191*H191) -> 11.57
D192: 10585 | E192: Arco de serra | F192: un | G192: 0 | H192: =SUMIF(Insumos!B:B,D192,Insumos!G:G) -> 15.27 | I192: 0
D193: 367 | E193: Areia grossa - posto jazida/fornecedor (retirado na jazida,sem transporte) | F193: m3 | G193: 0.5408 | H193: =SUMIF(Insumos!B:B,D193,Insumos!G:G) -> 48.94 | I193: =(G193*H193) -> 26.47
D194: 12893 | E194: Bota de seguranca com biqueira de aco e colarinho acolchoado | F194: par | G194: 0.0116 | H194: =SUMIF(Insumos!B:B,D194,Insumos!G:G) -> 30.36 | I194: 0.35
D195: 12894 | E195: Capa para chuva em pvc com forro de poliester, com capuz (amarela ou azul) | F195: un | G195: 0.0029 | H195: =SUMIF(Insumos!B:B,D195,Insumos!G:G) -> 8.22 | I195: 0.02
D196: 12895 | E196: Capacete de seguranca aba frontal com suspensao de polietileno, sem jugular (classe b) | F196: un | G196: 0.0087 | H196: =SUMIF(Insumos!B:B,D196,Insumos!G:G) -> 6.33 | I196: 0.06
D197: 2711 | E197: Carrinho de mao de aco capacidade 50 a 60 l, pneu com camara | F197: un | G197: 0.0021 | H197: =SUMIF(Insumos!B:B,D197,Insumos!G:G) -> 86.13 | I197: 0.18
D198: 10492 | E198: Cesta Básica | F198: un | G198: 0.0653 | H198: =SUMIF(Insumos!B:B,D198,Insumos!G:G) -> 86.13 | I198: 5.62
D199: 10579 | E199: Chave de fenda chata 30 cm | F199: un | G199: 0.0001 | H199: =SUMIF(Insumos!B:B,D199,Insumos!G:G) -> 12.1 | I199: 0
D200: 1379 | E200: Cimento portland composto cp ii-32 | F200: kg | G200: 254.5978 | H200: =SUMIF(Insumos!B:B,D200,Insumos!G:G) -> 0.34 | I200: 86.56
D201: 4719 | E201: Colher de pedreiro | F201: un | G201: 0.0013 | H201: =SUMIF(Insumos!B:B,D201,Insumos!G:G) -> 8.97 | I201: =(G201*H201) -> 0.01
D202: 4174 | E202: Desempenadeira de aço lisa, cabo madeira, ref:143, Atlas ou similar | F202: un | G202: 0.0017 | H202: =SUMIF(Insumos!B:B,D202,Insumos!G:G) -> 6.4 | I202: 0.01
D203: 11245 | E203: Desempoladeira de madeira 12x22 | F203: un | G203: 0.0024 | H203: =SUMIF(Insumos!B:B,D203,Insumos!G:G) -> 9.2 | I203: 0.02
D204: 11246 | E204: Escala métrica de bambú | F204: Un | G204: 0.0024 | H204: =SUMIF(Insumos!B:B,D204,Insumos!G:G) -> 13.31 | I204: 0.03
D205: 941 | E205: Fardamento | F205: un | G205: 0.0217 | H205: =SUMIF(Insumos!B:B,D205,Insumos!G:G) -> 53.6 | I205: 1.16
D206: 10578 | E206: Formão grande | F206: un | G206: 0.0001 | H206: =SUMIF(Insumos!B:B,D206,Insumos!G:G) -> 11.86 | I206: 0
D207: 12892 | E207: Luva raspa de couro, cano curto (punho *7* cm) | F207: par | G207: 0.0333 | H207: =SUMIF(Insumos!B:B,D207,Insumos!G:G) -> 5.69 | I207: 0.19
D208: 4729 | E208: Marreta 1 kg com cabo | F208: un | G208: 0.0011 | H208: =SUMIF(Insumos!B:B,D208,Insumos!G:G) -> 12.37 | I208: 0.01
D209: 11264 | E209: Marreta de 1/2 kg com cabo | F209: un | G209: 0.0007 | H209: =SUMIF(Insumos!B:B,D209,Insumos!G:G) -> 8.57 | I209: 0.01
D210: 11244 | E210: Martelo com unha | F210: un | G210: 0.0001 | H210: =SUMIF(Insumos!B:B,D210,Insumos!G:G) -> 22.05 | I210: 0
D211: 11265 | E211: Martelo de borracha com cabo | F211: un | G211: 0.0013 | H211: =SUMIF(Insumos!B:B,D211,Insumos!G:G) -> 11.67 | I211: 0.02
D212: 11243 | E212: Martelo sem unha | F212: un | G212: 0.0003 | H212: =SUMIF(Insumos!B:B,D212,Insumos!G:G) -> 12.76 | I212: 0
D213: 10789 | E213: Nível de bolha de madeira | F213: un | G213: 0.0007 | H213: =SUMIF(Insumos!B:B,D213,Insumos!G:G) -> 7.05 | I213: 0
D214: 1651 | E214: Óculos branco proteção | F214: pr | G214: 0.0116 | H214: =SUMIF(Insumos!B:B,D214,Insumos!G:G) -> 4.31 | I214: 0.05
D215: 10788 | E215: Pá quadrada | F215: un | G215: 0.0021 | H215: =SUMIF(Insumos!B:B,D215,Insumos!G:G) -> 13.54 | I215: 0.03
D216: 4721 | E216: Pedra britada n. 1 (9,5 a 19 mm) posto pedreira/fornecedor,sem frete | F216: m3 | G216: 0.209 | H216: =SUMIF(Insumos!B:B,D216,Insumos!G:G) -> 53.64 | I216: 11.21
D217: 4718 | E217: Pedra britada n. 2 (19 a 38 mm) posto pedreira/fornecedor, sem frete | F217: m3 | G217: 0.627 | H217: =SUMIF(Insumos!B:B,D217,Insumos!G:G) -> 43.36 | I217: 27.19
D218: 10596 | E218: Protetor auricular | F218: un | G218: 0.0653 | H218: =SUMIF(Insumos!B:B,D218,Insumos!G:G) -> 2.51 | I218: 0.16
D219: 10599 | E219: Protetor solar fps 30 com 120ml | F219: un | G219: 0.026 | H219: =SUMIF(Insumos!B:B,D219,Insumos!G:G) -> 13.86 | I219: 0.36
D220: 10790 | E220: Prumo de face | F220: un | G220: 0.0003 | H220: =SUMIF(Insumos!B:B,D220,Insumos!G:G) -> 13.35 | I220: 0
D221: 10282 | E221: Regua de alumínio c/ 2,00m (para pedreiro) | F221: un | G221: 0.0007 | H221: =SUMIF(Insumos!B:B,D221,Insumos!G:G) -> 13.08 | I221: 0.01
D222: 11247 | E222: Serra mármore | F222: un | G222: 0.0003 | H222: =SUMIF(Insumos!B:B,D222,Insumos!G:G) -> 213.74 | I222: 0.06
D223: 10577 | E223: Serrote 40cm | F223: un | G223: 0 | H223: =SUMIF(Insumos!B:B,D223,Insumos!G:G) -> 23.33 | I223: 0
D224: 4728 | E224: Talhadeira chata 10" | F224: un | G224: 0.0032 | H224: =SUMIF(Insumos!B:B,D224,Insumos!G:G) -> 7.4 | I224: 0.02
D225: 10586 | E225: Torquesa | F225: un | G225: 0 | H225: =SUMIF(Insumos!B:B,D225,Insumos!G:G) -> 20.58 | I225: 0
D226: 2378 | E226: Vale transporte | F226: un | G226: 1.2543 | H226: =SUMIF(Insumos!B:B,D226,Insumos!G:G) -> 2.74 | I226: 3.44
H227: PARCIAL: | I227: =SUM(I188:I226) -> 174.82
H229: VALOR UNITÁRIO TOTAL - R$ | I229: =TRUNC(I187+I227+I228,2) -> 341.43
B233: SERVIÇO | C233: ORSE | D233: 13 | E233: =VLOOKUP(D233,ORSE!$C:$F,2) -> DEMOLIÇÃO DE CONCRETO MANUALMENTE | I233: =VLOOKUP(D233,ORSE!$C:$F,3) -> M3 | K233: =I272 -> 122.68 | L233: =VLOOKUP(D233,ORSE!$C:$F,4) -> 156.82
... 4613 more rows

Sheet Composições (SEINFRA)
D3: COMPOSIÇÕES DE CUSTO UNITÁRIO (SEINFRA)
D4: =CONCATENATE("Tabela de Custos: ",'Planilha SERVIÇOS'!$I$10) -> Tabela de Custos: 024.1
B6: SERVIÇO | C6: SEINFRA | D6: C2290 | E6: SONDAGEM À PERCUSSÃO P/RECONHECIMENTO DO SUBSOLO | I6: M | K6: =I22 -> 42.68 | L6: 54.52
D8: COD. | E8: DESCRIÇÃO | F8: UN. | G8: COEF. | H8: PREÇO | I8: TOTAL
D9: MÃO DE OBRA
H10: =SUMIF(Insumos!B:B,D10,Insumos!G:G) -> 0 | I10: =G10*H10 -> 0
H11: =SUMIF(Insumos!B:B,D11,Insumos!G:G) -> 0 | I11: =G11*H11 -> 0
H12: =SUMIF(Insumos!B:B,D12,Insumos!G:G) -> 0 | I12: =G12*H12 -> 0
D13: PARCIAL: | I13: =SUM(I9:I12) -> 0
D14: MATERIAIS/ SERVIÇOS/ EQUIPAMENTOS
D15: I1860 | E15: SERVIÇOS DE SONDAGEM À PERCUSSÃO | F15: M | G15: 1 | H15: =SUMIF(Insumos!B:B,D15,Insumos!G:G) -> 42.68 | I15: =G15*H15 -> 42.68
H16: =SUMIF(Insumos!B:B,D16,Insumos!G:G) -> 0 | I16: =G16*H16 -> 0
H17: =SUMIF(Insumos!B:B,D17,Insumos!G:G) -> 0 | I17: =G17*H17 -> 0
H18: =SUMIF(Insumos!B:B,D18,Insumos!G:G) -> 0 | I18: =G18*H18 -> 0
H19: =SUMIF(Insumos!B:B,D19,Insumos!G:G) -> 0 | I19: =G19*H19 -> 0
H20: PARCIAL: | I20: =SUM(I15:I19) -> 42.68
H21: Encargos Sociais: | I21: =(I13*0.962796297940341) -> 0
H22: VALOR UNITÁRIO TOTAL - R$ | I22: =TRUNC(I13+I20+I21,2) -> 42.68
B26: SERVIÇO | C26: SEINFRA | D26: C3496 | E26: MONTAGEM DE TUBOS, CONEXÕES E PÇS, ELEVATÓRIA CAP ATÉ 5 l/s | I26: UN | K26: =I42 -> 926.51 | L26: 1183.29
D28: COD. | E28: DESCRIÇÃO | F28: UN. | G28: COEF. | H28: PREÇO | I28: TOTAL
D29: MÃO DE OBRA
D30: I0037 | E30: AJUDANTE | F30: H | G30: 9.3417 | H30: =SUMIF(Insumos!B:B,D30,Insumos!G:G) -> 11.11 | I30: =G30*H30 -> 103.79
D31: I1530 | E31: MONTADOR | F31: H | G31: 9.3417 | H31: =SUMIF(Insumos!B:B,D31,Insumos!G:G) -> 13.51 | I31: =G31*H31 -> 126.21
D32: I2543 | E32: SERVENTE | F32: H | G32: 30.816 | H32: =Insumos!G773 -> 11.11 | I32: =G32*H32 -> 342.37
D33: PARCIAL: | I33: =SUM(I29:I32) -> 572.37
D34: MATERIAIS/ SERVIÇOS/ EQUIPAMENTOS
D35: I0700 | E35: CAMINHONETE SAVEIRO (CHP) | F35: H | G35: 8 | H35: =SUMIF(Insumos!B:B,D35,Insumos!G:G) -> 42.31 | I35: =G35*H35-0.01 -> 338.47
D36: I0737 | E36: ESMERILHADEIRA INDUSTRIAL | F36: H | G36: 16 | H36: =SUMIF(Insumos!B:B,D36,Insumos!G:G) -> 0.85 | I36: =G36*H36 -> 13.6
D37: I0771 | E37: TALHA MANUAL (CHP) H 16,0 | F37: H | G37: 16 | H37: =SUMIF(Insumos!B:B,D37,Insumos!G:G) -> 0.13 | I37: =G37*H37-0.01 -> 2.07
H38: =SUMIF(Insumos!B:B,D38,Insumos!G:G) -> 0 | I38: =G38*H38 -> 0
H39: =SUMIF(Insumos!B:B,D39,Insumos!G:G) -> 0 | I39: =G39*H39 -> 0
H40: PARCIAL: | I40: =SUM(I35:I39) -> 354.14
H41: Encargos Sociais:
H42: VALOR UNITÁRIO TOTAL - R$ | I42: =TRUNC(I33+I40+I41,2) -> 926.51 | K42: 926.51
B46: SERVIÇO | C46: SEINFRA | D46: C4151 | E46: ARMADURA DE AÇO CA 50/60 | I46: KG | K46: =I61 -> 5.64 | L46: 7.21
D48: COD. | E48: DESCRIÇÃO | F48: UN. | G48: COEF. | H48: PREÇO | I48: TOTAL
D49: MÃO DE OBRA
D50: I0040 | E50: AJUDANTE DE ARMADOR/FERREIRO | F50: H | G50: 0.0567 | H50: =SUMIF(Insumos!B:B,D50,Insumos!G:G) -> 11.11 | I50: =(G50*H50) -> 0.63
D51: I0121 | E51: ARMADOR/FERREIRO | F51: H | G51: 0.0567 | H51: =SUMIF(Insumos!B:B,D51,Insumos!G:G) -> 13.51 | I51: =(G51*H51) -> 0.77
D52: MDO: | I52: =SUM(I49:I51) -> 1.4
D53: MATERIAIS/ SERVIÇOS/ EQUIPAMENTOS
D54: I0705 | E54: CAMINHÃO COMERC. EQUIP. C/GUINDASTE (CHP) | F54: H | G54: 0.008 | H54: =SUMIF(Insumos!B:B,D54,Insumos!G:G) -> 77.52 | I54: =(G54*H54) -> 0.62
D55: I0103 | E55: ARAME RECOZIDO N.18 BWG | F55: KG | G55: 0.02 | H55: =SUMIF(Insumos!B:B,D55,Insumos!G:G) -> 7.81 | I55: =(G55*H55) -> 0.16
D56: I7952 | E56: AÇO CA-50/60 | F56: KG | G56: 1.05 | H56: =SUMIF(Insumos!B:B,D56,Insumos!G:G) -> 3.3 | I56: =(G56*H56)-0.01 -> 3.46
H57: =SUMIF(Insumos!B:B,D57,Insumos!G:G) -> 0 | I57: =(G57*H57) -> 0
H58: =SUMIF(Insumos!B:B,D58,Insumos!G:G) -> 0 | I58: =(G58*H58) -> 0
H59: SERVIÇOS: | I59: =SUM(I54:I58) -> 4.24
H60: Encargos Sociais:
H61: VALOR UNITÁRIO TOTAL - R$ | I61: =TRUNC(I52+I59+I60,2) -> 5.64
B65: SERVIÇO | C65: SEINFRA | D65: C3502 | E65: MONTAGEM DE TUBOS, CONEXÕES E EQUIPAMENTOS DE TRATAMENTO, CASA DE OPERAÇÃO | I65: UN | K65: =I81 -> 1242.64 | L65: 1587.04
D67: COD. | E67: DESCRIÇÃO | F67: UN. | G67: COEF. | H67: PREÇO | I67: TOTAL
D68: MÃO DE OBRA
D69: I0037 | E69: AJUDANTE | F69: H | G69: 32.5899 | H69: =SUMIF(Insumos!B:B,D69,Insumos!G:G) -> 11.11 | I69: =(G69*H69) -> 362.07
D70: I1530 | E70: MONTADOR | F70: H | G70: 32.5899 | H70: =SUMIF(Insumos!B:B,D70,Insumos!G:G) -> 13.51 | I70: =(G70*H70) -> 440.29
D71: I2543 | E71: ARMADOR | F71: H | G71: 32.5899 | H71: =SUMIF(Insumos!B:B,D71,Insumos!G:G) -> 13.51 | I71: =(G71*H71)-0.01 -> 440.28
D72: MDO: | I72: =SUM(I68:I71) -> 1242.64
D73: MATERIAIS/ SERVIÇOS/ EQUIPAMENTOS
H74: =SUMIF(Insumos!B:B,D74,Insumos!G:G) -> 0 | I74: =(G74*H74) -> 0
H75: =SUMIF(Insumos!B:B,D75,Insumos!G:G) -> 0 | I75: =(G75*H75) -> 0
H76: =SUMIF(Insumos!B:B,D76,Insumos!G:G) -> 0 | I76: =(G76*H76) -> 0
H77: =SUMIF(Insumos!B:B,D77,Insumos!G:G) -> 0 | I77: =(G77*H77) -> 0
H78: =SUMIF(Insumos!B:B,D78,Insumos!G:G) -> 0 | I78: =(G78*H78) -> 0
H79: SERVIÇOS: | I79: =SUM(I74:I78) -> 0
H80: Encargos Sociais:
H81: VALOR UNITÁRIO TOTAL - R$ | I81: =TRUNC(I72+I79+I80,2) -> 1242.64
B85: SERVIÇO | C85: SEINFRA | D85: C3525 | E85: MONTAGEM DE TUBOS, CONEXÕES E PÇS ESPECIAIS EM FLOCULADOR/DECANTADOR | I85: UN | K85: =I100 -> 1724.34 | L85: 2202.23
D87: COD. | E87: DESCRIÇÃO | F87: UN. | G87: COEF. | H87: PREÇO | I87: TOTAL
D88: MÃO DE OBRA
D89: I0037 | E89: AJUDANTE | F89: H | G89: 105.1578 | H89: =SUMIF(Insumos!B:B,D89,Insumos!G:G) -> 11.11 | I89: =(G89*H89) -> 1168.3
D90: I1530 | E90: MONTADOR | F90: H | G90: 41.1578 | H90: =SUMIF(Insumos!B:B,D90,Insumos!G:G) -> 13.51 | I90: =(G90*H90) -> 556.04
D91: MDO: | I91: =SUM(I88:I90) -> 1724.34
D92: MATERIAIS/ SERVIÇOS/ EQUIPAMENTOS
H93: =SUMIF(Insumos!B:B,D93,Insumos!G:G) -> 0 | I93: =(G93*H93) -> 0
H94: =SUMIF(Insumos!B:B,D94,Insumos!G:G) -> 0 | I94: =(G94*H94) -> 0
H95: =SUMIF(Insumos!B:B,D95,Insumos!G:G) -> 0 | I95: =(G95*H95) -> 0
H96: =SUMIF(Insumos!B:B,D96,Insumos!G:G) -> 0 | I96: =(G96*H96) -> 0
H97: =SUMIF(Insumos!B:B,D97,Insumos!G:G) -> 0 | I97: =(G97*H97) -> 0
H98: SERVIÇOS: | I98: =SUM(I93:I97) -> 0
H99: Encargos Sociais:
H100: VALOR UNITÁRIO TOTAL - R$ | I100: =TRUNC(I91+I98+I99,2) -> 1724.34
B104: SERVIÇO | C104: SEINFRA | D104: C3493 | E104: MONTAGEM DE TUBOS, CONEXÕES E PÇS, RESERVATÓRIO ELEVADO CAP DE 50,01 À 100 M3 | I104: UN | K104: =I120 -> 1762.28 | L104: 2250.69
D106: COD. | E106: DESCRIÇÃO | F106: UN. | G106: COEF. | H106: PREÇO | I106: TOTAL
D107: MÃO DE OBRA
D108: I0037 | E108: AJUDANTE | F108: H | G108: 18.9136 | H108: =SUMIF(Insumos!B:B,D108,Insumos!G:G) -> 11.11 | I108: =(G108*H108) -> 210.13
D109: I1530 | E109: MONTADOR | F109: H | G109: 13.9136 | H109: =SUMIF(Insumos!B:B,D109,Insumos!G:G) -> 13.51 | I109: =(G109*H109) -> 187.97
D110: I2543 | E110: SERVENTE | F110: H | G110: 109.2005 | H110: =Insumos!G773 -> 11.11 | I110: =(G110*H110) -> 1213.22
D111: PARCIAL: | I111: =SUM(I107:I110) -> 1611.32
D112: MATERIAIS/ SERVIÇOS/ EQUIPAMENTOS
D113: I0737 | E113: ESMERILHADEIRA INDUSTRIAL (CHP) | F113: H | G113: 16 | H113: =SUMIF(Insumos!B:B,D113,Insumos!G:G) -> 0.85 | I113: =(G113*H113) -> 13.6
D114: I0771 | E114: TALHA MANUAL (CHP) | F114: H | G114: 16 | H114: =SUMIF(Insumos!B:B,D114,Insumos!G:G) -> 0.13 | I114: =(G114*H114) -> 2.08
D115: C0833 | E115: CONCRETO GROUT C/ATÉ 50% DE PEDRISCO EM PESO, LANÇAMENTO E CURA | F115: H | G115: 0.04 | H115: =SUMIF(Insumos!B:B,D115,Insumos!G:G) -> 3382.13 | I115: =(G115*H115)-0.01 -> 135.28
H116: =SUMIF(Insumos!B:B,D116,Insumos!G:G) -> 0 | I116: =(G116*H116) -> 0
H117: =SUMIF(Insumos!B:B,D117,Insumos!G:G) -> 0 | I117: =(G117*H117) -> 0
H118: PARCIAL: | I118: =SUM(I113:I117) -> 150.96
H119: Encargos Sociais:
H120: VALOR UNITÁRIO TOTAL - R$ | I120: =TRUNC(I111+I118+I119,2) -> 1762.28 | K120: 1762.28
B124: SERVIÇO | C124: SEINFRA | D124: C4207 | E124: INSTALAÇÃO DE MACROMEDIDOR TIPO WALTMANN PARA DIÂMETROS ATÉ 300mm | I124: UN | K124: =I140 -> 478.85 | L124: 611.56
D126: COD. | E126: DESCRIÇÃO | F126: UN. | G126: COEF. | H126: PREÇO | I126: TOTAL
D127: MÃO DE OBRA
D128: I0037 | E128: AJUDANTE | F128: H | G128: 26.5111 | H128: =SUMIF(Insumos!B:B,D128,Insumos!G:G) -> 11.11 | I128: =(G128*H128) -> 294.54
D129: I1530 | E129: MONTADOR | F129: H | G129: 10.5111 | H129: =SUMIF(Insumos!B:B,D129,Insumos!G:G) -> 13.51 | I129: =(G129*H129) -> 142
H130: =SUMIF(Insumos!B:B,D130,Insumos!G:G) -> 0 | I130: =(G130*H130) -> 0
D131: PARCIAL: | I131: =SUM(I127:I130) -> 436.54
D132: MATERIAIS/ SERVIÇOS/ EQUIPAMENTOS
D133: I0700 | E133: CAMINHONETE SAVEIRO (CHP) | F133: H | G133: 1 | H133: =SUMIF(Insumos!B:B,D133,Insumos!G:G) -> 42.31 | I133: =(G133*H133) -> 42.31
H134: =SUMIF(Insumos!B:B,D134,Insumos!G:G) -> 0 | I134: =(G134*H134) -> 0
H135: =SUMIF(Insumos!B:B,D135,Insumos!G:G) -> 0 | I135: =(G135*H135) -> 0
H136: =SUMIF(Insumos!B:B,D136,Insumos!G:G) -> 0 | I136: =(G136*H136) -> 0
H137: =SUMIF(Insumos!B:B,D137,Insumos!G:G) -> 0 | I137: =(G137*H137) -> 0
H138: PARCIAL: | I138: =SUM(I133:I137) -> 42.31
H139: Encargos Sociais:
H140: VALOR UNITÁRIO TOTAL - R$ | I140: =TRUNC(I131+I138+I139,2) -> 478.85
B144: SERVIÇO | C144: SEINFRA | D144: C0215 | E144: ARMADURA CA-50A GROSSA D= 12,5 A 25,0mm | I144: KG | K144: =I159 -> 5.67 | L144: 7.25
D146: COD. | E146: DESCRIÇÃO | F146: UN. | G146: COEF. | H146: PREÇO | I146: TOTAL
D147: MÃO DE OBRA
D148: I0040 | E148: AJUDANTE DE ARMADOR/FERREIRO | F148: H | G148: 0.0652 | H148: =SUMIF(Insumos!B:B,D148,Insumos!G:G) -> 11.11 | I148: =(G148*H148) -> 0.72
D149: I0121 | E149: ARMADOR/FERREIRO | F149: H | G149: 0.0652 | H149: =SUMIF(Insumos!B:B,D149,Insumos!G:G) -> 13.51 | I149: =(G149*H149) -> 0.88
H150: =SUMIF(Insumos!B:B,D150,Insumos!G:G) -> 0 | I150: =(G150*H150) -> 0
D151: PARCIAL: | I151: =SUM(I147:I150) -> 1.6
D152: MATERIAIS/ SERVIÇOS/ EQUIPAMENTOS
D153: I0103 | E153: ARAME RECOZIDO N.18 BWG | F153: KG | G153: 0.03 | H153: =SUMIF(Insumos!B:B,D153,Insumos!G:G) -> 7.81 | I153: =(G153*H153) -> 0.23
D154: I0163 | E154: AÇO CA-50 | F154: KG | G154: 1.15 | H154: =SUMIF(Insumos!B:B,D154,Insumos!G:G) -> 3.34 | I154: =(G154*H154) -> 3.84
H155: =SUMIF(Insumos!B:B,D155,Insumos!G:G) -> 0 | I155: =(G155*H155) -> 0
H156: =SUMIF(Insumos!B:B,D156,Insumos!G:G) -> 0 | I156: =(G156*H156) -> 0
H157: PARCIAL: | I157: =SUM(I153:I156) -> 4.07
H158: Encargos Sociais:
H159: VALOR UNITÁRIO TOTAL - R$ | I159: =TRUNC(I151+I157+I158,2) -> 5.67
B163: SERVIÇO | C163: SEINFRA | D163: C3512 | E163: MONTAGEM DE TUBOS, CONEXÕES E PÇS, RESERVATÓRIO ELEVADO CAP. ATÉ 50 M3 | I163: UN | K163: =I179 -> 1041.86 | L163: 1330.61
D165: COD. | E165: DESCRIÇÃO | F165: UN. | G165: COEF. | H165: PREÇO | I165: TOTAL
D166: MÃO DE OBRA
D167: I0037 | E167: AJUDANTE | F167: H | G167: 8.3372 | H167: =SUMIF(Insumos!B:B,D167,Insumos!G:G) -> 11.11 | I167: =(G167*H167) -> 92.63
D168: I1530 | E168: MONTADOR | F168: H | G168: 8.3372 | H168: =SUMIF(Insumos!B:B,D168,Insumos!G:G) -> 13.51 | I168: =(G168*H168) -> 112.64
D169: I2543 | E169: SERVENTE | F169: H | G169: 68.5073 | H169: =Insumos!G773 -> 11.11 | I169: =(G169*H169) -> 761.12
D170: MDO: | I170: =SUM(I166:I169) -> 966.39
D171: MATERIAIS/ SERVIÇOS/ EQUIPAMENTOS
D172: I0737 | E172: ESMERILHADEIRA INDUSTRIAL (CHP) | F172: H | G172: 8 | H172: =SUMIF(Insumos!B:B,D172,Insumos!G:G) -> 0.85 | I172: =(G172*H172) -> 6.8
D173: I0771 | E173: TALHA MANUAL (CHP) | F173: H | G173: 8 | H173: =SUMIF(Insumos!B:B,D173,Insumos!G:G) -> 0.13 | I173: =(G173*H173) -> 1.04
D174: C0833 | E174: CONCRETO GROUT C/ATÉ 50% DE PEDRISCO EM PESO, LANÇAMENTO E CURA | F174: M3 | G174: 0.02 | H174: =SUMIF(Insumos!B:B,D174,Insumos!G:G) -> 3382.13 | I174: =(G174*H174)-0.01 -> 67.63
H175: =SUMIF(Insumos!B:B,D175,Insumos!G:G) -> 0 | I175: =(G175*H175) -> 0
H176: =SUMIF(Insumos!B:B,D176,Insumos!G:G) -> 0 | I176: =(G176*H176) -> 0
H177: SERVIÇOS: | I177: =SUM(I172:I176) -> 75.47
H178: Encargos Sociais:
H179: VALOR UNITÁRIO TOTAL - R$ | I179: =TRUNC(I170+I177+I178,2) -> 1041.86 | K179: 1041.86
B183: INSUMO | C183: SEINFRA | D183: =D187 -> I7333 | E183: =E187 -> FLUTUADOR PARA TUBO PEAD EM FIBRA DN 250 mm | I183: =F187 -> UN | K183: =I192 -> 712.91 | L183: 910.49
D185: COD. | E185: DESCRIÇÃO | F185: UN. | G185: COEF. | H185: PREÇO | I185: TOTAL
D186: MATERIAIS
D187: I7333 | E187: FLUTUADOR PARA TUBO PEAD EM FIBRA DN 250 mm | F187: UN | G187: 1 | H187: =SUMIF(Insumos!B:B,D187,Insumos!G:G) -> 712.91 | I187: =(G187*H187) -> 712.91
H188: =SUMIF(Insumos!B:B,D188,Insumos!G:G) -> 0 | I188: =(G188*H188) -> 0
H189: =SUMIF(Insumos!B:B,D189,Insumos!G:G) -> 0 | I189: =(G189*H189) -> 0
D190: PARCIAL: | I190: =SUM(I186:I189) -> 712.91
H191: Encargos Sociais:
H192: VALOR UNITÁRIO TOTAL - R$ | I192: =TRUNC(I190+I191,2) -> 712.91
B196: INSUMO | C196: SEINFRA | D196: =D200 -> I7470 | E196: =E200 -> FLUTUANTE EM PRFV COM CAP. ATÉ 1.000Kg | I196: =F200 -> UN | K196: =I205 -> 5173.63 | L196: 6607.45
D198: COD. | E198: DESCRIÇÃO | F198: UN. | G198: COEF. | H198: PREÇO | I198: TOTAL
D199: MATERIAIS
D200: I7470 | E200: FLUTUANTE EM PRFV COM CAP. ATÉ 1.000Kg | F200: UN | G200: 1 | H200: =SUMIF(Insumos!B:B,D200,Insumos!G:G) -> 5173.63 | I200: =(G200*H200) -> 5173.63
H201: =SUMIF(Insumos!B:B,D201,Insumos!G:G) -> 0 | I201: =(G201*H201) -> 0
H202: =SUMIF(Insumos!B:B,D202,Insumos!G:G) -> 0 | I202: =(G202*H202) -> 0
D203: PARCIAL: | I203: =SUM(I199:I202) -> 5173.63
H204: Encargos Sociais:
H205: VALOR UNITÁRIO TOTAL - R$ | I205: =TRUNC(I203+I204,2) -> 5173.63
B209: INSUMO | C209: SEINFRA | D209: =D213 -> I4884 | E209: =E213 -> CRIVO COM FLANGE DN 200 PN10 | I209: =F213 -> UN | K209: =I218 -> 400.15 | L209: 511.06
D211: COD. | E211: DESCRIÇÃO | F211: UN. | G211: COEF. | H211: PREÇO | I211: TOTAL
D212: MATERIAIS
D213: I4884 | E213: CRIVO COM FLANGE DN 200 PN10 | F213: UN | G213: 1 | H213: =SUMIF(Insumos!B:B,D213,Insumos!G:G) -> 400.15 | I213: =(G213*H213) -> 400.15
H214: =SUMIF(Insumos!B:B,D214,Insumos!G:G) -> 0 | I214: =(G214*H214) -> 0
H215: =SUMIF(Insumos!B:B,D215,Insumos!G:G) -> 0 | I215: =(G215*H215) -> 0
D216: PARCIAL: | I216: =SUM(I212:I215) -> 400.15
H217: Encargos Sociais:
H218: VALOR UNITÁRIO TOTAL - R$ | I218: =TRUNC(I216+I217,2) -> 400.15
B222: INSUMO | C222: SEINFRA | D222: =D226 -> I5639 | E222: =E226 -> VALVULA DE PE C/CRIVO PORT. DUPLA FLANGE DN 100 PN16 | I222: =F226 -> UN | K222: =I231 -> 672.76 | L222: 859.22
D224: COD. | E224: DESCRIÇÃO | F224: UN. | G224: COEF. | H224: PREÇO | I224: TOTAL
D225: MATERIAIS
D226: I5639 | E226: VALVULA DE PE C/CRIVO PORT. DUPLA FLANGE DN 100 PN16 | F226: UN | G226: 1 | H226: =SUMIF(Insumos!B:B,D226,Insumos!G:G) -> 672.76 | I226: =(G226*H226) -> 672.76
H227: =SUMIF(Insumos!B:B,D227,Insumos!G:G) -> 0 | I227: =(G227*H227) -> 0
H228: =SUMIF(Insumos!B:B,D228,Insumos!G:G) -> 0 | I228: =(G228*H228) -> 0
D229: PARCIAL: | I229: =SUM(I225:I228) -> 672.76
H230: Encargos Sociais:
H231: VALOR UNITÁRIO TOTAL - R$ | I231: =TRUNC(I229+I230,2) -> 672.76
B235: INSUMO | C235: SEINFRA | D235: =D239 -> I6850 | E235: =E239 -> COLARINHO PEAD PN 10 DN 110 mm | I235: =F239 -> UN | K235: =I244 -> 111.52 | L235: 142.43
D237: COD. | E237: DESCRIÇÃO | F237: UN. | G237: COEF. | H237: PREÇO | I237: TOTAL
D238: MATERIAIS
D239: I6850 | E239: COLARINHO PEAD PN 10 DN 110 mm | F239: UN | G239: 1 | H239: =SUMIF(Insumos!B:B,D239,Insumos!G:G) -> 111.52 | I239: =(G239*H239) -> 111.52
H240: =SUMIF(Insumos!B:B,D240,Insumos!G:G) -> 0 | I240: =(G240*H240) -> 0
H241: =SUMIF(Insumos!B:B,D241,Insumos!G:G) -> 0 | I241: =(G241*H241) -> 0
D242: PARCIAL: | I242: =SUM(I238:I241) -> 111.52
H243: Encargos Sociais:
H244: VALOR UNITÁRIO TOTAL - R$ | I244: =TRUNC(I242+I243,2) -> 111.52
B248: INSUMO | C248: SEINFRA | D248: =D252 -> I0256 | E248: =E252 -> BOMBA CENTRIFUGA P=5CV | I248: =F252 -> UN | K248: =I257 -> 1269.67 | L248: 1621.55
D250: COD. | E250: DESCRIÇÃO | F250: UN. | G250: COEF. | H250: PREÇO | I250: TOTAL
D251: MATERIAIS
D252: I0256 | E252: BOMBA CENTRIFUGA P=5CV | F252: UN | G252: 1 | H252: =SUMIF(Insumos!B:B,D252,Insumos!G:G) -> 1269.67 | I252: =(G252*H252) -> 1269.67
H253: =SUMIF(Insumos!B:B,D253,Insumos!G:G) -> 0 | I253: =(G253*H253) -> 0
H254: =SUMIF(Insumos!B:B,D254,Insumos!G:G) -> 0 | I254: =(G254*H254) -> 0
D255: PARCIAL: | I255: =SUM(I251:I254) -> 1269.67
H256: Encargos Sociais:
H257: VALOR UNITÁRIO TOTAL - R$ | I257: =TRUNC(I255+I256,2) -> 1269.67
B261: INSUMO | C261: SEINFRA | D261: =D265 -> I6774 | E261: =E265 -> REDUÇÃO AÇO ASTM A-120 ROSCÁVEL DE (4"x 2") | I261: =F265 -> UN | K261: =I270 -> 22.99 | L261: 29.37
D263: COD. | E263: DESCRIÇÃO | F263: UN. | G263: COEF. | H263: PREÇO | I263: TOTAL
D264: MATERIAIS
... 420 more rows

Sheet Insumos
B3: PRECOS DE INSUMOS (SINAPI, CODEVASF, SEINFRA E ORSE)
B7: MATERIAL/ SERVIÇOS/ EQUIPAMENTOS | F7: DESCONTO (INSUMOS) | G7: 0.217
B9: CODIGO | C9: DESCRICAO DO INSUMO | E9: UNIDADE | F9: PRECO TABELA | G9: PRECO COM DESCONTO
B11: 10 | C11: BALDE PLASTICO CAPACIDADE *10* L | E11: UN | F11: 8.53 | G11: =F11*(1-$G$7) -> 6.68
B12: 13 | C12: ESTOPA | E12: KG | F12: 12.85 | G12: =F12*(1-$G$7) -> 10.06
B13: 29 | C13: ACO CA-50, 20,0 MM, VERGALHAO | E13: KG | F13: 3.78 | G13: 2.96
B14: 39 | C14: ACO CA-60, 5,0 MM, VERGALHAO | E14: KG | F14: 4,07 | G14: 3.19
B15: 50 | C15: ADAPTADOR, PVC PBA, A BOLSA DEFOFO, JE, DN 75 / DE 85 MM | E15: UN | F15: 26.45 | G15: 20.71
B16: 51 | C16: ADAPTADOR, PVC PBA, A BOLSA DEFOFO, JE, DN 100 / DE 110 MM | E16: UN | F16: 41.76 | G16: =F16*(1-$G$7)-0.01 -> 32.69
B17: 81 | C17: AÇO CA-50 6,3 A 12,5 MM | E17: KG | F17: 4.26 | G17: 3.34
B18: 82 | C18: AÇO CA-60 4,2 A 9,5 MM | E18: KG | F18: 4.22 | G18: 3.3
B19: 95 | C19: ADAPTADOR PVC SOLDAVEL, COM FLANGE E ANEL DE VEDACAO, 20 MMX 1/2", PARA CAIXA D'AGUA | E19: UN | F19: 7.59 | G19: 5.94
B20: 96 | C20: ADAPTADOR PVC SOLDAVEL, COM FLANGE E ANEL DE VEDACAO, 25 MMX 3/4", PARA CAIXA D'AGUA | E20: UN | F20: 9.83 | G20: 7.7
B21: 98 | C21: ADAPTADOR PVC SOLDAVEL, COM FLANGE E ANEL DE VEDACAO, 40 MMX 1 1/4", PARA CAIXA D'AGUA | E21: UN | F21: 20.07 | G21: 15.71
B22: 107 | C22: ADAPTADOR PVC SOLDAVEL CURTO COM BOLSA E ROSCA, 20 MM X 1/2", PARA AGUA FRIA | E22: UN | F22: 0.8 | G22: =F22*(1-$G$7)-0.01 -> 0.62
B23: 113 | C23: ADAPTADOR PVC SOLDAVEL CURTO COM BOLSA E ROSCA, 60 MM X 2", PARA AGUA FRIA | E23: UN | F23: 10.06 | G23: =F23*(1-$G$7)-0.01 -> 7.87
B24: 127 | C24: ADITIVO IMPERMEABILIZANTE DE PEGA ULTRARRAPIDA | E24: L | F24: 11.48 | G24: 8.99
B25: 138 | C25: ADESIVO PVC EM FRASCO DE 850 GRAMAS | E25: KG | F25: 53.13 | G25: 41.6
B26: 142 | C26: SELANTE ELASTICO MONOCOMPONENTE A BASE DE POLIURETANO PARA JUNTAS DIVERSAS | E26: 310ML | F26: 37,79 | G26: 29.59
B27: 158 | C27: ALMOÇO (PARTICIPAÇÃO DO EMPREGADOR) | E27: UN | F27: 10 | G27: 7.83
B28: 160 | C28: ALUGUEL DE ANDAIME METÁLICO TUBULAR SIMPLES - ALUGUEL DIÁRIO POR PEÇA | E28: PXD | F28: 0.17 | G28: 0.13
B29: 207 | C29: ARRUELA DE ALUMÍNIO P/ELETRODUTO D= 3/4" | E29: UN | F29: 0.3 | G29: 0.23
B30: 209 | C30: ARRUELA DE ALUMÍNIO P/ELETRODUTO D=1 1/ 4" | E30: UN | F30: 0.6 | G30: 0.47
B31: 235 | C31: CERAMICA TIPO AZULEJO BRANCO 15X15 CM, TIPO "A" | E31: M2 | F31: 16.9 | G31: 13.23
B32: 257 | C32: BARRA CHATA DE FERRO 1 1/2" X 1/4" (1,90 KG/M) | E32: M | F32: 9.62 | G32: 7.53
B33: 261 | C33: BARRA QUADRADA DE FERRO 1/2" (1,27 KG/M) | E33: M | F33: 6.81 | G33: 5.33
B34: 311 | C34: ANEL BORRACHA, PARA TUBO PVC DEFOFO, DN 100 MM (NBR 7665) | E34: UN | F34: 5.52 | G34: 4.32
B35: 314 | C35: BUCHA ALUMINIO P/ELETRODUTO D=1 1/ 4" | E35: UN | F35: 0.6 | G35: 0.47
B36: 315 | C36: BUCHA ALUMÍNIO P/ELETRODUTO D=4" (100MM) | E36: UN | F36: 4.42 | G36: 3.46
B37: 318 | C37: ANEL BORRACHA, PARA TUBO PVC DEFOFO, DN 150 MM (NBR 7665) | E37: UN | F37: 9.68 | G37: =F37*(1-$G$7)-0.01 -> 7.57
B38: 319 | C38: ANEL BORRACHA, PARA TUBO PVC DEFOFO, DN 200 MM (NBR 7665) | E38: UN | F38: 18.28 | G38: 14.31
B39: 333 | C39: ARAME GALVANIZADO 14 BWG, D = 2,11 MM (0,026 KG/M) | E39: KG | F39: 12.5 | G39: 9.79
B40: 337 | C40: ARAME RECOZIDO 18 BWG, 1,25 MM (0,01 KG/M) | E40: KG | F40: 9,41 | G40: 7.37
B41: 340 | C41: ARAME FARPADO GALVANIZADO, 16 BWG (1,65 MM), CLASSE 250 | E41: M | F41: 0,76 | G41: 0.6
B42: 345 | C42: ARAME GALVANIZADO 18 BWG, 1,24MM (0,009 KG/M) | E42: KG | F42: 14,54 | G42: 11.38
B43: 367 | C43: AREIA GROSSA - POSTO JAZIDA/FORNECEDOR (RETIRADO NA JAZIDA, SEM TRANSPORTE) | E43: M3 | F43: 62,50 | G43: 48.94
B44: 370 | C44: AREIA MEDIA - POSTO JAZIDA/FORNECEDOR (RETIRADO NA JAZIDA, SEM TRANSPORTE) | E44: M3 | F44: 50,00 | G44: 39.15
B45: 371 | C45: ARGAMASSA INDUSTRIALIZADA MULTIUSO, PARA REVESTIMENTO INTERNO E EXTERNO E ASSENTAMENTO DE BLOCOS DIVERSOS | E45: KG | F45: 0.38 | G45: 0.3
B46: 377 | C46: ASSENTO SANITARIO DE PLASTICO, TIPO CONVENCIONAL | E46: UN | F46: 21.9 | G46: 17.15
B47: 392 | C47: ABRACADEIRA EM ACO PARA AMARRACAO DE ELETRODUTOS, TIPO D, COM 1/2" E PARAFUSO DE FIXACAO | E47: UN | F47: 0.63 | G47: 0.49
B48: 398 | C48: CABO DE ALUMÍNIO NU ASC, SEM ALMA DE AÇO, 7X1 FIOS - 2/0 AWG | E48: KG | F48: 23.4 | G48: 18.32
B49: 414 | C49: CABO COBRE RÍGIDO, ISOLADO, 16MM2 - 450/750V / 70º | E49: M | F49: 8.02 | G49: 6.28
B50: 435 | C50: CAIXA DE MEDICAO MONOFÁSICA, EM NORIL (POLICARBONATO) | E50: UN | F50: 13.3 | G50: 10.41
B51: 436 | C51: CAIXA DE MEDICAO BI OU TRIFÁSICA, EM NORIL (POLICARBONATO) | E51: UN | F51: 66 | G51: 51.68
B52: 451 | C52: CAIXA DE PVC 4" X 2" , EMBUTIR, P/ELETRODUTO (PRETA) | E52: UN | F52: 1.26 | G52: =F52*(1-$G$7)-0.01 -> 0.98
B53: 485 | C53: CAIXA DE PASSAGEM 30X30CM, EM CHAPA DE AÇO GALVANIZADO P/ELETRICA | E53: UN | F53: 36 | G53: =F53*(1-$G$7)-0.01 -> 28.18
B54: 546 | C54: BARRA DE FERRO RETANGULAR, BARRA CHATA (QUALQUER DIMENSAO) | E54: KG | F54: 5,10 | G54: 3.99
B55: 567 | C55: CANTONEIRA FERRO GALVANIZADO DE ABAS IGUAIS, 1" X 1/8" (L X E) , 1,20KG/M | E55: M | F55: 6,72 | G55: 5.26
B56: 630 | C56: COMPENSADO RESINADO 12MM - MADEIRIT OU SIMILAR | E56: M2 | F56: 25.04 | G56: 19.61
B57: 634 | C57: CONCRETO USINADO BOMBEAVEL B0-B1 FCK=15MPA | E57: M3 | F57: 225.14 | G57: 176.28
B58: 650 | C58: BLOCO VEDACAO CONCRETO 9 X 19 X 39 CM (CLASSE C - NBR 6136) | E58: UN | F58: 1.65 | G58: 1.29
B59: 654 | C59: BLOCO VEDACAO CONCRETO 19 X 19 X 39 CM (CLASSE C - NBR 6136) | E59: UN | F59: 2,35 | G59: 1.84
B60: 660 | C60: CANALETA CONCRETO 19 X 19 X 19 CM (CLASSE C - NBR 6136) | E60: UN | F60: 1,75 | G60: 1.37
B61: 663 | C61: CONECTOR P/ HASTE DE ATERRAMENTO 3/4" | E61: UN | F61: 3 | G61: 2.35
B62: 664 | C62: CONECTOR P/ HASTE DE ATERRAMENTO 5/8" | E62: UN | F62: 1.5 | G62: 1.17
B63: 668 | C63: FIXAÇÃO PARA TANQUE, DECA FT11 OU SIMILAR | E63: CJ | F63: 42.9 | G63: 33.59
B64: 736 | C64: BOMBA CENTRIFUGA MOTOR ELETRICO TRIFASICO 2,96HP, DIAMETRO DE SUCCAO X ELEVACAO 1 1/2" X 1 1/4", DIAMETRO DO ROTOR 148 MM, HM/Q: 34 M / 14,80 M3/H A 40 M / 8,60 M3/H | E64: UN | F64: 1239.57 | G64: 970.58
B65: 738 | C65: BOMBA CENTRIFUGA MOTOR ELETRICO TRIFASICO 5HP, DIAMETRO DE SUCCAO X ELEVACAO 2" X 1 1/2", DIAMETRO DO ROTOR 155 MM, HM/Q: 40 M / 20,40 M3/H A 46 M / 9,20 M3/H | E65: UN | F65: 2154.87 | G65: 1687.26
B66: 740 | C66: BOMBA CENTRIFUGA MOTOR ELETRICO TRIFASICO 9,86 DIAMETRO DE SUCCAO X ELEVACAO 1" X 1", 4 ESTAGIOS, DIAMETRO DOS ROTORES 4 X 146 MM, HM/Q: 85 M / 14,9 M3/H A 140 M / 4,2 M3/H | E66: UN | F66: 4371.79 | G66: 3423.11
B67: 857 | C67: CABO DE COBRE NU 16 MM2 MEIO-DURO | E67: M | F67: 6.14 | G67: 4.81
B68: 862 | C68: CABO DE COBRE NU 10 MM2 MEIO-DURO | E68: M | F68: 3.85 | G68: 3.01
B69: 865 | C69: ELETRODUTO CONDULETE PVC RÍGIDO, D= 1/2" | E69: M | F69: 4.63 | G69: 3.63
B70: 866 | C70: ELETRODUTO CONDULETE PVC RÍGIDO, D= 3/4" | E70: M | F70: 5.63 | G70: 4.41
B71: 868 | C71: CABO DE COBRE NU 25 MM2 MEIO-DURO | E71: M | F71: 9.48 | G71: 7.42
B72: 940 | C72: FIO DE COBRE, SOLIDO, CLASSE 1, ISOLACAO EM PVC/A, ANTICHAMA BWF-B, 450/750V, SECAO NOMINAL 6 MM2 | E72: M | F72: 2.5 | G72: 1.96
B73: 941 | C73: FARDAMENTO | E73: UN | F73: 68.45 | G73: 53.6
B74: 965 | C74: FIO DE COBRE NU TIPO CORDOALHA PARA ATERRAMENTO - 10MM2 | E74: M | F74: 3.8 | G74: 2.98
B75: 980 | C75: FITA VEDACAO TEFLON LARG= 1/2" | E75: M | F75: 0.12 | G75: 0.09
B76: 981 | C76: FITA VEDA ROSCA 18MM | E76: M | F76: 0.19 | G76: =F76*(1-$G$7) -> 0.15
B77: 992 | C77: FLANGE FERRO GALVANIZADO D=3 " | E77: UN | F77: 73.72 | G77: 57.72
B78: 993 | C78: FLANGE FERRO GALVANIZADO D=4 " | E78: UN | F78: 108.98 | G78: 85.33
B79: 1014 | C79: CABO DE COBRE, FLEXIVEL, CLASSE 4 OU 5, ISOLACAO EM PVC/A, ANTICHAMA BWF-B, 1 CONDUTOR, 450/750 V, SECAO NOMINAL 2,5 MM2 (FASE - VERMELHO) | E79: M | F79: 0.58 | G79: 0.45
B80: 1021 | C80: CABO DE COBRE, FLEXIVEL, CLASSE 4 OU 5, ISOLACAO EM PVC/A, ANTICHAMA BWF-B, COBERTURA PVC-ST1, ANTICHAMA BWF-B, 1 CONDUTOR, 0,6/1 KV, SECAO NOMINAL 4 MM2 (FASE - VERMELHO) | E80: M | F80: 3.25 | G80: 2.54
B81: 1045 | C81: EXPLOSIVO GELATINOSO DINAMITE 40% (COMPRIMENTO = 8" / DIÂMETRO DA SEÇÃO = 1") | E81: KG | F81: 9.11 | G81: 7.13
B82: 1094 | C82: HASTE COBREADA COPPERWELD P/ ATERRAMENTO 254 MICR D= 3/4" X 3,00 M C/CONECTOR | E82: UN | F82: 49.5 | G82: =F82*(1-$G$7)-0.01 -> 38.75
B83: 1096 | C83: HASTE COBREADA COPPERWELD P/ATERRAMENTO D= 5/8" X 2,40M, EXCLUSO CONECTOR | E83: UN | F83: 22.7 | G83: 17.77
B84: 1098 | C84: HASTE ZINCADA D = 125MM (AQUAPLUV OU SIMILAR) | E84: UN | F84: 9.72 | G84: 7.61
B85: 1106 | C85: CAL HIDRATADA CH-I PARA ARGAMASSAS | E85: KG | F85: 0,80 | G85: 0.63
B86: 1113 | C86: IMPERMEABILIZANTE PARA CONCRETOS E ARGAMASSAS VEDACIT OU SIMILAR | E86: KG | F86: 5.09 | G86: 3.99
B87: 1117 | C87: INTERRUPTOR EMBUTIR 01 SEÇÃO SIMPLES COM PLACA | E87: UN | F87: 3.4 | G87: 2.66
B88: 1194 | C88: JOELHO 90° FERRO GALVANIZADO D=2 " | E88: UN | F88: 27.57 | G88: =F88*(1-$G$7)-0.01 -> 21.58
B89: 1206 | C89: CAP, PVC PBA, JE, DN 50 / DE 60 MM, PARA REDE DE AGUA (NBR 10351) | E89: UN | F89: 5.86 | G89: =F89*(1-$G$7)-0.01 -> 4.58
B90: 1332 | C90: LÍQUIDO SELADOR ACRÍLICO | E90: L | F90: 6.19 | G90: 4.85
B91: 1346 | C91: CHAPA DE MADEIRA COMPENSADA PLASTIFICADA PARA FORMA DE CONCRETO, DE 2,20 X 1,10 M, E = 10 MM | E91: M2 | F91: 28.26 | G91: 22.13
B92: 1351 | C92: CHAPA DE MADEIRA COMPENSADA RESINADA PARA FORMA DE CONCRETO, DE *2,2 X 1,1* M, E = 6 MM | E92: UN | F92: 27,93 | G92: 21.87
B93: 1379 | C93: CIMENTO PORTLAND COMPOSTO CP II-32 | E93: KG | F93: 0,44 | G93: 0.34
B94: 1412 | C94: COLAR TOMADA PVC, COM TRAVAS, SAIDA COM ROSCA, DE 85 MM X 1/2" OU 85 MM X 3/4", PARA LIGACAO PREDIAL DE AGUA | E94: UN | F94: 15.54 | G94: =F94*(1-$G$7)-0.01 -> 12.16
B95: 1413 | C95: COLAR TOMADA PVC, COM TRAVAS, SAIDA COM ROSCA, DE 75 MM X 1/2" OU 75 MM X 3/4", PARA LIGACAO PREDIAL DE AGUA | E95: UN | F95: 14,98 | G95: 11.73
B96: 1414 | C96: COLAR TOMADA PVC, COM TRAVAS, SAIDA COM ROSCA, DE 60 MM X 1/2" OU 60 MM X 3/4", PARA LIGACAO PREDIAL DE AGUA | E96: UN | F96: 12.38 | G96: 9.69
B97: 1419 | C97: COLAR TOMADA PVC, COM TRAVAS, SAIDA COM ROSCA, DE 50 MM X 1/2" OU 50 MM X 3/4", PARA LIGACAO PREDIAL DE AGUA | E97: UN | F97: 11,03 | G97: 8.64
B98: 1427 | C98: COLAR TOMADA PVC, COM TRAVAS, SAIDA COM ROSCA, DE 110 MM X 1/2" OU 110 MM X 3/4", PARA LIGACAO PREDIAL DE AGUA | E98: UN | F98: 18.59 | G98: 14.56
B99: 1569 | C99: MADEIRA MISTA SERRADA (BARROTE) 6 X 6CM - 0,0036 M3/M (ANGELIM, LOURO) | E99: M | F99: 5.87 | G99: 4.6
B100: 1571 | C100: TERMINAL A COMPRESSAO EM COBRE ESTANHADO PARA CABO 4 MM2, 1 FURO E 1 COMPRESSAO, PARA PARAFUSO DE FIXACAO M5 | E100: UN | F100: 0.87 | G100: 0.68
B101: 1573 | C101: TERMINAL A COMPRESSAO EM COBRE ESTANHADO PARA CABO 6 MM2, 1FURO E 1 COMPRESSAO, PARA PARAFUSO DE FIXACAO M6 | E101: UN | F101: 0.68 | G101: 0.53
B102: 1574 | C102: TERMINAL A COMPRESSAO EM COBRE ESTANHADO PARA CABO 10 MM2, 1 FURO E 1 COMPRESSAO, PARA PARAFUSO DE FIXACAO M6 | E102: UN | F102: 1.13 | G102: 0.88
B103: 1575 | C103: TERMINAL A COMPRESSAO EM COBRE ESTANHADO PARA CABO 16 MM2, 1 FURO E 1 COMPRESSAO, PARA PARAFUSO DE FIXACAO M6 | E103: UN | F103: 0.87 | G103: 0.68
B104: 1582 | C104: MANGUEIRA TRANÇADA DE ALTA PRESSÃO SPT 250P Ø = 3/4" | E104: M | F104: 4.59 | G104: 3.59
B105: 1651 | C105: ÓCULOS BRANCO PROTEÇÃO | E105: PR | F105: 5.5 | G105: 4.31
B106: 1689 | C106: PARAFUSO DE FIXAÇÃO COM BUCHA PLÁSTICA 8 MM | E106: CJ | F106: 0.71 | G106: 0.56
B107: 1703 | C107: PASTA LUBRIFICANTE P/ PVC JE | E107: KG | F107: 16.53 | G107: 12.94
B108: 1725 | C108: CRUZETA PVC PBA, JE, BBBB, DN 50 / DE 60 MM | E108: UN | F108: 18.39 | G108: =F108*(1-$G$7)-0.01 -> 14.39
B109: 1727 | C109: CRUZETA DE REDUCAO PVC PBA, JE, BBBB, DN 75 X 50 / DE 85 X 60 MM | E109: UN | F109: 63.75 | G109: =F109*(1-$G$7)-0.01 -> 49.91
B110: 1735 | C110: PERFIL AÇO, U DOBRADO DE CHAPA - UDC SIMPLES - 75 X 38 X 2,65 MM (3,01 KG/M) | E110: M | F110: 19.49 | G110: 15.26
B111: 1736 | C111: PLACA RETANGULAR PADRÃO DNER 2,00 X 1,00 M | E111: UN | F111: 1052.59 | G111: 824.18
B112: 1780 | C112: CURVA 45 GRAUS DE FERRO GALVANIZADO, COM ROSCA BSP FEMEA, DE 4" | E112: UN | F112: 331.65 | G112: 259.68
B113: 1792 | C113: CURVA 90 GRAUS DE FERRO GALVANIZADO, COM ROSCA BSP FEMEA, DE 3" | E113: UN | F113: 171.11 | G113: =F113*(1-$G$7)-0.01 -> 133.97
B114: 1793 | C114: CURVA 90 GRAUS DE FERRO GALVANIZADO, COM ROSCA BSP FEMEA, DE 4" | E114: UN | F114: 345.75 | G114: 270.72
B115: 1823 | C115: CURVA PVC PBA, JE, PB, 22 GRAUS, DN 75 / DE 85 MM, PARA REDE AGUA (NBR 10351) | E115: UN | F115: 28.39 | G115: =F115*(1-$G$7)-0.01 -> 22.22
B116: 1824 | C116: CURVA PVC PBA, JE, PB, 90 GRAUS, DN 75 / DE 85 MM, PARA REDE AGUA (NBR 10351) | E116: UN | F116: 32.29 | G116: 25.28
B117: 1825 | C117: CURVA PVC PBA, JE, PB, 45 GRAUS, DN 75 / DE 85 MM, PARA REDE AGUA (NBR 10351) | E117: UN | F117: 25.29 | G117: 19.8
B118: 1831 | C118: CURVA PVC PBA, JE, PB, 45 GRAUS, DN 50 / DE 60 MM, PARA REDE AGUA (NBR 10351) | E118: UN | F118: 12.63 | G118: =F118*(1-$G$7)-0.01 -> 9.88
B119: 1835 | C119: CURVA PVC PBA, JE, PB, 22 GRAUS, DN 50 / DE 60 MM, PARA REDE AGUA (NBR 10351) | E119: UN | F119: 12.16 | G119: 9.52
B120: 1845 | C120: CURVA PVC PBA, JE, PB, 90 GRAUS, DN 50 / DE 60 MM, PARA REDE AGUA (NBR 10351) | E120: UN | F120: 11.52 | G120: 9.02
B121: 1870 | C121: CURVA 90 GRAUS, LONGA, DE PVC RIGIDO ROSCAVEL, DE 1/2", PARA ELETRODUTO | E121: UN | F121: 1.45 | G121: 1.14
B122: 1879 | C122: CURVA 90 GRAUS, LONGA, DE PVC RIGIDO ROSCAVEL, DE 3/4", PARA ELETRODUTO | E122: UN | F122: 1.47 | G122: 1.15
B123: 1884 | C123: CURVA 90 GRAUS, LONGA, DE PVC RIGIDO ROSCAVEL, DE 1", PARA ELETRODUTO | E123: UN | F123: 2.22 | G123: 1.74
B124: 1891 | C124: LUVA EM PVC RIGIDO ROSCAVEL, DE 3/4", PARA ELETRODUTO | E124: UN | F124: 0.63 | G124: 0.49
B125: 1892 | C125: LUVA EM PVC RIGIDO ROSCAVEL, DE 1", PARA ELETRODUTO | E125: UN | F125: 0.89 | G125: 0.7
B126: 1951 | C126: REGISTRO GAVETA BRUTO, C/ VOLANTE, D = 25MM (1") | E126: UN | F126: 46.8 | G126: 36.64
B127: 1954 | C127: REGISTRO GAVETA BRUTO, C/ VOLANTE, D = 50MM (2") | E127: UN | F127: 91.48 | G127: =F127*(1-$G$7)-0.01 -> 71.62
B128: 1956 | C128: CURVA DE PVC 90 GRAUS, SOLDAVEL, 25 MM, PARA AGUA FRIA PREDIAL (NBR 5648) | E128: UN | F128: 2.38 | G128: 1.86
B129: 1975 | C129: RIPA MASSARANDUBA SERRADA 5CM X 1,5CM | E129: M | F129: 2.78 | G129: 2.18
B130: 2012 | C130: SIFAO COM VALVULA PARA TANQUE LAVAR, 1 1/4" X 40, AKROS Nº. 8 OU SIMILAR | E130: UN | F130: 8.78 | G130: 6.87
B131: 2036 | C131: SOLUCAO LIMPADORA PVC | E131: L | F131: 39.22 | G131: 30.71
B132: 2109 | C132: TE 90° PVC RIGIDO SOLDAVEL, MARROM, D= 20MM | E132: UN | F132: 0.72 | G132: 0.56
B133: 2114 | C133: TE 90° PVC RIGIDO SOLDAVEL, MARROM, D= 60MM | E133: UN | F133: 20.87 | G133: 16.34
B134: 2212 | C134: TIJOLO MACIÇO 4 X 9 X 17CM | E134: UN | F134: 0.24 | G134: 0.19
B135: 2226 | C135: TINTA ESMALTE SINTÉTICO (CORALIT OU SIMILAR) | E135: L | F135: 24.24 | G135: 18.98
B136: 2260 | C136: TORNEIRA PLASTICA PARA JARDINS 1/2", HERC 1128 OU SIMILAR | E136: UN | F136: 1.97 | G136: 1.54
B137: 2324 | C137: TUBO PEAD FLEXIVEL CORRUGADO PERFURADO D=8" (KANANET OU SIMILAR) | E137: M | F137: 126.73 | G137: 99.23
B138: 2378 | C138: VALE TRANSPORTE | E138: UN | F138: 3.5 | G138: 2.74
B139: 2442 | C139: PERFIL AÇO LAMINADO, U 152,4 X 48,80 MM (12,20 KG/M) ASTM A36 | E139: KG | F139: 4.48 | G139: =F139*(1-$G$7)-0.01 -> 3.5
B140: 2443 | C140: ZARCÃO ANTICORROSIVO | E140: L | F140: 30.18 | G140: =F140*(1-$G$7) -> 23.63
B141: 2446 | C141: ELETRODUTO/DUTO PEAD FLEXIVEL PAREDE SIMPLES, CORRUGACAO HELICOIDAL, COR PRETA, SEM ROSCA, DE 2", PARA CABEAMENTO SUBTERRANEO (NBR 15715) | E141: M | F141: 3.84 | G141: 3.01
B142: 2449 | C142: ALUGUEL DE BOMBA DE DRENAGEM - "DARKA" - DIAMETRO 4" - ,POTÊNCIA = 5 CV | E142: H | F142: 2.64 | G142: 2.07
B143: 2450 | C143: CAMINHÃO BASC. 15,0T/10,0M3 ( M. BENZ LK 1418 -170,0KW OU EQUIVALENTE) | E143: H | F143: 140.31 | G143: 109.86
B144: 2455 | C144: ALUGUEL DE CAMINHÃO GUINDAUTO 3,0 T ( M. BENZ - 1215 C/48- 143,0 HP | E144: H | F144: 97.59 | G144: 76.41
B145: 2459 | C145: CAMINHAO TANQUE 6000 L (M. BENZ - ATEGO 1418/42 - 136,0 HP OU EQUIVALENTE) | E145: H | F145: 63 | G145: 49.33
B146: 2462 | C146: ALUGUEL DE COMPACTADOR PNEUMÁTICO (DYNAPAC - LC 71 GASOLINA - 2,5 HP) | E146: H | F146: 2.63 | G146: 2.06
B147: 2463 | C147: COMPRESSOR 250 PCM (ATLAS COPCO - XA-120DD - 94,0 HP OU EQUIVALENTE) | E147: H | F147: 12.15 | G147: 9.51
B148: 2475 | C148: MOTONIVELADORA 15000 KG COM ESCARIFICADOR (CAT - 140M - 185,0 HP OU EQUIVALENTE) | E148: H | F148: 147.44 | G148: 115.45
B149: 2479 | C149: PERFURATRIZ (ATLAS COPCO -RH 571 5L) | E149: H | F149: 2.7 | G149: 2.11
B150: 2480 | C150: PICK-UP, CAPACIDADE 1,2 T | E150: H | F150: 10.54 | G150: 8.25
B151: 2482 | C151: RETROESCAVADEIRA PNEUS (MASSEY FERGUSON MF - 86 HF OU EQUIVALENTE) | E151: H | F151: 74.83 | G151: 58.59
B152: 2490 | C152: ROMPEDOR 56,0 PCM / 1150 IPM (ATLAS COPCO -TEX 11 OU EQUIVALENTE) | E152: H | F152: 3.95 | G152: 3.09
B153: 2497 | C153: TIRFOR 1,6 T - 20M DE CABO | E153: H | F153: 1.32 | G153: 1.03
B154: 2501 | C154: ELETRODUTO FLEXIVEL, EM ACO GALVANIZADO, REVESTIDO EXTERNAMENTE COM PVC PRETO, DIAMETRO EXTERNO DE 32 MM (1"), TIPO SEALTUBO | E154: M | F154: 16.09 | G154: =F154*(1-$G$7)-0.01 -> 12.59
B155: 2502 | C155: ELETRODUTO FLEXIVEL, EM ACO GALVANIZADO, REVESTIDO EXTERNAMENTE COM PVC PRETO, DIAMETRO EXTERNO DE 40 MM (1 1/4"), TIPO SEALTUBO | E155: M | F155: 24.28 | G155: 19.01
B156: 2504 | C156: ELETRODUTO FLEXIVEL, EM ACO GALVANIZADO, REVESTIDO EXTERNAMENTE COM PVC PRETO, DIAMETRO EXTERNO DE 25 MM (3/4"), TIPO SEALTUBO | E156: M | F156: 12.27 | G156: =F156*(1-$G$7)-0.01 -> 9.6
B157: 2510 | C157: RELE FOTOELETRICO INTERNO E EXTERNO BIVOLT 1000 W, DE CONECTOR, SEM BASE | E157: UN | F157: 16.5 | G157: =F157*(1-$G$7)-0.01 -> 12.91
B158: 2540 | C158: REJUNTE COLORIDO FLEXIVEL PARA REVESTIMENTOS CERÂMICOS | E158: KG | F158: 2.9 | G158: 2.27
B159: 2622 | C159: BASE FIXA PARA RELÉ FOTO ELÉTRICO | E159: UN | F159: 5.7 | G159: 4.46
B160: 2645 | C160: POSTE DE FERRO GALVANIZADO, 3" X 6M, COMPLETO, PARA ENTRADA DE ENERGIA | E160: UN | F160: 755.54 | G160: 591.59
B161: 2673 | C161: ELETRODUTO DE PVC RIGIDO ROSCAVEL DE 1/2 ", SEM LUVA | E161: M | F161: 2.28 | G161: 1.79
B162: 2674 | C162: ELETRODUTO DE PVC RIGIDO ROSCAVEL DE 3/4 ", SEM LUVA | E162: M | F162: 2.84 | G162: 2.22
B163: 2684 | C163: ARGAMASSA INDUSTRIALIZADA VOTOMASSA AC-II, OU SIMILAR | E163: KG | F163: 0.86 | G163: 0.67
B164: 2685 | C164: ELETRODUTO DE PVC RIGIDO ROSCAVEL DE 1 ", SEM LUVA | E164: M | F164: 4.53 | G164: =F164*(1-$G$7)-0.01 -> 3.54
B165: 2692 | C165: DESMOLDANTE PROTETOR PARA FORMAS DE MADEIRA, DE BASE OLEOSAEMULSIONADA EM AGUA | E165: L | F165: 6.08 | G165: 4.76
B166: 2698 | C166: TINTA ESMALTE SINTÉTICO BRILHANTE (SUVINIL OU SIMILAR) | E166: L | F166: 24.97 | G166: 19.55
B167: 2711 | C167: CARRINHO DE MAO DE ACO CAPACIDADE 50 A 60 L, PNEU COM CAMARA | E167: UN | F167: 110 | G167: 86.13
B168: 2736 | C168: MADEIRA ROLICA SEM TRATAMENTO, EUCALIPTO OU EQUIVALENTE DA REGIAO, H = 3 M, D = 20 A 24 CM (PARA ESCORAMENTO) | E168: M | F168: 8,47 | G168: 6.63
B169: 2759 | C169: ESPOLETA SIMPLES N 8. | E169: UN | F169: 4.43 | G169: 3.47
B170: 2762 | C170: ESTOPIM SIMPLES | E170: M | F170: 5.53 | G170: 4.33
B171: 2972 | C171: CABO DE AÇO GALVANIZADO COM ALMA DE FIBRA DN 15 MM (5/8") | E171: M | F171: 15.49 | G171: 12.13
B172: 3027 | C172: PRIMER A BASE DE ÓXIDO DE FERRO - PHZ 528 - RENNER OU SIMILAR | E172: L | F172: 79.49 | G172: 62.24
B173: 3052 | C173: APARELHAMENTO DE RIPA DE MADEIRA DE LEI | E173: M | F173: 0.2 | G173: 0.16
B174: 3053 | C174: APARELHAMENTO DE RIPÃO DE MADEIRA DE LEI | E174: M | F174: 0.71 | G174: 0.56
B175: 3081 | C175: FECHADURA DE EMBUTIR PARA PORTA EXTERNA / ENTRADA, MAQUINA 55 MM, COM CILINDRO, MACANETA ALAVANCA E ESPELHO EM METAL CROMADO - NIVEL SEGURANCA MEDIO - COMPLETA | E175: CJ | F175: 58,87 | G175: 46.1
B176: 3116 | C176: CANTONEIRA ALUMÍNIO ANODIZADO NATURAL, 1" X 1/8" - VARA COM 6M - 0,408 KG/M | E176: M | F176: 7.1 | G176: 5.56
B177: 3146 | C177: FITA VEDA ROSCA EM ROLOS DE 18 MM X 10 M (L X C) | E177: UN | F177: 2,37 | G177: 1.86
B178: 3148 | C178: FITA VEDA ROSCA EM ROLOS DE 18 MM X 50 M (L X C) | E178: UN | F178: 8.74 | G178: 6.84
B179: 3226 | C179: CHAPA AÇO GROSSA PRETA 3/8"(9,53MM) 74,48 KG/M2 | E179: M2 | F179: 383.58 | G179: 300.34
B180: 3291 | C180: CHUMBADOR PARABOLT 1/4" X 5" | E180: UN | F180: 9.55 | G180: 7.48
B181: 3398 | C181: ISOLADOR DE PORCELANA, TIPO ROLDANA, DIMENSOES DE *72* X *72* MM, PARA USO EM BAIXA TENSAO | E181: UN | F181: 4.03 | G181: 3.16
B182: 3452 | C182: COTOVELO 90 GRAUS DE FERRO GALVANIZADO, COM ROSCA BSP MACHO/FEMEA, DE 2" | E182: UN | F182: 32.3 | G182: 25.29
B183: 3465 | C183: TRANSPORTE DE MÁQUINAS E EQUIPAMENTOS POR PRANCHA REBAIXADA (MIN.=100KM) | E183: KM | F183: 3 | G183: 2.35
B184: 3490 | C184: HASTE COBREADA COPPERWELD P/ ATERRAMENTO 254 MICR D= 5/8" X 2,40 M | E184: UN | F184: 29.6 | G184: 23.18
B185: 3516 | C185: JOELHO PVC, SOLDAVEL, BB, 45 GRAUS, DN 40 MM, PARA ESGOTO PREDIAL | E185: UN | F185: 1.97 | G185: 1.54
B186: 3517 | C186: JOELHO PVC, SOLDAVEL, BB, 90 GRAUS, DN 40 MM, PARA ESGOTO PREDIAL | E186: UN | F186: 1.2 | G186: 0.94
B187: 3518 | C187: JOELHO PVC, SOLDAVEL, PB, 45 GRAUS, DN 50 MM, PARA ESGOTO PREDIAL | E187: UN | F187: 2.4 | G187: 1.88
B188: 3519 | C188: JOELHO PVC, SOLDAVEL, PB, 45 GRAUS, DN 75 MM, PARA ESGOTO PREDIAL | E188: UN | F188: 5.51 | G188: 4.31
B189: 3520 | C189: JOELHO PVC, SOLDAVEL, PB, 90 GRAUS, DN 100 MM, PARA ESGOTO PREDIAL | E189: UN | F189: 6.17 | G189: 4.83
B190: 3521 | C190: DOBRADIÇA EM CHAPA DE AÇO CARBONO, ESP 1/8", FABRICADA ARTESANALMENTE, 4" X 2 " | E190: UN | F190: 35.75 | G190: 27.99
B191: 3529 | C191: JOELHO PVC, SOLDAVEL, 90 GRAUS, 25 MM, PARA AGUA FRIA PREDIAL | E191: UN | F191: 0.58 | G191: 0.45
B192: 3540 | C192: JOELHO PVC, SOLDAVEL, 90 GRAUS, 50 MM, PARA AGUA FRIA PREDIAL | E192: UN | F192: 4.07 | G192: =F192*(1-$G$7)-0.01 -> 3.18
B193: 3542 | C193: JOELHO PVC, SOLDAVEL, 90 GRAUS, 20 MM, PARA AGUA FRIA PREDIAL | E193: UN | F193: 0.39 | G193: =F193*(1-$G$7)-0.01 -> 0.3
B194: 3543 | C194: JOELHO PVC, ROSCAVEL, 90 GRAUS, 1/2", PARA AGUA FRIA PREDIAL | E194: UN | F194: 1.49 | G194: 1.17
B195: 3603 | C195: DISJUNTOR MONOPOLAR 70 A, PADRÃO DIN (LINHA BRANCA), CURVA DE DISPARO C, CORRENTE DE INTERRUPÇÃO 5KA, REF.: SIEMENS 5SX1 OU SIMILAR. | E195: UN | F195: 14.5 | G195: 11.35
B196: 3664 | C196: CHAPA AÇO FINA PRETA LISA Nº14, E=2,00MM (16,0 KG/M2) | E196: M2 | F196: 80.32 | G196: 62.89
B197: 3671 | C197: JUNTA PLASTICA DE DILATACAO PARA PISOS, COR CINZA, 17 X 3 MM (ALTURA X ESPESSURA) | E197: M | F197: 0,87 | G197: 0.68
B198: 3698 | C198: DISJUNTOR TRIPOLAR 40 A, PADRÃO DIN ( LINHA BRANCA ), CURVA DE DISPARO C, CORRENTE DE INTERRUPÇÃO 5KA, REF.: SIEMENS 5SX1 OU SIMILAR. | E198: UN | F198: 54.6 | G198: 42.75
B199: 3743 | C199: LAJE PRE-MOLDADA CONVENCIONAL (LAJOTAS + VIGOTAS) PARA PISO, UNIDIRECIONAL, SOBRECARGA DE 200 KG/M2, VAO ATE 3,50 M (SEM COLOCACAO) | E199: M2 | F199: =30-1.47 -> 28.53 | G199: 22.34
B200: 3767 | C200: LIXA EM FOLHA PARA PAREDE OU MADEIRA, NUMERO 120 (COR VERMELHA) | E200: UN | F200: 0.4 | G200: 0.31
B201: 3768 | C201: LIXA EM FOLHA PARA FERRO, NUMERO 150 | E201: UN | F201: 1,83 | G201: 1.43
B202: 3813 | C202: CABO DE COBRE ISOLADO HEPR (XLPE), 16MM², 1KV / 90º C | E202: M | F202: 7.5 | G202: 5.87
B203: 3818 | C203: CABO DE COBRE ISOLADO EPR OU XLPE), 6,0MM², 0,6/1KV / 90º C | E203: M | F203: 3.9 | G203: 3.05
B204: 3825 | C204: LUVA DE CORRER, PVC PBA, JE, DN 50 / DE 60 MM, PARA REDE AGUA (NBR 10351) | E204: UN | F204: 8.27 | G204: =F204*(1-$G$7)-0.01 -> 6.47
B205: 3827 | C205: LUVA DE CORRER, PVC PBA, JE, DN 75 / DE 85 MM, PARA REDE AGUA (NBR 10351) | E205: UN | F205: 12 | G205: =F205*(1-$G$7)-0.01 -> 9.39
B206: 3835 | C206: LUVA DE CORRER PVC, JE, DN 150 MM, PARA REDE COLETORA DE ESGOTO (NBR 10569) | E206: UN | F206: 21.54 | G206: =F206*(1-$G$7) -> 16.87
B207: 3838 | C207: LUVA DE CORRER DEFOFO, PVC, JE, DN 150 MM | E207: UN | F207: 50.59 | G207: 39.61
... 598 more rows

Sheet SINAPI (hidden)
B2: INSUMO | C2: SINAPI | D2: 50 | E2: ADAPTADOR, PVC PBA, A BOLSA DEFOFO, JE, DN 75 / DE 85 MM | F2: UN | G2: 26.45
B3: INSUMO | C3: SINAPI | D3: 51 | E3: ADAPTADOR, PVC PBA, A BOLSA DEFOFO, JE, DN 100 / DE 110 MM | F3: UN | G3: 41.76
B4: INSUMO | C4: SINAPI | D4: 107 | E4: ADAPTADOR PVC SOLDAVEL CURTO COM BOLSA E ROSCA, 20 MM X 1/2", PARA AGUA FRIA | F4: UN | G4: 0.8
B5: INSUMO | C5: SINAPI | D5: 113 | E5: ADAPTADOR PVC SOLDAVEL CURTO COM BOLSA E ROSCA, 60 MM X 2", PARA AGUA FRIA | F5: UN | G5: 10.06
B6: INSUMO | C6: SINAPI | D6: 318 | E6: ANEL BORRACHA, PARA TUBO PVC DEFOFO, DN 150 MM (NBR 7665) | F6: UN | G6: 9.68
B7: INSUMO | C7: SINAPI | D7: 736 | E7: BOMBA CENTRIFUGA MOTOR ELETRICO TRIFASICO 2,96HP, DIAMETRO DE SUCCAO X ELEVACAO 1 1/2" X 1 1/4", DIAMETRO DO ROTOR 148 MM, HM/Q: 34 M / 14,80 M3/H A 40 M / 8,60 M3/H | F7: UN | G7: 1239.57
B8: INSUMO | C8: SINAPI | D8: 738 | E8: BOMBA CENTRIFUGA MOTOR ELETRICO TRIFASICO 5HP, DIAMETRO DE SUCCAO X ELEVACAO 2" X 1 1/2", DIAMETRO DO ROTOR 155 MM, HM/Q: 40 M / 20,40 M3/H A 46 M / 9,20 M3/H | F8: UN | G8: 2154.87
B9: INSUMO | C9: SINAPI | D9: 740 | E9: BOMBA CENTRIFUGA MOTOR ELETRICO TRIFASICO 9,86 DIAMETRO DE SUCCAO X ELEVACAO 1" X 1", 4 ESTAGIOS, DIAMETRO DOS ROTORES 4 X 146 MM, HM/Q: 85 M / 14,9 M3/H A 140 M / 4,2 M3/H | F9: UN | G9: 4371.79
B10: INSUMO | C10: SINAPI | D10: 1206 | E10: CAP, PVC PBA, JE, DN 50 / DE 60 MM, PARA REDE DE AGUA (NBR 10351) | F10: UN | G10: 5.86
B11: INSUMO | C11: SINAPI | D11: 1412 | E11: COLAR TOMADA PVC, COM TRAVAS, SAIDA COM ROSCA, DE 85 MM X 1/2" OU 85 MM X 3/4", PARA LIGACAO PREDIAL DE AGUA | F11: UN | G11: 15.54
B12: INSUMO | C12: SINAPI | D12: 1414 | E12: COLAR TOMADA PVC, COM TRAVAS, SAIDA COM ROSCA, DE 60 MM X 1/2" OU 60 MM X 3/4", PARA LIGACAO PREDIAL DE AGUA | F12: UN | G12: 12.38
B13: INSUMO | C13: SINAPI | D13: 1571 | E13: TERMINAL A COMPRESSAO EM COBRE ESTANHADO PARA CABO 4 MM2, 1 FURO E 1 COMPRESSAO, PARA PARAFUSO DE FIXACAO M5 | F13: UN | G13: 0.87
B14: INSUMO | C14: SINAPI | D14: 1574 | E14: TERMINAL A COMPRESSAO EM COBRE ESTANHADO PARA CABO 10 MM2, 1 FURO E 1 COMPRESSAO, PARA PARAFUSO DE FIXACAO M6 | F14: UN | G14: 1.13
B15: INSUMO | C15: SINAPI | D15: 1725 | E15: CRUZETA PVC PBA, JE, BBBB, DN 50 / DE 60 MM | F15: UN | G15: 18.39
B16: INSUMO | C16: SINAPI | D16: 1727 | E16: CRUZETA DE REDUCAO PVC PBA, JE, BBBB, DN 75 X 50 / DE 85 X 60 MM | F16: UN | G16: 63.75
B17: INSUMO | C17: SINAPI | D17: 1780 | E17: CURVA 45 GRAUS DE FERRO GALVANIZADO, COM ROSCA BSP FEMEA, DE 4" | F17: UN | G17: 331.65
B18: INSUMO | C18: SINAPI | D18: 1792 | E18: CURVA 90 GRAUS DE FERRO GALVANIZADO, COM ROSCA BSP FEMEA, DE 3" | F18: UN | G18: 171.11
B19: INSUMO | C19: SINAPI | D19: 1793 | E19: CURVA 90 GRAUS DE FERRO GALVANIZADO, COM ROSCA BSP FEMEA, DE 4" | F19: UN | G19: 345.75
B20: INSUMO | C20: SINAPI | D20: 1823 | E20: CURVA PVC PBA, JE, PB, 22 GRAUS, DN 75 / DE 85 MM, PARA REDE AGUA (NBR 10351) | F20: UN | G20: 28.39
B21: INSUMO | C21: SINAPI | D21: 1824 | E21: CURVA PVC PBA, JE, PB, 90 GRAUS, DN 75 / DE 85 MM, PARA REDE AGUA (NBR 10351) | F21: UN | G21: 32.29
B22: INSUMO | C22: SINAPI | D22: 1831 | E22: CURVA PVC PBA, JE, PB, 45 GRAUS, DN 50 / DE 60 MM, PARA REDE AGUA (NBR 10351) | F22: UN | G22: 12.63
B23: INSUMO | C23: SINAPI | D23: 1835 | E23: CURVA PVC PBA, JE, PB, 22 GRAUS, DN 50 / DE 60 MM, PARA REDE AGUA (NBR 10351) | F23: UN | G23: 12.16
B24: INSUMO | C24: SINAPI | D24: 1956 | E24: CURVA DE PVC 90 GRAUS, SOLDAVEL, 25 MM, PARA AGUA FRIA PREDIAL (NBR 5648) | F24: UN | G24: 2.38
B25: INSUMO | C25: SINAPI | D25: 2501 | E25: ELETRODUTO FLEXIVEL, EM ACO GALVANIZADO, REVESTIDO EXTERNAMENTE COM PVC PRETO, DIAMETRO EXTERNO DE 32 MM (1"), TIPO SEALTUBO | F25: M | G25: 16.09
B26: INSUMO | C26: SINAPI | D26: 2502 | E26: ELETRODUTO FLEXIVEL, EM ACO GALVANIZADO, REVESTIDO EXTERNAMENTE COM PVC PRETO, DIAMETRO EXTERNO DE 40 MM (1 1/4"), TIPO SEALTUBO | F26: M | G26: 24.28
B27: INSUMO | C27: SINAPI | D27: 2504 | E27: ELETRODUTO FLEXIVEL, EM ACO GALVANIZADO, REVESTIDO EXTERNAMENTE COM PVC PRETO, DIAMETRO EXTERNO DE 25 MM (3/4"), TIPO SEALTUBO | F27: M | G27: 12.27
B28: INSUMO | C28: SINAPI | D28: 2510 | E28: RELE FOTOELETRICO INTERNO E EXTERNO BIVOLT 1000 W, DE CONECTOR, SEM BASE | F28: UN | G28: 16.5
B29: INSUMO | C29: SINAPI | D29: 2685 | E29: ELETRODUTO DE PVC RIGIDO ROSCAVEL DE 1 ", SEM LUVA | F29: M | G29: 4.53
B30: INSUMO | C30: SINAPI | D30: 3148 | E30: FITA VEDA ROSCA EM ROLOS DE 18 MM X 50 M (L X C) | F30: UN | G30: 8.74
B31: INSUMO | C31: SINAPI | D31: 3452 | E31: COTOVELO 90 GRAUS DE FERRO GALVANIZADO, COM ROSCA BSP MACHO/FEMEA, DE 2" | F31: UN | G31: 32.3
B32: INSUMO | C32: SINAPI | D32: 3529 | E32: JOELHO PVC, SOLDAVEL, 90 GRAUS, 25 MM, PARA AGUA FRIA PREDIAL | F32: UN | G32: 0.58
B33: INSUMO | C33: SINAPI | D33: 3540 | E33: JOELHO PVC, SOLDAVEL, 90 GRAUS, 50 MM, PARA AGUA FRIA PREDIAL | F33: UN | G33: 4.07
B34: INSUMO | C34: SINAPI | D34: 3542 | E34: JOELHO PVC, SOLDAVEL, 90 GRAUS, 20 MM, PARA AGUA FRIA PREDIAL | F34: UN | G34: 0.39
B35: INSUMO | C35: SINAPI | D35: 3825 | E35: LUVA DE CORRER, PVC PBA, JE, DN 50 / DE 60 MM, PARA REDE AGUA (NBR 10351) | F35: UN | G35: 8.27
B36: INSUMO | C36: SINAPI | D36: 3838 | E36: LUVA DE CORRER DEFOFO, PVC, JE, DN 150 MM | F36: UN | G36: 50.59
B37: INSUMO | C37: SINAPI | D37: 3854 | E37: LUVA DE CORRER PARA TUBO SOLDAVEL, PVC, 20 MM, PARA AGUA FRIA PREDIAL | F37: UN | G37: 6.21
B38: INSUMO | C38: SINAPI | D38: 3868 | E38: LUVA DE REDUCAO SOLDAVEL, PVC, 25 MM X 20 MM, PARA AGUA FRIA PREDIAL | F38: UN | G38: 0.92
B39: INSUMO | C39: SINAPI | D39: 3919 | E39: LUVA DE REDUCAO DE FERRO GALVANIZADO, COM ROSCA BSP, DE 1" X 3/4" | F39: UN | G39: 7.46
B40: INSUMO | C40: SINAPI | D40: 4177 | E40: NIPLE DE FERRO GALVANIZADO, COM ROSCA BSP, DE 1/2" | F40: UN | G40: 3.12
B41: INSUMO | C41: SINAPI | D41: 4181 | E41: NIPLE DE FERRO GALVANIZADO, COM ROSCA BSP, DE 2" | F41: UN | G41: 19.42
B42: INSUMO | C42: SINAPI | D42: 4182 | E42: NIPLE DE FERRO GALVANIZADO, COM ROSCA BSP, DE 3" | F42: UN | G42: 48.37
B43: INSUMO | C43: SINAPI | D43: 4183 | E43: NIPLE DE FERRO GALVANIZADO, COM ROSCA BSP, DE 4" | F43: UN | G43: 77.87
B44: INSUMO | C44: SINAPI | D44: 4209 | E44: NIPLE DE FERRO GALVANIZADO, COM ROSCA BSP, DE 1 1/2" | F44: UN | G44: 12.49
B45: INSUMO | C45: SINAPI | D45: 5086 | E45: CORRENTE DE ELO CURTO COMUM, SOLDADA, GALVANIZADA, ESPESSURA DO ELO = 1/2" (12,5 MM) | F45: KG | G45: 21.1
B46: INSUMO | C46: SINAPI | D46: 6012 | E46: REGISTRO GAVETA BRUTO EM LATAO FORJADO, BITOLA 3 " (REF 1509) | F46: UN | G46: 229.04
B47: INSUMO | C47: SINAPI | D47: 6019 | E47: REGISTRO GAVETA BRUTO EM LATAO FORJADO, BITOLA 1 " (REF 1509) | F47: UN | G47: 38.06
B48: INSUMO | C48: SINAPI | D48: 6027 | E48: REGISTRO GAVETA BRUTO EM LATAO FORJADO, BITOLA 4 " (REF 1509) | F48: UN | G48: 477.25
B49: SERVIÇO | C49: SINAPI | D49: 6514 | E49: FORNECIMENTO E LANCAMENTO DE BRITA N. 4 | F49: M3 | G49: 91.82
B50: INSUMO | C50: SINAPI | D50: 7048 | E50: TE, PVC PBA, BBB, 90 GRAUS, DN 50 / DE 60 MM, PARA REDE AGUA (NBR 10351) | F50: UN | G50: 18.75
B51: INSUMO | C51: SINAPI | D51: 7088 | E51: TE, PVC PBA, BBB, 90 GRAUS, DN 75 / DE 85 MM, PARA REDE AGUA (NBR 10351) | F51: UN | G51: 46.99
B52: INSUMO | C52: SINAPI | D52: 7696 | E52: TUBO ACO GALVANIZADO COM COSTURA, CLASSE MEDIA, DN 2", E = *3,65* MM, PESO *5,10* KG/M (NBR 5580) | F52: M | G52: 42.12
B53: INSUMO | C53: SINAPI | D53: 9887 | E53: UNIAO DE FERRO GALVANIZADO, COM ROSCA BSP, COM ASSENTO PLANO, DE 2" | F53: UN | G53: 56.29
B54: INSUMO | C54: SINAPI | D54: 9890 | E54: UNIAO DE FERRO GALVANIZADO, COM ROSCA BSP, COM ASSENTO PLANO, DE 3" | F54: UN | G54: 144.29
B55: INSUMO | C55: SINAPI | D55: 9891 | E55: UNIAO DE FERRO GALVANIZADO, COM ROSCA BSP, COM ASSENTO PLANO, DE 4" | F55: UN | G55: 202.55
B56: INSUMO | C56: SINAPI | D56: 10232 | E56: VALVULA DE RETENCAO DE BRONZE, PE COM CRIVOS, EXTREMIDADE COM ROSCA, DE 2", PARA FUNDO DE POCO | F56: UN | G56: 93.77
B57: INSUMO | C57: SINAPI | D57: 10406 | E57: VALVULA DE RETENCAO HORIZONTAL, DE BRONZE (PN-25), 3", 400 PSI, TAMPA DE PORCA DE UNIAO, EXTREMIDADES COM ROSCA | F57: UN | G57: 332.39
B58: INSUMO | C58: SINAPI | D58: 11075 | E58: AREIA PARA LEITO FILTRANTE (0,42 A 1,68 MM) - POSTO JAZIDA/FORNECEDOR (RETIRADO NA JAZIDA, SEM TRANSPORTE) | F58: M3 | G58: 1023.43
B59: INSUMO | C59: SINAPI | D59: 11079 | E59: MATERIAL FILTRANTE (PEDREGULHO) 0,6 A 25,46 MM (POSTO PEDREIRA/FORNECEDOR, SEM FRETE) | F59: M3 | G59: 690.92
B60: INSUMO | C60: SINAPI | D60: 11321 | E60: REDUCAO PVC PBA, JE, PB, DN 100 X 50 / DE 110 X 60 MM, PARA REDE DE AGUA | F60: UN | G60: 17.59
B61: INSUMO | C61: SINAPI | D61: 11493 | E61: TE DE REDUCAO, PVC PBA, BBB, JE, DN 75 X 50 / DE 85 X 60 MM, PARA REDE AGUA (NBR 10351) | F61: UN | G61: 39.08
B62: INSUMO | C62: SINAPI | D62: 11714 | E62: CAIXA SIFONADA PVC, 150 X 185 X 75 MM, COM GRELHA QUADRADA BRANCA | F62: UN | G62: 36.5
B63: INSUMO | C63: SINAPI | D63: 11716 | E63: CAIXA SIFONADA PVC, 100 X 100 X 40 MM, COM GRELHA REDONDA BRANCA | F63: UN | G63: 11.43
B64: INSUMO | C64: SINAPI | D64: 11717 | E64: CAIXA SIFONADA PVC, 150 X 150 X 50 MM, COM GRELHA REDONDA BRANCA | F64: UN | G64: 29.34
B65: INSUMO | C65: SINAPI | D65: 11831 | E65: TORNEIRA PLASTICA PARA TANQUE 1/2 " OU 3/4 " COM BICO PARA MANGUEIRA | F65: UN | G65: 22.3
B66: INSUMO | C66: SINAPI | D66: 12001 | E66: CAIXA OCTOGONAL DE FUNDO MOVEL, EM PVC, DE 4" X 4", PARA ELETRODUTO FLEXIVEL CORRUGADO | F66: UN | G66: 5.08
B67: INSUMO | C67: SINAPI | D67: 12777 | E67: HIDROMETRO WOLTMANN, VAZAO MAXIMA DE 80,0 M3/H, DE 3" | F67: UN | G67: 1970.55
B68: INSUMO | C68: SINAPI | D68: 12863 | E68: ADAPTADOR, PVC PBA, A BOLSA DEFOFO, JE, DN 50 / DE 60 MM | F68: UN | G68: 12.02
B69: INSUMO | C69: SINAPI | D69: 12943 | E69: CRUZETA PVC PBA, JE, BBBB, DN 75 / DE 85 MM | F69: UN | G69: 45.39
B70: INSUMO | C70: SINAPI | D70: 13244 | E70: CONE DE SINALIZACAO EM PVC RIGIDO COM FAIXA REFLETIVA, H = 70 / 76 CM | F70: UN | G70: 29
B71: INSUMO | C71: SINAPI | D71: 20032 | E71: REDUCAO PVC PBA, JE, BB, DN 75 X 50 / DE 85 X 60 MM, PARA REDE DE AGUA | F71: UN | G71: 37.27
B72: INSUMO | C72: SINAPI | D72: 20080 | E72: ADESIVO PLASTICO PARA PVC, FRASCO COM 175 GR | F72: UN | G72: 14.22
B73: INSUMO | C73: SINAPI | D73: 20327 | E73: REDUCAO PVC PBA, JE, PB, DN 75 X 50 / DE 85 X 60 MM, PARA REDE DE AGUA | F73: UN | G73: 12.43
B74: INSUMO | C74: SINAPI | D74: 20973 | E74: UNIAO TIPO STORZ, COM EMPATACAO INTERNA TIPO ANEL DE EXPANSAO, ENGATE RAPIDO 1 1/2", PARA MANGUEIRA DE COMBATE A INCENDIO PREDIAL | F74: UN | G74: 97.34
B75: INSUMO | C75: SINAPI | D75: 34653 | E75: DISJUNTOR TIPO DIN/IEC, MONOPOLAR DE 6 ATE 32A | F75: UN | G75: 9.78
B76: INSUMO | C76: SINAPI | D76: 34709 | E76: DISJUNTOR TIPO DIN/IEC, TRIPOLAR DE 10 ATE 50A | F76: UN | G76: 68.7
B77: INSUMO | C77: SINAPI | D77: 36378 | E77: TUBO PVC PBA JEI, CLASSE 20, DN 50 MM, PARA REDE DE AGUA (NBR 5647) | F77: M | G77: 16.7
B78: INSUMO | C78: SINAPI | D78: 38022 | E78: LUVA DE CORRER PARA TUBO SOLDAVEL, PVC, 60 MM, PARA AGUA FRIA PREDIAL | F78: UN | G78: 26.64
B79: INSUMO | C79: SINAPI | D79: 38033 | E79: TUBO PVC CORRUGADO, PAREDE DUPLA, JE, DN 200 MM, REDE COLETORA ESGOTO | F79: M | G79: 48.16
B80: INSUMO | C80: SINAPI | D80: 38091 | E80: ESPELHO / PLACA CEGA 4" X 2", PARA INSTALACAO DE TOMADAS E INTERRUPTORES | F80: UN | G80: 2.74
B81: INSUMO | C81: SINAPI | D81: 39244 | E81: ELETRODUTO PVC FLEXIVEL CORRUGADO, REFORCADO, COR LARANJA, DE 25 MM, PARA LAJES E PISOS | F81: M | G81: 2.32
B82: INSUMO | C82: SINAPI | D82: 39246 | E82: ELETRODUTODUTO PEAD FLEXIVEL PAREDE SIMPLES, CORRUGACAO HELICOIDAL, COR PRETA, SEM ROSCA, DE 1 1/2", PARA CABEAMENTO SUBTERRANEO (NBR 15715) | F82: M | G82: 2.67
B83: INSUMO | C83: SINAPI | D83: 39247 | E83: ELETRODUTODUTO PEAD FLEXIVEL PAREDE SIMPLES, CORRUGACAO HELICOIDAL, COR PRETA, SEM ROSCA, DE 1 1/4", PARA CABEAMENTO SUBTERRANEO (NBR 15715) | F83: M | G83: 2.33
B84: INSUMO | C84: SINAPI | D84: 39756 | E84: QUADRO DE DISTRIBUICAO COM BARRAMENTO TRIFASICO, DE SOBREPOR, EM CHAPA DE ACO GALVANIZADO, PARA 12 DISJUNTORES DIN, 100 A | F84: UN | G84: 249.8
B85: SERVIÇO | C85: SINAPI | D85: 55960 | E85: IMUNIZACAO DE MADEIRAMENTO PARA COBERTURA UTILIZANDO CUPINICIDA INCOLOR | F85: M2 | G85: 5.05
B86: SERVIÇO | C86: SINAPI | D86: 72117 | E86: VIDRO LISO COMUM TRANSPARENTE, ESPESSURA 4MM | F86: M2 | G86: 97.97
B87: SERVIÇO | C87: SINAPI | D87: 72871 | E87: MOBILIZACAO E INSTALACAO DE 01 EQUIPAMENTO DE SONDAGEM, DISTANCIA ATE 10KM | F87: UN | G87: 339.07
B88: SERVIÇO | C88: SINAPI | D88: 72895 | E88: CARGA, MANOBRAS E DESCARGA DE MATERIAIS DIVERSOS, COM CAMINHAO BASCULANTE 6M3 (CARGA E DESCARGA MANUAIS) | F88: M3 | G88: 21.42
B89: SERVIÇO | C89: SINAPI | D89: 72915 | E89: ESCAVACAO MECANICA DE VALA EM MATERIAL DE 2A. CATEGORIA ATE 2 M DE PROFUNDIDADE COM UTILIZACAO DE ESCAVADEIRA HIDRAULICA | F89: M3 | G89: 10.63
B90: SERVIÇO | C90: SINAPI | D90: 73361 | E90: CONCRETO CICLOPICO FCK=10MPA 30% PEDRA DE MAO INCLUSIVE LANCAMENTO | F90: M3 | G90: 337.49
B91: SERVIÇO | C91: SINAPI | D91: 73610 | E91: LOCAÇÃO DE REDES DE ÁGUA OU DE ESGOTO | F91: M | G91: 0.9
B92: SERVIÇO | C92: SINAPI | D92: 73656 | E92: JATEAMENTO COM AREIA EM ESTRUTURA METALICA | F92: M2 | G92: 18.64
B93: SERVIÇO | C93: SINAPI | D93: 73672 | E93: DESMATAMENTO E LIMPEZA MECANIZADA DE TERRENO COM ARVORES ATE Ø 15CM, UTILIZANDO TRATOR DE ESTEIRAS | F93: M2 | G93: 0.36
B94: SERVIÇO | C94: SINAPI | D94: 73679 | E94: LOCAÇÃO DE ADUTORAS, COLETORES TRONCO E INTERCEPTORES - ATÉ DN 500 MM | F94: M | G94: 2.07
B95: SERVIÇO | C95: SINAPI | D95: 73694 | E95: INSTALACAO DE BOMBA DOSADORA | F95: UN | G95: 135.44
B96: SERVIÇO | C96: SINAPI | D96: 79472 | E96: REGULARIZACAO DE SUPERFICIES EM TERRA COM MOTONIVELADORA | F96: M2 | G96: 0.48
B97: SERVIÇO | C97: SINAPI | D97: 83344 | E97: ESPALHAMENTO DE MATERIAL EM BOTA FORA, COM UTILIZACAO DE TRATOR DE ESTEIRAS DE 165 HP | F97: M3 | G97: 0.89
B98: SERVIÇO | C98: SINAPI | D98: 83518 | E98: ALVENARIA EMBASAMENTO E=20 CM BLOCO CONCRETO | F98: M3 | G98: 287.37
B99: SERVIÇO | C99: SINAPI | D99: 83624 | E99: GRELHA DE FERRO FUNDIDO PARA CANALETA LARG = 20CM, FORNECIMENTO E ASSENTAMENTO | F99: M | G99: 165.4
B100: SERVIÇO | C100: SINAPI | D100: 83724 | E100: ASSENTAMENTO DE PECAS, CONEXOES, APARELHOS E ACESSORIOS DE FERRO FUNDIDO DUCTIL, JUNTA ELASTICA, MECANICA OU FLANGEADA, COM DIAMETROS DE 50 A 300 MM. | F100: KG | G100: 2.19
B101: SERVIÇO | C101: SINAPI | D101: 83878 | E101: LIGACAO DA REDE 50MM AO RAMAL PREDIAL 1/2" | F101: UN | G101: 47.46
B102: SERVIÇO | C102: SINAPI | D102: 83879 | E102: LIGACAO DA REDE 75MM AO RAMAL PREDIAL 1/2" | F102: UN | G102: 54.56
B103: SERVIÇO | C103: SINAPI | D103: 84132 | E103: SOLDA DE TOPO DESCENDENTE, EM CHAPA ACO CHANFR 5/16" ESP (P/ ASSENT TUBULACAO OU PECA DE ACO) UTILIZANDO CONVERSOR DIESEL. | F103: M | G103: 214.29
B104: SERVIÇO | C104: SINAPI | D104: 85120 | E104: MANOMETRO 0 A 200 PSI (0 A 14 KGF/CM2), D = 50MM - FORNECIMENTO E COLOCACAO | F104: UN | G104: 111.37
B105: SERVIÇO | C105: SINAPI | D105: 85424 | E105: ISOLAMENTO DE OBRA COM TELA PLASTICA COM MALHA DE 5MM E ESTRUTURA DE MADEIRA PONTALETEADA | F105: M2 | G105: 20.08
B106: SERVIÇO | C106: SINAPI | D106: 86939 | E106: LAVATÓRIO LOUÇA BRANCA COM COLUNA, *44 X 35,5* CM, PADRÃO POPULAR, INCLUSO SIFÃO FLEXÍVEL EM PVC, VÁLVULA E ENGATE FLEXÍVEL 30CM EM PLÁSTICO E COM TORNEIRA CROMADA PADRÃO POPULAR - FORNECIMENTO E INSTALAÇÃO. AF_12/2013 | F106: UN | G106: 274.19
B107: SERVIÇO | C107: SINAPI | D107: 87504 | E107: ALVENARIA DE VEDAÇÃO DE BLOCOS CERÂMICOS FURADOS NA HORIZONTAL DE 9X19X19CM (ESPESSURA 9CM) DE PAREDES COM ÁREA LÍQUIDA MAIOR OU IGUAL A 6M² SEM VÃOS E ARGAMASSA DE ASSENTAMENTO COM PREPARO MANUAL. AF_06/2014 | F107: M2 | G107: 51.23
B108: SERVIÇO | C108: SINAPI | D108: 87509 | E108: ALVENARIA DE VEDAÇÃO DE BLOCOS CERÂMICOS FURADOS NA HORIZONTAL DE 14X9X19CM (ESPESSURA 14CM, BLOCO DEITADO) DE PAREDES COM ÁREA LÍQUIDA MAIOR OU IGUAL A 6M² SEM VÃOS E ARGAMASSA DE ASSENTAMENTO COM PREPARO EM BETONEIRA. AF_06/2014 | F108: M2 | G108: 82.72
B109: SERVIÇO | C109: SINAPI | D109: 87767 | E109: CONTRAPISO EM ARGAMASSA TRAÇO 1:4 (CIMENTO E AREIA), PREPARO MANUAL, APLICADO EM ÁREAS MOLHADAS SOBRE IMPERMEABILIZAÇÃO, ESPESSURA 4CM. AF_06/2014 | F109: M2 | G109: 39.86
B110: SERVIÇO | C110: SINAPI | D110: 87794 | E110: EMBOÇO OU MASSA ÚNICA EM ARGAMASSA TRAÇO 1:2:8, PREPARO MANUAL, APLICADA MANUALMENTE EM PANOS CEGOS DE FACHADA (SEM PRESENÇA DE VÃOS), ESPESSURA DE 25 MM. AF_06/2014 | F110: M2 | G110: 27.46
B111: SERVIÇO | C111: SINAPI | D111: 88488 | E111: APLICAÇÃO MANUAL DE PINTURA COM TINTA LÁTEX ACRÍLICA EM TETO, DUAS DEMÃOS. AF_06/2014 | F111: M2 | G111: 11.01
B112: SERVIÇO | C112: SINAPI | D112: 88489 | E112: APLICAÇÃO MANUAL DE PINTURA COM TINTA LÁTEX ACRÍLICA EM PAREDES, DUAS DEMÃOS. AF_06/2014 | F112: M2 | G112: 9.74
B113: SERVIÇO | C113: SINAPI | D113: 88549 | E113: FORNECIMENTO E ASSENTAMENTO DE BRITA 2-DRENOS E FILTROS MM | F113: M3 | G113: 72.33
B114: SERVIÇO | C114: SINAPI | D114: 89957 | E114: PONTO DE CONSUMO TERMINAL DE ÁGUA FRIA (SUBRAMAL) COM TUBULAÇÃO DE PVC, DN 25 MM, INSTALADO EM RAMAL DE ÁGUA, INCLUSOS RASGO E CHUMBAMENTO EM ALVENARIA. AF_12/2014 | F114: UN | G114: 93.25
B115: SERVIÇO | C115: SINAPI | D115: 90830 | E115: FECHADURA DE EMBUTIR COM CILINDRO, EXTERNA, COMPLETA, ACABAMENTO PADRÃO MÉDIO, INCLUSO EXECUÇÃO DE FURO - FORNECIMENTO E INSTALAÇÃO. AF_08/2015 | F115: UN | G115: 82.52
B116: SERVIÇO | C116: SINAPI | D116: 91341 | E116: PORTA EM ALUMÍNIO DE ABRIR TIPO VENEZIANA COM GUARNIÇÃO, FIXAÇÃO COM PARAFUSOS - FORNECIMENTO E INSTALAÇÃO. AF_08/2015 | F116: M2 | G116: 651.15
B117: SERVIÇO | C117: SINAPI | D117: 92391 | E117: EXECUÇÃO DE PAVIMENTO EM PISO INTERTRAVADO, COM BLOCO PISOGRAMA DE 35 X 25 CM, ESPESSURA 6 CM. AF_12/2015 | F117: M2 | G117: 46.04
B118: SERVIÇO | C118: SINAPI | D118: 92565 | E118: FABRICAÇÃO E INSTALAÇÃO DE ESTRUTURA PONTALETADA DE MADEIRA NÃO APARELHADA PARA TELHADOS COM ATÉ 2 ÁGUAS E PARA TELHA CERÂMICA OU DE CONCRETO, INCLUSO TRANSPORTE VERTICAL. AF_12/2015 | F118: M2 | G118: 26.93
B119: SERVIÇO | C119: SINAPI | D119: 92762 | E119: ARMAÇÃO DE PILAR OU VIGA DE UMA ESTRUTURA CONVENCIONAL DE CONCRETO ARMADO EM UM EDIFÍCIO DE MÚLTIPLOS PAVIMENTOS UTILIZANDO AÇO CA-50 DE 10,0 MM - MONTAGEM. AF_12/2015 | F119: KG | G119: 6.13
B120: SERVIÇO | C120: SINAPI | D120: 92919 | E120: ARMAÇÃO DE ESTRUTURAS DE CONCRETO ARMADO, EXCETO VIGAS, PILARES, LAJES E FUNDAÇÕES, UTILIZANDO AÇO CA-50 DE 10,0 MM - MONTAGEM. AF_12/2015 | F120: KG | G120: 6.55
B121: SERVIÇO | C121: SINAPI | D121: 93202 | E121: FIXAÇÃO (ENCUNHAMENTO) DE ALVENARIA DE VEDAÇÃO COM TIJOLO MACIÇO. AF_03/2016 | F121: M | G121: 15.84
B122: SERVIÇO | C122: SINAPI | D122: 93374 | E122: REATERRO MECANIZADO DE VALA COM RETROESCAVADEIRA (CAPACIDADE DA CAÇAMBA DA RETRO: 0,26 M³ / POTÊNCIA: 88 HP), LARGURA ATÉ 0,8 M, PROFUNDIDADE ATÉ 1,5 M, COM SOLO (SEM SUBSTITUIÇÃO) DE 1ª CATEGORIA EM LOCAIS COM ALTO NÍVEL DE INTERFERÊNCIA. AF_04/2016 | F122: M3 | G122: 23.11
B123: SERVIÇO | C123: SINAPI | D123: 93379 | E123: REATERRO MECANIZADO DE VALA COM RETROESCAVADEIRA (CAPACIDADE DA CAÇAMBA DA RETRO: 0,26 M³ / POTÊNCIA: 88 HP), LARGURA DE 0,8 A 1,5 M, PROFUNDIDADE ATÉ 1,5 M, COM SOLO (SEM SUBSTITUIÇÃO) DE 1ª CATEGORIA EM LOCAIS COM BAIXO NÍVEL DE INTERFERÊNCIA. AF_04/2016 | F123: M3 | G123: 16.72
B124: SERVIÇO | C124: SINAPI | D124: 94102 | E124: LASTRO DE VALA COM PREPARO DE FUNDO, LARGURA MENOR QUE 1,5 M, COM CAMADA DE AREIA, LANÇAMENTO MANUAL, EM LOCAL COM NÍVEL BAIXO DE INTERFERÊNCIA. AF_06/2016 | F124: M3 | G124: 139.02
B125: SERVIÇO | C125: SINAPI | D125: 94201 | E125: TELHAMENTO COM TELHA CERÂMICA CAPA-CANAL, TIPO COLONIAL, COM ATÉ 2 ÁGUAS, INCLUSO TRANSPORTE VERTICAL. AF_06/2016 | F125: M2 | G125: 42.62
B126: SERVIÇO | C126: SINAPI | D126: 94274 | E126: ASSENTAMENTO DE GUIA (MEIO-FIO) EM TRECHO CURVO, CONFECCIONADA EM CONCRETO PRÉ-FABRICADO, DIMENSÕES 100X15X13X30 CM (COMPRIMENTO X BASE INFERIOR X BASE SUPERIOR X ALTURA), PARA VIAS URBANAS (USO VIÁRIO). AF_06/2016 | F126: M | G126: 35.31
B127: SERVIÇO | C127: SINAPI | D127: 94275 | E127: ASSENTAMENTO DE GUIA (MEIO-FIO) EM TRECHO RETO, CONFECCIONADA EM CONCRETO PRÉ-FABRICADO, DIMENSÕES 100X15X13X20 CM (COMPRIMENTO X BASE INFERIOR X BASE SUPERIOR X ALTURA), PARA URBANIZAÇÃO INTERNA DE EMPREENDIMENTOS. AF_06/2016_P | F127: M | G127: 31.05
B128: SERVIÇO | C128: SINAPI | D128: 94315 | E128: ATERRO MECANIZADO DE VALA COM RETROESCAVADEIRA (CAPACIDADE DA CAÇAMBA DA RETRO: 0,26 M³ / POTÊNCIA: 88 HP), LARGURA ATÉ 0,8 M, PROFUNDIDADE ATÉ 1,5 M, COM SOLO ARGILO-ARENOSO. AF_05/2016 | F128: M3 | G128: 41.39
B129: SERVIÇO | C129: SINAPI | D129: 94438 | E129: (COMPOSIÇÃO REPRESENTATIVA) DO SERVIÇO DE CONTRAPISO EM ARGAMASSA TRAÇO 1:4 (CIM E AREIA), EM BETONEIRA 400 L, ESPESSURA 3 CM ÁREAS SECAS E 3 CM ÁREAS MOLHADAS, PARA EDIFICAÇÃO HABITACIONAL UNIFAMILIAR (CASA) E EDIFICAÇÃO PÚBLICA PADRÃO. AF_11/2014 | F129: M2 | G129: 32.62
B130: SERVIÇO | C130: SINAPI | D130: 94559 | E130: JANELA DE AÇO BASCULANTE, FIXAÇÃO COM ARGAMASSA, SEM VIDROS, PADRONIZADA. AF_07/2016 | F130: M2 | G130: 450.13
B131: SERVIÇO | C131: SINAPI | D131: 94990 | E131: EXECUÇÃO DE PASSEIO (CALÇADA) OU PISO DE CONCRETO COM CONCRETO MOLDADO IN LOCO, FEITO EM OBRA, ACABAMENTO CONVENCIONAL, NÃO ARMADO. AF_07/2016 | F131: M3 | G131: 512.28
B132: SERVIÇO | C132: SINAPI | D132: 95425 | E132: TRANSPORTE COM CAMINHÃO BASCULANTE DE 18 M3, EM VIA URBANA EM LEITO NATURAL (UNIDADE: M3XKM). AF_09/2016 | F132: M3XKM | G132: 1.24
B133: SERVIÇO | C133: SINAPI | D133: 95465 | E133: COBOGO CERAMICO (ELEMENTO VAZADO), 9X20X20CM, ASSENTADO COM ARGAMASSA TRACO 1:4 DE CIMENTO E AREIA | F133: M2 | G133: 111.2
B134: SERVIÇO | C134: SINAPI | D134: 95467 | E134: EMBASAMENTO C/PEDRA ARGAMASSADA UTILIZANDO ARG.CIM/AREIA 1:4 | F134: M3 | G134: 352.25
B135: SERVIÇO | C135: SINAPI | D135: 96521 | E135: ESCAVAÇÃO MECANIZADA PARA BLOCO DE COROAMENTO OU SAPATA, COM PREVISÃO DE FÔRMA, COM RETROESCAVADEIRA. AF_06/2017 | F135: M3 | G135: 33.83
B136: SERVIÇO | C136: SINAPI | D136: 96995 | E136: REATERRO MANUAL APILOADO COM SOQUETE. AF_10/2017 | F136: M3 | G136: 34.03
B137: SERVIÇO | C137: SINAPI | D137: 97065 | E137: MONTAGEM E DESMONTAGEM DE ANDAIME MULTIDIRECIONAL (EXCLUSIVE ANDAIME E LIMPEZA). AF_11/2017 | F137: M3 | G137: 6.9
B138: SERVIÇO | C138: SINAPI | D138: 97124 | E138: ASSENTAMENTO DE TUBO DE PVC PBA PARA REDE DE ÁGUA, DN 50 MM, JUNTA ELÁSTICA INTEGRADA, INSTALADO EM LOCAL COM NÍVEL BAIXO DE INTERFERÊNCIAS (NÃO INCLUI FORNECIMENTO). AF_11/2017 | F138: M | G138: 0.78
B139: SERVIÇO | C139: SINAPI | D139: 97125 | E139: ASSENTAMENTO DE TUBO DE PVC PBA PARA REDE DE ÁGUA, DN 75 MM, JUNTA ELÁSTICA INTEGRADA, INSTALADO EM LOCAL COM NÍVEL BAIXO DE INTERFERÊNCIAS (NÃO INCLUI FORNECIMENTO). AF_11/2017 | F139: M | G139: 1.11
B140: SERVIÇO | C140: SINAPI | D140: 97126 | E140: ASSENTAMENTO DE TUBO DE PVC PBA PARA REDE DE ÁGUA, DN 100 MM, JUNTA ELÁSTICA INTEGRADA, INSTALADO EM LOCAL COM NÍVEL BAIXO DE INTERFERÊNCIAS (NÃO INCLUI FORNECIMENTO). AF_11/2017 | F140: M | G140: 1.4
B141: SERVIÇO | C141: SINAPI | D141: 97134 | E141: ASSENTAMENTO DE TUBO DE PVC DEFOFO OU PRFV OU RPVC PARA REDE DE ÁGUA, DN 150 MM, JUNTA ELÁSTICA INTEGRADA, INSTALADO EM LOCAL COM NÍVEL BAIXO DE INTERFERÊNCIAS (NÃO INCLUI FORNECIMENTO). AF_11/2017 | F141: M | G141: 2.01
B142: SERVIÇO | C142: SINAPI | D142: 97159 | E142: ASSENTAMENTO DE TUBO DE FERRO FUNDIDO PARA REDE DE ÁGUA, DN 150 MM, JUNTA ELÁSTICA, INSTALADO EM LOCAL COM NÍVEL BAIXO DE INTERFERÊNCIAS (NÃO INCLUI FORNECIMENTO). AF_11/2017 | F142: M | G142: 6.17
B143: SERVIÇO | C143: SINAPI | D143: 97622 | E143: DEMOLIÇÃO DE ALVENARIA DE BLOCO FURADO, DE FORMA MANUAL, SEM REAPROVEITAMENTO. AF_12/2017 | F143: M3 | G143: 36.88
B144: SERVIÇO | C144: SINAPI | D144: 97644 | E144: REMOÇÃO DE PORTAS, DE FORMA MANUAL, SEM REAPROVEITAMENTO. AF_12/2017 | F144: M2 | G144: 5.94
B145: SERVIÇO | C145: SINAPI | D145: 98052 | E145: TANQUE SÉPTICO CIRCULAR, EM CONCRETO PRÉ-MOLDADO, DIÂMETRO INTERNO = 1,10 M, ALTURA INTERNA = 2,50 M, VOLUME ÚTIL: 2138,2 L (PARA 5 CONTRIBUINTES). AF_05/2018 | F145: UN | G145: 997.2
B146: SERVIÇO | C146: SINAPI | D146: 98094 | E146: SUMIDOURO RETANGULAR, EM ALVENARIA COM BLOCOS DE CONCRETO, DIMENSÕES INTERNAS: 0,8 X 1,4 X 3,0 M, ÁREA DE INFILTRAÇÃO: 13,2 M² (PARA 5 CONTRIBUINTES). AF_05/2018 | F146: UN | G146: 1818.22
B147: SERVIÇO | C147: SINAPI | D147: 98420 | E147: (COMPOSIÇÃO REPRESENTATIVA) POÇO DE VISITA CIRCULAR PARA ESGOTO, EM CONCRETO PRÉ-MOLDADO, DIÂMETRO INTERNO = 1,0 M, PROFUNDIDADE ATÉ 1,50 M, INCLUINDO TAMPÃO DE FERRO FUNDIDO, DIÂMETRO DE 60 CM. AF_04/2018 | F147: UN | G147: 1255.23
B148: SERVIÇO | C148: SINAPI | D148: 98561 | E148: IMPERMEABILIZAÇÃO DE PAREDES COM ARGAMASSA DE CIMENTO E AREIA, COM ADITIVO IMPERMEABILIZANTE, E = 2CM. AF_06/2018 | F148: M2 | G148: 27.89
B149: SERVIÇO | C149: SINAPI | D149: 98680 | E149: PISO CIMENTADO, TRAÇO 1:3 (CIMENTO E AREIA), ACABAMENTO LISO, ESPESSURA 3,0 CM, PREPARO MECÂNICO DA ARGAMASSA. AF_06/2018 | F149: M2 | G149: 30.5
B150: SERVIÇO | C150: SINAPI | D150: 73794/1 | E150: PINTURA COM TINTA PROTETORA ACABAMENTO GRAFITE ESMALTE SOBRE SUPERFICIE METALICA, 2 DEMAOS | F150: M2 | G150: 29.66
B151: SERVIÇO | C151: SINAPI | D151: 73822/2 | E151: LIMPEZA MECANIZADA DE TERRENO COM REMOCAO DE CAMADA VEGETAL, UTILIZANDO MOTONIVELADORA | F151: M2 | G151: 0.52
B152: SERVIÇO | C152: SINAPI | D152: 73824/1 | E152: INSTALACAO DE MISTURADOR VERTICAL | F152: UN | G152: 411.8
B153: SERVIÇO | C153: SINAPI | D153: 73836/1 | E153: INSTALACAO DE CONJ.MOTO BOMBA HORIZONTAL ATE 10 CV | F153: UN | G153: 675.65
B154: SERVIÇO | C154: SINAPI | D154: 73843/1 | E154: MURO DE ARRIMO DE CONCRETO CICLOPICO COM 30% DE PEDRA DE MAO | F154: M3 | G154: 303.12
B155: SERVIÇO | C155: SINAPI | D155: 73859/2 | E155: CAPINA E LIMPEZA MANUAL DE TERRENO | F155: M2 | G155: 1.13
B156: SERVIÇO | C156: SINAPI | D156: 73873/3 | E156: LEITO FILTRANTE - COLOCACAO DE AREIA NOS FILTROS | F156: M3 | G156: 66.24
B157: SERVIÇO | C157: SINAPI | D157: 73873/4 | E157: LEITO FILTRANTE - COLOCACAO DE PEDREGULHOS NOS FILTROS | F157: M3 | G157: 72.55
B158: SERVIÇO | C158: SINAPI | D158: 73881/3 | E158: EXECUCAO DE DRENO COM MANTA GEOTEXTIL 400 G/M2 | F158: M2 | G158: 11.41
B159: SERVIÇO | C159: SINAPI | D159: 73932/1 | E159: GRADE DE FERRO EM BARRA CHATA 3/16" | F159: M2 | G159: 277.58
B160: SERVIÇO | C160: SINAPI | D160: 73933/1 | E160: PORTA DE FERRO, DE ABRIR, TIPO GRADE COM CHAPA, 87X210CM, COM GUARNICOES | F160: M2 | G160: 578.76
B161: SERVIÇO | C161: SINAPI | D161: 73948/16 | E161: LIMPEZA MANUAL DO TERRENO (C/ RASPAGEM SUPERFICIAL) | F161: M2 | G161: 3.54
B162: SERVIÇO | C162: SINAPI | D162: 73992/1 | E162: LOCACAO CONVENCIONAL DE OBRA, ATRAVÉS DE GABARITO DE TABUAS CORRIDAS PONTALETADAS A CADA 1,50M, SEM REAPROVEITAMENTO | F162: M2 | G162: 8.3
B163: SERVIÇO | C163: SINAPI | D163: 74142/4 | E163: CERCA COM MOUROES DE CONCRETO, SECAO "T" PONTA INCLINADA, 10X10CM, ESPACAMENTO DE 3M, CRAVADOS 0,5M, COM 11 FIOS DE ARAME FARPADO Nº 16 | F163: M | G163: 46.39
B164: SERVIÇO | C164: SINAPI | D164: 74194/1 | E164: ESCADA TIPO MARINHEIRO EM TUBO ACO GALVANIZADO 1 1/2" 5 DEGRAUS | F164: M | G164: 226.29
B165: SERVIÇO | C165: SINAPI | D165: 74202/1 | E165: LAJE PRE-MOLDADA P/FORRO, SOBRECARGA 100KG/M2, VAOS ATE 3,50M/E=8CM, C/LAJOTAS E CAP.C/CONC FCK=20MPA, 3CM, INTER-EIXO 38CM, C/ESCORAMENTO (REAPR.3X) E FERRAGEM NEGATIVA | F165: M2 | G165: 61.98
B166: SERVIÇO | C166: SINAPI | D166: 74209/1 | E166: PLACA DE OBRA EM CHAPA DE ACO GALVANIZADO | F166: M2 | G166: 317.72
B167: SERVIÇO | C167: SINAPI | D167: 74219/1 | E167: PASSADICOS COM TABUAS DE MADEIRA PARA PEDESTRES | F167: M2 | G167: 55.82
B168: SERVIÇO | C168: SINAPI | D168: 74219/2 | E168: PASSADICOS COM TABUAS DE MADEIRA PARA VEICULOS | F168: M2 | G168: 43.94
B169: SERVIÇO | C169: SINAPI | D169: 74220/1 | E169: TAPUME DE CHAPA DE MADEIRA COMPENSADA, E= 6MM, COM PINTURA A CAL E REAPROVEITAMENTO DE 2X | F169: M2 | G169: 51.35

Sheet ORSE (hidden)
C3: ORSE - ABR.2018
C5: 9 | D5: REMOÇÃO DE TELHAMENTO COM TELHAS CERÂMICAS | E5: M2 | F5: 7.21
C6: 13 | D6: DEMOLIÇÃO DE CONCRETO MANUALMENTE | E6: M3 | F6: 156.82
C7: 16 | D7: DEMOLIÇÃO MANUAL DE PISO EM CONCRETO SIMPLES E/OU CIMENTADO | E7: M2 | F7: 15.69
C8: 17 | D8: DEMOLIÇÃO DE REBOCO | E8: M2 | F8: 5.32
C9: 30 | D9: DEMOLIÇÃO DE MADEIRAMENTO EM COBERTURAS COM TELHAS CERÂMICAS | E9: M2 | F9: 15.69
C10: 71 | D10: ATERRO MANUAL DE ÁREAS, SEM AQUISIÇÃO DE MATERIAL, COM ESPALHAMENTO E COMPACT AÇÃO | E10: M3 | F10: 31.93
C11: 131 | D11: CONCRETO SIMPLES FCK= 35 MPA (B0) C/ADITIVO, FABRICADO NA OBRA, SEM LANÇAMENT O E ADENSAMENTO | E11: M3 | F11: 493.77
C12: 818 | D12: BÓIA ELÉTRICA PARA RESERVATÓRIO SUPERIOR, MARCA AQUAMATIC OU SIMILAR, CAPACID ADE 30 A - FORNECIMENTO E INSTALAÇÃO | E12: UN | F12: 208.32
C13: 1448 | D13: CAIXA D´ÁGUA EM FIBRA DE VIDRO - INSTALADA, SEM ESTRUTURA DE SUPORTE CAP. 1. 000 LITROS | E13: UN | F13: 501.76
C14: 1678 | D14: PONTO DE ESGOTO COM TUBO DE PVC RÍGIDO SOLDÁVEL DE Ø 50 MM (PIAS DE COZINHA, MÁQUINAS DE LAVAR, ETC...) | E14: UN | F14: 67.36
C15: 1679 | D15: PONTO DE ESGOTO COM TUBO DE PVC RÍGIDO SOLDÁVEL DE Ø 40 MM (LAVATÓRIOS, MICT ÓRIOS, RALOS SIFONADOS, ETC...) | E15: UN | F15: 44.49
C16: 1683 | D16: PONTO DE ESGOTO COM TUBO DE PVC RÍGIDO SOLDÁVEL DE Ø 100 MM (VASO SANITÁRIO) | E16: PT | F16: 69.16
C17: 1912 | D17: REVESTIMENTO CERAMICO PARA PAREDE, 15 X 15 CM, AZULEJO BRANCO, TIPO "A", APLI CADO COM ARGAMASSA INDUSTRIALIZADA AC-I, REJUNTADO, EXCLUSIVE EMBOÇO | E17: M2 | F17: 29.51
C18: 1987 | D18: PEITORIL CIMENTO TRAÇO T1, C/ LARGURA = 22 CM, ESP = 4 CM | E18: M | F18: 24.13
C19: 2022 | D19: CHUVEIRO SIMPLES DE PLÁSTICO (HERC REF 1980 OU SIMILAR), C/ REGISTRO DE PRESS ÃO DE PVC | E19: UN | F19: 34.63
C20: 2055 | D20: TANQUE EM AÇO INOX, INCLUSO TORNEIRA CROMADA E SIFÃO PVC | E20: UN | F20: 433.69
C21: 2169 | D21: LASTRO DE CONCRETO SIMPLES REGULARIZADO, FCK=13,5 MPA,LANÇADO E ADENSADO | E21: M3 | F21: 436.37
C22: 2265 | D22: SOLEIRA CIMENTADO TRAÇO T1, L = 18 CM, E = 2 CM | E22: M | F22: 12.08
C23: 2372 | D23: MURO EM ALVENARIA BLOCO CIMENTO, E= 0,09M, C/ ALV DE PEDRA 0,35 X 0,60M, COLU NAS CONCRETO ARMADO FCK = 15,0 MPA CADA 3,00M, C/ CHAPISCO, REBOCO E PINTURA HIDRACOR OU SIMILAR | E23: M2 | F23: 150.33
C24: 2497 | D24: ESCAVAÇÃO MANUAL DE VALA OU CAVA EM MATERIAL DE 1ª CATEGORIA, PROFUNDIDADE AT É 1,50M | E24: M3 | F24: 31.93
C25: 2503 | D25: ESCAVAÇÃO COM RETRO-ESCAVADEIRA DE PNEUS, DE VALAS, EM MATERIAL DE 1ª CATEGOR IA ATÉ 1,50M DE PROFUNDIDADE | E25: M3 | F25: 7.28
C26: 2510 | D26: CARGA MANUAL DE MATERIAL DE 2ª CATEGORIA | E26: M3 | F26: 8.47
C27: 2511 | D27: CARGA MANUAL DE MATERIAL DE 3ª CATEGORIA | E27: M3 | F27: 10.62
C28: 2519 | D28: REATERRO MANUAL DE VALAS OU ÁREAS, COM ESPALHAMENTO E COMPACTAÇÃO, UTILIZANDO COMPACTADOR À PERCUSSÃO SAPINHO, SEM CONTROLE DO GRAU DE COMPACTAÇÃO | E28: M3 | F28: 10.05
C29: 2658 | D29: LASTRO DE BRITA 3 | E29: M3 | F29: 103.49
C30: 2794 | D30: CAIXA DE PASSAGEM EM ALVENARIA DE TIJOLOS MACIÇOS ESP. = 0,12M, DIM. INT. = 0.40 X 0.40 X 0.60M, INCLUSIVE TAMPA | E30: UN | F30: 174.05
C31: 2800 | D31: CAIXA DE PASSAGEM EM ALVENARIA DE TIJOLOS MACIÇOS ESP. = 0,17M, DIM. INT. = 0.80 X 0.80 X 1.00M | E31: UN | F31: 901.42
C32: 2804 | D32: CAIXA DE PASSAGEM EM ALVENARIA DE TIJOLOS MACIÇOS ESP. = 0,17M, DIM. INT. = 1.00 X 1.00 X 1,00M | E32: UN | F32: 1150.03
C33: 3209 | D33: PINTURA DE MEIO FIO (CAIAÇÃO) | E33: M | F33: 3.23
C34: 3310 | D34: CHAPISCO EM PAREDE COM ARGAMASSA TRAÇO T1 - 1:3 (CIMENTO / AREIA) - REVISADO 08/2015 | E34: M2 | F34: 4.29
C35: 3412 | D35: PINTURA DE ACABAMENTO COM APLICAÇÃO DE 02 DEMÃOS DE TINTA ESMALTE SINTÉTICO R EF J022, SUVINIL OU SIMILAR, EXCLUSIVE LIXAMENTO | E35: M2 | F35: 16.96
C36: 3658 | D36: ESCAVAÇÃO E CARGA COM ESCAVADEIRA HIDRÁULICA DE MATERIAL DE 1ª CATEGORIA EM M EIO ALAGADO | E36: M3 | F36: 4.6
C37: 3688 | D37: TORNEIRA PLASTICA PARA JARDINS, HERC 1128, 1/2" OU SIMILAR | E37: UN | F37: 14.47
C38: 3848 | D38: CABO DE AÇO GALVANIZADO 15MM (TENSOR) | E38: M | F38: 22.44
C39: 4117 | D39: TAMPA DE INSPEÇÃO EM CHAPA METÁLICA DE 3/8", INCLUSIVE TRATAMENTO E PINTURA E M ESMALTE OU ÓLEO | E39: M2 | F39: 466.42
C40: 4502 | D40: ESCAVAÇÃO MANUAL DE VALA OU CAVA EM MATERIAL DE 3ª CATEGORIA, PROFUNDIDADE AT É 2,00 M, COM USO DE EXPLOSIVOS E PERFURAÇÃO MECÂNICA | E40: M3 | F40: 200.94
C41: 4537 | D41: PINTURA DE PROTEÇÃO COM 01 DEMÃO DE PRIMER À BASE DE ÓXIDO DE FERRO - NORMA 1 349 | E41: M2 | F41: 24.78
C42: 4545 | D42: KIT DE ACESSÓRIOS PARA BANHEIRO EM ABS/ALUMÍNIO COM 5 PEÇAS (01 CABIDE, 01 SA BONETEIRA, 01 PAPELEIRA, 01 PORTA-TOALHA ROSTO E 01 PORTA-TOALHA BANHO) | E42: UN | F42: 46.93
C43: 4577 | D43: ESCAVAÇÃO, CARGA E TRANSPORTE DE MATERIAL DE 1ª CATEGORIA, COM ESCAVADEIRA HIDRAÚLICA, DMT 201 A 400M | E43: M3 | F43: 4.76
C44: 4652 | D44: PINTURA DE PROTEÇÃO COM 01 DEMÃO DE PRIMER À BASE DE EPÓXI - REZINC WBS - REN NER OU SIMILAR | E44: M2 | F44: 23.61
C45: 4708 | D45: VASO SANITARIO C/CAIXA DE DESCARGA ACOPLADA, ELIZABETH OU SIMILAR, PADRÃO POP ULAR, INCLUSIVE ASSENTO PLASTICO AMANCO OU SIMILAR, CONJUNTO DE FIXAÇÃO, ANEL DE VEDAÇÃO E ENGATE PLÁSTICO | E45: UN | F45: 239.25
C46: 4942 | D46: REMOÇÃO DE ESQUADRIA METÁLICA, COM OU SEM REAPROVEITAMENTO | E46: M2 | F46: 11.31
C47: 5004 | D47: IMPERMEABILIZAÇÃO SEMI-FLEXÍVEL COM SIKA TOP 107 BI-COMPONENTE, COR CINZA, 03 DEMÃOS CRUZADAS APLICADO À TRINCHA PARA APLICAÇÃO EM PAREDES ENTERRADAS, SUBS OLOS, CAIXAS D'AGUA, ÁREAS FRIAS E EM CONTATO COM ESGOTO | E47: M2 | F47: 74.51
C48: 5103 | D48: REGULARIZAÇÃO MANUAL | E48: M2 | F48: 3.18
C49: 5129 | D49: REMOÇÃO DE ADUTORA / REDE EM Fº Fº, JUNTA ELÁSTICA , DIAM. = 150 MM | E49: M | F49: 5.21
C50: 5144 | D50: REMOÇÃO DE ADUTORA / REDE EM PVC DEFºFº DIAM. = 100 MM | E50: M | F50: 1.12
C51: 5149 | D51: REMOÇÃO DE ADUTORA / REDE EM PVC DIAM. = 50 MM | E51: M | F51: 0.72
C52: 5150 | D52: REMOÇÃO DE ADUTORA / REDE EM PVC DIAM. = 75 MM | E52: M | F52: 0.81
C53: 5152 | D53: SINALIZAÇÃO COM CAVALETE PLÁSTICO DESMONTÁVEL | E53: UN | F53: 13.22
C54: 5157 | D54: SINALIZAÇÃO DE VALAS COM PLACAS INDICATIVAS | E54: M | F54: 2.11
C55: 5275 | D55: ASSENTAMENTO DE CONEXÕES DE PVC DEFOFO, JUNTA ELÁSTICA, DIAM.= 100 MM | E55: UN | F55: 2.6
C56: 5276 | D56: ASSENTAMENTO DE CONEXÕES DE PVC DEFOFO, JUNTA ELÁSTICA, DIAM.= 150 MM | E56: UN | F56: 2.94
C57: 5957 | D57: CAIXA PARA REGISTRO, TIPO I, PARA DIÂMETROS DE 50 A 100MM | E57: UN | F57: 743.39
C58: 5958 | D58: CAIXA PARA REGISTRO, TIPO II, PARA DIÂMETROS DE 150 A 200MM | E58: UN | F58: 1100.21
C59: 5962 | D59: CAIXA PARA VENTOSA PARA DIÂMETRO DE 50 A 150MM (MV-04-326) | E59: UN | F59: 743.39
C60: 5965 | D60: CAIXA PRÉ MOLDADA EM CONCRETO PARA PROTEÇÃO DE MACRO MEDIDORES, DIM. INT. = 0 ,70 X 1,00 X 0,50 | E60: UN | F60: 467.56
C61: 6028 | D61: LOGOTIPO DA CODEVASF EM ESTRUTURAS ELEVADAS | E61: UN | F61: 981.55
C62: 6029 | D62: LOGOTIPO DA CODEVASF EM ESTRUTURAS TÉRREAS | E62: UN | F62: 675.27
C63: 6069 | D63: GUARDA-CORPO METÁLICO PARA ESCADA MARINHEIRO EM AÇO CA-50 - REV. 01 | E63: M | F63: 118.52
C64: 6079 | D64: LIGAÇÃO PREDIAL DE ÁGUA EM PASSEIO, COM FORNECIMENTO DE MATERIAL, INCLUSIVE H IDRÔMETRO, C/TAMPA DE CONCRETO | E64: UN | F64: 300.88
C65: 6080 | D65: LIGAÇÃO PREDIAL DE ÁGUA NO PASSEIO, COM FORNECIMENTO DE MATERIAL, EXCETO HIDR ÔMETRO, C/TAMPA DE CONCRETO | E65: UN | F65: 218.68
C66: 6098 | D66: CADASTRO DE REDES DE ÁGUA / ADUTORAS | E66: M | F66: 1.23
C67: 6312 | D67: ANÁLISE FÍSICO-QUÍMICA DA ÁGUA | E67: UN | F67: 512.1
C68: 6313 | D68: ANÁLISE BACTERIOLÓGICA DA ÁGUA | E68: UN | F68: 31.69
C69: 6316 | D69: LASTRO DE AREIA | E69: M3 | F69: 109.29
C70: 6415 | D70: TAMPA DE CONCRETO PARA CAIXAS DE PASSAGEM 0,80X0,80MX0,07M | E70: UN | F70: 57.52
C71: 6454 | D71: DESOBSTRUÇÃO DE FILTRO NO CAVALETE P/ VERIFICAÇÃO DE FALTA DE ÁGUA | E71: UN | F71: 14.67
C72: 6465 | D72: TESTE HIDROSTÁTICO EM REDE DE ÁGUA / ADUTORA | E72: M | F72: 0.35
C73: 7084 | D73: ESCAVAÇÃO DE VALA A FRIO, EM MATERIAL DE 3ª CATEGORIA, COM PERFURATRIZ MANUAL E COMPRESSOR | E73: M3 | F73: 206.16
C74: 7232 | D74: FORNECIMENTO E ASSENTAMENTO DE TUBO PEAD FLEXÍVEL CORRUGADO PERFURADO D = 8" (KANANET OU SIMILAR) | E74: M | F74: 140.56
C75: 7691 | D75: CONCRETO SIMPLES FABRICADO NA OBRA, FCK=21 MPA, LANÇADO E ADENSADO | E75: M3 | F75: 389.14
C76: 8038 | D76: DEMOLIÇÃO DE ALVENARIA DE ELEMENTOS VAZADOS (COBOGÓ), SEM REAPROVEITAMENTO | E76: M3 | F76: 23.42
C77: 8342 | D77: PONTO DE ESGOTO COM TUBO DE PVC RÍGIDO SOLDÁVEL DE Ø 75 MM | E77: UN | F77: 97.45
C78: 8753 | D78: PORTÃO EM FERRO, PADRÃO ESCOLAR, COM MONTANTES EM PERFIL "U" DE CHAPA UDC 75 X 38 X 2,65 MM (DUPLO), BARRAS VERTICAIS DE SEÇÃO QUADRADA DE 1/2" E BARRAS C HATA DE 1 1/2" X 3/16" (DUPLA) HORIZONTAIS, INCLUSIVE FERROLHO E DOBRADIÇAS | E78: M2 | F78: 267.85
C79: 8754 | D79: GRELHA METÁLICA EM FERRO FUNDIDO 35X35CM | E79: UN | F79: 53.64
C80: 8970 | D80: TELA DE NYLON TIPO MOSQUITEIRO COM MOLDURA EM ALUMINIO ANODIZADO NATURAL | E80: M2 | F80: 50.39
C81: 9182 | D81: DEMOLIÇÃO DE CONCRETO COM MARTELETE E COMPRESSOR | E81: M3 | F81: 328.71
C82: 9642 | D82: MADEIRAMENTO EM MASSARANDUBA/MADEIRA DE LEI, ACABAMENTO APARELHADO, C/ RIPÃO 3 X 5 CM E RIPA 5 X 1,5CM, EXCLUSIVE PEÇAS PRINCIPAIS | E82: M2 | F82: 66.87
C83: 9713 | D83: ESCADA MARINHEIRO COM GUARDA CORPO, L=45CM, EXECUTADA EM BARRAS CHATA GALVANI ZADA 1 1/4" X 5/16", E GUARDA CORPO D=65CM EM BARRA CHATA GALV.D=1"X1/8", SEN DO DEGRAUS EM BARRA RED. D=5/8", ESPAÇADOS DE 30CM, INCLUSIVE LIXAMENTO E PIN TURA, FORNEC E INST | E83: M | F83: 943.12
C84: 9962 | D84: LASTRO DE BRITA GRADUADA APILOADA E=10CM | E84: M2 | F84: 17.48
C85: 10308 | D85: LIMPEZA DE RESERVATÓRIO | E85: M3 | F85: 12.5
C86: 10384 | D86: PORTÃO EM FERRO PADRÃO ESCOLA DIM:4,0 X 2,0M, C/MONTANTES (COLUNA) H=2,00M EM PERFIL "U" DE CHAPA UDC 75X38X2,65MM (DUPLO), BARRAS CHATAS HORIZ 1 1/2"X3/16 " X 3,60M, E BARRAS CHATAS VERT 1 1/2"X3/16" X 2,00M | E86: UN | F86: 2167.1
C87: 10390 | D87: RECUPERAÇÃO DE PROTEÇÃO MECANICA EM CHAPA METALICA L=12CM (P/OBRA ESTADIO LOU RIVAL BATISTA) | E87: M | F87: 27.17
C88: 10992 | D88: REVESTIMENTO CERÂMICO PARA PISO OU PAREDE, 46 X 46 CM, PEI 4, INCENOR, BIANCO , REF.62230 OU SIMILAR, APLICADA C/ ARGAMASSA IND. AC-II, REJUNTE ACRÍLICO, E XCETO REGULARIZAÇÃO DE BASE/EMBOÇO | E88: M2 | F88: 36.85
C89: 11124 | D89: ENTRADA DE ENERGIA ELÉTRICA MONOFÁSICA DEMANDA ENTRE 6,3 E 8,8 KW | E89: UN | F89: 1015
C90: 11266 | D90: ARMACAO ACO CA-50 DIAM.16,0 (5/8) À 25,0MM (1) - FORNECIMENTO/ CORTE(PERDA DE 10%) / DOBRA / COLOCAÇÃO. | E90: KG | F90: 6.17
C91: 11332 | D91: MOTOBOMBA SUBMERSA, MARCA ABS OU SIMILAR, MODELO EJ 40 BVX, MOTOR 4 CV, TRIFÁ SICO | E91: UN | F91: 5580.52
C92: 11386 | D92: ENTRADA DE ENERGIA ELÉTRICA TRIFÁSICA DEMANDA ENTRE 0 E 15,2 KW | E92: UN | F92: 1613.81
C93: 11512 | D93: PINTURA DE PROTEÇÃO COM APLICAÇÃO DE 01 DEMÃO DE TINTA EPOXI CURADA COM POLIA MIDA, DE ALTA ESPESSURA, BICOMPONENTE, MACROPOXY 646 FAST CURE EPOXY, DA SHER WIN WILLIAMS - SUMARÉ OU SIMILAR, SOBRE SUPERFÍCIES METÁLICAS | E93: M2 | F93: 33.72
C94: 11651 | D94: FORMA PLANA PARA ESTRUTURAS, EM COMPENSADO PLASTIFICADO DE 10MM, 04 USOS, INC LUSIVE ESCORAMENTO - REVISADA 07.2015 | E94: M2 | F94: 43.49
C95: 11652 | D95: FORMA PLANA PARA ESTRUTURAS, EM COMPENSADO PLASTIFICADO DE 10MM, 07 USOS, INC LUSIVE ESCORAMENTO - REVISADA 07.2015 | E95: M2 | F95: 31.58
C96: 11673 | D96: CANALETA DE DRENAGEM EM CONCRETO, DIMENSÕES INTERNAS 50 X 50CM, S/ TAMPA DE C ONCRETO, INCLUSIVE ESCAVAÇÃO MANUAL | E96: M | F96: 267.24
C97: 11887 | D97: GUARDA CORPO E CORRIMÃO EM TUBO FERRO GALVANIZADO, ALT=1,10M, COM BARRAS VERT ICAIS A CADA 11CM (3/4") E BARRAS HORIZONTAIS (SUPERIOR, INTERMEDIÁRIAS (DUA S) E INFERIOR) DE 1.1/2", INCLUSIVE CURVA DE AÇO | E97: M | F97: 247.88
C98: 11986 | D98: PLACA DE INAUGURAÇÃO EM ALUMÍNIO COM ACRILICO, 80X60CM,COM LOGOMARCA E MOLDUR A | E98: UN | F98: 855.91
C99: 12019 | D99: PRATELEIRA EM CONCRETO ARMADO, ESP= 8CM | E99: M2 | F99: 178.27

Sheet SERVIÇOS SINAPI (hidden)
B2: PCI.817.01 - CUSTO DE COMPOSIÇÕES - SINTÉTICO DATA DE EMISSÃO: 18/06/2018 23:33:37 DATA DE RT: 16/06/2018
B3: ENCARGOS SOCIAIS DESONERADOS: 87,87%(HORA) 48,95%(MÊS)
B4: ABRANGÊNCIA : NACIONAL LOCALIDADE : RECIFE DATA DE PREÇO : 05/2018 REFERÊNCIA COLETA : MEDIANO
B6: CODIGO DA COMPOSICAO | C6: DESCRICAO DA COMPOSICAO | D6: UNIDADE | E6: CUSTO TOTAL
B8: 97141 | C8: ASSENTAMENTO DE TUBO DE FERRO FUNDIDO PARA REDE DE ÁGUA, DN 80 MM, JUNTA ELÁSTICA, INSTALADO EM LOCAL COM NÍVEL ALTO DE INTERFERÊNCIAS (NÃO INCLUI FORNECIMENTO). AF_11/2017 | D8: M | E8: 7.31
B9: 97142 | C9: ASSENTAMENTO DE TUBO DE FERRO FUNDIDO PARA REDE DE ÁGUA, DN 100 MM, JUNTA ELÁSTICA, INSTALADO EM LOCAL COM NÍVEL ALTO DE INTERFERÊNCIAS (NÃO INCLUI FORNECIMENTO). AF_11/2017 | D9: M | E9: 8.14
B10: 97143 | C10: ASSENTAMENTO DE TUBO DE FERRO FUNDIDO PARA REDE DE ÁGUA, DN 150 MM, JUNTA ELÁSTICA, INSTALADO EM LOCAL COM NÍVEL ALTO DE INTERFERÊNCIAS (NÃO INCLUI FORNECIMENTO). AF_11/2017 | D10: M | E10: 10.25
B11: 97144 | C11: ASSENTAMENTO DE TUBO DE FERRO FUNDIDO PARA REDE DE ÁGUA, DN 200 MM, JUNTA ELÁSTICA, INSTALADO EM LOCAL COM NÍVEL ALTO DE INTERFERÊNCIAS (NÃO INCLUI FORNECIMENTO). AF_11/2017 | D11: M | E11: 12.33
B12: 97145 | C12: ASSENTAMENTO DE TUBO DE FERRO FUNDIDO PARA REDE DE ÁGUA, DN 250 MM, JUNTA ELÁSTICA, INSTALADO EM LOCAL COM NÍVEL ALTO DE INTERFERÊNCIAS (NÃO INCLUI FORNECIMENTO). AF_11/2017 | D12: M | E12: 14.44
B13: 97146 | C13: ASSENTAMENTO DE TUBO DE FERRO FUNDIDO PARA REDE DE ÁGUA, DN 300 MM, JUNTA ELÁSTICA, INSTALADO EM LOCAL COM NÍVEL ALTO DE INTERFERÊNCIAS (NÃO INCLUI FORNECIMENTO). AF_11/2017 | D13: M | E13: 16.55
B14: 97147 | C14: ASSENTAMENTO DE TUBO DE FERRO FUNDIDO PARA REDE DE ÁGUA, DN 350 MM, JUNTA ELÁSTICA, INSTALADO EM LOCAL COM NÍVEL ALTO DE INTERFERÊNCIAS (NÃO INCLUI FORNECIMENTO). AF_11/2017 | D14: M | E14: 18.66
B15: 97148 | C15: ASSENTAMENTO DE TUBO DE FERRO FUNDIDO PARA REDE DE ÁGUA, DN 400 MM, JUNTA ELÁSTICA, INSTALADO EM LOCAL COM NÍVEL ALTO DE INTERFERÊNCIAS (NÃO INCLUI FORNECIMENTO). AF_11/2017 | D15: M | E15: 20.76
B16: 97149 | C16: ASSENTAMENTO DE TUBO DE FERRO FUNDIDO PARA REDE DE ÁGUA, DN 450 MM, JUNTA ELÁSTICA, INSTALADO EM LOCAL COM NÍVEL ALTO DE INTERFERÊNCIAS (NÃO INCLUI FORNECIMENTO). AF_11/2017 | D16: M | E16: 22.9
B17: 97150 | C17: ASSENTAMENTO DE TUBO DE FERRO FUNDIDO PARA REDE DE ÁGUA, DN 500 MM, JUNTA ELÁSTICA, INSTALADO EM LOCAL COM NÍVEL ALTO DE INTERFERÊNCIAS (NÃO INCLUI FORNECIMENTO). AF_11/2017 | D17: M | E17: 27.19
B18: 97151 | C18: ASSENTAMENTO DE TUBO DE FERRO FUNDIDO PARA REDE DE ÁGUA, DN 600 MM, JUNTA ELÁSTICA, INSTALADO EM LOCAL COM NÍVEL ALTO DE INTERFERÊNCIAS (NÃO INCLUI FORNECIMENTO). AF_11/2017 | D18: M | E18: 31.75
B19: 97152 | C19: ASSENTAMENTO DE TUBO DE FERRO FUNDIDO PARA REDE DE ÁGUA, DN 700 MM, JUNTA ELÁSTICA, INSTALADO EM LOCAL COM NÍVEL ALTO DE INTERFERÊNCIAS (NÃO INCLUI FORNECIMENTO). AF_11/2017 | D19: M | E19: 36.15
B20: 97153 | C20: ASSENTAMENTO DE TUBO DE FERRO FUNDIDO PARA REDE DE ÁGUA, DN 800 MM, JUNTA ELÁSTICA, INSTALADO EM LOCAL COM NÍVEL ALTO DE INTERFERÊNCIAS (NÃO INCLUI FORNECIMENTO). AF_11/2017 | D20: M | E20: 40.64
B21: 97154 | C21: ASSENTAMENTO DE TUBO DE FERRO FUNDIDO PARA REDE DE ÁGUA, DN 900 MM, JUNTA ELÁSTICA, INSTALADO EM LOCAL COM NÍVEL ALTO DE INTERFERÊNCIAS (NÃO INCLUI FORNECIMENTO). AF_11/2017 | D21: M | E21: 45.15
B22: 97155 | C22: ASSENTAMENTO DE TUBO DE FERRO FUNDIDO PARA REDE DE ÁGUA, DN 1000 MM, JUNTA ELÁSTICA, INSTALADO EM LOCAL COM NÍVEL ALTO DE INTERFERÊNCIAS (NÃO INCLUI FORNECIMENTO). AF_11/2017 | D22: M | E22: 49.69
B23: 97156 | C23: ASSENTAMENTO DE TUBO DE FERRO FUNDIDO PARA REDE DE ÁGUA, DN 1200 MM, JUNTA ELÁSTICA, INSTALADO EM LOCAL COM NÍVEL ALTO DE INTERFERÊNCIAS (NÃO INCLUI FORNECIMENTO). AF_11/2017 | D23: M | E23: 58.96
B24: 97157 | C24: ASSENTAMENTO DE TUBO DE FERRO FUNDIDO PARA REDE DE ÁGUA, DN 80 MM, JUNTA ELÁSTICA, INSTALADO EM LOCAL COM NÍVEL BAIXO DE INTERFERÊNCIAS (NÃO INCLUI FORNECIMENTO). AF_11/2017 | D24: M | E24: 4.38
B25: 97158 | C25: ASSENTAMENTO DE TUBO DE FERRO FUNDIDO PARA REDE DE ÁGUA, DN 100 MM, JUNTA ELÁSTICA, INSTALADO EM LOCAL COM NÍVEL BAIXO DE INTERFERÊNCIAS (NÃO INCLUI FORNECIMENTO). AF_11/2017 | D25: M | E25: 4.88
B26: 97159 | C26: ASSENTAMENTO DE TUBO DE FERRO FUNDIDO PARA REDE DE ÁGUA, DN 150 MM, JUNTA ELÁSTICA, INSTALADO EM LOCAL COM NÍVEL BAIXO DE INTERFERÊNCIAS (NÃO INCLUI FORNECIMENTO). AF_11/2017 | D26: M | E26: 6.17
B27: 97160 | C27: ASSENTAMENTO DE TUBO DE FERRO FUNDIDO PARA REDE DE ÁGUA, DN 200 MM, JUNTA ELÁSTICA, INSTALADO EM LOCAL COM NÍVEL BAIXO DE INTERFERÊNCIAS (NÃO INCLUI FORNECIMENTO). AF_11/2017 | D27: M | E27: 7.42
B28: 97161 | C28: ASSENTAMENTO DE TUBO DE FERRO FUNDIDO PARA REDE DE ÁGUA, DN 250 MM, JUNTA ELÁSTICA, INSTALADO EM LOCAL COM NÍVEL BAIXO DE INTERFERÊNCIAS (NÃO INCLUI FORNECIMENTO). AF_11/2017 | D28: M | E28: 8.72
B29: 97162 | C29: ASSENTAMENTO DE TUBO DE FERRO FUNDIDO PARA REDE DE ÁGUA, DN 300 MM, JUNTA ELÁSTICA, INSTALADO EM LOCAL COM NÍVEL BAIXO DE INTERFERÊNCIAS (NÃO INCLUI FORNECIMENTO). AF_11/2017 | D29: M | E29: 9.98
B30: 97163 | C30: ASSENTAMENTO DE TUBO DE FERRO FUNDIDO PARA REDE DE ÁGUA, DN 350 MM, JUNTA ELÁSTICA, INSTALADO EM LOCAL COM NÍVEL BAIXO DE INTERFERÊNCIAS (NÃO INCLUI FORNECIMENTO). AF_11/2017 | D30: M | E30: 11.28
B31: 97164 | C31: ASSENTAMENTO DE TUBO DE FERRO FUNDIDO PARA REDE DE ÁGUA, DN 400 MM, JUNTA ELÁSTICA, INSTALADO EM LOCAL COM NÍVEL BAIXO DE INTERFERÊNCIAS (NÃO INCLUI FORNECIMENTO). AF_11/2017 | D31: M | E31: 12.54
B32: 97165 | C32: ASSENTAMENTO DE TUBO DE FERRO FUNDIDO PARA REDE DE ÁGUA, DN 450 MM, JUNTA ELÁSTICA, INSTALADO EM LOCAL COM NÍVEL BAIXO DE INTERFERÊNCIAS (NÃO INCLUI FORNECIMENTO). AF_11/2017 | D32: M | E32: 13.86
B33: 97166 | C33: ASSENTAMENTO DE TUBO DE FERRO FUNDIDO PARA REDE DE ÁGUA, DN 500 MM, JUNTA ELÁSTICA, INSTALADO EM LOCAL COM NÍVEL BAIXO DE INTERFERÊNCIAS (NÃO INCLUI FORNECIMENTO). AF_11/2017 | D33: M | E33: 16.49
B34: 97167 | C34: ASSENTAMENTO DE TUBO DE FERRO FUNDIDO PARA REDE DE ÁGUA, DN 600 MM, JUNTA ELÁSTICA, INSTALADO EM LOCAL COM NÍVEL BAIXO DE INTERFERÊNCIAS (NÃO INCLUI FORNECIMENTO). AF_11/2017 | D34: M | E34: 19.28
B35: 97168 | C35: ASSENTAMENTO DE TUBO DE FERRO FUNDIDO PARA REDE DE ÁGUA, DN 700 MM, JUNTA ELÁSTICA, INSTALADO EM LOCAL COM NÍVEL BAIXO DE INTERFERÊNCIAS (NÃO INCLUI FORNECIMENTO). AF_11/2017 | D35: M | E35: 21.91
B36: 97169 | C36: ASSENTAMENTO DE TUBO DE FERRO FUNDIDO PARA REDE DE ÁGUA, DN 800 MM, JUNTA ELÁSTICA, INSTALADO EM LOCAL COM NÍVEL BAIXO DE INTERFERÊNCIAS (NÃO INCLUI FORNECIMENTO). AF_11/2017 | D36: M | E36: 24.62
B37: 97170 | C37: ASSENTAMENTO DE TUBO DE FERRO FUNDIDO PARA REDE DE ÁGUA, DN 900 MM, JUNTA ELÁSTICA, INSTALADO EM LOCAL COM NÍVEL BAIXO DE INTERFERÊNCIAS (NÃO INCLUI FORNECIMENTO). AF_11/2017 | D37: M | E37: 27.36
B38: 97171 | C38: ASSENTAMENTO DE TUBO DE FERRO FUNDIDO PARA REDE DE ÁGUA, DN 1000 MM, JUNTA ELÁSTICA, INSTALADO EM LOCAL COM NÍVEL BAIXO DE INTERFERÊNCIAS (NÃO INCLUI FORNECIMENTO). AF_11/2017 | D38: M | E38: 30.13
B39: 97172 | C39: ASSENTAMENTO DE TUBO DE FERRO FUNDIDO PARA REDE DE ÁGUA, DN 1200 MM, JUNTA ELÁSTICA, INSTALADO EM LOCAL COM NÍVEL BAIXO DE INTERFERÊNCIAS (NÃO INCLUI FORNECIMENTO). AF_11/2017 | D39: M | E39: 35.86
B40: 97173 | C40: ASSENTAMENTO DE TUBO DE AÇO CARBONO PARA REDE DE ÁGUA, DN 600 MM (24), JUNTA SOLDADA, INSTALADO EM LOCAL COM NÍVEL ALTO DE INTERFERÊNCIAS (NÃO INCLUI FORNECIMENTO). AF_11/2017 | D40: M | E40: 27.07
B41: 97174 | C41: ASSENTAMENTO DE TUBO DE AÇO CARBONO PARA REDE DE ÁGUA, DN 700 MM (28), JUNTA SOLDADA, INSTALADO EM LOCAL COM NÍVEL ALTO DE INTERFERÊNCIAS (NÃO INCLUI FORNECIMENTO). AF_11/2017 | D41: M | E41: 31.26
B42: 97175 | C42: ASSENTAMENTO DE TUBO DE AÇO CARBONO PARA REDE DE ÁGUA, DN 800 MM (32), JUNTA SOLDADA, INSTALADO EM LOCAL COM NÍVEL ALTO DE INTERFERÊNCIAS (NÃO INCLUI FORNECIMENTO). AF_11/2017 | D42: M | E42: 35.48
B43: 97176 | C43: ASSENTAMENTO DE TUBO DE AÇO CARBONO PARA REDE DE ÁGUA, DN 900 MM (36), JUNTA SOLDADA, INSTALADO EM LOCAL COM NÍVEL ALTO DE INTERFERÊNCIAS (NÃO INCLUI FORNECIMENTO). AF_11/2017 | D43: M | E43: 39.68
B44: 97177 | C44: ASSENTAMENTO DE TUBO DE AÇO CARBONO PARA REDE DE ÁGUA, DN 1000 MM (40) OU DN 1100 MM (44), JUNTA SOLDADA, INSTALADO EM LOCAL COM NÍVEL ALTO DE INTERFERÊNCIAS (NÃO INCLUI FORNECIMENTO). AF_11/2017 | D44: M | E44: 48.09
B45: 97178 | C45: ASSENTAMENTO DE TUBO DE AÇO CARBONO PARA REDE DE ÁGUA, DN 1200 MM (48) OU DN 1300 MM (52), JUNTA SOLDADA, INSTALADO EM LOCAL COM NÍVEL ALTO DE INTERFERÊNCIAS (NÃO INCLUI FORNECIMENTO). AF_11/2017 | D45: M | E45: 56.48
B46: 97179 | C46: ASSENTAMENTO DE TUBO DE AÇO CARBONO PARA REDE DE ÁGUA, DN 1400 MM (56'') OU DN 1500 MM (60), JUNTA SOLDADA, INSTALADO EM LOCAL COM NÍVEL ALTO DE INTERFERÊNCIAS (NÃO INCLUI FORNECIMENTO). AF_11/2017 | D46: M | E46: 64.9
B47: 97180 | C47: ASSENTAMENTO DE TUBO DE AÇO CARBONO PARA REDE DE ÁGUA, DN 1600 MM (64) OU DN 1700 MM (68), JUNTA SOLDADA, INSTALADO EM LOCAL COM NÍVEL ALTO DE INTERFERÊNCIAS (NÃO INCLUI FORNECIMENTO). AF_11/2017 | D47: M | E47: 73.3
B48: 97181 | C48: ASSENTAMENTO DE TUBO DE AÇO CARBONO PARA REDE DE ÁGUA, DN 1800 MM (72) OU DN 1900 MM (76), JUNTA SOLDADA, INSTALADO EM LOCAL COM NÍVEL ALTO DE INTERFERÊNCIAS (NÃO INCLUI FORNECIMENTO). AF_11/2017 | D48: M | E48: 84.61
B49: 97182 | C49: ASSENTAMENTO DE TUBO DE AÇO CARBONO PARA REDE DE ÁGUA, DN 2000 MM (80) OU DN 2100 MM (84), JUNTA SOLDADA, INSTALADO EM LOCAL COM NÍVEL ALTO DE INTERFERÊNCIAS (NÃO INCLUI FORNECIMENTO). AF_11/2017 | D49: M | E49: 93.32
B50: 97183 | C50: ASSENTAMENTO DE TUBO DE AÇO CARBONO PARA REDE DE ÁGUA, DN 600 MM (24), JUNTA SOLDADA, INSTALADO EM LOCAL COM NÍVEL BAIXO DE INTERFERÊNCIAS (NÃO INCLUI FORNECIMENTO). AF_11/2017 | D50: M | E50: 21.52
B51: 97184 | C51: ASSENTAMENTO DE TUBO DE AÇO CARBONO PARA REDE DE ÁGUA, DN 700 MM (28), JUNTA SOLDADA, INSTALADO EM LOCAL COM NÍVEL BAIXO DE INTERFERÊNCIAS (NÃO INCLUI FORNECIMENTO). AF_11/2017 | D51: M | E51: 24.91
B52: 97185 | C52: ASSENTAMENTO DE TUBO DE AÇO CARBONO PARA REDE DE ÁGUA, DN 800 MM (32), JUNTA SOLDADA, INSTALADO EM LOCAL COM NÍVEL BAIXO DE INTERFERÊNCIAS (NÃO INCLUI FORNECIMENTO). AF_11/2017 | D52: M | E52: 28.31
B53: 97186 | C53: ASSENTAMENTO DE TUBO DE AÇO CARBONO PARA REDE DE ÁGUA, DN 900 MM (36), JUNTA SOLDADA, INSTALADO EM LOCAL COM NÍVEL BAIXO DE INTERFERÊNCIAS (NÃO INCLUI FORNECIMENTO). AF_11/2017 | D53: M | E53: 31.71
B54: 97187 | C54: ASSENTAMENTO DE TUBO DE AÇO CARBONO PARA REDE DE ÁGUA, DN 1000 MM (40) OU DN 1100 MM (44), JUNTA SOLDADA, INSTALADO EM LOCAL COM NÍVEL ALTO DE INTERFERÊNCIAS (NÃO INCLUI FORNECIMENTO). AF_11/2017 | D54: M | E54: 38.52
B55: 97188 | C55: ASSENTAMENTO DE TUBO DE AÇO CARBONO PARA REDE DE ÁGUA, DN 1200 MM (48) OU DN 1300 MM (52), JUNTA SOLDADA, INSTALADO EM LOCAL COM NÍVEL BAIXO DE INTERFERÊNCIAS (NÃO INCLUI FORNECIMENTO). AF_11/2017 | D55: M | E55: 45.3
B56: 97189 | C56: ASSENTAMENTO DE TUBO DE AÇO CARBONO PARA REDE DE ÁGUA, DN 1400 MM (56'') OU DN 1500 MM (60), JUNTA SOLDADA, INSTALADO EM LOCAL COM NÍVEL BAIXO DE INTERFERÊNCIAS (NÃO INCLUI FORNECIMENTO). AF_11/2017 | D56: M | E56: 52.11
B57: 97190 | C57: ASSENTAMENTO DE TUBO DE AÇO CARBONO PARA REDE DE ÁGUA, DN 1600 MM (64) OU DN 1700 MM (68), JUNTA SOLDADA, INSTALADO EM LOCAL COM NÍVEL BAIXO DE INTERFERÊNCIAS (NÃO INCLUI FORNECIMENTO). AF_11/2017 | D57: M | E57: 58.91
B58: 97191 | C58: ASSENTAMENTO DE TUBO DE AÇO CARBONO PARA REDE DE ÁGUA, DN 1800 MM (72) OU DN 1900 MM (76), JUNTA SOLDADA, INSTALADO EM LOCAL COM NÍVEL BAIXO DE INTERFERÊNCIAS (NÃO INCLUI FORNECIMENTO). AF_11/2017 | D58: M | E58: 67.98
B59: 97192 | C59: ASSENTAMENTO DE TUBO DE AÇO CARBONO PARA REDE DE ÁGUA, DN 2000 MM (80) OU DN 2100 MM (84), JUNTA SOLDADA, INSTALADO EM LOCAL COM NÍVEL BAIXO DE INTERFERÊNCIAS (NÃO INCLUI FORNECIMENTO). AF_11/2017 | D59: M | E59: 75.01
B60: 90694 | C60: TUBO DE PVC PARA REDE COLETORA DE ESGOTO DE PAREDE MACIÇA, DN 100 MM, JUNTA ELÁSTICA, INSTALADO EM LOCAL COM NÍVEL BAIXO DE INTERFERÊNCIAS - FORNECIMENTO E ASSENTAMENTO. AF_06/2015 | D60: M | E60: 19.93
B61: 90695 | C61: TUBO DE PVC PARA REDE COLETORA DE ESGOTO DE PAREDE MACIÇA, DN 150 MM, JUNTA ELÁSTICA, INSTALADO EM LOCAL COM NÍVEL BAIXO DE INTERFERÊNCIAS - FORNECIMENTO E ASSENTAMENTO. AF_06/2015 | D61: M | E61: 40.45
B62: 90696 | C62: TUBO DE PVC PARA REDE COLETORA DE ESGOTO DE PAREDE MACIÇA, DN 200 MM, JUNTA ELÁSTICA, INSTALADO EM LOCAL COM NÍVEL BAIXO DE INTERFERÊNCIAS - FORNECIMENTO E ASSENTAMENTO. AF_06/2015 | D62: M | E62: 61.95
B63: 90697 | C63: TUBO DE PVC PARA REDE COLETORA DE ESGOTO DE PAREDE MACIÇA, DN 250 MM, JUNTA ELÁSTICA, INSTALADO EM LOCAL COM NÍVEL BAIXO DE INTERFERÊNCIAS - FORNECIMENTO E ASSENTAMENTO. AF_06/2015 | D63: M | E63: 102.95
B64: 90698 | C64: TUBO DE PVC PARA REDE COLETORA DE ESGOTO DE PAREDE MACIÇA, DN 300 MM, JUNTA ELÁSTICA, INSTALADO EM LOCAL COM NÍVEL BAIXO DE INTERFERÊNCIAS - FORNECIMENTO E ASSENTAMENTO. AF_06/2015 | D64: M | E64: 164.71
B65: 90699 | C65: TUBO DE PVC PARA REDE COLETORA DE ESGOTO DE PAREDE MACIÇA, DN 350 MM, JUNTA ELÁSTICA, INSTALADO EM LOCAL COM NÍVEL BAIXO DE INTERFERÊNCIAS - FORNECIMENTO E ASSENTAMENTO. AF_06/2015 | D65: M | E65: 203.62
B66: 90700 | C66: TUBO DE PVC PARA REDE COLETORA DE ESGOTO DE PAREDE MACIÇA, DN 400 MM, JUNTA ELÁSTICA, INSTALADO EM LOCAL COM NÍVEL BAIXO DE INTERFERÊNCIAS - FORNECIMENTO E ASSENTAMENTO. AF_06/2015 | D66: M | E66: 270.45
B67: 90701 | C67: TUBO DE PVC CORRUGADO DE DUPLA PAREDE PARA REDE COLETORA DE ESGOTO, DN 150 MM, JUNTA ELÁSTICA, INSTALADO EM LOCAL COM NÍVEL BAIXO DE INTERFERÊNCIAS - FORNECIMENTO E ASSENTAMENTO. AF_06/2015 | D67: M | E67: 38.83
B68: 90702 | C68: TUBO DE PVC CORRUGADO DE DUPLA PAREDE PARA REDE COLETORA DE ESGOTO, DN 200 MM, JUNTA ELÁSTICA, INSTALADO EM LOCAL COM NÍVEL BAIXO DE INTERFERÊNCIAS - FORNECIMENTO E ASSENTAMENTO. AF_06/2015 | D68: M | E68: 58.08
B69: 90703 | C69: TUBO DE PVC CORRUGADO DE DUPLA PAREDE PARA REDE COLETORA DE ESGOTO, DN 250 MM, JUNTA ELÁSTICA, INSTALADO EM LOCAL COM NÍVEL BAIXO DE INTERFERÊNCIAS - FORNECIMENTO E ASSENTAMENTO. AF_06/2015 | D69: M | E69: 94.7
B70: 90704 | C70: TUBO DE PVC CORRUGADO DE DUPLA PAREDE PARA REDE COLETORA DE ESGOTO, DN 300 MM, JUNTA ELÁSTICA, INSTALADO EM LOCAL COM NÍVEL BAIXO DE INTERFERÊNCIAS - FORNECIMENTO E ASSENTAMENTO. AF_06/2015 | D70: M | E70: 147.38
B71: 90705 | C71: TUBO DE PVC CORRUGADO DE DUPLA PAREDE PARA REDE COLETORA DE ESGOTO, DN 350 MM, JUNTA ELÁSTICA, INSTALADO EM LOCAL COM NÍVEL BAIXO DE INTERFERÊNCIAS - FORNECIMENTO E ASSENTAMENTO. AF_06/2015 | D71: M | E71: 215.19
